Workbook

Sheet Introduction
C4: Joint Monitoring Programme for Water Supply, Sanitation and Hygiene
C6: Estimates on household water, sanitation and hygiene by wealth quintile and sub-national region in
C7: =+Water!B5 -> Benin
C9: Updated April 2021
C11: Follow the links below to find the following information:
C13: JMP Estimates
C14: WASH status and trends by wealth quintile (customized quintiles made without water and sanitation assets)
C15: Water
C16: Sanitation
C17: Hygiene
C19: Data inputs
C20: customized wealth quintiles and subnational data:
C21: =IF(INDIRECT(CONCATENATE("Water","!B105"))=0,"",INDIRECT(CONCATENATE("Water","!B105"))) -> DHS01
C22: =IF(INDIRECT(CONCATENATE("Water","!B106"))=0,"",INDIRECT(CONCATENATE("Water","!B106"))) -> DHS06
C23: =IF(INDIRECT(CONCATENATE("Water","!B107"))=0,"",INDIRECT(CONCATENATE("Water","!B107"))) -> DHS12
C24: =IF(INDIRECT(CONCATENATE("Water","!B108"))=0,"",INDIRECT(CONCATENATE("Water","!B108"))) -> MICS14
C25: =IF(INDIRECT(CONCATENATE("Water","!B109"))=0,"",INDIRECT(CONCATENATE("Water","!B109"))) -> DHS18
C26: =IF(INDIRECT(CONCATENATE("Water","!B110"))=0,"",INDIRECT(CONCATENATE("Water","!B110"))) -> 
C27: =IF(INDIRECT(CONCATENATE("Water","!B111"))=0,"",INDIRECT(CONCATENATE("Water","!B111"))) -> 
C28: =IF(INDIRECT(CONCATENATE("Water","!B112"))=0,"",INDIRECT(CONCATENATE("Water","!B112"))) -> 
C29: =IF(INDIRECT(CONCATENATE("Water","!B113"))=0,"",INDIRECT(CONCATENATE("Water","!B113"))) -> 
C30: =IF(INDIRECT(CONCATENATE("Water","!B114"))=0,"",INDIRECT(CONCATENATE("Water","!B114"))) -> 
C31: =IF(INDIRECT(CONCATENATE("Water","!B115"))=0,"",INDIRECT(CONCATENATE("Water","!B115"))) -> 
C32: =IF(INDIRECT(CONCATENATE("Water","!B116"))=0,"",INDIRECT(CONCATENATE("Water","!B116"))) -> 
L55: =+IF(ISNUMBER(M48), "", "Insufficient data to estimate safely managed sanitation services at national level") -> Insufficient data to estimate safely managed sanitation services at national level

Sheet Water
A1: BGD
B4: Summary of trends in use of drinking water by wealth quintile (%)
B5: =IF(ISERROR(INDIRECT(CONCATENATE($B105,"!A2"))),"",INDIRECT(CONCATENATE($B105,"!A2"))) -> Benin
B7: =B118 -> National use of drinking water sources, 2000–2020 | J7: =B218 -> Urban use of drinking water sources, 2000–2020 | R7: =B318 -> Rural use of drinking water sources, 2000–2020
B31: =IF(ISERROR(INDIRECT(CONCATENATE($B105,"!A2"))),"",INDIRECT(CONCATENATE($B105,"!A2"))) -> Benin | F31: Poorest | J31: Poor | N31: Middle | R31: Rich | V31: Richest
F32: Basic | G32: Limited | H32: Unimproved | I32: Surface water | J32: Basic | K32: Limited | L32: Unimproved | M32: Surface water | N32: Basic | O32: Limited | P32: Unimproved | Q32: Surface water | R32: Basic | S32: Limited | T32: Unimproved | U32: Surface water | V32: Basic | W32: Limited | X32: Unimproved | Y32: Surface water
B33: NATIONAL | D33: Estimate | E33: =C99 -> 2000 | F33: =E99 -> 43.09621796 | G33: =F99 -> 8.056696927 | H33: 24.91301684 | I33: 23.93406828 | J33: =J99 -> 50.50940435 | K33: =K99 -> 7.422231344 | L33: 25.54274026 | M33: 16.52562404 | N33: =O99 -> 58.1923549 | O33: =P99 -> 6.476193261 | P33: 25.9946194 | Q33: 9.336832445 | R33: =T99 -> 70.59531162 | S33: =U99 -> 4.476568603 | T33: 21.66013651 | U33: 3.26798327 | V33: =Y99 -> 91.00604498 | W33: =Z99 -> 1.6246022 | X33: 7.170108382 | Y33: 0.1992444346
E34: =C100 -> 2020 | F34: =E100 -> 51.87677866 | G34: 9.698194018 | H34: 26.17418675 | I34: 12.25084057 | J34: =J100 -> 59.23222635 | K34: 8.704028342 | L34: 27.38814399 | M34: 4.67560132 | N34: =O100 -> 62.9258647 | O34: 7.002982808 | P34: 27.18264719 | Q34: 2.888505301 | R34: =T100 -> 72.79302065 | S34: 4.615929064 | T34: 21.50991561 | U34: 1.081134677 | V34: =Y100 -> 86.48019825 | W34: 1.54380866 | X34: 11.65197548 | Y34: 0.3240176084
B36: URBAN | D36: Estimate | E36: =C199 -> 2000 | F36: =E199 -> 43.17334071 | G36: =F199 -> 5.721938522 | H36: 32.4851969 | I36: 18.61952387 | J36: =J199 -> 68.23549599 | K36: =K199 -> 5.004793987 | L36: 20.76851223 | M36: 5.991197795 | N36: =O199 -> 83.261362 | O36: =P199 -> 2.62299302 | P36: 13.73162323 | Q36: 0.3840217476 | R36: =T199 -> 90.74778178 | S36: =U199 -> 1.658512927 | T36: 7.593705292 | U36: 0 | V36: =Y199 -> 98.32842394 | W36: =Z199 -> 0.5830862263 | X36: 1.088489834 | Y36: 0
E37: =C200 -> 2020 | F37: =E200 -> 55.82399792 | G37: 7.398581601 | H37: 28.41792433 | I37: 8.359496144 | J37: =J200 -> 64.84412485 | K37: 4.756050812 | L37: 29.75344611 | M37: 0.6463782292 | N37: =O200 -> 74.01886828 | O37: 2.331825593 | P37: 22.67696258 | Q37: 0.9723435514 | R37: =T200 -> 84.24682764 | S37: 1.539701026 | T37: 13.91284901 | U37: 0.300622325 | V37: =Y200 -> 93.21412245 | W37: 0.5527584875 | X37: 6.233119061 | Y37: 0
B39: RURAL | D39: Estimate | E39: =C299 -> 2000 | F39: =E299 -> 42.50057295 | G39: =F299 -> 8.676836397 | H39: 23.48850916 | I39: 25.3340815 | J39: =J299 -> 49.55177992 | K39: =K299 -> 8.62952032 | L39: 24.38088961 | M39: 17.43781015 | N39: =O299 -> 53.16730322 | O39: =P299 -> 7.181036207 | P39: 25.87736588 | Q39: 13.77429469 | R39: =T299 -> 59.43600771 | S39: =U299 -> 6.592935176 | T39: 24.29502999 | U39: 9.676027131 | V39: =Y299 -> 66.01096402 | W39: =Z299 -> 5.974648986 | X39: 24.30333355 | Y39: 3.711053448
E40: =C300 -> 2020 | F40: =E300 -> 50.37969086 | G40: 10.28542217 | H40: 26.12525468 | I40: 13.20963229 | J40: =J300 -> 58.02168153 | K40: 10.10456699 | L40: 23.94406123 | M40: 7.929690249 | N40: =O300 -> 60.6848512 | O40: 8.196393033 | P40: 26.60645556 | Q40: 4.51230021 | R40: =T300 -> 63.0561044 | S40: 6.994494159 | T40: 27.32680382 | U40: 2.622597622 | V40: =Y300 -> 71.096526 | W40: 6.434942941 | X40: 20.44359669 | Y40: 2.024934367
A97: NATIONAL | D97: Poorest | I97: Poor | N97: Middle | S97: Rich | X97: Richest
D98: Improved | E98: Basic | F98: Limited | G98: Unimproved | H98: Surface water | I98: Improved | J98: Basic | K98: Limited | L98: Unimproved | M98: Surface water | N98: Improved | O98: Basic | P98: Limited | Q98: Unimproved | R98: Surface water | S98: Improved | T98: Basic | U98: Limited | V98: Unimproved | W98: Surface water | X98: Improved | Y98: Basic | Z98: Limited | AA98: Unimproved | AB98: Surface water
A99: Forecast period: | C99: 2000 | D99: =IF((D101+H101)>100,D101*100/(D101+H101),D101) -> 51.15291489 | E99: =D99*AVERAGEIF(E105:E116,">0")/100 -> 43.09621796 | F99: =D99*(100-AVERAGEIF(E105:E116,">0"))/100 -> 8.056696927 | G99: =100-(E99+F99+H99) -> 24.91301684 | H99: =IF((D101+H101)>100,H101*100/(D101+H101),H101) -> 23.93406828 | I99: =IF((I101+M101)>100,I101*100/(I101+M101),I101) -> 57.9316357 | J99: =I99*AVERAGEIF(J105:J116,">0")/100 -> 50.50940435 | K99: =I99*(100-AVERAGEIF(J105:J116,">0"))/100 -> 7.422231344 | L99: =100-(J99+K99+M99) -> 25.54274026 | M99: =IF((I101+M101)>100,M101*100/(I101+M101),M101) -> 16.52562404 | N99: =IF((N101+R101)>100,N101*100/(N101+R101),N101) -> 64.66854816 | O99: =N99*AVERAGEIF(O105:O116,">0")/100 -> 58.1923549 | P99: =N99*(100-AVERAGEIF(O105:O116,">0"))/100 -> 6.476193261 | Q99: =100-(O99+P99+R99) -> 25.9946194 | R99: =IF((N101+R101)>100,R101*100/(N101+R101),R101) -> 9.336832445 | S99: =IF((S101+W101)>100,S101*100/(S101+W101),S101) -> 75.07188022 | T99: =S99*AVERAGEIF(T105:T116,">0")/100 -> 70.59531162 | U99: =S99*(100-AVERAGEIF(T105:T116,">0"))/100 -> 4.476568603 | V99: =100-(T99+U99+W99) -> 21.66013651 | W99: =IF((S101+W101)>100,W101*100/(S101+W101),W101) -> 3.26798327 | X99: =IF((X101+AB101)>100,X101*100/(X101+AB101),X101) -> 92.63064718 | Y99: =X99*AVERAGEIF(Y105:Y116,">0")/100 -> 91.00604498 | Z99: =X99*(100-AVERAGEIF(Y105:Y116,">0"))/100 -> 1.6246022 | AA99: =100-(Y99+Z99+AB99) -> 7.170108382 | AB99: =IF((X101+AB101)>100,AB101*100/(X101+AB101),AB101) -> 0.1992444346
C100: 2020 | D100: =IF((D102+H102)>100,D102*100/(D102+H102),D102) -> 61.57497268 | E100: =D100*AVERAGEIF(E105:E116,">0")/100 -> 51.87677866 | F100: =D100*(100-AVERAGEIF(E105:E116,">0"))/100 -> 9.698194018 | G100: =100-(E100+F100+H100) -> 26.17418675 | H100: =IF((D102+H102)>100,H102*100/(D102+H102),H102) -> 12.25084057 | I100: =IF((I102+M102)>100,I102*100/(I102+M102),I102) -> 67.93625469 | J100: =I100*AVERAGEIF(J105:J116,">0")/100 -> 59.23222635 | K100: =I100*(100-AVERAGEIF(J105:J116,">0"))/100 -> 8.704028342 | L100: =100-(J100+K100+M100) -> 27.38814399 | M100: =IF((I102+M102)>100,M102*100/(I102+M102),M102) -> 4.67560132 | N100: =IF((N102+R102)>100,N102*100/(N102+R102),N102) -> 69.92884751 | O100: =N100*AVERAGEIF(O105:O116,">0")/100 -> 62.9258647 | P100: =N100*(100-AVERAGEIF(O105:O116,">0"))/100 -> 7.002982808 | Q100: =100-(O100+P100+R100) -> 27.18264719 | R100: =IF((N102+R102)>100,R102*100/(N102+R102),R102) -> 2.888505301 | S100: =IF((S102+W102)>100,S102*100/(S102+W102),S102) -> 77.40894971 | T100: =S100*AVERAGEIF(T105:T116,">0")/100 -> 72.79302065 | U100: =S100*(100-AVERAGEIF(T105:T116,">0"))/100 -> 4.615929064 | V100: =100-(T100+U100+W100) -> 21.50991561 | W100: =IF((S102+W102)>100,W102*100/(S102+W102),W102) -> 1.081134677 | X100: =IF((X102+AB102)>100,X102*100/(X102+AB102),X102) -> 88.02400691 | Y100: =X100*AVERAGEIF(Y105:Y116,">0")/100 -> 86.48019825 | Z100: =X100*(100-AVERAGEIF(Y105:Y116,">0"))/100 -> 1.54380866 | AA100: =100-(Y100+Z100+AB100) -> 11.65197548 | AB100: =IF((X102+AB102)>100,AB102*100/(X102+AB102),AB102) -> 0.3240176084
A101: Regression period: | C101: =MinRegYear(C99,C105:C116) -> 2000 | D101: =IF(MAX(C105:C116)-MIN(C105:C116)<5,AVERAGEIF(C105:C116,">0",D105:D116), IF(FORECAST($C101,D$105:D$116,$C$105:$C$116)<0,0, IF(FORECAST($C101,D$105:D$116,$C$105:$C$116)>100,100, FORECAST($C101,D$105:D$116,$C$105:$C$116)))) -> 51.15291489 | H101: =IF(MAX(C105:C116)-MIN(C105:C116)<5,AVERAGEIF(C105:C116,">0",H105:H116), IF(FORECAST($C101,H$105:H$116,$C$105:$C$116)<0,0, IF(FORECAST($C101,H$105:H$116,$C$105:$C$116)>100,100, FORECAST($C101,H$105:H$116,$C$105:$C$116)))) -> 23.93406828 | I101: =IF(MAX(C105:C116)-MIN(C105:C116)<5,AVERAGEIF(C105:C116,">0",I105:I116), IF(FORECAST($C101,I$105:I$116,$C$105:$C$116)<0,0, IF(FORECAST($C101,I$105:I$116,$C$105:$C$116)>100,100, FORECAST($C101,I$105:I$116,$C$105:$C$116)))) -> 57.9316357 | M101: =IF(MAX(C105:C116)-MIN(C105:C116)<5,AVERAGEIF(C105:C116,">0",M105:M116), IF(FORECAST($C101,M$105:M$116,$C$105:$C$116)<0,0, IF(FORECAST($C101,M$105:M$116,$C$105:$C$116)>100,100, FORECAST($C101,M$105:M$116,$C$105:$C$116)))) -> 16.52562404 | N101: =IF(MAX(C105:C116)-MIN(C105:C116)<5,AVERAGEIF(C105:C116,">0",N105:N116), IF(FORECAST($C101,N$105:N$116,$C$105:$C$116)<0,0, IF(FORECAST($C101,N$105:N$116,$C$105:$C$116)>100,100, FORECAST($C101,N$105:N$116,$C$105:$C$116)))) -> 64.66854816 | R101: =IF(MAX(C105:C116)-MIN(C105:C116)<5,AVERAGEIF(C105:C116,">0",R105:R116), IF(FORECAST($C101,R$105:R$116,$C$105:$C$116)<0,0, IF(FORECAST($C101,R$105:R$116,$C$105:$C$116)>100,100, FORECAST($C101,R$105:R$116,$C$105:$C$116)))) -> 9.336832445 | S101: =IF(MAX(C105:C116)-MIN(C105:C116)<5,AVERAGEIF(C105:C116,">0",S105:S116), IF(FORECAST($C101,S$105:S$116,$C$105:$C$116)<0,0, IF(FORECAST($C101,S$105:S$116,$C$105:$C$116)>100,100, FORECAST($C101,S$105:S$116,$C$105:$C$116)))) -> 75.07188022 | W101: =IF(MAX(C105:C116)-MIN(C105:C116)<5,AVERAGEIF(C105:C116,">0",W105:W116), IF(FORECAST($C101,W$105:W$116,$C$105:$C$116)<0,0, IF(FORECAST($C101,W$105:W$116,$C$105:$C$116)>100,100, FORECAST($C101,W$105:W$116,$C$105:$C$116)))) -> 3.26798327 | X101: =IF(MAX(C105:C116)-MIN(C105:C116)<5,AVERAGEIF(C105:C116,">0",X105:X116), IF(FORECAST($C101,X$105:X$116,$C$105:$C$116)<0,0, IF(FORECAST($C101,X$105:X$116,$C$105:$C$116)>100,100, FORECAST($C101,X$105:X$116,$C$105:$C$116)))) -> 92.63064718 | AB101: =IF(MAX(C105:C116)-MIN(C105:C116)<5,AVERAGEIF(C105:C116,">0",AB105:AB116), IF(FORECAST($C101,AB$105:AB$116,$C$105:$C$116)<0,0, IF(FORECAST($C101,AB$105:AB$116,$C$105:$C$116)>100,100, FORECAST($C101,AB$105:AB$116,$C$105:$C$116)))) -> 0.1992444346
C102: =MaxRegYear(C100,C105:C116) -> 2020 | D102: =IF(MAX(C105:C116)-MIN(C105:C116)<5,AVERAGEIF(C105:C116,">0",D105:D116), IF(FORECAST($C102,D$105:D$116,$C$105:$C$116)<0,0, IF(FORECAST($C102,D$105:D$116,$C$105:$C$116)>100,100, FORECAST($C102,D$105:D$116,$C$105:$C$116)))) -> 61.57497268 | H102: =IF(MAX(C105:C116)-MIN(C105:C116)<5,AVERAGEIF(C105:C116,">0",H105:H116), IF(FORECAST($C102,H$105:H$116,$C$105:$C$116)<0,0, IF(FORECAST($C102,H$105:H$116,$C$105:$C$116)>100,100, FORECAST($C102,H$105:H$116,$C$105:$C$116)))) -> 12.25084057 | I102: =IF(MAX(C105:C116)-MIN(C105:C116)<5,AVERAGEIF(C105:C116,">0",I105:I116), IF(FORECAST($C102,I$105:I$116,$C$105:$C$116)<0,0, IF(FORECAST($C102,I$105:I$116,$C$105:$C$116)>100,100, FORECAST($C102,I$105:I$116,$C$105:$C$116)))) -> 67.93625469 | M102: =IF(MAX(C105:C116)-MIN(C105:C116)<5,AVERAGEIF(C105:C116,">0",M105:M116), IF(FORECAST($C102,M$105:M$116,$C$105:$C$116)<0,0, IF(FORECAST($C102,M$105:M$116,$C$105:$C$116)>100,100, FORECAST($C102,M$105:M$116,$C$105:$C$116)))) -> 4.67560132 | N102: =IF(MAX(C105:C116)-MIN(C105:C116)<5,AVERAGEIF(C105:C116,">0",N105:N116), IF(FORECAST($C102,N$105:N$116,$C$105:$C$116)<0,0, IF(FORECAST($C102,N$105:N$116,$C$105:$C$116)>100,100, FORECAST($C102,N$105:N$116,$C$105:$C$116)))) -> 69.92884751 | R102: =IF(MAX(C105:C116)-MIN(C105:C116)<5,AVERAGEIF(C105:C116,">0",R105:R116), IF(FORECAST($C102,R$105:R$116,$C$105:$C$116)<0,0, IF(FORECAST($C102,R$105:R$116,$C$105:$C$116)>100,100, FORECAST($C102,R$105:R$116,$C$105:$C$116)))) -> 2.888505301 | S102: =IF(MAX(C105:C116)-MIN(C105:C116)<5,AVERAGEIF(C105:C116,">0",S105:S116), IF(FORECAST($C102,S$105:S$116,$C$105:$C$116)<0,0, IF(FORECAST($C102,S$105:S$116,$C$105:$C$116)>100,100, FORECAST($C102,S$105:S$116,$C$105:$C$116)))) -> 77.40894971 | W102: =IF(MAX(C105:C116)-MIN(C105:C116)<5,AVERAGEIF(C105:C116,">0",W105:W116), IF(FORECAST($C102,W$105:W$116,$C$105:$C$116)<0,0, IF(FORECAST($C102,W$105:W$116,$C$105:$C$116)>100,100, FORECAST($C102,W$105:W$116,$C$105:$C$116)))) -> 1.081134677 | X102: =IF(MAX(C105:C116)-MIN(C105:C116)<5,AVERAGEIF(C105:C116,">0",X105:X116), IF(FORECAST($C102,X$105:X$116,$C$105:$C$116)<0,0, IF(FORECAST($C102,X$105:X$116,$C$105:$C$116)>100,100, FORECAST($C102,X$105:X$116,$C$105:$C$116)))) -> 88.02400691 | AB102: =IF(MAX(C105:C116)-MIN(C105:C116)<5,AVERAGEIF(C105:C116,">0",AB105:AB116), IF(FORECAST($C102,AB$105:AB$116,$C$105:$C$116)<0,0, IF(FORECAST($C102,AB$105:AB$116,$C$105:$C$116)>100,100, FORECAST($C102,AB$105:AB$116,$C$105:$C$116)))) -> 0.3240176084
B104: Survey | C104: Year | D104: Improved | E104: Basic | H104: Surface water | I104: Improved | J104: Basic | M104: Surface water | N104: Improved | O104: Basic | R104: Surface water | S104: Improved | T104: Basic | W104: Surface water | X104: Improved | Y104: Basic | AB104: Surface water
B105: DHS01 | C105: 2001 | D105: =IF(ISERROR(INDIRECT(CONCATENATE($B105,"!C16"))),"",INDIRECT(CONCATENATE($B105,"!C16"))) -> 48.23484394 | E105: =IF(ISERROR(INDIRECT(CONCATENATE($B105,"!C23"))),"",INDIRECT(CONCATENATE($B105,"!C23"))) -> N/A | H105: =IF(ISERROR(INDIRECT(CONCATENATE($B105,"!C21"))),"",INDIRECT(CONCATENATE($B105,"!C21"))) -> 24.16791979 | I105: =IF(ISERROR(INDIRECT(CONCATENATE($B105,"!D16"))),"",INDIRECT(CONCATENATE($B105,"!D16"))) -> 56.82634031 | J105: =IF(ISERROR(INDIRECT(CONCATENATE($B105,"!D23"))),"",INDIRECT(CONCATENATE($B105,"!D23"))) -> N/A | M105: =IF(ISERROR(INDIRECT(CONCATENATE($B105,"!D21"))),"",INDIRECT(CONCATENATE($B105,"!D21"))) -> 16.08697763 | N105: =IF(ISERROR(INDIRECT(CONCATENATE($B105,"!E16"))),"",INDIRECT(CONCATENATE($B105,"!E16"))) -> 64.23155143 | O105: =IF(ISERROR(INDIRECT(CONCATENATE($B105,"!E23"))),"",INDIRECT(CONCATENATE($B105,"!E23"))) -> N/A | R105: =IF(ISERROR(INDIRECT(CONCATENATE($B105,"!E21"))),"",INDIRECT(CONCATENATE($B105,"!E21"))) -> 8.981146366 | S105: =IF(ISERROR(INDIRECT(CONCATENATE($B105,"!F16"))),"",INDIRECT(CONCATENATE($B105,"!F16"))) -> 73.59646658 | T105: =IF(ISERROR(INDIRECT(CONCATENATE($B105,"!F23"))),"",INDIRECT(CONCATENATE($B105,"!F23"))) -> N/A | W105: =IF(ISERROR(INDIRECT(CONCATENATE($B105,"!F21"))),"",INDIRECT(CONCATENATE($B105,"!F21"))) -> 3.596015814 | X105: =IF(ISERROR(INDIRECT(CONCATENATE($B105,"!G16"))),"",INDIRECT(CONCATENATE($B105,"!G16"))) -> 92.65044726 | Y105: =IF(ISERROR(INDIRECT(CONCATENATE($B105,"!G23"))),"",INDIRECT(CONCATENATE($B105,"!G23"))) -> N/A | AB105: =IF(ISERROR(INDIRECT(CONCATENATE($B105,"!G221"))),"",INDIRECT(CONCATENATE($B105,"!G21"))) -> 0.1410041855
B106: DHS06 | C106: 2006 | D106: 54.9075336 | E106: 84.3035804 | H106: 22.21418028 | I106: 59.60041555 | J106: 87.98593372 | M106: 15.14751524 | N106: 63.11086846 | O106: 90.63247969 | R106: 8.723159659 | S106: 75.72393868 | T106: 95.81963198 | W106: 2.545474063 | X106: 88.86914799 | Y106: 98.59510683 | AB106: 0.5095326602
B107: DHS12 | C107: 2012 | D107: 64.73010415 | E107: 86.33007455 | H107: 9.995230056 | I107: 70.36679511 | J107: 89.89722079 | M107: 4.932125182 | N107: 75.11902422 | O107: 92.59253296 | R107: 3.235593622 | S107: 81.332305 | T107: 95.6147939 | W107: 0.910974224 | X107: 93.6486256 | Y107: 99.06987063 | AB107: 0.02966574802
B108: MICS14 | C108: 2014 | D108: 60.19490812 | E108: 85.07492022 | H108: 17.31736551 | I108: 66.10759141 | J108: 87.21674777 | M108: 7.771259344 | N108: 69.79167129 | O108: 89.98455929 | R108: 4.350287494 | S108: 76.33487664 | T108: 93.79673753 | W108: 1.645059341 | X108: 89.80851507 | Y108: 98.98711375 | AB108: 0.1087160802
B109: DHS18 | C109: 2018 | D109: 54.27343199 | E109: 81.29054252 | H109: 16.18341509 | I109: 62.26881454 | J109: 83.65188935 | M109: 8.47268487 | N109: 64.50338875 | O109: 86.73266616 | R109: 4.950740868 | S109: 74.3313414 | T109: 90.91666404 | W109: 2.065928997 | X109: 86.4295673 | Y109: 96.33251054 | AB109: 0.5254750922
D111: =IF(ISERROR(INDIRECT(CONCATENATE($B111,"!C16"))),"",INDIRECT(CONCATENATE($B111,"!C16"))) ->  | E111: =IF(ISERROR(INDIRECT(CONCATENATE($B111,"!C23"))),"",INDIRECT(CONCATENATE($B111,"!C23"))) ->  | H111: =IF(ISERROR(INDIRECT(CONCATENATE($B111,"!C21"))),"",INDIRECT(CONCATENATE($B111,"!C21"))) ->  | I111: =IF(ISERROR(INDIRECT(CONCATENATE($B111,"!D16"))),"",INDIRECT(CONCATENATE($B111,"!D16"))) ->  | J111: =IF(ISERROR(INDIRECT(CONCATENATE($B111,"!D23"))),"",INDIRECT(CONCATENATE($B111,"!D23"))) ->  | M111: =IF(ISERROR(INDIRECT(CONCATENATE($B111,"!D21"))),"",INDIRECT(CONCATENATE($B111,"!D21"))) ->  | N111: =IF(ISERROR(INDIRECT(CONCATENATE($B111,"!E16"))),"",INDIRECT(CONCATENATE($B111,"!E16"))) ->  | O111: =IF(ISERROR(INDIRECT(CONCATENATE($B111,"!E23"))),"",INDIRECT(CONCATENATE($B111,"!E23"))) ->  | R111: =IF(ISERROR(INDIRECT(CONCATENATE($B111,"!E21"))),"",INDIRECT(CONCATENATE($B111,"!E21"))) ->  | S111: =IF(ISERROR(INDIRECT(CONCATENATE($B111,"!F16"))),"",INDIRECT(CONCATENATE($B111,"!F16"))) ->  | T111: =IF(ISERROR(INDIRECT(CONCATENATE($B111,"!F23"))),"",INDIRECT(CONCATENATE($B111,"!F23"))) ->  | W111: =IF(ISERROR(INDIRECT(CONCATENATE($B111,"!F21"))),"",INDIRECT(CONCATENATE($B111,"!F21"))) ->  | X111: =IF(ISERROR(INDIRECT(CONCATENATE($B111,"!G16"))),"",INDIRECT(CONCATENATE($B111,"!G16"))) ->  | Y111: =IF(ISERROR(INDIRECT(CONCATENATE($B111,"!G23"))),"",INDIRECT(CONCATENATE($B111,"!G23"))) ->  | AB111: =IF(ISERROR(INDIRECT(CONCATENATE($B111,"!G221"))),"",INDIRECT(CONCATENATE($B111,"!G21"))) -> 
D112: =IF(ISERROR(INDIRECT(CONCATENATE($B112,"!C16"))),"",INDIRECT(CONCATENATE($B112,"!C16"))) ->  | E112: =IF(ISERROR(INDIRECT(CONCATENATE($B112,"!C23"))),"",INDIRECT(CONCATENATE($B112,"!C23"))) ->  | H112: =IF(ISERROR(INDIRECT(CONCATENATE($B112,"!C21"))),"",INDIRECT(CONCATENATE($B112,"!C21"))) ->  | I112: =IF(ISERROR(INDIRECT(CONCATENATE($B112,"!D16"))),"",INDIRECT(CONCATENATE($B112,"!D16"))) ->  | J112: =IF(ISERROR(INDIRECT(CONCATENATE($B112,"!D23"))),"",INDIRECT(CONCATENATE($B112,"!D23"))) ->  | M112: =IF(ISERROR(INDIRECT(CONCATENATE($B112,"!D21"))),"",INDIRECT(CONCATENATE($B112,"!D21"))) ->  | N112: =IF(ISERROR(INDIRECT(CONCATENATE($B112,"!E16"))),"",INDIRECT(CONCATENATE($B112,"!E16"))) ->  | O112: =IF(ISERROR(INDIRECT(CONCATENATE($B112,"!E23"))),"",INDIRECT(CONCATENATE($B112,"!E23"))) ->  | R112: =IF(ISERROR(INDIRECT(CONCATENATE($B112,"!E21"))),"",INDIRECT(CONCATENATE($B112,"!E21"))) ->  | S112: =IF(ISERROR(INDIRECT(CONCATENATE($B112,"!F16"))),"",INDIRECT(CONCATENATE($B112,"!F16"))) ->  | T112: =IF(ISERROR(INDIRECT(CONCATENATE($B112,"!F23"))),"",INDIRECT(CONCATENATE($B112,"!F23"))) ->  | W112: =IF(ISERROR(INDIRECT(CONCATENATE($B112,"!F21"))),"",INDIRECT(CONCATENATE($B112,"!F21"))) ->  | X112: =IF(ISERROR(INDIRECT(CONCATENATE($B112,"!G16"))),"",INDIRECT(CONCATENATE($B112,"!G16"))) ->  | Y112: =IF(ISERROR(INDIRECT(CONCATENATE($B112,"!G23"))),"",INDIRECT(CONCATENATE($B112,"!G23"))) ->  | AB112: =IF(ISERROR(INDIRECT(CONCATENATE($B112,"!G221"))),"",INDIRECT(CONCATENATE($B112,"!G21"))) -> 
B118: =CONCATENATE("National use of drinking water sources, ",C99,"–",C100) -> National use of drinking water sources, 2000–2020 | S118: Data points used for regression
E153: =IF(ISERROR(INDIRECT(CONCATENATE($B153,"!M18"))),"",INDIRECT(CONCATENATE($B153,"!M18"))) ->  | F153: =IF(ISERROR(INDIRECT(CONCATENATE($B153,"!M19"))),"",INDIRECT(CONCATENATE($B153,"!M19"))) ->  | G153: =IF(ISERROR(INDIRECT(CONCATENATE($B153,"!M20"))),"",INDIRECT(CONCATENATE($B153,"!M20"))) ->  | H153: =IF(ISERROR(INDIRECT(CONCATENATE($B153,"!M21"))),"",INDIRECT(CONCATENATE($B153,"!M21"))) ->  | J153: =IF(ISERROR(INDIRECT(CONCATENATE($B153,"!N18"))),"",INDIRECT(CONCATENATE($B153,"!N18"))) ->  | K153: =IF(ISERROR(INDIRECT(CONCATENATE($B153,"!N19"))),"",INDIRECT(CONCATENATE($B153,"!N19"))) ->  | L153: =IF(ISERROR(INDIRECT(CONCATENATE($B153,"!N20"))),"",INDIRECT(CONCATENATE($B153,"!N20"))) ->  | M153: =IF(ISERROR(INDIRECT(CONCATENATE($B153,"!N21"))),"",INDIRECT(CONCATENATE($B153,"!N21"))) ->  | O153: =IF(ISERROR(INDIRECT(CONCATENATE($B153,"!O18"))),"",INDIRECT(CONCATENATE($B153,"!O18"))) ->  | P153: =IF(ISERROR(INDIRECT(CONCATENATE($B153,"!O19"))),"",INDIRECT(CONCATENATE($B153,"!O19"))) ->  | Q153: =IF(ISERROR(INDIRECT(CONCATENATE($B153,"!O20"))),"",INDIRECT(CONCATENATE($B153,"!O20"))) ->  | R153: =IF(ISERROR(INDIRECT(CONCATENATE($B153,"!O21"))),"",INDIRECT(CONCATENATE($B153,"!O21"))) ->  | T153: =IF(ISERROR(INDIRECT(CONCATENATE($B153,"!P18"))),"",INDIRECT(CONCATENATE($B153,"!P18"))) ->  | U153: =IF(ISERROR(INDIRECT(CONCATENATE($B153,"!P19"))),"",INDIRECT(CONCATENATE($B153,"!P19"))) ->  | V153: =IF(ISERROR(INDIRECT(CONCATENATE($B153,"!P20"))),"",INDIRECT(CONCATENATE($B153,"!P20"))) ->  | W153: =IF(ISERROR(INDIRECT(CONCATENATE($B153,"!P21"))),"",INDIRECT(CONCATENATE($B153,"!P21"))) ->  | Y153: =IF(ISERROR(INDIRECT(CONCATENATE($B153,"!Q18"))),"",INDIRECT(CONCATENATE($B153,"!Q18"))) ->  | Z153: =IF(ISERROR(INDIRECT(CONCATENATE($B153,"!Q19"))),"",INDIRECT(CONCATENATE($B153,"!Q19"))) ->  | AA153: =IF(ISERROR(INDIRECT(CONCATENATE($B153,"!Q20"))),"",INDIRECT(CONCATENATE($B153,"!Q20"))) ->  | AB153: =IF(ISERROR(INDIRECT(CONCATENATE($B153,"!Q21"))),"",INDIRECT(CONCATENATE($B153,"!Q1"))) -> 
A197: URBAN | D197: Poorest | I197: Poor | N197: Middle | S197: Rich | X197: Richest
D198: Improved | E198: Basic | F198: Limited | G198: Unimproved | H198: Surface water | I198: Improved | J198: Basic | K198: Limited | L198: Unimproved | M198: Surface water | N198: Improved | O198: Basic | P198: Limited | Q198: Unimproved | R198: Surface water | S198: Improved | T198: Basic | U198: Limited | V198: Unimproved | W198: Surface water | X198: Improved | Y198: Basic | Z198: Limited | AA198: Unimproved | AB198: Surface water
A199: Forecast period: | C199: 2000 | D199: =IF((D201+H201)>100,D201*100/(D201+H201),D201) -> 48.89527923 | E199: =D199*AVERAGEIF(E205:E216,">0")/100 -> 43.17334071 | F199: =D199*(100-AVERAGEIF(E205:E216,">0"))/100 -> 5.721938522 | G199: =100-(E199+F199+H199) -> 32.4851969 | H199: =IF((D201+H201)>100,H201*100/(D201+H201),H201) -> 18.61952387 | I199: =IF((I201+M201)>100,I201*100/(I201+M201),I201) -> 73.24028998 | J199: =I199*AVERAGEIF(J205:J216,">0")/100 -> 68.23549599 | K199: =I199*(100-AVERAGEIF(J205:J216,">0"))/100 -> 5.004793987 | L199: =100-(J199+K199+M199) -> 20.76851223 | M199: =IF((I201+M201)>100,M201*100/(I201+M201),M201) -> 5.991197795 | N199: =IF((N201+R201)>100,N201*100/(N201+R201),N201) -> 85.88435502 | O199: =N199*AVERAGEIF(O205:O216,">0")/100 -> 83.261362 | P199: =N199*(100-AVERAGEIF(O205:O216,">0"))/100 -> 2.62299302 | Q199: =100-(O199+P199+R199) -> 13.73162323 | R199: =IF((N201+R201)>100,R201*100/(N201+R201),R201) -> 0.3840217476 | S199: =IF((S201+W201)>100,S201*100/(S201+W201),S201) -> 92.40629471 | T199: =S199*AVERAGEIF(T205:T216,">0")/100 -> 90.74778178 | U199: =S199*(100-AVERAGEIF(T205:T216,">0"))/100 -> 1.658512927 | V199: =100-(T199+U199+W199) -> 7.593705292 | W199: =IF((S201+W201)>100,W201*100/(S201+W201),W201) -> 0 | X199: =IF((X201+AB201)>100,X201*100/(X201+AB201),X201) -> 98.91151017 | Y199: =X199*AVERAGEIF(Y205:Y216,">0")/100 -> 98.32842394 | Z199: =X199*(100-AVERAGEIF(Y205:Y216,">0"))/100 -> 0.5830862263 | AA199: =100-(Y199+Z199+AB199) -> 1.088489834 | AB199: =IF((X201+AB201)>100,AB201*100/(X201+AB201),AB201) -> 0
C200: 2020 | D200: =IF((D202+H202)>100,D202*100/(D202+H202),D202) -> 63.22257952 | E200: =D200*AVERAGEIF(E205:E216,">0")/100 -> 55.82399792 | F200: =D200*(100-AVERAGEIF(E205:E216,">0"))/100 -> 7.398581601 | G200: =100-(E200+F200+H200) -> 28.41792433 | H200: =IF((D202+H202)>100,H202*100/(D202+H202),H202) -> 8.359496144 | I200: =IF((I202+M202)>100,I202*100/(I202+M202),I202) -> 69.60017566 | J200: =I200*AVERAGEIF(J205:J216,">0")/100 -> 64.84412485 | K200: =I200*(100-AVERAGEIF(J205:J216,">0"))/100 -> 4.756050812 | L200: =100-(J200+K200+M200) -> 29.75344611 | M200: =IF((I202+M202)>100,M202*100/(I202+M202),M202) -> 0.6463782292 | N200: =IF((N202+R202)>100,N202*100/(N202+R202),N202) -> 76.35069387 | O200: =N200*AVERAGEIF(O205:O216,">0")/100 -> 74.01886828 | P200: =N200*(100-AVERAGEIF(O205:O216,">0"))/100 -> 2.331825593 | Q200: =100-(O200+P200+R200) -> 22.67696258 | R200: =IF((N202+R202)>100,R202*100/(N202+R202),R202) -> 0.9723435514 | S200: =IF((S202+W202)>100,S202*100/(S202+W202),S202) -> 85.78652867 | T200: =S200*AVERAGEIF(T205:T216,">0")/100 -> 84.24682764 | U200: =S200*(100-AVERAGEIF(T205:T216,">0"))/100 -> 1.539701026 | V200: =100-(T200+U200+W200) -> 13.91284901 | W200: =IF((S202+W202)>100,W202*100/(S202+W202),W202) -> 0.300622325 | X200: =IF((X202+AB202)>100,X202*100/(X202+AB202),X202) -> 93.76688094 | Y200: =X200*AVERAGEIF(Y205:Y216,">0")/100 -> 93.21412245 | Z200: =X200*(100-AVERAGEIF(Y205:Y216,">0"))/100 -> 0.5527584875 | AA200: =100-(Y200+Z200+AB200) -> 6.233119061 | AB200: =IF((X202+AB202)>100,AB202*100/(X202+AB202),AB202) -> 0
A201: Regression period: | C201: =MinRegYear(C199,C205:C216) -> 2000 | D201: =IF(MAX(C205:C216)-MIN(C205:C216)<5,AVERAGEIF(C205:C216,">0",D205:D216), IF(FORECAST($C201,D$205:D$216,$C$205:$C$216)<0,0, IF(FORECAST($C201,D$205:D$216,$C$205:$C$216)>100,100, FORECAST($C201,D$205:D$216,$C$205:$C$216)))) -> 48.89527923 | H201: =IF(MAX(C205:C216)-MIN(C205:C216)<5,AVERAGEIF(C205:C216,">0",H205:H216), IF(FORECAST($C201,H$205:H$216,$C$205:$C$216)<0,0, IF(FORECAST($C201,H$205:H$216,$C$205:$C$216)>100,100, FORECAST($C201,H$205:H$216,$C$205:$C$216)))) -> 18.61952387 | I201: =IF(MAX(C205:C216)-MIN(C205:C216)<5,AVERAGEIF(C205:C216,">0",I205:I216), IF(FORECAST($C201,I$205:I$216,$C$205:$C$216)<0,0, IF(FORECAST($C201,I$205:I$216,$C$205:$C$216)>100,100, FORECAST($C201,I$205:I$216,$C$205:$C$216)))) -> 73.24028998 | M201: =IF(MAX(C205:C216)-MIN(C205:C216)<5,AVERAGEIF(C205:C216,">0",M205:M216), IF(FORECAST($C201,M$205:M$216,$C$205:$C$216)<0,0, IF(FORECAST($C201,M$205:M$216,$C$205:$C$216)>100,100, FORECAST($C201,M$205:M$216,$C$205:$C$216)))) -> 5.991197795 | N201: =IF(MAX(C205:C216)-MIN(C205:C216)<5,AVERAGEIF(C205:C216,">0",N205:N216), IF(FORECAST($C201,N$205:N$216,$C$205:$C$216)<0,0, IF(FORECAST($C201,N$205:N$216,$C$205:$C$216)>100,100, FORECAST($C201,N$205:N$216,$C$205:$C$216)))) -> 85.88435502 | R201: =IF(MAX(C205:C216)-MIN(C205:C216)<5,AVERAGEIF(C205:C216,">0",R205:R216), IF(FORECAST($C201,R$205:R$216,$C$205:$C$216)<0,0, IF(FORECAST($C201,R$205:R$216,$C$205:$C$216)>100,100, FORECAST($C201,R$205:R$216,$C$205:$C$216)))) -> 0.3840217476 | S201: =IF(MAX(C205:C216)-MIN(C205:C216)<5,AVERAGEIF(C205:C216,">0",S205:S216), IF(FORECAST($C201,S$205:S$216,$C$205:$C$216)<0,0, IF(FORECAST($C201,S$205:S$216,$C$205:$C$216)>100,100, FORECAST($C201,S$205:S$216,$C$205:$C$216)))) -> 92.40629471 | W201: =IF(MAX(C205:C216)-MIN(C205:C216)<5,AVERAGEIF(C205:C216,">0",W205:W216), IF(FORECAST($C201,W$205:W$216,$C$205:$C$216)<0,0, IF(FORECAST($C201,W$205:W$216,$C$205:$C$216)>100,100, FORECAST($C201,W$205:W$216,$C$205:$C$216)))) -> 0 | X201: =IF(MAX(C205:C216)-MIN(C205:C216)<5,AVERAGEIF(C205:C216,">0",X205:X216), IF(FORECAST($C201,X$205:X$216,$C$205:$C$216)<0,0, IF(FORECAST($C201,X$205:X$216,$C$205:$C$216)>100,100, FORECAST($C201,X$205:X$216,$C$205:$C$216)))) -> 98.91151017 | AB201: =IF(MAX(C205:C216)-MIN(C205:C216)<5,AVERAGEIF(C205:C216,">0",AB205:AB216), IF(FORECAST($C201,AB$205:AB$216,$C$205:$C$216)<0,0, IF(FORECAST($C201,AB$205:AB$216,$C$205:$C$216)>100,100, FORECAST($C201,AB$205:AB$216,$C$205:$C$216)))) -> 0
C202: =MaxRegYear(C200,C205:C216) -> 2020 | D202: =IF(MAX(C205:C216)-MIN(C205:C216)<5,AVERAGEIF(C205:C216,">0",D205:D216), IF(FORECAST($C202,D$205:D$216,$C$205:$C$216)<0,0, IF(FORECAST($C202,D$205:D$216,$C$205:$C$216)>100,100, FORECAST($C202,D$205:D$216,$C$205:$C$216)))) -> 63.22257952 | H202: =IF(MAX(C205:C216)-MIN(C205:C216)<5,AVERAGEIF(C205:C216,">0",H205:H216), IF(FORECAST($C202,H$205:H$216,$C$205:$C$216)<0,0, IF(FORECAST($C202,H$205:H$216,$C$205:$C$216)>100,100, FORECAST($C202,H$205:H$216,$C$205:$C$216)))) -> 8.359496144 | I202: =IF(MAX(C205:C216)-MIN(C205:C216)<5,AVERAGEIF(C205:C216,">0",I205:I216), IF(FORECAST($C202,I$205:I$216,$C$205:$C$216)<0,0, IF(FORECAST($C202,I$205:I$216,$C$205:$C$216)>100,100, FORECAST($C202,I$205:I$216,$C$205:$C$216)))) -> 69.60017566 | M202: =IF(MAX(C205:C216)-MIN(C205:C216)<5,AVERAGEIF(C205:C216,">0",M205:M216), IF(FORECAST($C202,M$205:M$216,$C$205:$C$216)<0,0, IF(FORECAST($C202,M$205:M$216,$C$205:$C$216)>100,100, FORECAST($C202,M$205:M$216,$C$205:$C$216)))) -> 0.6463782292 | N202: =IF(MAX(C205:C216)-MIN(C205:C216)<5,AVERAGEIF(C205:C216,">0",N205:N216), IF(FORECAST($C202,N$205:N$216,$C$205:$C$216)<0,0, IF(FORECAST($C202,N$205:N$216,$C$205:$C$216)>100,100, FORECAST($C202,N$205:N$216,$C$205:$C$216)))) -> 76.35069387 | R202: =IF(MAX(C205:C216)-MIN(C205:C216)<5,AVERAGEIF(C205:C216,">0",R205:R216), IF(FORECAST($C202,R$205:R$216,$C$205:$C$216)<0,0, IF(FORECAST($C202,R$205:R$216,$C$205:$C$216)>100,100, FORECAST($C202,R$205:R$216,$C$205:$C$216)))) -> 0.9723435514 | S202: =IF(MAX(C205:C216)-MIN(C205:C216)<5,AVERAGEIF(C205:C216,">0",S205:S216), IF(FORECAST($C202,S$205:S$216,$C$205:$C$216)<0,0, IF(FORECAST($C202,S$205:S$216,$C$205:$C$216)>100,100, FORECAST($C202,S$205:S$216,$C$205:$C$216)))) -> 85.78652867 | W202: =IF(MAX(C205:C216)-MIN(C205:C216)<5,AVERAGEIF(C205:C216,">0",W205:W216), IF(FORECAST($C202,W$205:W$216,$C$205:$C$216)<0,0, IF(FORECAST($C202,W$205:W$216,$C$205:$C$216)>100,100, FORECAST($C202,W$205:W$216,$C$205:$C$216)))) -> 0.300622325 | X202: =IF(MAX(C205:C216)-MIN(C205:C216)<5,AVERAGEIF(C205:C216,">0",X205:X216), IF(FORECAST($C202,X$205:X$216,$C$205:$C$216)<0,0, IF(FORECAST($C202,X$205:X$216,$C$205:$C$216)>100,100, FORECAST($C202,X$205:X$216,$C$205:$C$216)))) -> 93.76688094 | AB202: =IF(MAX(C205:C216)-MIN(C205:C216)<5,AVERAGEIF(C205:C216,">0",AB205:AB216), IF(FORECAST($C202,AB$205:AB$216,$C$205:$C$216)<0,0, IF(FORECAST($C202,AB$205:AB$216,$C$205:$C$216)>100,100, FORECAST($C202,AB$205:AB$216,$C$205:$C$216)))) -> 0
B204: Survey | C204: Year | D204: Improved | E204: Basic | H204: Surface water | I204: Improved | J204: Basic | M204: Surface water | N204: Improved | O204: Basic | R204: Surface water | S204: Improved | T204: Basic | W204: Surface water | X204: Improved | Y204: Basic | AB204: Surface water
B205: DHS01 | C205: 2001 | D205: =IF(ISERROR(INDIRECT(CONCATENATE($B205,"!H16"))),"",INDIRECT(CONCATENATE($B205,"!H16"))) -> 46.12085952 | E205: =IF(ISERROR(INDIRECT(CONCATENATE($B205,"!H23"))),"",INDIRECT(CONCATENATE($B205,"!H23"))) -> N/A | H205: =IF(ISERROR(INDIRECT(CONCATENATE($B205,"!H21"))),"",INDIRECT(CONCATENATE($B205,"!H21"))) -> 18.84165301 | I205: =IF(ISERROR(INDIRECT(CONCATENATE($B205,"!I16"))),"",INDIRECT(CONCATENATE($B205,"!I16"))) -> 69.53059275 | J205: =IF(ISERROR(INDIRECT(CONCATENATE($B205,"!I23"))),"",INDIRECT(CONCATENATE($B205,"!I23"))) -> N/A | M205: =IF(ISERROR(INDIRECT(CONCATENATE($B205,"!I21"))),"",INDIRECT(CONCATENATE($B205,"!I21"))) -> 7.314867657 | N205: =IF(ISERROR(INDIRECT(CONCATENATE($B205,"!J16"))),"",INDIRECT(CONCATENATE($B205,"!J16"))) -> 83.7554656 | O205: =IF(ISERROR(INDIRECT(CONCATENATE($B205,"!J23"))),"",INDIRECT(CONCATENATE($B205,"!J23"))) -> N/A | R205: =IF(ISERROR(INDIRECT(CONCATENATE($B205,"!J21"))),"",INDIRECT(CONCATENATE($B205,"!J21"))) -> 0.6077524192 | S205: =IF(ISERROR(INDIRECT(CONCATENATE($B205,"!K16"))),"",INDIRECT(CONCATENATE($B205,"!K16"))) -> 91.8719807 | T205: =IF(ISERROR(INDIRECT(CONCATENATE($B205,"!K23"))),"",INDIRECT(CONCATENATE($B205,"!K23"))) -> N/A | W205: =IF(ISERROR(INDIRECT(CONCATENATE($B205,"!K21"))),"",INDIRECT(CONCATENATE($B205,"!K21"))) -> 0 | X205: =IF(ISERROR(INDIRECT(CONCATENATE($B205,"!L16"))),"",INDIRECT(CONCATENATE($B205,"!L16"))) -> 99.57270807 | Y205: =IF(ISERROR(INDIRECT(CONCATENATE($B205,"!L23"))),"",INDIRECT(CONCATENATE($B205,"!L23"))) -> N/A | AB205: =IF(ISERROR(INDIRECT(CONCATENATE($B205,"!L221"))),"",INDIRECT(CONCATENATE($B205,"!L21"))) -> 0
B206: DHS06 | C206: 2006 | D206: 54.38138778 | E206: 90.22593433 | H206: 17.57672297 | I206: 73.09066845 | J206: 95.33167484 | M206: 3.157179613 | N206: 83.98254272 | O206: 98.19604478 | R206: 0.7325481955 | S206: 89.38742613 | T206: 99.26485952 | W206: 0.2123652303 | X206: 95.39529647 | Y206: 99.68181094 | AB206: 0
B207: DHS12 | C207: 2012 | D207: 65.25117583 | E207: 91.97143625 | H207: 3.418509481 | I207: 80.82443516 | J207: 95.86614915 | M207: 0.3572402289 | N207: 84.90079406 | O207: 98.57428276 | R207: 0.1557688771 | S207: 91.88817872 | T207: 98.95154243 | W207: 0 | X207: 97.88548089 | Y207: 99.62910957 | AB207: 0
B208: MICS14 | C208: 2014 | D208: 58.55719451 | E208: 86.3470882 | H208: 15.77507407 | I208: 68.2053399 | J208: 92.37665386 | M208: 2.820768703 | N208: 76.25285753 | O208: 97.23590316 | R208: 0.3257892484 | S208: 86.55479358 | T208: 99.60714871 | W208: 0 | X208: 94.23429726 | Y208: 99.57213657 | AB208: 0
B209: DHS18 | C209: 2018 | D209: 56.70039426 | E209: 84.64579915 | H209: 11.32258911 | I209: 65.26812211 | J209: 89.09196578 | M209: 2.67664288 | N209: 76.21927926 | O209: 93.77737427 | R209: 1.598470598 | S209: 85.44869101 | T209: 94.99722877 | W209: 0.4921344806 | X209: 94.3509636 | Y209: 98.7589313 | AB209: 0
B218: =CONCATENATE("Urban use of drinking water sources, ",C199,"–",C200) -> Urban use of drinking water sources, 2000–2020 | S218: Data points used for regression
E253: =IF(ISERROR(INDIRECT(CONCATENATE($B253,"!M18"))),"",INDIRECT(CONCATENATE($B253,"!M18"))) ->  | F253: =IF(ISERROR(INDIRECT(CONCATENATE($B253,"!M19"))),"",INDIRECT(CONCATENATE($B253,"!M19"))) ->  | G253: =IF(ISERROR(INDIRECT(CONCATENATE($B253,"!M20"))),"",INDIRECT(CONCATENATE($B253,"!M20"))) ->  | H253: =IF(ISERROR(INDIRECT(CONCATENATE($B253,"!M21"))),"",INDIRECT(CONCATENATE($B253,"!M21"))) ->  | J253: =IF(ISERROR(INDIRECT(CONCATENATE($B253,"!N18"))),"",INDIRECT(CONCATENATE($B253,"!N18"))) ->  | K253: =IF(ISERROR(INDIRECT(CONCATENATE($B253,"!N19"))),"",INDIRECT(CONCATENATE($B253,"!N19"))) ->  | L253: =IF(ISERROR(INDIRECT(CONCATENATE($B253,"!N20"))),"",INDIRECT(CONCATENATE($B253,"!N20"))) ->  | M253: =IF(ISERROR(INDIRECT(CONCATENATE($B253,"!N21"))),"",INDIRECT(CONCATENATE($B253,"!N21"))) ->  | O253: =IF(ISERROR(INDIRECT(CONCATENATE($B253,"!O18"))),"",INDIRECT(CONCATENATE($B253,"!O18"))) ->  | P253: =IF(ISERROR(INDIRECT(CONCATENATE($B253,"!O19"))),"",INDIRECT(CONCATENATE($B253,"!O19"))) ->  | Q253: =IF(ISERROR(INDIRECT(CONCATENATE($B253,"!O20"))),"",INDIRECT(CONCATENATE($B253,"!O20"))) ->  | R253: =IF(ISERROR(INDIRECT(CONCATENATE($B253,"!O21"))),"",INDIRECT(CONCATENATE($B253,"!O21"))) ->  | T253: =IF(ISERROR(INDIRECT(CONCATENATE($B253,"!P18"))),"",INDIRECT(CONCATENATE($B253,"!P18"))) ->  | U253: =IF(ISERROR(INDIRECT(CONCATENATE($B253,"!P19"))),"",INDIRECT(CONCATENATE($B253,"!P19"))) ->  | V253: =IF(ISERROR(INDIRECT(CONCATENATE($B253,"!P20"))),"",INDIRECT(CONCATENATE($B253,"!P20"))) ->  | W253: =IF(ISERROR(INDIRECT(CONCATENATE($B253,"!P21"))),"",INDIRECT(CONCATENATE($B253,"!P21"))) ->  | Y253: =IF(ISERROR(INDIRECT(CONCATENATE($B253,"!Q18"))),"",INDIRECT(CONCATENATE($B253,"!Q18"))) ->  | Z253: =IF(ISERROR(INDIRECT(CONCATENATE($B253,"!Q19"))),"",INDIRECT(CONCATENATE($B253,"!Q19"))) ->  | AA253: =IF(ISERROR(INDIRECT(CONCATENATE($B253,"!Q20"))),"",INDIRECT(CONCATENATE($B253,"!Q20"))) ->  | AB253: =IF(ISERROR(INDIRECT(CONCATENATE($B253,"!Q21"))),"",INDIRECT(CONCATENATE($B253,"!Q1"))) -> 
E254: =IF(ISERROR(INDIRECT(CONCATENATE($B254,"!M18"))),"",INDIRECT(CONCATENATE($B254,"!M18"))) ->  | F254: =IF(ISERROR(INDIRECT(CONCATENATE($B254,"!M19"))),"",INDIRECT(CONCATENATE($B254,"!M19"))) ->  | G254: =IF(ISERROR(INDIRECT(CONCATENATE($B254,"!M20"))),"",INDIRECT(CONCATENATE($B254,"!M20"))) ->  | H254: =IF(ISERROR(INDIRECT(CONCATENATE($B254,"!M21"))),"",INDIRECT(CONCATENATE($B254,"!M21"))) ->  | J254: =IF(ISERROR(INDIRECT(CONCATENATE($B254,"!N18"))),"",INDIRECT(CONCATENATE($B254,"!N18"))) ->  | K254: =IF(ISERROR(INDIRECT(CONCATENATE($B254,"!N19"))),"",INDIRECT(CONCATENATE($B254,"!N19"))) ->  | L254: =IF(ISERROR(INDIRECT(CONCATENATE($B254,"!N20"))),"",INDIRECT(CONCATENATE($B254,"!N20"))) ->  | M254: =IF(ISERROR(INDIRECT(CONCATENATE($B254,"!N21"))),"",INDIRECT(CONCATENATE($B254,"!N21"))) ->  | O254: =IF(ISERROR(INDIRECT(CONCATENATE($B254,"!O18"))),"",INDIRECT(CONCATENATE($B254,"!O18"))) ->  | P254: =IF(ISERROR(INDIRECT(CONCATENATE($B254,"!O19"))),"",INDIRECT(CONCATENATE($B254,"!O19"))) ->  | Q254: =IF(ISERROR(INDIRECT(CONCATENATE($B254,"!O20"))),"",INDIRECT(CONCATENATE($B254,"!O20"))) ->  | R254: =IF(ISERROR(INDIRECT(CONCATENATE($B254,"!O21"))),"",INDIRECT(CONCATENATE($B254,"!O21"))) ->  | T254: =IF(ISERROR(INDIRECT(CONCATENATE($B254,"!P18"))),"",INDIRECT(CONCATENATE($B254,"!P18"))) ->  | U254: =IF(ISERROR(INDIRECT(CONCATENATE($B254,"!P19"))),"",INDIRECT(CONCATENATE($B254,"!P19"))) ->  | V254: =IF(ISERROR(INDIRECT(CONCATENATE($B254,"!P20"))),"",INDIRECT(CONCATENATE($B254,"!P20"))) ->  | W254: =IF(ISERROR(INDIRECT(CONCATENATE($B254,"!P21"))),"",INDIRECT(CONCATENATE($B254,"!P21"))) ->  | Y254: =IF(ISERROR(INDIRECT(CONCATENATE($B254,"!Q18"))),"",INDIRECT(CONCATENATE($B254,"!Q18"))) ->  | Z254: =IF(ISERROR(INDIRECT(CONCATENATE($B254,"!Q19"))),"",INDIRECT(CONCATENATE($B254,"!Q19"))) ->  | AA254: =IF(ISERROR(INDIRECT(CONCATENATE($B254,"!Q20"))),"",INDIRECT(CONCATENATE($B254,"!Q20"))) ->  | AB254: =IF(ISERROR(INDIRECT(CONCATENATE($B254,"!Q21"))),"",INDIRECT(CONCATENATE($B254,"!Q1"))) -> 
E255: =IF(ISERROR(INDIRECT(CONCATENATE($B255,"!M18"))),"",INDIRECT(CONCATENATE($B255,"!M18"))) ->  | F255: =IF(ISERROR(INDIRECT(CONCATENATE($B255,"!M19"))),"",INDIRECT(CONCATENATE($B255,"!M19"))) ->  | G255: =IF(ISERROR(INDIRECT(CONCATENATE($B255,"!M20"))),"",INDIRECT(CONCATENATE($B255,"!M20"))) ->  | H255: =IF(ISERROR(INDIRECT(CONCATENATE($B255,"!M21"))),"",INDIRECT(CONCATENATE($B255,"!M21"))) ->  | J255: =IF(ISERROR(INDIRECT(CONCATENATE($B255,"!N18"))),"",INDIRECT(CONCATENATE($B255,"!N18"))) ->  | K255: =IF(ISERROR(INDIRECT(CONCATENATE($B255,"!N19"))),"",INDIRECT(CONCATENATE($B255,"!N19"))) ->  | L255: =IF(ISERROR(INDIRECT(CONCATENATE($B255,"!N20"))),"",INDIRECT(CONCATENATE($B255,"!N20"))) ->  | M255: =IF(ISERROR(INDIRECT(CONCATENATE($B255,"!N21"))),"",INDIRECT(CONCATENATE($B255,"!N21"))) ->  | O255: =IF(ISERROR(INDIRECT(CONCATENATE($B255,"!O18"))),"",INDIRECT(CONCATENATE($B255,"!O18"))) ->  | P255: =IF(ISERROR(INDIRECT(CONCATENATE($B255,"!O19"))),"",INDIRECT(CONCATENATE($B255,"!O19"))) ->  | Q255: =IF(ISERROR(INDIRECT(CONCATENATE($B255,"!O20"))),"",INDIRECT(CONCATENATE($B255,"!O20"))) ->  | R255: =IF(ISERROR(INDIRECT(CONCATENATE($B255,"!O21"))),"",INDIRECT(CONCATENATE($B255,"!O21"))) ->  | T255: =IF(ISERROR(INDIRECT(CONCATENATE($B255,"!P18"))),"",INDIRECT(CONCATENATE($B255,"!P18"))) ->  | U255: =IF(ISERROR(INDIRECT(CONCATENATE($B255,"!P19"))),"",INDIRECT(CONCATENATE($B255,"!P19"))) ->  | V255: =IF(ISERROR(INDIRECT(CONCATENATE($B255,"!P20"))),"",INDIRECT(CONCATENATE($B255,"!P20"))) ->  | W255: =IF(ISERROR(INDIRECT(CONCATENATE($B255,"!P21"))),"",INDIRECT(CONCATENATE($B255,"!P21"))) ->  | Y255: =IF(ISERROR(INDIRECT(CONCATENATE($B255,"!Q18"))),"",INDIRECT(CONCATENATE($B255,"!Q18"))) ->  | Z255: =IF(ISERROR(INDIRECT(CONCATENATE($B255,"!Q19"))),"",INDIRECT(CONCATENATE($B255,"!Q19"))) ->  | AA255: =IF(ISERROR(INDIRECT(CONCATENATE($B255,"!Q20"))),"",INDIRECT(CONCATENATE($B255,"!Q20"))) ->  | AB255: =IF(ISERROR(INDIRECT(CONCATENATE($B255,"!Q21"))),"",INDIRECT(CONCATENATE($B255,"!Q1"))) -> 
E256: =IF(ISERROR(INDIRECT(CONCATENATE($B256,"!M18"))),"",INDIRECT(CONCATENATE($B256,"!M18"))) ->  | F256: =IF(ISERROR(INDIRECT(CONCATENATE($B256,"!M19"))),"",INDIRECT(CONCATENATE($B256,"!M19"))) ->  | G256: =IF(ISERROR(INDIRECT(CONCATENATE($B256,"!M20"))),"",INDIRECT(CONCATENATE($B256,"!M20"))) ->  | H256: =IF(ISERROR(INDIRECT(CONCATENATE($B256,"!M21"))),"",INDIRECT(CONCATENATE($B256,"!M21"))) ->  | J256: =IF(ISERROR(INDIRECT(CONCATENATE($B256,"!N18"))),"",INDIRECT(CONCATENATE($B256,"!N18"))) ->  | K256: =IF(ISERROR(INDIRECT(CONCATENATE($B256,"!N19"))),"",INDIRECT(CONCATENATE($B256,"!N19"))) ->  | L256: =IF(ISERROR(INDIRECT(CONCATENATE($B256,"!N20"))),"",INDIRECT(CONCATENATE($B256,"!N20"))) ->  | M256: =IF(ISERROR(INDIRECT(CONCATENATE($B256,"!N21"))),"",INDIRECT(CONCATENATE($B256,"!N21"))) ->  | O256: =IF(ISERROR(INDIRECT(CONCATENATE($B256,"!O18"))),"",INDIRECT(CONCATENATE($B256,"!O18"))) ->  | P256: =IF(ISERROR(INDIRECT(CONCATENATE($B256,"!O19"))),"",INDIRECT(CONCATENATE($B256,"!O19"))) ->  | Q256: =IF(ISERROR(INDIRECT(CONCATENATE($B256,"!O20"))),"",INDIRECT(CONCATENATE($B256,"!O20"))) ->  | R256: =IF(ISERROR(INDIRECT(CONCATENATE($B256,"!O21"))),"",INDIRECT(CONCATENATE($B256,"!O21"))) ->  | T256: =IF(ISERROR(INDIRECT(CONCATENATE($B256,"!P18"))),"",INDIRECT(CONCATENATE($B256,"!P18"))) ->  | U256: =IF(ISERROR(INDIRECT(CONCATENATE($B256,"!P19"))),"",INDIRECT(CONCATENATE($B256,"!P19"))) ->  | V256: =IF(ISERROR(INDIRECT(CONCATENATE($B256,"!P20"))),"",INDIRECT(CONCATENATE($B256,"!P20"))) ->  | W256: =IF(ISERROR(INDIRECT(CONCATENATE($B256,"!P21"))),"",INDIRECT(CONCATENATE($B256,"!P21"))) ->  | Y256: =IF(ISERROR(INDIRECT(CONCATENATE($B256,"!Q18"))),"",INDIRECT(CONCATENATE($B256,"!Q18"))) ->  | Z256: =IF(ISERROR(INDIRECT(CONCATENATE($B256,"!Q19"))),"",INDIRECT(CONCATENATE($B256,"!Q19"))) ->  | AA256: =IF(ISERROR(INDIRECT(CONCATENATE($B256,"!Q20"))),"",INDIRECT(CONCATENATE($B256,"!Q20"))) ->  | AB256: =IF(ISERROR(INDIRECT(CONCATENATE($B256,"!Q21"))),"",INDIRECT(CONCATENATE($B256,"!Q1"))) -> 
E257: =IF(ISERROR(INDIRECT(CONCATENATE($B257,"!M18"))),"",INDIRECT(CONCATENATE($B257,"!M18"))) ->  | F257: =IF(ISERROR(INDIRECT(CONCATENATE($B257,"!M19"))),"",INDIRECT(CONCATENATE($B257,"!M19"))) ->  | G257: =IF(ISERROR(INDIRECT(CONCATENATE($B257,"!M20"))),"",INDIRECT(CONCATENATE($B257,"!M20"))) ->  | H257: =IF(ISERROR(INDIRECT(CONCATENATE($B257,"!M21"))),"",INDIRECT(CONCATENATE($B257,"!M21"))) ->  | J257: =IF(ISERROR(INDIRECT(CONCATENATE($B257,"!N18"))),"",INDIRECT(CONCATENATE($B257,"!N18"))) ->  | K257: =IF(ISERROR(INDIRECT(CONCATENATE($B257,"!N19"))),"",INDIRECT(CONCATENATE($B257,"!N19"))) ->  | L257: =IF(ISERROR(INDIRECT(CONCATENATE($B257,"!N20"))),"",INDIRECT(CONCATENATE($B257,"!N20"))) ->  | M257: =IF(ISERROR(INDIRECT(CONCATENATE($B257,"!N21"))),"",INDIRECT(CONCATENATE($B257,"!N21"))) ->  | O257: =IF(ISERROR(INDIRECT(CONCATENATE($B257,"!O18"))),"",INDIRECT(CONCATENATE($B257,"!O18"))) ->  | P257: =IF(ISERROR(INDIRECT(CONCATENATE($B257,"!O19"))),"",INDIRECT(CONCATENATE($B257,"!O19"))) ->  | Q257: =IF(ISERROR(INDIRECT(CONCATENATE($B257,"!O20"))),"",INDIRECT(CONCATENATE($B257,"!O20"))) ->  | R257: =IF(ISERROR(INDIRECT(CONCATENATE($B257,"!O21"))),"",INDIRECT(CONCATENATE($B257,"!O21"))) ->  | T257: =IF(ISERROR(INDIRECT(CONCATENATE($B257,"!P18"))),"",INDIRECT(CONCATENATE($B257,"!P18"))) ->  | U257: =IF(ISERROR(INDIRECT(CONCATENATE($B257,"!P19"))),"",INDIRECT(CONCATENATE($B257,"!P19"))) ->  | V257: =IF(ISERROR(INDIRECT(CONCATENATE($B257,"!P20"))),"",INDIRECT(CONCATENATE($B257,"!P20"))) ->  | W257: =IF(ISERROR(INDIRECT(CONCATENATE($B257,"!P21"))),"",INDIRECT(CONCATENATE($B257,"!P21"))) ->  | Y257: =IF(ISERROR(INDIRECT(CONCATENATE($B257,"!Q18"))),"",INDIRECT(CONCATENATE($B257,"!Q18"))) ->  | Z257: =IF(ISERROR(INDIRECT(CONCATENATE($B257,"!Q19"))),"",INDIRECT(CONCATENATE($B257,"!Q19"))) ->  | AA257: =IF(ISERROR(INDIRECT(CONCATENATE($B257,"!Q20"))),"",INDIRECT(CONCATENATE($B257,"!Q20"))) ->  | AB257: =IF(ISERROR(INDIRECT(CONCATENATE($B257,"!Q21"))),"",INDIRECT(CONCATENATE($B257,"!Q1"))) -> 
A297: RURAL | D297: Poorest | I297: Poor | N297: Middle | S297: Rich | X297: Richest
D298: Improved | E298: Basic | F298: Limited | G298: Unimproved | H298: Surface water | I298: Improved | J298: Basic | K298: Limited | L298: Unimproved | M298: Surface water | N298: Improved | O298: Basic | P298: Limited | Q298: Unimproved | R298: Surface water | S298: Improved | T298: Basic | U298: Limited | V298: Unimproved | W298: Surface water | X298: Improved | Y298: Basic | Z298: Limited | AA298: Unimproved | AB298: Surface water
A299: Forecast period: | C299: 2000 | D299: =IF((D301+H301)>100,D301*100/(D301+H301),D301) -> 51.17740934 | E299: =D299*AVERAGEIF(E305:E316,">0")/100 -> 42.50057295 | F299: =D299*(100-AVERAGEIF(E305:E316,">0"))/100 -> 8.676836397 | G299: =100-(E299+F299+H299) -> 23.48850916 | H299: =IF((D301+H301)>100,H301*100/(D301+H301),H301) -> 25.3340815 | I299: =IF((I301+M301)>100,I301*100/(I301+M301),I301) -> 58.18130024 | J299: =I299*AVERAGEIF(J305:J316,">0")/100 -> 49.55177992 | K299: =I299*(100-AVERAGEIF(J305:J316,">0"))/100 -> 8.62952032 | L299: =100-(J299+K299+M299) -> 24.38088961 | M299: =IF((I301+M301)>100,M301*100/(I301+M301),M301) -> 17.43781015 | N299: =IF((N301+R301)>100,N301*100/(N301+R301),N301) -> 60.34833943 | O299: =N299*AVERAGEIF(O305:O316,">0")/100 -> 53.16730322 | P299: =N299*(100-AVERAGEIF(O305:O316,">0"))/100 -> 7.181036207 | Q299: =100-(O299+P299+R299) -> 25.87736588 | R299: =IF((N301+R301)>100,R301*100/(N301+R301),R301) -> 13.77429469 | S299: =IF((S301+W301)>100,S301*100/(S301+W301),S301) -> 66.02894288 | T299: =S299*AVERAGEIF(T305:T316,">0")/100 -> 59.43600771 | U299: =S299*(100-AVERAGEIF(T305:T316,">0"))/100 -> 6.592935176 | V299: =100-(T299+U299+W299) -> 24.29502999 | W299: =IF((S301+W301)>100,W301*100/(S301+W301),W301) -> 9.676027131 | X299: =IF((X301+AB301)>100,X301*100/(X301+AB301),X301) -> 71.98561301 | Y299: =X299*AVERAGEIF(Y305:Y316,">0")/100 -> 66.01096402 | Z299: =X299*(100-AVERAGEIF(Y305:Y316,">0"))/100 -> 5.974648986 | AA299: =100-(Y299+Z299+AB299) -> 24.30333355 | AB299: =IF((X301+AB301)>100,AB301*100/(X301+AB301),AB301) -> 3.711053448
C300: 2020 | D300: =IF((D302+H302)>100,D302*100/(D302+H302),D302) -> 60.66511303 | E300: =D300*AVERAGEIF(E305:E316,">0")/100 -> 50.37969086 | F300: =D300*(100-AVERAGEIF(E305:E316,">0"))/100 -> 10.28542217 | G300: =100-(E300+F300+H300) -> 26.12525468 | H300: =IF((D302+H302)>100,H302*100/(D302+H302),H302) -> 13.20963229 | I300: =IF((I302+M302)>100,I302*100/(I302+M302),I302) -> 68.12624852 | J300: =I300*AVERAGEIF(J305:J316,">0")/100 -> 58.02168153 | K300: =I300*(100-AVERAGEIF(J305:J316,">0"))/100 -> 10.10456699 | L300: =100-(J300+K300+M300) -> 23.94406123 | M300: =IF((I302+M302)>100,M302*100/(I302+M302),M302) -> 7.929690249 | N300: =IF((N302+R302)>100,N302*100/(N302+R302),N302) -> 68.88124423 | O300: =N300*AVERAGEIF(O305:O316,">0")/100 -> 60.6848512 | P300: =N300*(100-AVERAGEIF(O305:O316,">0"))/100 -> 8.196393033 | Q300: =100-(O300+P300+R300) -> 26.60645556 | R300: =IF((N302+R302)>100,R302*100/(N302+R302),R302) -> 4.51230021 | S300: =IF((S302+W302)>100,S302*100/(S302+W302),S302) -> 70.05059856 | T300: =S300*AVERAGEIF(T305:T316,">0")/100 -> 63.0561044 | U300: =S300*(100-AVERAGEIF(T305:T316,">0"))/100 -> 6.994494159 | V300: =100-(T300+U300+W300) -> 27.32680382 | W300: =IF((S302+W302)>100,W302*100/(S302+W302),W302) -> 2.622597622 | X300: =IF((X302+AB302)>100,X302*100/(X302+AB302),X302) -> 77.53146895 | Y300: =X300*AVERAGEIF(Y305:Y316,">0")/100 -> 71.096526 | Z300: =X300*(100-AVERAGEIF(Y305:Y316,">0"))/100 -> 6.434942941 | AA300: =100-(Y300+Z300+AB300) -> 20.44359669 | AB300: =IF((X302+AB302)>100,AB302*100/(X302+AB302),AB302) -> 2.024934367
A301: Regression period: | C301: =MinRegYear(C299,C305:C316) -> 2000 | D301: =IF(MAX(C305:C316)-MIN(C305:C316)<5,AVERAGEIF(C305:C316,">0",D305:D316), IF(FORECAST($C301,D$305:D$316,$C$305:$C$316)<0,0, IF(FORECAST($C301,D$305:D$316,$C$305:$C$316)>100,100, FORECAST($C301,D$305:D$316,$C$305:$C$316)))) -> 51.17740934 | H301: =IF(MAX(C305:C316)-MIN(C305:C316)<5,AVERAGEIF(C305:C316,">0",H305:H316), IF(FORECAST($C301,H$305:H$316,$C$305:$C$316)<0,0, IF(FORECAST($C301,H$305:H$316,$C$305:$C$316)>100,100, FORECAST($C301,H$305:H$316,$C$305:$C$316)))) -> 25.3340815 | I301: =IF(MAX(C305:C316)-MIN(C305:C316)<5,AVERAGEIF(C305:C316,">0",I305:I316), IF(FORECAST($C301,I$305:I$316,$C$305:$C$316)<0,0, IF(FORECAST($C301,I$305:I$316,$C$305:$C$316)>100,100, FORECAST($C301,I$305:I$316,$C$305:$C$316)))) -> 58.18130024 | M301: =IF(MAX(C305:C316)-MIN(C305:C316)<5,AVERAGEIF(C305:C316,">0",M305:M316), IF(FORECAST($C301,M$305:M$316,$C$305:$C$316)<0,0, IF(FORECAST($C301,M$305:M$316,$C$305:$C$316)>100,100, FORECAST($C301,M$305:M$316,$C$305:$C$316)))) -> 17.43781015 | N301: =IF(MAX(C305:C316)-MIN(C305:C316)<5,AVERAGEIF(C305:C316,">0",N305:N316), IF(FORECAST($C301,N$305:N$316,$C$305:$C$316)<0,0, IF(FORECAST($C301,N$305:N$316,$C$305:$C$316)>100,100, FORECAST($C301,N$305:N$316,$C$305:$C$316)))) -> 60.34833943 | R301: =IF(MAX(C305:C316)-MIN(C305:C316)<5,AVERAGEIF(C305:C316,">0",R305:R316), IF(FORECAST($C301,R$305:R$316,$C$305:$C$316)<0,0, IF(FORECAST($C301,R$305:R$316,$C$305:$C$316)>100,100, FORECAST($C301,R$305:R$316,$C$305:$C$316)))) -> 13.77429469 | S301: =IF(MAX(C305:C316)-MIN(C305:C316)<5,AVERAGEIF(C305:C316,">0",S305:S316), IF(FORECAST($C301,S$305:S$316,$C$305:$C$316)<0,0, IF(FORECAST($C301,S$305:S$316,$C$305:$C$316)>100,100, FORECAST($C301,S$305:S$316,$C$305:$C$316)))) -> 66.02894288 | W301: =IF(MAX(C305:C316)-MIN(C305:C316)<5,AVERAGEIF(C305:C316,">0",W305:W316), IF(FORECAST($C301,W$305:W$316,$C$305:$C$316)<0,0, IF(FORECAST($C301,W$305:W$316,$C$305:$C$316)>100,100, FORECAST($C301,W$305:W$316,$C$305:$C$316)))) -> 9.676027131 | X301: =IF(MAX(C305:C316)-MIN(C305:C316)<5,AVERAGEIF(C305:C316,">0",X305:X316), IF(FORECAST($C301,X$305:X$316,$C$305:$C$316)<0,0, IF(FORECAST($C301,X$305:X$316,$C$305:$C$316)>100,100, FORECAST($C301,X$305:X$316,$C$305:$C$316)))) -> 71.98561301 | AB301: =IF(MAX(C305:C316)-MIN(C305:C316)<5,AVERAGEIF(C305:C316,">0",AB305:AB316), IF(FORECAST($C301,AB$305:AB$316,$C$305:$C$316)<0,0, IF(FORECAST($C301,AB$305:AB$316,$C$305:$C$316)>100,100, FORECAST($C301,AB$305:AB$316,$C$305:$C$316)))) -> 3.711053448
C302: =MaxRegYear(C300,C305:C316) -> 2020 | D302: =IF(MAX(C305:C316)-MIN(C305:C316)<5,AVERAGEIF(C305:C316,">0",D305:D316), IF(FORECAST($C302,D$305:D$316,$C$305:$C$316)<0,0, IF(FORECAST($C302,D$305:D$316,$C$305:$C$316)>100,100, FORECAST($C302,D$305:D$316,$C$305:$C$316)))) -> 60.66511303 | H302: =IF(MAX(C305:C316)-MIN(C305:C316)<5,AVERAGEIF(C305:C316,">0",H305:H316), IF(FORECAST($C302,H$305:H$316,$C$305:$C$316)<0,0, IF(FORECAST($C302,H$305:H$316,$C$305:$C$316)>100,100, FORECAST($C302,H$305:H$316,$C$305:$C$316)))) -> 13.20963229 | I302: =IF(MAX(C305:C316)-MIN(C305:C316)<5,AVERAGEIF(C305:C316,">0",I305:I316), IF(FORECAST($C302,I$305:I$316,$C$305:$C$316)<0,0, IF(FORECAST($C302,I$305:I$316,$C$305:$C$316)>100,100, FORECAST($C302,I$305:I$316,$C$305:$C$316)))) -> 68.12624852 | M302: =IF(MAX(C305:C316)-MIN(C305:C316)<5,AVERAGEIF(C305:C316,">0",M305:M316), IF(FORECAST($C302,M$305:M$316,$C$305:$C$316)<0,0, IF(FORECAST($C302,M$305:M$316,$C$305:$C$316)>100,100, FORECAST($C302,M$305:M$316,$C$305:$C$316)))) -> 7.929690249 | N302: =IF(MAX(C305:C316)-MIN(C305:C316)<5,AVERAGEIF(C305:C316,">0",N305:N316), IF(FORECAST($C302,N$305:N$316,$C$305:$C$316)<0,0, IF(FORECAST($C302,N$305:N$316,$C$305:$C$316)>100,100, FORECAST($C302,N$305:N$316,$C$305:$C$316)))) -> 68.88124423 | R302: =IF(MAX(C305:C316)-MIN(C305:C316)<5,AVERAGEIF(C305:C316,">0",R305:R316), IF(FORECAST($C302,R$305:R$316,$C$305:$C$316)<0,0, IF(FORECAST($C302,R$305:R$316,$C$305:$C$316)>100,100, FORECAST($C302,R$305:R$316,$C$305:$C$316)))) -> 4.51230021 | S302: =IF(MAX(C305:C316)-MIN(C305:C316)<5,AVERAGEIF(C305:C316,">0",S305:S316), IF(FORECAST($C302,S$305:S$316,$C$305:$C$316)<0,0, IF(FORECAST($C302,S$305:S$316,$C$305:$C$316)>100,100, FORECAST($C302,S$305:S$316,$C$305:$C$316)))) -> 70.05059856 | W302: =IF(MAX(C305:C316)-MIN(C305:C316)<5,AVERAGEIF(C305:C316,">0",W305:W316), IF(FORECAST($C302,W$305:W$316,$C$305:$C$316)<0,0, IF(FORECAST($C302,W$305:W$316,$C$305:$C$316)>100,100, FORECAST($C302,W$305:W$316,$C$305:$C$316)))) -> 2.622597622 | X302: =IF(MAX(C305:C316)-MIN(C305:C316)<5,AVERAGEIF(C305:C316,">0",X305:X316), IF(FORECAST($C302,X$305:X$316,$C$305:$C$316)<0,0, IF(FORECAST($C302,X$305:X$316,$C$305:$C$316)>100,100, FORECAST($C302,X$305:X$316,$C$305:$C$316)))) -> 77.53146895 | AB302: =IF(MAX(C305:C316)-MIN(C305:C316)<5,AVERAGEIF(C305:C316,">0",AB305:AB316), IF(FORECAST($C302,AB$305:AB$316,$C$305:$C$316)<0,0, IF(FORECAST($C302,AB$305:AB$316,$C$305:$C$316)>100,100, FORECAST($C302,AB$305:AB$316,$C$305:$C$316)))) -> 2.024934367
B304: Survey | C304: Year | D304: Improved | E304: Basic | H304: Surface water | I304: Improved | J304: Basic | M304: Surface water | N304: Improved | O304: Basic | R304: Surface water | S304: Improved | T304: Basic | W304: Surface water | X304: Improved | Y304: Basic | AB304: Surface water
B305: DHS01 | C305: 2001 | D305: =IF(ISERROR(INDIRECT(CONCATENATE($B305,"!M16"))),"",INDIRECT(CONCATENATE($B305,"!M16"))) -> 47.5044731 | E305: =IF(ISERROR(INDIRECT(CONCATENATE($B305,"!M23"))),"",INDIRECT(CONCATENATE($B305,"!M23"))) -> N/A | H305: =IF(ISERROR(INDIRECT(CONCATENATE($B305,"!M21"))),"",INDIRECT(CONCATENATE($B305,"!M21"))) -> 26.08086629 | I305: =IF(ISERROR(INDIRECT(CONCATENATE($B305,"!N16"))),"",INDIRECT(CONCATENATE($B305,"!N16"))) -> 58.00970359 | J305: =IF(ISERROR(INDIRECT(CONCATENATE($B305,"!N23"))),"",INDIRECT(CONCATENATE($B305,"!N23"))) -> N/A | M305: =IF(ISERROR(INDIRECT(CONCATENATE($B305,"!N21"))),"",INDIRECT(CONCATENATE($B305,"!N21"))) -> 16.26848966 | N305: =IF(ISERROR(INDIRECT(CONCATENATE($B305,"!O16"))),"",INDIRECT(CONCATENATE($B305,"!O16"))) -> 59.17351072 | O305: =IF(ISERROR(INDIRECT(CONCATENATE($B305,"!O23"))),"",INDIRECT(CONCATENATE($B305,"!O23"))) -> N/A | R305: =IF(ISERROR(INDIRECT(CONCATENATE($B305,"!O21"))),"",INDIRECT(CONCATENATE($B305,"!O21"))) -> 13.08231197 | S305: =IF(ISERROR(INDIRECT(CONCATENATE($B305,"!P16"))),"",INDIRECT(CONCATENATE($B305,"!P16"))) -> 66.6922059 | T305: =IF(ISERROR(INDIRECT(CONCATENATE($B305,"!P23"))),"",INDIRECT(CONCATENATE($B305,"!P23"))) -> N/A | W305: =IF(ISERROR(INDIRECT(CONCATENATE($B305,"!P21"))),"",INDIRECT(CONCATENATE($B305,"!P21"))) -> 9.477293443 | X305: =IF(ISERROR(INDIRECT(CONCATENATE($B305,"!Q16"))),"",INDIRECT(CONCATENATE($B305,"!Q16"))) -> 72.11161802 | Y305: =IF(ISERROR(INDIRECT(CONCATENATE($B305,"!Q23"))),"",INDIRECT(CONCATENATE($B305,"!Q23"))) -> N/A | AB305: =IF(ISERROR(INDIRECT(CONCATENATE($B305,"!Q221"))),"",INDIRECT(CONCATENATE($B305,"!Q21"))) -> 3.472564991
B306: DHS06 | C306: 2006 | D306: 55.59939897 | E306: 81.54103869 | H306: 22.79434031 | I306: 59.05639904 | J306: 86.34331818 | M306: 17.60468016 | N306: 60.11336275 | O306: 89.75177186 | R306: 13.60404756 | S306: 63.7977695 | T306: 90.51264709 | W306: 8.136257336 | X306: 70.96596082 | Y306: 93.53869748 | AB306: 3.617232522
B307: DHS12 | C307: 2012 | D307: 63.16241649 | E307: 85.01238365 | H307: 12.68106114 | I307: 69.36153262 | J307: 87.62633791 | M307: 6.932927157 | N307: 74.77531623 | O307: 90.69256504 | R307: 4.718218358 | S307: 72.59685314 | T307: 92.08492254 | W307: 3.928665929 | X307: 79.85292162 | Y307: 92.72159721 | AB307: 1.684664498
B308: MICS14 | C308: 2014 | D308: 61.279305 | E308: 84.22977108 | H308: 15.87143173 | I308: 66.49061318 | J308: 85.6740439 | M308: 11.87336149 | N308: 67.55133055 | O308: 89.17467123 | R308: 5.68691707 | S308: 70.96047085 | T308: 89.84467437 | W308: 4.628568953 | X308: 77.75121956 | Y308: 89.71742176 | AB308: 3.472077589
B309: DHS18 | C309: 2018 | D309: 52.53509755 | E309: 81.39909945 | H309: 18.32536254 | I309: 63.34787086 | J309: 81.02781965 | M309: 10.26388655 | N309: 61.88708414 | O309: 82.78375043 | R309: 8.161892555 | S309: 66.352637 | T309: 87.61808779 | W309: 4.223104747 | X309: 73.38827765 | Y309: 90.82315537 | AB309: 2.009123985
B318: =CONCATENATE("Rural use of drinking water sources, ",C299,"–",C300) -> Rural use of drinking water sources, 2000–2020 | S318: Data points used for regression

Sheet Sanitation
B4: Summary of trends in use of sanitation facilities by wealth quintile (%)
B5: =IF(ISERROR(INDIRECT(CONCATENATE($B105,"!A2"))),"",INDIRECT(CONCATENATE($B105,"!A2"))) -> Benin
B7: =B118 -> National use of sanitation facilities, 2000–2020 | J7: =B218 -> Urban use of sanitation facilities, 2000–2020 | R7: =B318 -> Rural use of sanitation facilities, 2000–2020
B31: =IF(ISERROR(INDIRECT(CONCATENATE($B105,"!A2"))),"",INDIRECT(CONCATENATE($B105,"!A2"))) -> Benin | F31: Poorest | J31: Poor | N31: Middle | R31: Rich | V31: Richest
F32: Basic | G32: Limited | H32: Unimproved | I32: Open defecation | J32: Basic | K32: Limited | L32: Unimproved | M32: Open defecation | N32: Basic | O32: Limited | P32: Unimproved | Q32: Open defecation | R32: Basic | S32: Limited | T32: Unimproved | U32: Open defecation | V32: Basic | W32: Limited | X32: Unimproved | Y32: Open defecation
B33: NATIONAL | D33: Estimate | E33: =C99 -> 2000 | F33: =E99 -> 0.5404196327 | G33: =F99 -> 2.561850521 | H33: 1.600516602 | I33: 95.29721324 | J33: =J99 -> 1.394150439 | K33: =K99 -> 3.981184153 | L33: 1.534764973 | M33: 93.08990044 | N33: =O99 -> 3.486054409 | O33: =P99 -> 8.311586146 | P33: 4.078615875 | Q33: 84.12374357 | R33: =T99 -> 11.00571119 | S33: =U99 -> 23.16154731 | T33: 9.064529375 | U33: 56.76821212 | V33: =Y99 -> 48.04709243 | W33: =Z99 -> 36.89560008 | X33: 5.853008556 | Y33: 9.204298937
E34: =C100 -> 2020 | F34: =E100 -> 0.9721423281 | G34: 4.60842497 | H34: 7.273835139 | I34: 87.14559756 | J34: =J100 -> 2.761304335 | K34: 7.885276048 | L34: 11.80387319 | M34: 77.54954642 | N34: =O100 -> 6.708866698 | O34: 15.99554022 | P34: 13.59819345 | Q34: 63.69739964 | R34: =T100 -> 14.95981819 | S34: 31.48297558 | T34: 19.00126287 | U34: 34.55594337 | V34: =Y100 -> 43.74939356 | W34: 33.59537585 | X34: 12.7135506 | Y34: 9.941679987
B36: URBAN | D36: Estimate | E36: =C199 -> 2000 | F36: =E199 -> 2.051598709 | G36: =F199 -> 5.431456 | H36: 3.759747846 | I36: 88.75719744 | J36: =J199 -> 7.907845837 | K36: =K199 -> 22.67559228 | L36: 9.797332418 | M36: 59.61922946 | N36: =O199 -> 20.38013597 | O36: =P199 -> 44.83766569 | P36: 11.10980619 | Q36: 23.67239215 | R36: =T199 -> 34.76356843 | S36: =U199 -> 51.74813172 | T36: 7.93905293 | U36: 5.549246918 | V36: =Y199 -> 66.38126595 | W36: =Z199 -> 30.10432761 | X36: 2.990242183 | Y36: 0.5241642515
E37: =C200 -> 2020 | F37: =E200 -> 2.512964955 | G37: 6.65288905 | H37: 9.204165862 | I37: 81.62998013 | J37: =J200 -> 8.311478805 | K37: 23.83300187 | L37: 19.49710115 | M37: 48.35841817 | N37: =O200 -> 17.15820038 | O37: 37.74919135 | P37: 19.20579516 | Q37: 25.88681311 | R37: =T200 -> 28.36115941 | S37: 42.21767439 | T37: 16.23653773 | U37: 13.18462847 | V37: =Y200 -> 61.43618913 | W37: 27.86170373 | X37: 8.023662549 | Y37: 2.678444596
B39: RURAL | D39: Estimate | E39: =C299 -> 2000 | F39: =E299 -> 0.5289900061 | G39: =F299 -> 2.496844936 | H39: 1.283298177 | I39: 95.69086688 | J39: =J299 -> 1.00607549 | K39: =K299 -> 3.381429025 | L39: 1.539902823 | M39: 94.07259266 | N39: =O299 -> 1.492829459 | O39: =P299 -> 4.183038289 | P39: 1.688515803 | Q39: 92.63561645 | R39: =T299 -> 3.513269712 | S39: =U299 -> 6.941744325 | T39: 3.981246767 | U39: 85.56373919 | V39: =Y299 -> 13.17046753 | W39: =Z299 -> 15.22492882 | X39: 7.559735295 | Y39: 64.04486835
E40: =C300 -> 2020 | F40: =E300 -> 0.8480774279 | G40: 4.00294487 | H40: 6.868842211 | I40: 88.28013549 | J40: =J300 -> 1.713958258 | K40: 5.760629553 | L40: 10.02500886 | M40: 82.50040333 | N40: =O300 -> 3.363967569 | O40: 9.426130395 | P40: 11.74754565 | Q40: 75.46235638 | R40: =T300 -> 7.026373371 | S40: 13.88316055 | T40: 11.01944525 | U40: 68.07102083 | V40: =Y300 -> 19.35217317 | W40: 22.37091875 | X40: 17.368665 | Y40: 40.90824308
A97: NATIONAL | D97: Poorest | I97: Poor | N97: Middle | S97: Rich | X97: Richest
D98: Improved | E98: Basic | F98: Limited | G98: Unimproved | H98: Open defecation | I98: Improved | J98: Basic | K98: Limited | L98: Unimproved | M98: Open defecation | N98: Improved | O98: Basic | P98: Limited | Q98: Unimproved | R98: Open defecation | S98: Improved | T98: Basic | U98: Limited | V98: Unimproved | W98: Open defecation | X98: Improved | Y98: Basic | Z98: Limited | AA98: Unimproved | AB98: Open defecation
A99: Forecast period: | C99: 2000 | D99: =IF((D101+H101)>100,D101*100/(D101+H101),D101) -> 3.102270153 | E99: =D99*AVERAGEIF(E105:E116,">0")/100 -> 0.5404196327 | F99: =D99*(100-AVERAGEIF(E105:E116,">0"))/100 -> 2.561850521 | G99: =100-(E99+F99+H99) -> 1.600516602 | H99: =IF((D101+H101)>100,H101*100/(D101+H101),H101) -> 95.29721324 | I99: =IF((I101+M101)>100,I101*100/(I101+M101),I101) -> 5.375334591 | J99: =I99*AVERAGEIF(J105:J116,">0")/100 -> 1.394150439 | K99: =I99*(100-AVERAGEIF(J105:J116,">0"))/100 -> 3.981184153 | L99: =100-(J99+K99+M99) -> 1.534764973 | M99: =IF((I101+M101)>100,M101*100/(I101+M101),M101) -> 93.08990044 | N99: =IF((N101+R101)>100,N101*100/(N101+R101),N101) -> 11.79764056 | O99: =N99*AVERAGEIF(O105:O116,">0")/100 -> 3.486054409 | P99: =N99*(100-AVERAGEIF(O105:O116,">0"))/100 -> 8.311586146 | Q99: =100-(O99+P99+R99) -> 4.078615875 | R99: =IF((N101+R101)>100,R101*100/(N101+R101),R101) -> 84.12374357 | S99: =IF((S101+W101)>100,S101*100/(S101+W101),S101) -> 34.16725851 | T99: =S99*AVERAGEIF(T105:T116,">0")/100 -> 11.00571119 | U99: =S99*(100-AVERAGEIF(T105:T116,">0"))/100 -> 23.16154731 | V99: =100-(T99+U99+W99) -> 9.064529375 | W99: =IF((S101+W101)>100,W101*100/(S101+W101),W101) -> 56.76821212 | X99: =IF((X101+AB101)>100,X101*100/(X101+AB101),X101) -> 84.94269251 | Y99: =X99*AVERAGEIF(Y105:Y116,">0")/100 -> 48.04709243 | Z99: =X99*(100-AVERAGEIF(Y105:Y116,">0"))/100 -> 36.89560008 | AA99: =100-(Y99+Z99+AB99) -> 5.853008556 | AB99: =IF((X101+AB101)>100,AB101*100/(X101+AB101),AB101) -> 9.204298937
C100: 2020 | D100: =IF((D102+H102)>100,D102*100/(D102+H102),D102) -> 5.580567298 | E100: =D100*AVERAGEIF(E105:E116,">0")/100 -> 0.9721423281 | F100: =D100*(100-AVERAGEIF(E105:E116,">0"))/100 -> 4.60842497 | G100: =100-(E100+F100+H100) -> 7.273835139 | H100: =IF((D102+H102)>100,H102*100/(D102+H102),H102) -> 87.14559756 | I100: =IF((I102+M102)>100,I102*100/(I102+M102),I102) -> 10.64658038 | J100: =I100*AVERAGEIF(J105:J116,">0")/100 -> 2.761304335 | K100: =I100*(100-AVERAGEIF(J105:J116,">0"))/100 -> 7.885276048 | L100: =100-(J100+K100+M100) -> 11.80387319 | M100: =IF((I102+M102)>100,M102*100/(I102+M102),M102) -> 77.54954642 | N100: =IF((N102+R102)>100,N102*100/(N102+R102),N102) -> 22.70440692 | O100: =N100*AVERAGEIF(O105:O116,">0")/100 -> 6.708866698 | P100: =N100*(100-AVERAGEIF(O105:O116,">0"))/100 -> 15.99554022 | Q100: =100-(O100+P100+R100) -> 13.59819345 | R100: =IF((N102+R102)>100,R102*100/(N102+R102),R102) -> 63.69739964 | S100: =IF((S102+W102)>100,S102*100/(S102+W102),S102) -> 46.44279376 | T100: =S100*AVERAGEIF(T105:T116,">0")/100 -> 14.95981819 | U100: =S100*(100-AVERAGEIF(T105:T116,">0"))/100 -> 31.48297558 | V100: =100-(T100+U100+W100) -> 19.00126287 | W100: =IF((S102+W102)>100,W102*100/(S102+W102),W102) -> 34.55594337 | X100: =IF((X102+AB102)>100,X102*100/(X102+AB102),X102) -> 77.34476941 | Y100: =X100*AVERAGEIF(Y105:Y116,">0")/100 -> 43.74939356 | Z100: =X100*(100-AVERAGEIF(Y105:Y116,">0"))/100 -> 33.59537585 | AA100: =100-(Y100+Z100+AB100) -> 12.7135506 | AB100: =IF((X102+AB102)>100,AB102*100/(X102+AB102),AB102) -> 9.941679987
A101: Regression period: | C101: =MinRegYear(C99,C105:C116) -> 2000 | D101: =IF(MAX(C105:C116)-MIN(C105:C116)<5,AVERAGEIF(C105:C116,">0",D105:D116), IF(FORECAST($C101,D$105:D$116,$C$105:$C$116)<0,0, IF(FORECAST($C101,D$105:D$116,$C$105:$C$116)>100,100, FORECAST($C101,D$105:D$116,$C$105:$C$116)))) -> 3.102270153 | H101: =IF(MAX(C105:C116)-MIN(C105:C116)<5,AVERAGEIF(C105:C116,">0",H105:H116), IF(FORECAST($C101,H$105:H$116,$C$105:$C$116)<0,0, IF(FORECAST($C101,H$105:H$116,$C$105:$C$116)>100,100, FORECAST($C101,H$105:H$116,$C$105:$C$116)))) -> 95.29721324 | I101: =IF(MAX(C105:C116)-MIN(C105:C116)<5,AVERAGEIF(C105:C116,">0",I105:I116), IF(FORECAST($C101,I$105:I$116,$C$105:$C$116)<0,0, IF(FORECAST($C101,I$105:I$116,$C$105:$C$116)>100,100, FORECAST($C101,I$105:I$116,$C$105:$C$116)))) -> 5.375334591 | M101: =IF(MAX(C105:C116)-MIN(C105:C116)<5,AVERAGEIF(C105:C116,">0",M105:M116), IF(FORECAST($C101,M$105:M$116,$C$105:$C$116)<0,0, IF(FORECAST($C101,M$105:M$116,$C$105:$C$116)>100,100, FORECAST($C101,M$105:M$116,$C$105:$C$116)))) -> 93.08990044 | N101: =IF(MAX(C105:C116)-MIN(C105:C116)<5,AVERAGEIF(C105:C116,">0",N105:N116), IF(FORECAST($C101,N$105:N$116,$C$105:$C$116)<0,0, IF(FORECAST($C101,N$105:N$116,$C$105:$C$116)>100,100, FORECAST($C101,N$105:N$116,$C$105:$C$116)))) -> 11.79764056 | R101: =IF(MAX(C105:C116)-MIN(C105:C116)<5,AVERAGEIF(C105:C116,">0",R105:R116), IF(FORECAST($C101,R$105:R$116,$C$105:$C$116)<0,0, IF(FORECAST($C101,R$105:R$116,$C$105:$C$116)>100,100, FORECAST($C101,R$105:R$116,$C$105:$C$116)))) -> 84.12374357 | S101: =IF(MAX(C105:C116)-MIN(C105:C116)<5,AVERAGEIF(C105:C116,">0",S105:S116), IF(FORECAST($C101,S$105:S$116,$C$105:$C$116)<0,0, IF(FORECAST($C101,S$105:S$116,$C$105:$C$116)>100,100, FORECAST($C101,S$105:S$116,$C$105:$C$116)))) -> 34.16725851 | W101: =IF(MAX(C105:C116)-MIN(C105:C116)<5,AVERAGEIF(C105:C116,">0",W105:W116), IF(FORECAST($C101,W$105:W$116,$C$105:$C$116)<0,0, IF(FORECAST($C101,W$105:W$116,$C$105:$C$116)>100,100, FORECAST($C101,W$105:W$116,$C$105:$C$116)))) -> 56.76821212 | X101: =IF(MAX(C105:C116)-MIN(C105:C116)<5,AVERAGEIF(C105:C116,">0",X105:X116), IF(FORECAST($C101,X$105:X$116,$C$105:$C$116)<0,0, IF(FORECAST($C101,X$105:X$116,$C$105:$C$116)>100,100, FORECAST($C101,X$105:X$116,$C$105:$C$116)))) -> 84.94269251 | AB101: =IF(MAX(C105:C116)-MIN(C105:C116)<5,AVERAGEIF(C105:C116,">0",AB105:AB116), IF(FORECAST($C101,AB$105:AB$116,$C$105:$C$116)<0,0, IF(FORECAST($C101,AB$105:AB$116,$C$105:$C$116)>100,100, FORECAST($C101,AB$105:AB$116,$C$105:$C$116)))) -> 9.204298937
C102: =MaxRegYear(C100,C105:C116) -> 2020 | D102: =IF(MAX(C105:C116)-MIN(C105:C116)<5,AVERAGEIF(C105:C116,">0",D105:D116), IF(FORECAST($C102,D$105:D$116,$C$105:$C$116)<0,0, IF(FORECAST($C102,D$105:D$116,$C$105:$C$116)>100,100, FORECAST($C102,D$105:D$116,$C$105:$C$116)))) -> 5.580567298 | H102: =IF(MAX(C105:C116)-MIN(C105:C116)<5,AVERAGEIF(C105:C116,">0",H105:H116), IF(FORECAST($C102,H$105:H$116,$C$105:$C$116)<0,0, IF(FORECAST($C102,H$105:H$116,$C$105:$C$116)>100,100, FORECAST($C102,H$105:H$116,$C$105:$C$116)))) -> 87.14559756 | I102: =IF(MAX(C105:C116)-MIN(C105:C116)<5,AVERAGEIF(C105:C116,">0",I105:I116), IF(FORECAST($C102,I$105:I$116,$C$105:$C$116)<0,0, IF(FORECAST($C102,I$105:I$116,$C$105:$C$116)>100,100, FORECAST($C102,I$105:I$116,$C$105:$C$116)))) -> 10.64658038 | M102: =IF(MAX(C105:C116)-MIN(C105:C116)<5,AVERAGEIF(C105:C116,">0",M105:M116), IF(FORECAST($C102,M$105:M$116,$C$105:$C$116)<0,0, IF(FORECAST($C102,M$105:M$116,$C$105:$C$116)>100,100, FORECAST($C102,M$105:M$116,$C$105:$C$116)))) -> 77.54954642 | N102: =IF(MAX(C105:C116)-MIN(C105:C116)<5,AVERAGEIF(C105:C116,">0",N105:N116), IF(FORECAST($C102,N$105:N$116,$C$105:$C$116)<0,0, IF(FORECAST($C102,N$105:N$116,$C$105:$C$116)>100,100, FORECAST($C102,N$105:N$116,$C$105:$C$116)))) -> 22.70440692 | R102: =IF(MAX(C105:C116)-MIN(C105:C116)<5,AVERAGEIF(C105:C116,">0",R105:R116), IF(FORECAST($C102,R$105:R$116,$C$105:$C$116)<0,0, IF(FORECAST($C102,R$105:R$116,$C$105:$C$116)>100,100, FORECAST($C102,R$105:R$116,$C$105:$C$116)))) -> 63.69739964 | S102: =IF(MAX(C105:C116)-MIN(C105:C116)<5,AVERAGEIF(C105:C116,">0",S105:S116), IF(FORECAST($C102,S$105:S$116,$C$105:$C$116)<0,0, IF(FORECAST($C102,S$105:S$116,$C$105:$C$116)>100,100, FORECAST($C102,S$105:S$116,$C$105:$C$116)))) -> 46.44279376 | W102: =IF(MAX(C105:C116)-MIN(C105:C116)<5,AVERAGEIF(C105:C116,">0",W105:W116), IF(FORECAST($C102,W$105:W$116,$C$105:$C$116)<0,0, IF(FORECAST($C102,W$105:W$116,$C$105:$C$116)>100,100, FORECAST($C102,W$105:W$116,$C$105:$C$116)))) -> 34.55594337 | X102: =IF(MAX(C105:C116)-MIN(C105:C116)<5,AVERAGEIF(C105:C116,">0",X105:X116), IF(FORECAST($C102,X$105:X$116,$C$105:$C$116)<0,0, IF(FORECAST($C102,X$105:X$116,$C$105:$C$116)>100,100, FORECAST($C102,X$105:X$116,$C$105:$C$116)))) -> 77.34476941 | AB102: =IF(MAX(C105:C116)-MIN(C105:C116)<5,AVERAGEIF(C105:C116,">0",AB105:AB116), IF(FORECAST($C102,AB$105:AB$116,$C$105:$C$116)<0,0, IF(FORECAST($C102,AB$105:AB$116,$C$105:$C$116)>100,100, FORECAST($C102,AB$105:AB$116,$C$105:$C$116)))) -> 9.941679987
B104: Survey | C104: Year | D104: Improved | E104: Not shared | H104: Open defecation | I104: Improved | J104: Not shared | M104: Open defecation | N104: Improved | O104: Not shared | R104: Open defecation | S104: Improved | T104: Not shared | W104: Open defecation | X104: Improved | Y104: Not shared | AB104: Open defecation
B105: DHS01 | C105: 2001 | D105: =IF(ISERROR(INDIRECT(CONCATENATE($B105,"!C122"))),"",INDIRECT(CONCATENATE($B105,"!C122"))) -> 3.409476934 | E105: =IF(ISERROR(INDIRECT(CONCATENATE($B105,"!C129"))),"",INDIRECT(CONCATENATE($B105,"!C129"))) -> N/A | H105: =IF(ISERROR(INDIRECT(CONCATENATE($B105,"!C127"))),"",INDIRECT(CONCATENATE($B105,"!C127"))) -> 93.44581143 | I105: =IF(ISERROR(INDIRECT(CONCATENATE($B105,"!D122"))),"",INDIRECT(CONCATENATE($B105,"!D122"))) -> 4.88525539 | J105: =IF(ISERROR(INDIRECT(CONCATENATE($B105,"!D129"))),"",INDIRECT(CONCATENATE($B105,"!D129"))) -> N/A | M105: =IF(ISERROR(INDIRECT(CONCATENATE($B105,"!D127"))),"",INDIRECT(CONCATENATE($B105,"!D127"))) -> 91.52496415 | N105: =IF(ISERROR(INDIRECT(CONCATENATE($B105,"!E122"))),"",INDIRECT(CONCATENATE($B105,"!E122"))) -> 10.93533464 | O105: =IF(ISERROR(INDIRECT(CONCATENATE($B105,"!E129"))),"",INDIRECT(CONCATENATE($B105,"!E129"))) -> N/A | R105: =IF(ISERROR(INDIRECT(CONCATENATE($B105,"!E127"))),"",INDIRECT(CONCATENATE($B105,"!E127"))) -> 83.21867409 | S105: =IF(ISERROR(INDIRECT(CONCATENATE($B105,"!F122"))),"",INDIRECT(CONCATENATE($B105,"!F122"))) -> 30.99676237 | T105: =IF(ISERROR(INDIRECT(CONCATENATE($B105,"!F129"))),"",INDIRECT(CONCATENATE($B105,"!F129"))) -> N/A | W105: =IF(ISERROR(INDIRECT(CONCATENATE($B105,"!F127"))),"",INDIRECT(CONCATENATE($B105,"!F127"))) -> 58.46460489 | X105: =IF(ISERROR(INDIRECT(CONCATENATE($B105,"!G122"))),"",INDIRECT(CONCATENATE($B105,"!G122"))) -> 84.44823691 | Y105: =IF(ISERROR(INDIRECT(CONCATENATE($B105,"!G129"))),"",INDIRECT(CONCATENATE($B105,"!G129"))) -> N/A | AB105: =IF(ISERROR(INDIRECT(CONCATENATE($B105,"!G2127"))),"",INDIRECT(CONCATENATE($B105,"!G127"))) -> 9.497451897
B106: DHS06 | C106: 2006 | D106: 4.336239517 | E106: N/A | H106: 93.06175692 | I106: 8.192029922 | J106: N/A | M106: 89.00822952 | N106: 16.95500381 | O106: N/A | R106: 79.24852277 | S106: 40.68741432 | T106: N/A | W106: 50.9988388 | X106: 80.73690551 | Y106: N/A | AB106: 11.99940391
B107: DHS12 | C107: 2012 | D107: 2.770443763 | E107: 23.87441391 | H107: 92.83983344 | I107: 7.679499551 | J107: 49.69317165 | M107: 84.03526749 | N107: 17.44565555 | O107: 37.66101263 | R107: 69.28583995 | S107: 44.64810821 | T107: 33.31426841 | W107: 35.07566494 | X107: 83.09413172 | Y107: 60.60696139 | AB107: 5.627064164
B108: MICS14 | C108: 2014 | D108: 5.314853833 | E108: 14.41362501 | H108: 91.44685208 | I108: 9.850091978 | J108: 14.44709629 | M108: 83.41463154 | N108: 21.1029322 | O108: 24.27503208 | R108: 69.44634875 | S108: 45.65751447 | T108: 28.76089635 | W108: 39.15470457 | X108: 81.82496457 | Y108: 52.38798521 | AB108: 6.939082183
B109: DHS18 | C109: 2018 | D109: 5.999994438 | E109: 13.97236453 | H109: 84.90519235 | I109: 9.711472885 | J109: 13.66793627 | M109: 77.83850674 | N109: 20.3615308 | O109: 26.71018229 | R109: 67.33215525 | S109: 40.14910807 | T109: 34.55867425 | W109: 43.50596208 | X109: 75.23451993 | Y109: 56.69743427 | AB109: 13.8388142
B118: =CONCATENATE("National use of sanitation facilities, ",C99,"–",C100) -> National use of sanitation facilities, 2000–2020 | S118: Data points used for regression
A197: URBAN | D197: Poorest | I197: Poor | N197: Middle | S197: Rich | X197: Richest
D198: Improved | E198: Basic | F198: Limited | G198: Unimproved | H198: Open defecation | I198: Improved | J198: Basic | K198: Limited | L198: Unimproved | M198: Open defecation | N198: Improved | O198: Basic | P198: Limited | Q198: Unimproved | R198: Open defecation | S198: Improved | T198: Basic | U198: Limited | V198: Unimproved | W198: Open defecation | X198: Improved | Y198: Basic | Z198: Limited | AA198: Unimproved | AB198: Open defecation
A199: Forecast period: | C199: 2000 | D199: =IF((D201+H201)>100,D201*100/(D201+H201),D201) -> 7.483054709 | E199: =D199*AVERAGEIF(E205:E216,">0")/100 -> 2.051598709 | F199: =D199*(100-AVERAGEIF(E205:E216,">0"))/100 -> 5.431456 | G199: =100-(E199+F199+H199) -> 3.759747846 | H199: =IF((D201+H201)>100,H201*100/(D201+H201),H201) -> 88.75719744 | I199: =IF((I201+M201)>100,I201*100/(I201+M201),I201) -> 30.58343812 | J199: =I199*AVERAGEIF(J205:J216,">0")/100 -> 7.907845837 | K199: =I199*(100-AVERAGEIF(J205:J216,">0"))/100 -> 22.67559228 | L199: =100-(J199+K199+M199) -> 9.797332418 | M199: =IF((I201+M201)>100,M201*100/(I201+M201),M201) -> 59.61922946 | N199: =IF((N201+R201)>100,N201*100/(N201+R201),N201) -> 65.21780166 | O199: =N199*AVERAGEIF(O205:O216,">0")/100 -> 20.38013597 | P199: =N199*(100-AVERAGEIF(O205:O216,">0"))/100 -> 44.83766569 | Q199: =100-(O199+P199+R199) -> 11.10980619 | R199: =IF((N201+R201)>100,R201*100/(N201+R201),R201) -> 23.67239215 | S199: =IF((S201+W201)>100,S201*100/(S201+W201),S201) -> 86.51170015 | T199: =S199*AVERAGEIF(T205:T216,">0")/100 -> 34.76356843 | U199: =S199*(100-AVERAGEIF(T205:T216,">0"))/100 -> 51.74813172 | V199: =100-(T199+U199+W199) -> 7.93905293 | W199: =IF((S201+W201)>100,W201*100/(S201+W201),W201) -> 5.549246918 | X199: =IF((X201+AB201)>100,X201*100/(X201+AB201),X201) -> 96.48559357 | Y199: =X199*AVERAGEIF(Y205:Y216,">0")/100 -> 66.38126595 | Z199: =X199*(100-AVERAGEIF(Y205:Y216,">0"))/100 -> 30.10432761 | AA199: =100-(Y199+Z199+AB199) -> 2.990242183 | AB199: =IF((X201+AB201)>100,AB201*100/(X201+AB201),AB201) -> 0.5241642515
C200: 2020 | D200: =IF((D202+H202)>100,D202*100/(D202+H202),D202) -> 9.165854005 | E200: =D200*AVERAGEIF(E205:E216,">0")/100 -> 2.512964955 | F200: =D200*(100-AVERAGEIF(E205:E216,">0"))/100 -> 6.65288905 | G200: =100-(E200+F200+H200) -> 9.204165862 | H200: =IF((D202+H202)>100,H202*100/(D202+H202),H202) -> 81.62998013 | I200: =IF((I202+M202)>100,I202*100/(I202+M202),I202) -> 32.14448068 | J200: =I200*AVERAGEIF(J205:J216,">0")/100 -> 8.311478805 | K200: =I200*(100-AVERAGEIF(J205:J216,">0"))/100 -> 23.83300187 | L200: =100-(J200+K200+M200) -> 19.49710115 | M200: =IF((I202+M202)>100,M202*100/(I202+M202),M202) -> 48.35841817 | N200: =IF((N202+R202)>100,N202*100/(N202+R202),N202) -> 54.90739173 | O200: =N200*AVERAGEIF(O205:O216,">0")/100 -> 17.15820038 | P200: =N200*(100-AVERAGEIF(O205:O216,">0"))/100 -> 37.74919135 | Q200: =100-(O200+P200+R200) -> 19.20579516 | R200: =IF((N202+R202)>100,R202*100/(N202+R202),R202) -> 25.88681311 | S200: =IF((S202+W202)>100,S202*100/(S202+W202),S202) -> 70.5788338 | T200: =S200*AVERAGEIF(T205:T216,">0")/100 -> 28.36115941 | U200: =S200*(100-AVERAGEIF(T205:T216,">0"))/100 -> 42.21767439 | V200: =100-(T200+U200+W200) -> 16.23653773 | W200: =IF((S202+W202)>100,W202*100/(S202+W202),W202) -> 13.18462847 | X200: =IF((X202+AB202)>100,X202*100/(X202+AB202),X202) -> 89.29789285 | Y200: =X200*AVERAGEIF(Y205:Y216,">0")/100 -> 61.43618913 | Z200: =X200*(100-AVERAGEIF(Y205:Y216,">0"))/100 -> 27.86170373 | AA200: =100-(Y200+Z200+AB200) -> 8.023662549 | AB200: =IF((X202+AB202)>100,AB202*100/(X202+AB202),AB202) -> 2.678444596
A201: Regression period: | C201: =MinRegYear(C199,C205:C216) -> 2000 | D201: =IF(MAX(C205:C216)-MIN(C205:C216)<5,AVERAGEIF(C205:C216,">0",D205:D216), IF(FORECAST($C201,D$205:D$216,$C$205:$C$216)<0,0, IF(FORECAST($C201,D$205:D$216,$C$205:$C$216)>100,100, FORECAST($C201,D$205:D$216,$C$205:$C$216)))) -> 7.483054709 | H201: =IF(MAX(C205:C216)-MIN(C205:C216)<5,AVERAGEIF(C205:C216,">0",H205:H216), IF(FORECAST($C201,H$205:H$216,$C$205:$C$216)<0,0, IF(FORECAST($C201,H$205:H$216,$C$205:$C$216)>100,100, FORECAST($C201,H$205:H$216,$C$205:$C$216)))) -> 88.75719744 | I201: =IF(MAX(C205:C216)-MIN(C205:C216)<5,AVERAGEIF(C205:C216,">0",I205:I216), IF(FORECAST($C201,I$205:I$216,$C$205:$C$216)<0,0, IF(FORECAST($C201,I$205:I$216,$C$205:$C$216)>100,100, FORECAST($C201,I$205:I$216,$C$205:$C$216)))) -> 30.58343812 | M201: =IF(MAX(C205:C216)-MIN(C205:C216)<5,AVERAGEIF(C205:C216,">0",M205:M216), IF(FORECAST($C201,M$205:M$216,$C$205:$C$216)<0,0, IF(FORECAST($C201,M$205:M$216,$C$205:$C$216)>100,100, FORECAST($C201,M$205:M$216,$C$205:$C$216)))) -> 59.61922946 | N201: =IF(MAX(C205:C216)-MIN(C205:C216)<5,AVERAGEIF(C205:C216,">0",N205:N216), IF(FORECAST($C201,N$205:N$216,$C$205:$C$216)<0,0, IF(FORECAST($C201,N$205:N$216,$C$205:$C$216)>100,100, FORECAST($C201,N$205:N$216,$C$205:$C$216)))) -> 65.21780166 | R201: =IF(MAX(C205:C216)-MIN(C205:C216)<5,AVERAGEIF(C205:C216,">0",R205:R216), IF(FORECAST($C201,R$205:R$216,$C$205:$C$216)<0,0, IF(FORECAST($C201,R$205:R$216,$C$205:$C$216)>100,100, FORECAST($C201,R$205:R$216,$C$205:$C$216)))) -> 23.67239215 | S201: =IF(MAX(C205:C216)-MIN(C205:C216)<5,AVERAGEIF(C205:C216,">0",S205:S216), IF(FORECAST($C201,S$205:S$216,$C$205:$C$216)<0,0, IF(FORECAST($C201,S$205:S$216,$C$205:$C$216)>100,100, FORECAST($C201,S$205:S$216,$C$205:$C$216)))) -> 86.51170015 | W201: =IF(MAX(C205:C216)-MIN(C205:C216)<5,AVERAGEIF(C205:C216,">0",W205:W216), IF(FORECAST($C201,W$205:W$216,$C$205:$C$216)<0,0, IF(FORECAST($C201,W$205:W$216,$C$205:$C$216)>100,100, FORECAST($C201,W$205:W$216,$C$205:$C$216)))) -> 5.549246918 | X201: =IF(MAX(C205:C216)-MIN(C205:C216)<5,AVERAGEIF(C205:C216,">0",X205:X216), IF(FORECAST($C201,X$205:X$216,$C$205:$C$216)<0,0, IF(FORECAST($C201,X$205:X$216,$C$205:$C$216)>100,100, FORECAST($C201,X$205:X$216,$C$205:$C$216)))) -> 96.48559357 | AB201: =IF(MAX(C205:C216)-MIN(C205:C216)<5,AVERAGEIF(C205:C216,">0",AB205:AB216), IF(FORECAST($C201,AB$205:AB$216,$C$205:$C$216)<0,0, IF(FORECAST($C201,AB$205:AB$216,$C$205:$C$216)>100,100, FORECAST($C201,AB$205:AB$216,$C$205:$C$216)))) -> 0.5241642515
C202: =MaxRegYear(C200,C205:C216) -> 2020 | D202: =IF(MAX(C205:C216)-MIN(C205:C216)<5,AVERAGEIF(C205:C216,">0",D205:D216), IF(FORECAST($C202,D$205:D$216,$C$205:$C$216)<0,0, IF(FORECAST($C202,D$205:D$216,$C$205:$C$216)>100,100, FORECAST($C202,D$205:D$216,$C$205:$C$216)))) -> 9.165854005 | H202: =IF(MAX(C205:C216)-MIN(C205:C216)<5,AVERAGEIF(C205:C216,">0",H205:H216), IF(FORECAST($C202,H$205:H$216,$C$205:$C$216)<0,0, IF(FORECAST($C202,H$205:H$216,$C$205:$C$216)>100,100, FORECAST($C202,H$205:H$216,$C$205:$C$216)))) -> 81.62998013 | I202: =IF(MAX(C205:C216)-MIN(C205:C216)<5,AVERAGEIF(C205:C216,">0",I205:I216), IF(FORECAST($C202,I$205:I$216,$C$205:$C$216)<0,0, IF(FORECAST($C202,I$205:I$216,$C$205:$C$216)>100,100, FORECAST($C202,I$205:I$216,$C$205:$C$216)))) -> 32.14448068 | M202: =IF(MAX(C205:C216)-MIN(C205:C216)<5,AVERAGEIF(C205:C216,">0",M205:M216), IF(FORECAST($C202,M$205:M$216,$C$205:$C$216)<0,0, IF(FORECAST($C202,M$205:M$216,$C$205:$C$216)>100,100, FORECAST($C202,M$205:M$216,$C$205:$C$216)))) -> 48.35841817 | N202: =IF(MAX(C205:C216)-MIN(C205:C216)<5,AVERAGEIF(C205:C216,">0",N205:N216), IF(FORECAST($C202,N$205:N$216,$C$205:$C$216)<0,0, IF(FORECAST($C202,N$205:N$216,$C$205:$C$216)>100,100, FORECAST($C202,N$205:N$216,$C$205:$C$216)))) -> 54.90739173 | R202: =IF(MAX(C205:C216)-MIN(C205:C216)<5,AVERAGEIF(C205:C216,">0",R205:R216), IF(FORECAST($C202,R$205:R$216,$C$205:$C$216)<0,0, IF(FORECAST($C202,R$205:R$216,$C$205:$C$216)>100,100, FORECAST($C202,R$205:R$216,$C$205:$C$216)))) -> 25.88681311 | S202: =IF(MAX(C205:C216)-MIN(C205:C216)<5,AVERAGEIF(C205:C216,">0",S205:S216), IF(FORECAST($C202,S$205:S$216,$C$205:$C$216)<0,0, IF(FORECAST($C202,S$205:S$216,$C$205:$C$216)>100,100, FORECAST($C202,S$205:S$216,$C$205:$C$216)))) -> 70.5788338 | W202: =IF(MAX(C205:C216)-MIN(C205:C216)<5,AVERAGEIF(C205:C216,">0",W205:W216), IF(FORECAST($C202,W$205:W$216,$C$205:$C$216)<0,0, IF(FORECAST($C202,W$205:W$216,$C$205:$C$216)>100,100, FORECAST($C202,W$205:W$216,$C$205:$C$216)))) -> 13.18462847 | X202: =IF(MAX(C205:C216)-MIN(C205:C216)<5,AVERAGEIF(C205:C216,">0",X205:X216), IF(FORECAST($C202,X$205:X$216,$C$205:$C$216)<0,0, IF(FORECAST($C202,X$205:X$216,$C$205:$C$216)>100,100, FORECAST($C202,X$205:X$216,$C$205:$C$216)))) -> 89.29789285 | AB202: =IF(MAX(C205:C216)-MIN(C205:C216)<5,AVERAGEIF(C205:C216,">0",AB205:AB216), IF(FORECAST($C202,AB$205:AB$216,$C$205:$C$216)<0,0, IF(FORECAST($C202,AB$205:AB$216,$C$205:$C$216)>100,100, FORECAST($C202,AB$205:AB$216,$C$205:$C$216)))) -> 2.678444596
B204: Survey | C204: Year | D204: Improved | E204: Not shared | H204: Open defecation | I204: Improved | J204: Not shared | M204: Open defecation | N204: Improved | O204: Not shared | R204: Open defecation | S204: Improved | T204: Not shared | W204: Open defecation | X204: Improved | Y204: Not shared | AB204: Open defecation
B205: DHS01 | C205: 2001 | D205: =IF(ISERROR(INDIRECT(CONCATENATE($B205,"!H122"))),"",INDIRECT(CONCATENATE($B205,"!H122"))) -> 6.256448371 | E205: =IF(ISERROR(INDIRECT(CONCATENATE($B205,"!H129"))),"",INDIRECT(CONCATENATE($B205,"!H129"))) -> N/A | H205: =IF(ISERROR(INDIRECT(CONCATENATE($B205,"!H127"))),"",INDIRECT(CONCATENATE($B205,"!H127"))) -> 87.8292148 | I205: =IF(ISERROR(INDIRECT(CONCATENATE($B205,"!I122"))),"",INDIRECT(CONCATENATE($B205,"!I122"))) -> 24.28746868 | J205: =IF(ISERROR(INDIRECT(CONCATENATE($B205,"!I129"))),"",INDIRECT(CONCATENATE($B205,"!I129"))) -> N/A | M205: =IF(ISERROR(INDIRECT(CONCATENATE($B205,"!I127"))),"",INDIRECT(CONCATENATE($B205,"!I127"))) -> 63.74410027 | N205: =IF(ISERROR(INDIRECT(CONCATENATE($B205,"!J122"))),"",INDIRECT(CONCATENATE($B205,"!J122"))) -> 61.08449524 | O205: =IF(ISERROR(INDIRECT(CONCATENATE($B205,"!J129"))),"",INDIRECT(CONCATENATE($B205,"!J129"))) -> N/A | R205: =IF(ISERROR(INDIRECT(CONCATENATE($B205,"!J127"))),"",INDIRECT(CONCATENATE($B205,"!J127"))) -> 26.40017715 | S205: =IF(ISERROR(INDIRECT(CONCATENATE($B205,"!K122"))),"",INDIRECT(CONCATENATE($B205,"!K122"))) -> 85.6828472 | T205: =IF(ISERROR(INDIRECT(CONCATENATE($B205,"!K129"))),"",INDIRECT(CONCATENATE($B205,"!K129"))) -> N/A | W205: =IF(ISERROR(INDIRECT(CONCATENATE($B205,"!K127"))),"",INDIRECT(CONCATENATE($B205,"!K127"))) -> 6.468024334 | X205: =IF(ISERROR(INDIRECT(CONCATENATE($B205,"!L122"))),"",INDIRECT(CONCATENATE($B205,"!L122"))) -> 96.55364048 | Y205: =IF(ISERROR(INDIRECT(CONCATENATE($B205,"!L129"))),"",INDIRECT(CONCATENATE($B205,"!L129"))) -> N/A | AB205: =IF(ISERROR(INDIRECT(CONCATENATE($B205,"!L2127"))),"",INDIRECT(CONCATENATE($B205,"!L127"))) -> 0.5794234835
B206: DHS06 | C206: 2006 | D206: 9.251149071 | E206: N/A | H206: 88.90657524 | I206: 35.97213148 | J206: N/A | M206: 56.76710664 | N206: 63.71273654 | O206: N/A | R206: 25.39500315 | S206: 81.07371319 | T206: N/A | W206: 9.466675547 | X206: 93.14811465 | Y206: N/A | AB206: 1.994865353
B207: DHS12 | C207: 2012 | D207: 9.442355721 | E207: 39.016524 | H207: 80.23616357 | I207: 40.49130888 | J207: 32.5119426 | M207: 36.33842786 | N207: 64.88578991 | O207: 31.0956639 | R207: 15.54461273 | S207: 79.59376838 | T207: 46.10934513 | W207: 5.717767758 | X207: 92.81956829 | Y207: 75.69758975 | AB207: 0.5844865992
B208: MICS14 | C208: 2014 | D208: 9.017490131 | E208: 19.82108817 | H208: 85.70196418 | I208: 30.54774996 | J208: 22.73503413 | M208: 55.0211488 | N208: 59.83058002 | O208: 28.30154479 | R208: 25.10975892 | S208: 73.50728379 | T208: 37.22780758 | W208: 10.35034822 | X208: 92.21123066 | Y208: 62.77555409 | AB208: 1.630211123
B209: DHS18 | C209: 2018 | D209: 7.738968455 | E209: 23.41216904 | H209: 82.9376653 | I209: 25.59919012 | J209: 22.3229074 | M209: 57.51029497 | N209: 50.28386128 | O209: 34.35082691 | R209: 31.55918226 | S209: 72.07207901 | T209: 37.21383071 | W209: 15.2136417 | X209: 89.36677693 | Y209: 67.92429903 | AB209: 3.325249577
B218: =CONCATENATE("Urban use of sanitation facilities, ",C199,"–",C200) -> Urban use of sanitation facilities, 2000–2020 | S218: Data points used for regression
A297: RURAL | D297: Poorest | I297: Poor | N297: Middle | S297: Rich | X297: Richest
D298: Improved | E298: Basic | F298: Limited | G298: Unimproved | H298: Open defecation | I298: Improved | J298: Basic | K298: Limited | L298: Unimproved | M298: Open defecation | N298: Improved | O298: Basic | P298: Limited | Q298: Unimproved | R298: Open defecation | S298: Improved | T298: Basic | U298: Limited | V298: Unimproved | W298: Open defecation | X298: Improved | Y298: Basic | Z298: Limited | AA298: Unimproved | AB298: Open defecation
A299: Forecast period: | C299: 2000 | D299: =IF((D301+H301)>100,D301*100/(D301+H301),D301) -> 3.025834942 | E299: =D299*AVERAGEIF(E305:E316,">0")/100 -> 0.5289900061 | F299: =D299*(100-AVERAGEIF(E305:E316,">0"))/100 -> 2.496844936 | G299: =100-(E299+F299+H299) -> 1.283298177 | H299: =IF((D301+H301)>100,H301*100/(D301+H301),H301) -> 95.69086688 | I299: =IF((I301+M301)>100,I301*100/(I301+M301),I301) -> 4.387504515 | J299: =I299*AVERAGEIF(J305:J316,">0")/100 -> 1.00607549 | K299: =I299*(100-AVERAGEIF(J305:J316,">0"))/100 -> 3.381429025 | L299: =100-(J299+K299+M299) -> 1.539902823 | M299: =IF((I301+M301)>100,M301*100/(I301+M301),M301) -> 94.07259266 | N299: =IF((N301+R301)>100,N301*100/(N301+R301),N301) -> 5.675867748 | O299: =N299*AVERAGEIF(O305:O316,">0")/100 -> 1.492829459 | P299: =N299*(100-AVERAGEIF(O305:O316,">0"))/100 -> 4.183038289 | Q299: =100-(O299+P299+R299) -> 1.688515803 | R299: =IF((N301+R301)>100,R301*100/(N301+R301),R301) -> 92.63561645 | S299: =IF((S301+W301)>100,S301*100/(S301+W301),S301) -> 10.45501404 | T299: =S299*AVERAGEIF(T305:T316,">0")/100 -> 3.513269712 | U299: =S299*(100-AVERAGEIF(T305:T316,">0"))/100 -> 6.941744325 | V299: =100-(T299+U299+W299) -> 3.981246767 | W299: =IF((S301+W301)>100,W301*100/(S301+W301),W301) -> 85.56373919 | X299: =IF((X301+AB301)>100,X301*100/(X301+AB301),X301) -> 28.39539636 | Y299: =X299*AVERAGEIF(Y305:Y316,">0")/100 -> 13.17046753 | Z299: =X299*(100-AVERAGEIF(Y305:Y316,">0"))/100 -> 15.22492882 | AA299: =100-(Y299+Z299+AB299) -> 7.559735295 | AB299: =IF((X301+AB301)>100,AB301*100/(X301+AB301),AB301) -> 64.04486835
C300: 2020 | D300: =IF((D302+H302)>100,D302*100/(D302+H302),D302) -> 4.851022298 | E300: =D300*AVERAGEIF(E305:E316,">0")/100 -> 0.8480774279 | F300: =D300*(100-AVERAGEIF(E305:E316,">0"))/100 -> 4.00294487 | G300: =100-(E300+F300+H300) -> 6.868842211 | H300: =IF((D302+H302)>100,H302*100/(D302+H302),H302) -> 88.28013549 | I300: =IF((I302+M302)>100,I302*100/(I302+M302),I302) -> 7.474587811 | J300: =I300*AVERAGEIF(J305:J316,">0")/100 -> 1.713958258 | K300: =I300*(100-AVERAGEIF(J305:J316,">0"))/100 -> 5.760629553 | L300: =100-(J300+K300+M300) -> 10.02500886 | M300: =IF((I302+M302)>100,M302*100/(I302+M302),M302) -> 82.50040333 | N300: =IF((N302+R302)>100,N302*100/(N302+R302),N302) -> 12.79009796 | O300: =N300*AVERAGEIF(O305:O316,">0")/100 -> 3.363967569 | P300: =N300*(100-AVERAGEIF(O305:O316,">0"))/100 -> 9.426130395 | Q300: =100-(O300+P300+R300) -> 11.74754565 | R300: =IF((N302+R302)>100,R302*100/(N302+R302),R302) -> 75.46235638 | S300: =IF((S302+W302)>100,S302*100/(S302+W302),S302) -> 20.90953392 | T300: =S300*AVERAGEIF(T305:T316,">0")/100 -> 7.026373371 | U300: =S300*(100-AVERAGEIF(T305:T316,">0"))/100 -> 13.88316055 | V300: =100-(T300+U300+W300) -> 11.01944525 | W300: =IF((S302+W302)>100,W302*100/(S302+W302),W302) -> 68.07102083 | X300: =IF((X302+AB302)>100,X302*100/(X302+AB302),X302) -> 41.72309191 | Y300: =X300*AVERAGEIF(Y305:Y316,">0")/100 -> 19.35217317 | Z300: =X300*(100-AVERAGEIF(Y305:Y316,">0"))/100 -> 22.37091875 | AA300: =100-(Y300+Z300+AB300) -> 17.368665 | AB300: =IF((X302+AB302)>100,AB302*100/(X302+AB302),AB302) -> 40.90824308
A301: Regression period: | C301: =MinRegYear(C299,C305:C316) -> 2000 | D301: =IF(MAX(C305:C316)-MIN(C305:C316)<5,AVERAGEIF(C305:C316,">0",D305:D316), IF(FORECAST($C301,D$305:D$316,$C$305:$C$316)<0,0, IF(FORECAST($C301,D$305:D$316,$C$305:$C$316)>100,100, FORECAST($C301,D$305:D$316,$C$305:$C$316)))) -> 3.025834942 | H301: =IF(MAX(C305:C316)-MIN(C305:C316)<5,AVERAGEIF(C305:C316,">0",H305:H316), IF(FORECAST($C301,H$305:H$316,$C$305:$C$316)<0,0, IF(FORECAST($C301,H$305:H$316,$C$305:$C$316)>100,100, FORECAST($C301,H$305:H$316,$C$305:$C$316)))) -> 95.69086688 | I301: =IF(MAX(C305:C316)-MIN(C305:C316)<5,AVERAGEIF(C305:C316,">0",I305:I316), IF(FORECAST($C301,I$305:I$316,$C$305:$C$316)<0,0, IF(FORECAST($C301,I$305:I$316,$C$305:$C$316)>100,100, FORECAST($C301,I$305:I$316,$C$305:$C$316)))) -> 4.387504515 | M301: =IF(MAX(C305:C316)-MIN(C305:C316)<5,AVERAGEIF(C305:C316,">0",M305:M316), IF(FORECAST($C301,M$305:M$316,$C$305:$C$316)<0,0, IF(FORECAST($C301,M$305:M$316,$C$305:$C$316)>100,100, FORECAST($C301,M$305:M$316,$C$305:$C$316)))) -> 94.07259266 | N301: =IF(MAX(C305:C316)-MIN(C305:C316)<5,AVERAGEIF(C305:C316,">0",N305:N316), IF(FORECAST($C301,N$305:N$316,$C$305:$C$316)<0,0, IF(FORECAST($C301,N$305:N$316,$C$305:$C$316)>100,100, FORECAST($C301,N$305:N$316,$C$305:$C$316)))) -> 5.675867748 | R301: =IF(MAX(C305:C316)-MIN(C305:C316)<5,AVERAGEIF(C305:C316,">0",R305:R316), IF(FORECAST($C301,R$305:R$316,$C$305:$C$316)<0,0, IF(FORECAST($C301,R$305:R$316,$C$305:$C$316)>100,100, FORECAST($C301,R$305:R$316,$C$305:$C$316)))) -> 92.63561645 | S301: =IF(MAX(C305:C316)-MIN(C305:C316)<5,AVERAGEIF(C305:C316,">0",S305:S316), IF(FORECAST($C301,S$305:S$316,$C$305:$C$316)<0,0, IF(FORECAST($C301,S$305:S$316,$C$305:$C$316)>100,100, FORECAST($C301,S$305:S$316,$C$305:$C$316)))) -> 10.45501404 | W301: =IF(MAX(C305:C316)-MIN(C305:C316)<5,AVERAGEIF(C305:C316,">0",W305:W316), IF(FORECAST($C301,W$305:W$316,$C$305:$C$316)<0,0, IF(FORECAST($C301,W$305:W$316,$C$305:$C$316)>100,100, FORECAST($C301,W$305:W$316,$C$305:$C$316)))) -> 85.56373919 | X301: =IF(MAX(C305:C316)-MIN(C305:C316)<5,AVERAGEIF(C305:C316,">0",X305:X316), IF(FORECAST($C301,X$305:X$316,$C$305:$C$316)<0,0, IF(FORECAST($C301,X$305:X$316,$C$305:$C$316)>100,100, FORECAST($C301,X$305:X$316,$C$305:$C$316)))) -> 28.39539636 | AB301: =IF(MAX(C305:C316)-MIN(C305:C316)<5,AVERAGEIF(C305:C316,">0",AB305:AB316), IF(FORECAST($C301,AB$305:AB$316,$C$305:$C$316)<0,0, IF(FORECAST($C301,AB$305:AB$316,$C$305:$C$316)>100,100, FORECAST($C301,AB$305:AB$316,$C$305:$C$316)))) -> 64.04486835
C302: =MaxRegYear(C300,C305:C316) -> 2020 | D302: =IF(MAX(C305:C316)-MIN(C305:C316)<5,AVERAGEIF(C305:C316,">0",D305:D316), IF(FORECAST($C302,D$305:D$316,$C$305:$C$316)<0,0, IF(FORECAST($C302,D$305:D$316,$C$305:$C$316)>100,100, FORECAST($C302,D$305:D$316,$C$305:$C$316)))) -> 4.851022298 | H302: =IF(MAX(C305:C316)-MIN(C305:C316)<5,AVERAGEIF(C305:C316,">0",H305:H316), IF(FORECAST($C302,H$305:H$316,$C$305:$C$316)<0,0, IF(FORECAST($C302,H$305:H$316,$C$305:$C$316)>100,100, FORECAST($C302,H$305:H$316,$C$305:$C$316)))) -> 88.28013549 | I302: =IF(MAX(C305:C316)-MIN(C305:C316)<5,AVERAGEIF(C305:C316,">0",I305:I316), IF(FORECAST($C302,I$305:I$316,$C$305:$C$316)<0,0, IF(FORECAST($C302,I$305:I$316,$C$305:$C$316)>100,100, FORECAST($C302,I$305:I$316,$C$305:$C$316)))) -> 7.474587811 | M302: =IF(MAX(C305:C316)-MIN(C305:C316)<5,AVERAGEIF(C305:C316,">0",M305:M316), IF(FORECAST($C302,M$305:M$316,$C$305:$C$316)<0,0, IF(FORECAST($C302,M$305:M$316,$C$305:$C$316)>100,100, FORECAST($C302,M$305:M$316,$C$305:$C$316)))) -> 82.50040333 | N302: =IF(MAX(C305:C316)-MIN(C305:C316)<5,AVERAGEIF(C305:C316,">0",N305:N316), IF(FORECAST($C302,N$305:N$316,$C$305:$C$316)<0,0, IF(FORECAST($C302,N$305:N$316,$C$305:$C$316)>100,100, FORECAST($C302,N$305:N$316,$C$305:$C$316)))) -> 12.79009796 | R302: =IF(MAX(C305:C316)-MIN(C305:C316)<5,AVERAGEIF(C305:C316,">0",R305:R316), IF(FORECAST($C302,R$305:R$316,$C$305:$C$316)<0,0, IF(FORECAST($C302,R$305:R$316,$C$305:$C$316)>100,100, FORECAST($C302,R$305:R$316,$C$305:$C$316)))) -> 75.46235638 | S302: =IF(MAX(C305:C316)-MIN(C305:C316)<5,AVERAGEIF(C305:C316,">0",S305:S316), IF(FORECAST($C302,S$305:S$316,$C$305:$C$316)<0,0, IF(FORECAST($C302,S$305:S$316,$C$305:$C$316)>100,100, FORECAST($C302,S$305:S$316,$C$305:$C$316)))) -> 20.90953392 | W302: =IF(MAX(C305:C316)-MIN(C305:C316)<5,AVERAGEIF(C305:C316,">0",W305:W316), IF(FORECAST($C302,W$305:W$316,$C$305:$C$316)<0,0, IF(FORECAST($C302,W$305:W$316,$C$305:$C$316)>100,100, FORECAST($C302,W$305:W$316,$C$305:$C$316)))) -> 68.07102083 | X302: =IF(MAX(C305:C316)-MIN(C305:C316)<5,AVERAGEIF(C305:C316,">0",X305:X316), IF(FORECAST($C302,X$305:X$316,$C$305:$C$316)<0,0, IF(FORECAST($C302,X$305:X$316,$C$305:$C$316)>100,100, FORECAST($C302,X$305:X$316,$C$305:$C$316)))) -> 41.72309191 | AB302: =IF(MAX(C305:C316)-MIN(C305:C316)<5,AVERAGEIF(C305:C316,">0",AB305:AB316), IF(FORECAST($C302,AB$305:AB$316,$C$305:$C$316)<0,0, IF(FORECAST($C302,AB$305:AB$316,$C$305:$C$316)>100,100, FORECAST($C302,AB$305:AB$316,$C$305:$C$316)))) -> 40.90824308
B304: Survey | C304: Year | D304: Improved | E304: Not shared | H304: Open defecation | I304: Improved | J304: Not shared | M304: Open defecation | N304: Improved | O304: Not shared | R304: Open defecation | S304: Improved | T304: Not shared | W304: Open defecation | X304: Improved | Y304: Not shared | AB304: Open defecation
B305: DHS01 | C305: 2001 | D305: =IF(ISERROR(INDIRECT(CONCATENATE($B305,"!M122"))),"",INDIRECT(CONCATENATE($B305,"!M122"))) -> 3.464121639 | E305: =IF(ISERROR(INDIRECT(CONCATENATE($B305,"!M129"))),"",INDIRECT(CONCATENATE($B305,"!M129"))) -> N/A | H305: =IF(ISERROR(INDIRECT(CONCATENATE($B305,"!M127"))),"",INDIRECT(CONCATENATE($B305,"!M127"))) -> 93.6977638 | I305: =IF(ISERROR(INDIRECT(CONCATENATE($B305,"!N122"))),"",INDIRECT(CONCATENATE($B305,"!N122"))) -> 4.730165429 | J305: =IF(ISERROR(INDIRECT(CONCATENATE($B305,"!N129"))),"",INDIRECT(CONCATENATE($B305,"!N129"))) -> N/A | M305: =IF(ISERROR(INDIRECT(CONCATENATE($B305,"!N127"))),"",INDIRECT(CONCATENATE($B305,"!N127"))) -> 91.84365108 | N305: =IF(ISERROR(INDIRECT(CONCATENATE($B305,"!O122"))),"",INDIRECT(CONCATENATE($B305,"!O122"))) -> 5.581443087 | O305: =IF(ISERROR(INDIRECT(CONCATENATE($B305,"!O129"))),"",INDIRECT(CONCATENATE($B305,"!O129"))) -> N/A | R305: =IF(ISERROR(INDIRECT(CONCATENATE($B305,"!O127"))),"",INDIRECT(CONCATENATE($B305,"!O127"))) -> 90.95077687 | S305: =IF(ISERROR(INDIRECT(CONCATENATE($B305,"!P122"))),"",INDIRECT(CONCATENATE($B305,"!P122"))) -> 10.56095875 | T305: =IF(ISERROR(INDIRECT(CONCATENATE($B305,"!P129"))),"",INDIRECT(CONCATENATE($B305,"!P129"))) -> N/A | W305: =IF(ISERROR(INDIRECT(CONCATENATE($B305,"!P127"))),"",INDIRECT(CONCATENATE($B305,"!P127"))) -> 84.06329493 | X305: =IF(ISERROR(INDIRECT(CONCATENATE($B305,"!Q122"))),"",INDIRECT(CONCATENATE($B305,"!Q122"))) -> 27.63175036 | Y305: =IF(ISERROR(INDIRECT(CONCATENATE($B305,"!Q129"))),"",INDIRECT(CONCATENATE($B305,"!Q129"))) -> N/A | AB305: =IF(ISERROR(INDIRECT(CONCATENATE($B305,"!Q2127"))),"",INDIRECT(CONCATENATE($B305,"!Q127"))) -> 62.59707819
B306: DHS06 | C306: 2006 | D306: 3.841895706 | E306: N/A | H306: 93.45050971 | I306: 6.20924519 | J306: N/A | M306: 90.59210673 | N306: 9.312602109 | O306: N/A | R306: 87.7034228 | S306: 15.25723322 | T306: N/A | W306: 81.04254837 | X306: 36.13987789 | Y306: N/A | AB306: 57.31699117
B307: DHS12 | C307: 2012 | D307: 2.262216847 | E307: 23.13378636 | H307: 94.25168724 | I307: 4.069445594 | J307: 46.86549081 | M307: 90.09643915 | N307: 7.837461554 | O307: 45.8807296 | R307: 83.55402762 | S307: 13.76532817 | T307: 40.92568914 | W307: 75.53959606 | X307: 33.49880572 | Y307: 48.2177113 | AB307: 49.69182818
B308: MICS14 | C308: 2014 | D308: 4.811182032 | E308: 15.73392732 | H308: 92.93978703 | I308: 6.316775433 | J308: 9.461306919 | M308: 88.56171888 | N308: 11.22192822 | O308: 15.21883207 | R308: 81.63268093 | S308: 18.99050544 | T308: 26.01112257 | W308: 73.09141591 | X308: 36.90370736 | Y308: 41.03210697 | AB308: 49.15307226
B309: DHS18 | C309: 2018 | D309: 5.403986243 | E309: 13.57962891 | H309: 85.21722157 | I309: 8.483953336 | J309: 12.46461799 | M309: 79.75996467 | N309: 12.56719082 | O309: 17.80446811 | R309: 75.54536086 | S309: 20.36007031 | T309: 33.87423549 | W309: 69.47540886 | X309: 41.78846411 | Y309: 49.89739455 | AB309: 42.4669775
B318: =CONCATENATE("Rural use of sanitation facilities, ",C299,"–",C300) -> Rural use of sanitation facilities, 2000–2020 | S318: Data points used for regression

Sheet Hygiene
B4: Access to hygiene facilities by wealth quintile (%)
B5: =IF(ISERROR(INDIRECT(CONCATENATE($E$32,"!A2"))),"",INDIRECT(CONCATENATE($E$32,"!A2"))) -> 
B7: =CONCATENATE("National ",IF(ISERROR(INDIRECT(CONCATENATE($E$32,"!A2"))),"",INDIRECT(CONCATENATE($E$32,"!A210")))) -> National | K7: =CONCATENATE("Urban ",IF(ISERROR(INDIRECT(CONCATENATE($E$32,"!A2"))),"",INDIRECT(CONCATENATE($E$32,"!A210")))) -> Urban | S7: =CONCATENATE("Rural ",IF(ISERROR(INDIRECT(CONCATENATE($E$32,"!A2"))),"",INDIRECT(CONCATENATE($E$32,"!A210")))) -> Rural
E32: =INDEX(B88:B100,A88) -> 0 | G32: =IF(ISERROR(INDIRECT(CONCATENATE($E$32,"!A2"))),"",INDIRECT(CONCATENATE($E$32,"!A2"))) ->  | K32: Poorest | N32: Poor | Q32: Middle | T32: Rich | W32: Richest
K33: Basic | L33: Limited | M33: No facility | N33: Basic | O33: Limited | P33: No facility | Q33: Basic | R33: Limited | S33: No facility | T33: Basic | U33: Limited | V33: No facility | W33: Basic | X33: Limited | Y33: No facility
B34: >>> Select Survey : | G34: NATIONAL | J34: =IF(ISERROR(INDIRECT(CONCATENATE(#REF!,"!A2"))),"",INDIRECT(CONCATENATE(#REF!,"!A210"))) ->  | K34: =IF(ISERROR(INDIRECT(CONCATENATE($E$32,"!C222"))),"",INDIRECT(CONCATENATE($E$32,"!C222"))) ->  | L34: =IF(ISERROR(INDIRECT(CONCATENATE($E$32,"!C223"))),"",INDIRECT(CONCATENATE($E$32,"!C223"))) ->  | M34: =IF(ISERROR(INDIRECT(CONCATENATE($E$32,"!C224"))),"",INDIRECT(CONCATENATE($E$32,"!C224"))) ->  | N34: =IF(ISERROR(INDIRECT(CONCATENATE($E$32,"!D222"))),"",INDIRECT(CONCATENATE($E$32,"!D222"))) ->  | O34: =IF(ISERROR(INDIRECT(CONCATENATE($E$32,"!D223"))),"",INDIRECT(CONCATENATE($E$32,"!D223"))) ->  | P34: =IF(ISERROR(INDIRECT(CONCATENATE($E$32,"!D224"))),"",INDIRECT(CONCATENATE($E$32,"!D224"))) ->  | Q34: =IF(ISERROR(INDIRECT(CONCATENATE($E$32,"!E222"))),"",INDIRECT(CONCATENATE($E$32,"!E222"))) ->  | R34: =IF(ISERROR(INDIRECT(CONCATENATE($E$32,"!E223"))),"",INDIRECT(CONCATENATE($E$32,"!E223"))) ->  | S34: =IF(ISERROR(INDIRECT(CONCATENATE($E$32,"!E224"))),"",INDIRECT(CONCATENATE($E$32,"!E224"))) ->  | T34: =IF(ISERROR(INDIRECT(CONCATENATE($E$32,"!F222"))),"",INDIRECT(CONCATENATE($E$32,"!F222"))) ->  | U34: =IF(ISERROR(INDIRECT(CONCATENATE($E$32,"!F223"))),"",INDIRECT(CONCATENATE($E$32,"!F223"))) ->  | V34: =IF(ISERROR(INDIRECT(CONCATENATE($E$32,"!F224"))),"",INDIRECT(CONCATENATE($E$32,"!F224"))) ->  | W34: =IF(ISERROR(INDIRECT(CONCATENATE($E$32,"!G222"))),"",INDIRECT(CONCATENATE($E$32,"!G222"))) ->  | X34: =IF(ISERROR(INDIRECT(CONCATENATE($E$32,"!G223"))),"",INDIRECT(CONCATENATE($E$32,"!G223"))) ->  | Y34: =IF(ISERROR(INDIRECT(CONCATENATE($E$32,"!G224"))),"",INDIRECT(CONCATENATE($E$32,"!G224"))) -> 
G37: URBAN | J37: =IF(ISERROR(INDIRECT(CONCATENATE(#REF!,"!A2"))),"",INDIRECT(CONCATENATE(#REF!,"!A210"))) ->  | K37: =IF(ISERROR(INDIRECT(CONCATENATE($E$32,"!H222"))),"",INDIRECT(CONCATENATE($E$32,"!H222"))) ->  | L37: =IF(ISERROR(INDIRECT(CONCATENATE($E$32,"!H223"))),"",INDIRECT(CONCATENATE($E$32,"!H223"))) ->  | M37: =IF(ISERROR(INDIRECT(CONCATENATE($E$32,"!H224"))),"",INDIRECT(CONCATENATE($E$32,"!H224"))) ->  | N37: =IF(ISERROR(INDIRECT(CONCATENATE($E$32,"!I222"))),"",INDIRECT(CONCATENATE($E$32,"!I222"))) ->  | O37: =IF(ISERROR(INDIRECT(CONCATENATE($E$32,"!I223"))),"",INDIRECT(CONCATENATE($E$32,"!I223"))) ->  | P37: =IF(ISERROR(INDIRECT(CONCATENATE($E$32,"!I224"))),"",INDIRECT(CONCATENATE($E$32,"!I224"))) ->  | Q37: =IF(ISERROR(INDIRECT(CONCATENATE($E$32,"!J222"))),"",INDIRECT(CONCATENATE($E$32,"!J222"))) ->  | R37: =IF(ISERROR(INDIRECT(CONCATENATE($E$32,"!J223"))),"",INDIRECT(CONCATENATE($E$32,"!J223"))) ->  | S37: =IF(ISERROR(INDIRECT(CONCATENATE($E$32,"!J224"))),"",INDIRECT(CONCATENATE($E$32,"!J224"))) ->  | T37: =IF(ISERROR(INDIRECT(CONCATENATE($E$32,"!K222"))),"",INDIRECT(CONCATENATE($E$32,"!K222"))) ->  | U37: =IF(ISERROR(INDIRECT(CONCATENATE($E$32,"!K223"))),"",INDIRECT(CONCATENATE($E$32,"!K223"))) ->  | V37: =IF(ISERROR(INDIRECT(CONCATENATE($E$32,"!K224"))),"",INDIRECT(CONCATENATE($E$32,"!K224"))) ->  | W37: =IF(ISERROR(INDIRECT(CONCATENATE($E$32,"!L222"))),"",INDIRECT(CONCATENATE($E$32,"!L222"))) ->  | X37: =IF(ISERROR(INDIRECT(CONCATENATE($E$32,"!L223"))),"",INDIRECT(CONCATENATE($E$32,"!L223"))) ->  | Y37: =IF(ISERROR(INDIRECT(CONCATENATE($E$32,"!L224"))),"",INDIRECT(CONCATENATE($E$32,"!L224"))) -> 
G40: RURAL | J40: =IF(ISERROR(INDIRECT(CONCATENATE(#REF!,"!A2"))),"",INDIRECT(CONCATENATE(#REF!,"!A210"))) ->  | K40: =IF(ISERROR(INDIRECT(CONCATENATE($E$32,"!M222"))),"",INDIRECT(CONCATENATE($E$32,"!M222"))) ->  | L40: =IF(ISERROR(INDIRECT(CONCATENATE($E$32,"!M223"))),"",INDIRECT(CONCATENATE($E$32,"!M223"))) ->  | M40: =IF(ISERROR(INDIRECT(CONCATENATE($E$32,"!M224"))),"",INDIRECT(CONCATENATE($E$32,"!M224"))) ->  | N40: =IF(ISERROR(INDIRECT(CONCATENATE($E$32,"!N222"))),"",INDIRECT(CONCATENATE($E$32,"!N222"))) ->  | O40: =IF(ISERROR(INDIRECT(CONCATENATE($E$32,"!N223"))),"",INDIRECT(CONCATENATE($E$32,"!N223"))) ->  | P40: =IF(ISERROR(INDIRECT(CONCATENATE($E$32,"!N224"))),"",INDIRECT(CONCATENATE($E$32,"!N224"))) ->  | Q40: =IF(ISERROR(INDIRECT(CONCATENATE($E$32,"!O222"))),"",INDIRECT(CONCATENATE($E$32,"!O222"))) ->  | R40: =IF(ISERROR(INDIRECT(CONCATENATE($E$32,"!O223"))),"",INDIRECT(CONCATENATE($E$32,"!O223"))) ->  | S40: =IF(ISERROR(INDIRECT(CONCATENATE($E$32,"!O224"))),"",INDIRECT(CONCATENATE($E$32,"!O224"))) ->  | T40: =IF(ISERROR(INDIRECT(CONCATENATE($E$32,"!P222"))),"",INDIRECT(CONCATENATE($E$32,"!P222"))) ->  | U40: =IF(ISERROR(INDIRECT(CONCATENATE($E$32,"!P223"))),"",INDIRECT(CONCATENATE($E$32,"!P223"))) ->  | V40: =IF(ISERROR(INDIRECT(CONCATENATE($E$32,"!P224"))),"",INDIRECT(CONCATENATE($E$32,"!P224"))) ->  | W40: =IF(ISERROR(INDIRECT(CONCATENATE($E$32,"!Q222"))),"",INDIRECT(CONCATENATE($E$32,"!Q222"))) ->  | X40: =IF(ISERROR(INDIRECT(CONCATENATE($E$32,"!Q223"))),"",INDIRECT(CONCATENATE($E$32,"!Q223"))) ->  | Y40: =IF(ISERROR(INDIRECT(CONCATENATE($E$32,"!Q224"))),"",INDIRECT(CONCATENATE($E$32,"!Q224"))) -> 
A88: 2 | B88: Template

Sheet DHS01
A2: =A1026 -> Benin
A3: =A1034 -> 2001
A4: Use of drinking water sources
A5: by wealth quintile and sub-national region
A6: Notes:
A7: WHO/UNICEF JMP customised wealth index excludes water,
A8: sanitation and hygiene assets.
A9: Survey used for analysis: | B9: =A1025 -> DHS01
A10: Ratio of protected springs based on: | B10: DHS12
A11: Time to source based on: | B11: DHS06
A14: Use of drinking water sources | C14: NATIONAL wealth index quintile | H14: URBAN wealth index quintile | M14: RURAL wealth index quintile | R14: SUB-REGIONS: | BA14: Raw numbers of respondents: | BB14: Use of drinking water sources | BC14: NATIONAL wealth index quintile | BH14: URBAN wealth index quintile | BM14: RURAL wealth index quintile | BR14: SUB-REGIONS:
A15: Weighted percentage (used in graphs) | C15: Poorest | D15: Poor | E15: Middle | F15: Rich | G15: Richest | H15: Poorest | I15: Poor | J15: Middle | K15: Rich | L15: Richest | M15: Poorest | N15: Poor | O15: Middle | P15: Rich | Q15: Richest | R15: Atacora | S15: Atlantique | T15: Borgou | U15: Mono | V15: Oueme | W15: Zou | BA15: Water data, raw numbers (weighted) | BC15: Poorest | BD15: Poor | BE15: Middle | BF15: Rich | BG15: Richest | BH15: Poorest | BI15: Poor | BJ15: Middle | BK15: Rich | BL15: Richest | BM15: Poorest | BN15: Poor | BO15: Middle | BP15: Rich | BQ15: Richest | BR15: Atacora | BS15: Atlantique | BT15: Borgou | BU15: Mono | BV15: Oueme | BW15: Zou
A16: Water | B16: Improved | C16: =C58+C59+C60+C61+C62+C66+C67+C68+C69+C64*'DHS12'!C25/100 -> 48.23484394 | D16: =D58+D59+D60+D61+D62+D66+D67+D68+D69+D64*'DHS12'!D25/100 -> 56.82634031 | E16: =E58+E59+E60+E61+E62+E66+E67+E68+E69+E64*'DHS12'!E25/100 -> 64.23155143 | F16: =F58+F59+F60+F61+F62+F66+F67+F68+F69+F64*'DHS12'!F25/100 -> 73.59646658 | G16: =G58+G59+G60+G61+G62+G66+G67+G68+G69+G64*'DHS12'!G25/100 -> 92.65044726 | H16: =H58+H59+H60+H61+H62+H66+H67+H68+H69+H64*'DHS12'!H25/100 -> 46.12085952 | I16: =I58+I59+I60+I61+I62+I66+I67+I68+I69+I64*'DHS12'!I25/100 -> 69.53059275 | J16: =J58+J59+J60+J61+J62+J66+J67+J68+J69+J64*'DHS12'!J25/100 -> 83.7554656 | K16: =K58+K59+K60+K61+K62+K66+K67+K68+K69+K64*'DHS12'!K25/100 -> 91.8719807 | L16: =L58+L59+L60+L61+L62+L66+L67+L68+L69+L64*'DHS12'!L25/100 -> 99.57270807 | M16: =M58+M59+M60+M61+M62+M66+M67+M68+M69+M64*'DHS12'!M25/100 -> 47.5044731 | N16: =N58+N59+N60+N61+N62+N66+N67+N68+N69+N64*'DHS12'!N25/100 -> 58.00970359 | O16: =O58+O59+O60+O61+O62+O66+O67+O68+O69+O64*'DHS12'!O25/100 -> 59.17351072 | P16: =P58+P59+P60+P61+P62+P66+P67+P68+P69+P64*'DHS12'!P25/100 -> 66.6922059 | Q16: =Q58+Q59+Q60+Q61+Q62+Q66+Q67+Q68+Q69+Q64*'DHS12'!Q25/100 -> 72.11161802 | R16: =R58+R59+R60+R61+R62+R66+R67+R68+R69+R64*'DHS12'!R25/100 -> 39.4832673 | S16: =S58+S59+S60+S61+S62+S66+S67+S68+S69+S64*'DHS12'!S25/100 -> 82.85212741 | T16: =T58+T59+T60+T61+T62+T66+T67+T68+T69+T64*'DHS12'!T25/100 -> 53.99324219 | U16: =U58+U59+U60+U61+U62+U66+U67+U68+U69+U64*'DHS12'!U25/100 -> 60.53702186 | V16: =V58+V59+V60+V61+V62+V66+V67+V68+V69+V64*'DHS12'!V25/100 -> 72.57643275 | W16: =W58+W59+W60+W61+W62+W66+W67+W68+W69+W64*'DHS12'!W25/100 -> 78.08552015 | BA16: Water | BB16: Improved | BC16: N/A | BD16: N/A | BE16: N/A | BF16: N/A | BG16: N/A | BH16: N/A | BI16: N/A | BJ16: N/A | BK16: N/A | BL16: N/A | BM16: N/A | BN16: N/A | BO16: N/A | BP16: N/A | BQ16: N/A | BR16: N/A | BS16: N/A | BT16: N/A | BU16: N/A | BV16: N/A | BW16: N/A
B17: Not Improved | C17: =100-C16 -> 51.76515606 | D17: =100-D16 -> 43.17365969 | E17: 35.76844857 | F17: 26.40353342 | G17: 7.349552742 | H17: 53.87914048 | I17: 30.46940725 | J17: 16.2445344 | K17: 8.128019299 | L17: 0.4272919263 | M17: 52.4955269 | N17: 41.99029641 | O17: 40.82648928 | P17: 33.3077941 | Q17: 27.88838198 | R17: 60.5167327 | S17: 17.14787259 | T17: 46.00675781 | U17: 39.46297814 | V17: 27.42356725 | W17: 21.91447985 | BB17: Not Improved | BC17: N/A | BD17: N/A | BE17: N/A | BF17: N/A | BG17: N/A | BH17: N/A | BI17: N/A | BJ17: N/A | BK17: N/A | BL17: N/A | BM17: N/A | BN17: N/A | BO17: N/A | BP17: N/A | BQ17: N/A | BR17: N/A | BS17: N/A | BT17: N/A | BU17: N/A | BV17: N/A | BW17: N/A
A18: Water ladder | B18: Basic | C18: =C16*'DHS06'!C23/100 -> 40.66370044 | D18: =D16*'DHS06'!D23/100 -> 49.99918612 | E18: =E16*'DHS06'!E23/100 -> 58.2146478 | F18: =F16*'DHS06'!F23/100 -> 70.51986343 | G18: =G16*'DHS06'!G23/100 -> 91.34880745 | H18: =H16*'DHS06'!H23/100 -> 41.61297642 | I18: =I16*'DHS06'!I23/100 -> 66.2846786 | J18: =J16*'DHS06'!J23/100 -> 82.2445545 | K18: =K16*'DHS06'!K23/100 -> 91.19659258 | L18: =L16*'DHS06'!L23/100 -> 99.25587861 | M18: =M16*'DHS06'!M23/100 -> 38.73564079 | N18: =N16*'DHS06'!N23/100 -> 50.08750295 | O18: =O16*'DHS06'!O23/100 -> 53.10927434 | P18: =P16*'DHS06'!P23/100 -> 60.36488096 | Q18: =Q16*'DHS06'!Q23/100 -> 67.45226823 | R18: =R16*'DHS06'!R23/100 -> 35.75151503 | S18: =S16*'DHS06'!S23/100 -> 72.80559418 | T18: =T16*'DHS06'!T23/100 -> 50.26552332 | U18: =U16*'DHS06'!U23/100 -> 56.89988345 | V18: =V16*'DHS06'!V23/100 -> 59.2962962 | W18: =W16*'DHS06'!W23/100 -> 67.39549383 | BA18: Water ladder | BB18: Basic | BC18: N/A | BD18: N/A | BE18: N/A | BF18: N/A | BG18: N/A | BH18: N/A | BI18: N/A | BJ18: N/A | BK18: N/A | BL18: N/A | BM18: N/A | BN18: N/A | BO18: N/A | BP18: N/A | BQ18: N/A | BR18: N/A | BS18: N/A | BT18: N/A | BU18: N/A | BV18: N/A | BW18: N/A
B19: Limited | C19: =C16*'DHS06'!C22/100 -> 7.571143498 | D19: =D16*'DHS06'!D22/100 -> 6.827154192 | E19: =E16*'DHS06'!E22/100 -> 6.016903623 | F19: =F16*'DHS06'!F22/100 -> 3.076603154 | G19: =G16*'DHS06'!G22/100 -> 1.301639805 | H19: =H16*'DHS06'!H22/100 -> 4.507883095 | I19: =I16*'DHS06'!I22/100 -> 3.245914153 | J19: =J16*'DHS06'!J22/100 -> 1.510911094 | K19: =K16*'DHS06'!K22/100 -> 0.6753881209 | L19: =L16*'DHS06'!L22/100 -> 0.3168294642 | M19: =M16*'DHS06'!M22/100 -> 8.768832313 | N19: =N16*'DHS06'!N22/100 -> 7.922200644 | O19: =O16*'DHS06'!O22/100 -> 6.064236376 | P19: =P16*'DHS06'!P22/100 -> 6.327324935 | Q19: =Q16*'DHS06'!Q22/100 -> 4.659349795 | R19: =R16*'DHS06'!R22/100 -> 3.731752267 | S19: =S16*'DHS06'!S22/100 -> 10.04653323 | T19: =T16*'DHS06'!T22/100 -> 3.727718877 | U19: =U16*'DHS06'!U22/100 -> 3.637138413 | V19: =V16*'DHS06'!V22/100 -> 13.28013655 | W19: =W16*'DHS06'!W22/100 -> 10.69002632 | BB19: Limited | BC19: N/A | BD19: N/A | BE19: N/A | BF19: N/A | BG19: N/A | BH19: N/A | BI19: N/A | BJ19: N/A | BK19: N/A | BL19: N/A | BM19: N/A | BN19: N/A | BO19: N/A | BP19: N/A | BQ19: N/A | BR19: N/A | BS19: N/A | BT19: N/A | BU19: N/A | BV19: N/A | BW19: N/A
B20: Unimproved | C20: =100-(C18+C19+C21) -> 27.59723626 | D20: =100-(D18+D19+D21) -> 27.08668205 | E20: 26.78730221 | F20: 22.80751761 | G20: 7.208548556 | H20: 35.03748747 | I20: 23.15453959 | J20: 15.63678198 | K20: 8.128019299 | L20: 0.4272919263 | M20: 26.4146606 | N20: 25.72180675 | O20: 27.74417731 | P20: 23.83050066 | Q20: 24.41581699 | R20: 39.1227961 | S20: 14.08542755 | T20: 34.17797712 | U20: 29.72059217 | V20: 21.14113872 | W20: 7.077641114 | BB20: Unimproved | BC20: N/A | BD20: N/A | BE20: N/A | BF20: N/A | BG20: N/A | BH20: N/A | BI20: N/A | BJ20: N/A | BK20: N/A | BL20: N/A | BM20: N/A | BN20: N/A | BO20: N/A | BP20: N/A | BQ20: N/A | BR20: N/A | BS20: N/A | BT20: N/A | BU20: N/A | BV20: N/A | BW20: N/A
B21: Surface water | C21: =C65 -> 24.16791979 | D21: 16.08697763 | E21: 8.981146366 | F21: 3.596015814 | G21: 0.1410041855 | H21: 18.84165301 | I21: 7.314867657 | J21: 0.6077524192 | K21: 0 | L21: 0 | M21: 26.08086629 | N21: 16.26848966 | O21: 13.08231197 | P21: 9.477293443 | Q21: 3.472564991 | R21: 21.3939366 | S21: 3.062445039 | T21: 11.82878068 | U21: 9.742385972 | V21: 6.282428539 | W21: 14.83683874 | BB21: Surface water | BC21: N/A | BD21: N/A | BE21: N/A | BF21: N/A | BG21: N/A | BH21: N/A | BI21: N/A | BJ21: N/A | BK21: N/A | BL21: N/A | BM21: N/A | BN21: N/A | BO21: N/A | BP21: N/A | BQ21: N/A | BR21: N/A | BS21: N/A | BT21: N/A | BU21: N/A | BV21: N/A | BW21: N/A
A22: Improved water point at more than 30 minutes | B22: Yes | C22: N/A | D22: N/A | E22: N/A | F22: N/A | G22: N/A | H22: N/A | I22: N/A | J22: N/A | K22: N/A | L22: N/A | M22: N/A | N22: N/A | O22: N/A | P22: N/A | Q22: N/A | R22: N/A | S22: N/A | T22: N/A | U22: N/A | V22: N/A | W22: N/A | BA22: Improved water point at more than 30 minutes | BB22: Yes | BC22: N/A | BD22: N/A | BE22: N/A | BF22: N/A | BG22: N/A | BH22: N/A | BI22: N/A | BJ22: N/A | BK22: N/A | BL22: N/A | BM22: N/A | BN22: N/A | BO22: N/A | BP22: N/A | BQ22: N/A | BR22: N/A | BS22: N/A | BT22: N/A | BU22: N/A | BV22: N/A | BW22: N/A
B23: No | C23: N/A | D23: N/A | E23: N/A | F23: N/A | G23: N/A | H23: N/A | I23: N/A | J23: N/A | K23: N/A | L23: N/A | M23: N/A | N23: N/A | O23: N/A | P23: N/A | Q23: N/A | R23: N/A | S23: N/A | T23: N/A | U23: N/A | V23: N/A | W23: N/A | BB23: No | BC23: N/A | BD23: N/A | BE23: N/A | BF23: N/A | BG23: N/A | BH23: N/A | BI23: N/A | BJ23: N/A | BK23: N/A | BL23: N/A | BM23: N/A | BN23: N/A | BO23: N/A | BP23: N/A | BQ23: N/A | BR23: N/A | BS23: N/A | BT23: N/A | BU23: N/A | BV23: N/A | BW23: N/A
A24: Manually calculated ratios | B24: Improved wells
B25: Improved springs
B26: Other
C27: NATIONAL wealth index quintile | H27: URBAN wealth index quintile | M27: RURAL wealth index quintile | R27: SUB-REGIONS: | BA27: Raw numbers of respondents: | BB27: Use of drinking water sources | BC27: NATIONAL wealth index quintile | BH27: URBAN wealth index quintile | BM27: RURAL wealth index quintile | BR27: SUB-REGIONS:
A28: Percentage based on weighted population | C28: Poorest | D28: Poor | E28: Middle | F28: Rich | G28: Richest | H28: Poorest | I28: Poor | J28: Middle | K28: Rich | L28: Richest | M28: Poorest | N28: Poor | O28: Middle | P28: Rich | Q28: Richest | R28: Atacora | S28: Atlantique | T28: Borgou | U28: Mono | V28: Oueme | W28: Zou | BA28: Water data, raw numbers (weighted) | BC28: Poorest | BD28: Poor | BE28: Middle | BF28: Rich | BG28: Richest | BH28: Poorest | BI28: Poor | BJ28: Middle | BK28: Rich | BL28: Richest | BM28: Poorest | BN28: Poor | BO28: Middle | BP28: Rich | BQ28: Richest | BR28: Atacora | BS28: Atlantique | BT28: Borgou | BU28: Mono | BV28: Oueme | BW28: Zou
A29: Piped water | B29: Yes | C29: 19.11283435 | D29: 25.97537484 | E29: 31.04508234 | F29: 51.19845133 | G29: 89.18980013 | H29: 18.4833165 | I29: 50.46097625 | J29: 78.22068528 | K29: 88.13889028 | L29: 99.19619495 | M29: 18.7673651 | N29: 24.99704072 | O29: 25.86178106 | P29: 34.50602478 | Q29: 44.44869885 | R29: 10.61709426 | S29: 72.42013462 | T29: 22.1410546 | U29: 23.36565665 | V29: 55.10826459 | W29: 53.23105817 | BA29: Piped water | BB29: Yes | BC29: N/A | BD29: N/A | BE29: N/A | BF29: N/A | BG29: N/A | BH29: N/A | BI29: N/A | BJ29: N/A | BK29: N/A | BL29: N/A | BM29: N/A | BN29: N/A | BO29: N/A | BP29: N/A | BQ29: N/A | BR29: N/A | BS29: N/A | BT29: N/A | BU29: N/A | BV29: N/A | BW29: N/A
B30: No | C30: 80.88716565 | D30: 74.02462516 | E30: 68.95491766 | F30: 48.80154867 | G30: 10.81019987 | H30: 81.5166835 | I30: 49.53902375 | J30: 21.77931472 | K30: 11.86110972 | L30: 0.8038050475 | M30: 81.2326349 | N30: 75.00295928 | O30: 74.13821894 | P30: 65.49397522 | Q30: 55.55130115 | R30: 89.38290574 | S30: 27.57986538 | T30: 77.8589454 | U30: 76.63434335 | V30: 44.89173541 | W30: 46.76894183 | BB30: No | BC30: N/A | BD30: N/A | BE30: N/A | BF30: N/A | BG30: N/A | BH30: N/A | BI30: N/A | BJ30: N/A | BK30: N/A | BL30: N/A | BM30: N/A | BN30: N/A | BO30: N/A | BP30: N/A | BQ30: N/A | BR30: N/A | BS30: N/A | BT30: N/A | BU30: N/A | BV30: N/A | BW30: N/A
A31: Piped water on premises | B31: Yes | C31: 5.308542162 | D31: 8.497760886 | E31: 10.35986092 | F31: 37.52147793 | G31: 84.82785322 | H31: 9.793224084 | I31: 42.0736309 | J31: 72.34603786 | K31: 83.78392118 | L31: 96.81282847 | M31: 3.689949948 | N31: 8.263165808 | O31: 6.695488781 | P31: 9.308176688 | Q31: 27.30375624 | R31: 6.420791974 | S31: 66.87516635 | T31: 18.7054405 | U31: 18.72981913 | V31: 36.38756877 | W31: 13.50487314 | BA31: Piped water on premises | BB31: Yes | BC31: N/A | BD31: N/A | BE31: N/A | BF31: N/A | BG31: N/A | BH31: N/A | BI31: N/A | BJ31: N/A | BK31: N/A | BL31: N/A | BM31: N/A | BN31: N/A | BO31: N/A | BP31: N/A | BQ31: N/A | BR31: N/A | BS31: N/A | BT31: N/A | BU31: N/A | BV31: N/A | BW31: N/A
B32: No | C32: 94.69145784 | D32: 91.50223911 | E32: 89.64013908 | F32: 62.47852207 | G32: 15.17214678 | H32: 90.20677592 | I32: 57.9263691 | J32: 27.65396214 | K32: 16.21607882 | L32: 3.187171527 | M32: 96.31005005 | N32: 91.73683419 | O32: 93.30451122 | P32: 90.69182331 | Q32: 72.69624376 | R32: 93.57920803 | S32: 33.12483365 | T32: 81.2945595 | U32: 81.27018087 | V32: 63.61243123 | W32: 86.49512686 | BB32: No | BC32: N/A | BD32: N/A | BE32: N/A | BF32: N/A | BG32: N/A | BH32: N/A | BI32: N/A | BJ32: N/A | BK32: N/A | BL32: N/A | BM32: N/A | BN32: N/A | BO32: N/A | BP32: N/A | BQ32: N/A | BR32: N/A | BS32: N/A | BT32: N/A | BU32: N/A | BV32: N/A | BW32: N/A
A33: Piped water into dwelling | B33: Yes | C33: N/A | D33: N/A | E33: N/A | F33: N/A | G33: N/A | H33: N/A | I33: N/A | J33: N/A | K33: N/A | L33: N/A | M33: N/A | N33: N/A | O33: N/A | P33: N/A | Q33: N/A | R33: N/A | S33: N/A | T33: N/A | U33: N/A | V33: N/A | W33: N/A | BA33: Piped water into dwelling | BB33: Yes | BC33: N/A | BD33: N/A | BE33: N/A | BF33: N/A | BG33: N/A | BH33: N/A | BI33: N/A | BJ33: N/A | BK33: N/A | BL33: N/A | BM33: N/A | BN33: N/A | BO33: N/A | BP33: N/A | BQ33: N/A | BR33: N/A | BS33: N/A | BT33: N/A | BU33: N/A | BV33: N/A | BW33: N/A
B34: No | C34: N/A | D34: N/A | E34: N/A | F34: N/A | G34: N/A | H34: N/A | I34: N/A | J34: N/A | K34: N/A | L34: N/A | M34: N/A | N34: N/A | O34: N/A | P34: N/A | Q34: N/A | R34: N/A | S34: N/A | T34: N/A | U34: N/A | V34: N/A | W34: N/A | BB34: No | BC34: N/A | BD34: N/A | BE34: N/A | BF34: N/A | BG34: N/A | BH34: N/A | BI34: N/A | BJ34: N/A | BK34: N/A | BL34: N/A | BM34: N/A | BN34: N/A | BO34: N/A | BP34: N/A | BQ34: N/A | BR34: N/A | BS34: N/A | BT34: N/A | BU34: N/A | BV34: N/A | BW34: N/A
A35: Water source on premises | B35: Yes | C35: 15.5 | D35: 25.2 | E35: 30.9 | F35: 54.9 | G35: 92.8 | H35: 20.3 | I35: 55.2 | J35: 85.8 | K35: 94 | L35: 99.2 | M35: 13.9 | N35: 24.5 | O35: 25.6 | P35: 30.7 | Q35: 46.4 | R35: 21.1 | S35: 75.3 | T35: 31.5 | U35: 33.3 | V35: 49.9 | W35: 36.5 | BA35: Water source on premises | BB35: Yes | BC35: N/A | BD35: N/A | BE35: N/A | BF35: N/A | BG35: N/A | BH35: N/A | BI35: N/A | BJ35: N/A | BK35: N/A | BL35: N/A | BM35: N/A | BN35: N/A | BO35: N/A | BP35: N/A | BQ35: N/A | BR35: N/A | BS35: N/A | BT35: N/A | BU35: N/A | BV35: N/A | BW35: N/A
B36: No | C36: 84.5 | D36: 74.8 | E36: 69.1 | F36: 45.1 | G36: 7.2 | H36: 79.7 | I36: 44.8 | J36: 14.2 | K36: 6 | L36: 0.8 | M36: 86.1 | N36: 75.5 | O36: 74.4 | P36: 69.3 | Q36: 53.6 | R36: 78.9 | S36: 24.7 | T36: 68.5 | U36: 66.7 | V36: 50.1 | W36: 63.5 | BB36: No | BC36: N/A | BD36: N/A | BE36: N/A | BF36: N/A | BG36: N/A | BH36: N/A | BI36: N/A | BJ36: N/A | BK36: N/A | BL36: N/A | BM36: N/A | BN36: N/A | BO36: N/A | BP36: N/A | BQ36: N/A | BR36: N/A | BS36: N/A | BT36: N/A | BU36: N/A | BV36: N/A | BW36: N/A
A37: Improved Water source on premises | B37: Yes | C37: N/A | D37: N/A | E37: N/A | F37: N/A | G37: N/A | H37: N/A | I37: N/A | J37: N/A | K37: N/A | L37: N/A | M37: N/A | N37: N/A | O37: N/A | P37: N/A | Q37: N/A | R37: N/A | S37: N/A | T37: N/A | U37: N/A | V37: N/A | W37: N/A | BA37: Improved water source on premises | BB37: Yes | BC37: N/A | BD37: N/A | BE37: N/A | BF37: N/A | BG37: N/A | BH37: N/A | BI37: N/A | BJ37: N/A | BK37: N/A | BL37: N/A | BM37: N/A | BN37: N/A | BO37: N/A | BP37: N/A | BQ37: N/A | BR37: N/A | BS37: N/A | BT37: N/A | BU37: N/A | BV37: N/A | BW37: N/A
B38: No | C38: N/A | D38: N/A | E38: N/A | F38: N/A | G38: N/A | H38: N/A | I38: N/A | J38: N/A | K38: N/A | L38: N/A | M38: N/A | N38: N/A | O38: N/A | P38: N/A | Q38: N/A | R38: N/A | S38: N/A | T38: N/A | U38: N/A | V38: N/A | W38: N/A | BB38: No | BC38: N/A | BD38: N/A | BE38: N/A | BF38: N/A | BG38: N/A | BH38: N/A | BI38: N/A | BJ38: N/A | BK38: N/A | BL38: N/A | BM38: N/A | BN38: N/A | BO38: N/A | BP38: N/A | BQ38: N/A | BR38: N/A | BS38: N/A | BT38: N/A | BU38: N/A | BV38: N/A | BW38: N/A
A39: Piped water on premises available when needed | B39: Yes | C39: N/A | D39: N/A | E39: N/A | F39: N/A | G39: N/A | H39: N/A | I39: N/A | J39: N/A | K39: N/A | L39: N/A | M39: N/A | N39: N/A | O39: N/A | P39: N/A | Q39: N/A | R39: N/A | S39: N/A | T39: N/A | U39: N/A | V39: N/A | W39: N/A | BA39: Piped water on premises available when needed | BB39: Yes | BC39: N/A | BD39: N/A | BE39: N/A | BF39: N/A | BG39: N/A | BH39: N/A | BI39: N/A | BJ39: N/A | BK39: N/A | BL39: N/A | BM39: N/A | BN39: N/A | BO39: N/A | BP39: N/A | BQ39: N/A | BR39: N/A | BS39: N/A | BT39: N/A | BU39: N/A | BV39: N/A | BW39: N/A
B40: No | C40: N/A | D40: N/A | E40: N/A | F40: N/A | G40: N/A | H40: N/A | I40: N/A | J40: N/A | K40: N/A | L40: N/A | M40: N/A | N40: N/A | O40: N/A | P40: N/A | Q40: N/A | R40: N/A | S40: N/A | T40: N/A | U40: N/A | V40: N/A | W40: N/A | BB40: No | BC40: N/A | BD40: N/A | BE40: N/A | BF40: N/A | BG40: N/A | BH40: N/A | BI40: N/A | BJ40: N/A | BK40: N/A | BL40: N/A | BM40: N/A | BN40: N/A | BO40: N/A | BP40: N/A | BQ40: N/A | BR40: N/A | BS40: N/A | BT40: N/A | BU40: N/A | BV40: N/A | BW40: N/A
A41: Water point at more than 30 minutes | B41: Yes | C41: 16.08210926 | D41: 12.83516206 | E41: 10.98554061 | F41: 8.919844079 | G41: 0.4537371254 | H41: 9.772917703 | I41: 6.101356595 | J41: 1.229324339 | K41: 0 | L41: 0 | M41: 19.36256045 | N41: 12.70966463 | O41: 11.2780973 | P41: 12.92768773 | Q41: 11.65068844 | R41: 7.764006438 | S41: 4.923570759 | T41: 10.39910608 | U41: 13.16033979 | V41: 10.53123549 | W41: 13.6170335 | BA41: Water point at more than 30 minutes | BB41: Yes | BC41: N/A | BD41: N/A | BE41: N/A | BF41: N/A | BG41: N/A | BH41: N/A | BI41: N/A | BJ41: N/A | BK41: N/A | BL41: N/A | BM41: N/A | BN41: N/A | BO41: N/A | BP41: N/A | BQ41: N/A | BR41: N/A | BS41: N/A | BT41: N/A | BU41: N/A | BV41: N/A | BW41: N/A
B42: No | C42: 83.91789074 | D42: 87.16483794 | E42: 89.01445939 | F42: 91.08015592 | G42: 99.54626287 | H42: 90.2270823 | I42: 93.89864341 | J42: 98.77067566 | K42: 100 | L42: 100 | M42: 80.63743955 | N42: 87.29033537 | O42: 88.7219027 | P42: 87.07231227 | Q42: 88.34931156 | R42: 92.23599356 | S42: 95.07642924 | T42: 89.60089392 | U42: 86.83966021 | V42: 89.46876451 | W42: 86.3829665 | BB42: No | BC42: N/A | BD42: N/A | BE42: N/A | BF42: N/A | BG42: N/A | BH42: N/A | BI42: N/A | BJ42: N/A | BK42: N/A | BL42: N/A | BM42: N/A | BN42: N/A | BO42: N/A | BP42: N/A | BQ42: N/A | BR42: N/A | BS42: N/A | BT42: N/A | BU42: N/A | BV42: N/A | BW42: N/A
A43: Water source available when needed | B43: Yes | C43: N/A | D43: N/A | E43: N/A | F43: N/A | G43: N/A | H43: N/A | I43: N/A | J43: N/A | K43: N/A | L43: N/A | M43: N/A | N43: N/A | O43: N/A | P43: N/A | Q43: N/A | R43: N/A | S43: N/A | T43: N/A | U43: N/A | V43: N/A | W43: N/A | BA43: Water source available when needed | BB43: Yes | BC43: N/A | BD43: N/A | BE43: N/A | BF43: N/A | BG43: N/A | BH43: N/A | BI43: N/A | BJ43: N/A | BK43: N/A | BL43: N/A | BM43: N/A | BN43: N/A | BO43: N/A | BP43: N/A | BQ43: N/A | BR43: N/A | BS43: N/A | BT43: N/A | BU43: N/A | BV43: N/A | BW43: N/A
B44: No | C44: N/A | D44: N/A | E44: N/A | F44: N/A | G44: N/A | H44: N/A | I44: N/A | J44: N/A | K44: N/A | L44: N/A | M44: N/A | N44: N/A | O44: N/A | P44: N/A | Q44: N/A | R44: N/A | S44: N/A | T44: N/A | U44: N/A | V44: N/A | W44: N/A | BB44: No | BC44: N/A | BD44: N/A | BE44: N/A | BF44: N/A | BG44: N/A | BH44: N/A | BI44: N/A | BJ44: N/A | BK44: N/A | BL44: N/A | BM44: N/A | BN44: N/A | BO44: N/A | BP44: N/A | BQ44: N/A | BR44: N/A | BS44: N/A | BT44: N/A | BU44: N/A | BV44: N/A | BW44: N/A
A45: Improved water source available when needed | B45: Yes | C45: N/A | D45: N/A | E45: N/A | F45: N/A | G45: N/A | H45: N/A | I45: N/A | J45: N/A | K45: N/A | L45: N/A | M45: N/A | N45: N/A | O45: N/A | P45: N/A | Q45: N/A | R45: N/A | S45: N/A | T45: N/A | U45: N/A | V45: N/A | W45: N/A | BA45: Improved water source available when needed | BB45: Yes | BC45: N/A | BD45: N/A | BE45: N/A | BF45: N/A | BG45: N/A | BH45: N/A | BI45: N/A | BJ45: N/A | BK45: N/A | BL45: N/A | BM45: N/A | BN45: N/A | BO45: N/A | BP45: N/A | BQ45: N/A | BR45: N/A | BS45: N/A | BT45: N/A | BU45: N/A | BV45: N/A | BW45: N/A
B46: No | C46: N/A | D46: N/A | E46: N/A | F46: N/A | G46: N/A | H46: N/A | I46: N/A | J46: N/A | K46: N/A | L46: N/A | M46: N/A | N46: N/A | O46: N/A | P46: N/A | Q46: N/A | R46: N/A | S46: N/A | T46: N/A | U46: N/A | V46: N/A | W46: N/A | BB46: No | BC46: N/A | BD46: N/A | BE46: N/A | BF46: N/A | BG46: N/A | BH46: N/A | BI46: N/A | BJ46: N/A | BK46: N/A | BL46: N/A | BM46: N/A | BN46: N/A | BO46: N/A | BP46: N/A | BQ46: N/A | BR46: N/A | BS46: N/A | BT46: N/A | BU46: N/A | BV46: N/A | BW46: N/A
A47: Microbiological quality at point of collection | B47: Not contaminated (No E. coli in 100 mL) | C47: N/A | D47: N/A | E47: N/A | F47: N/A | G47: N/A | H47: N/A | I47: N/A | J47: N/A | K47: N/A | L47: N/A | M47: N/A | N47: N/A | O47: N/A | P47: N/A | Q47: N/A | R47: N/A | S47: N/A | T47: N/A | U47: N/A | V47: N/A | W47: N/A | BA47: Microbiological quality at point of collection | BB47: Not contaminated (No E. coli in 100 mL) | BC47: N/A | BD47: N/A | BE47: N/A | BF47: N/A | BG47: N/A | BH47: N/A | BI47: N/A | BJ47: N/A | BK47: N/A | BL47: N/A | BM47: N/A | BN47: N/A | BO47: N/A | BP47: N/A | BQ47: N/A | BR47: N/A | BS47: N/A | BT47: N/A | BU47: N/A | BV47: N/A | BW47: N/A
B48: Contaminated (E. coli detected in 100 mL) | C48: N/A | D48: N/A | E48: N/A | F48: N/A | G48: N/A | H48: N/A | I48: N/A | J48: N/A | K48: N/A | L48: N/A | M48: N/A | N48: N/A | O48: N/A | P48: N/A | Q48: N/A | R48: N/A | S48: N/A | T48: N/A | U48: N/A | V48: N/A | W48: N/A | BB48: Contaminated (E. coli detected in 100 mL) | BC48: N/A | BD48: N/A | BE48: N/A | BF48: N/A | BG48: N/A | BH48: N/A | BI48: N/A | BJ48: N/A | BK48: N/A | BL48: N/A | BM48: N/A | BN48: N/A | BO48: N/A | BP48: N/A | BQ48: N/A | BR48: N/A | BS48: N/A | BT48: N/A | BU48: N/A | BV48: N/A | BW48: N/A
B49: Highly contaminated (>100 CFU/100 mL) | C49: N/A | D49: N/A | E49: N/A | F49: N/A | G49: N/A | H49: N/A | I49: N/A | J49: N/A | K49: N/A | L49: N/A | M49: N/A | N49: N/A | O49: N/A | P49: N/A | Q49: N/A | R49: N/A | S49: N/A | T49: N/A | U49: N/A | V49: N/A | W49: N/A | BB49: Highly contaminated (>100 CFU/100 mL) | BC49: N/A | BD49: N/A | BE49: N/A | BF49: N/A | BG49: N/A | BH49: N/A | BI49: N/A | BJ49: N/A | BK49: N/A | BL49: N/A | BM49: N/A | BN49: N/A | BO49: N/A | BP49: N/A | BQ49: N/A | BR49: N/A | BS49: N/A | BT49: N/A | BU49: N/A | BV49: N/A | BW49: N/A
A50: Microbiological quality of improved water sources at point of collection | B50: Not contaminated (No E. coli in 100 mL) | C50: N/A | D50: N/A | E50: N/A | F50: N/A | G50: N/A | H50: N/A | I50: N/A | J50: N/A | K50: N/A | L50: N/A | M50: N/A | N50: N/A | O50: N/A | P50: N/A | Q50: N/A | R50: N/A | S50: N/A | T50: N/A | U50: N/A | V50: N/A | W50: N/A | BA50: Microbiological quality of improved water sources at point of collection | BB50: Not contaminated (No E. coli in 100 mL) | BC50: N/A | BD50: N/A | BE50: N/A | BF50: N/A | BG50: N/A | BH50: N/A | BI50: N/A | BJ50: N/A | BK50: N/A | BL50: N/A | BM50: N/A | BN50: N/A | BO50: N/A | BP50: N/A | BQ50: N/A | BR50: N/A | BS50: N/A | BT50: N/A | BU50: N/A | BV50: N/A | BW50: N/A
B51: Contaminated (E. coli detected in 100 mL) | C51: N/A | D51: N/A | E51: N/A | F51: N/A | G51: N/A | H51: N/A | I51: N/A | J51: N/A | K51: N/A | L51: N/A | M51: N/A | N51: N/A | O51: N/A | P51: N/A | Q51: N/A | R51: N/A | S51: N/A | T51: N/A | U51: N/A | V51: N/A | W51: N/A | BB51: Contaminated (E. coli detected in 100 mL) | BC51: N/A | BD51: N/A | BE51: N/A | BF51: N/A | BG51: N/A | BH51: N/A | BI51: N/A | BJ51: N/A | BK51: N/A | BL51: N/A | BM51: N/A | BN51: N/A | BO51: N/A | BP51: N/A | BQ51: N/A | BR51: N/A | BS51: N/A | BT51: N/A | BU51: N/A | BV51: N/A | BW51: N/A
B52: Highly contaminated (>100 CFU/100 mL) | C52: N/A | D52: N/A | E52: N/A | F52: N/A | G52: N/A | H52: N/A | I52: N/A | J52: N/A | K52: N/A | L52: N/A | M52: N/A | N52: N/A | O52: N/A | P52: N/A | Q52: N/A | R52: N/A | S52: N/A | T52: N/A | U52: N/A | V52: N/A | W52: N/A | BB52: Highly contaminated (>100 CFU/100 mL) | BC52: N/A | BD52: N/A | BE52: N/A | BF52: N/A | BG52: N/A | BH52: N/A | BI52: N/A | BJ52: N/A | BK52: N/A | BL52: N/A | BM52: N/A | BN52: N/A | BO52: N/A | BP52: N/A | BQ52: N/A | BR52: N/A | BS52: N/A | BT52: N/A | BU52: N/A | BV52: N/A | BW52: N/A
A53: Microbiological quality of piped on premises at point of collection | B53: Not contaminated (No E. coli in 100 mL) | C53: N/A | D53: N/A | E53: N/A | F53: N/A | G53: N/A | H53: N/A | I53: N/A | J53: N/A | K53: N/A | L53: N/A | M53: N/A | N53: N/A | O53: N/A | P53: N/A | Q53: N/A | R53: N/A | S53: N/A | T53: N/A | U53: N/A | V53: N/A | W53: N/A | BA53: Microbiological quality of piped on premises at point of collection | BB53: Not contaminated (No E. coli in 100 mL) | BC53: N/A | BD53: N/A | BE53: N/A | BF53: N/A | BG53: N/A | BH53: N/A | BI53: N/A | BJ53: N/A | BK53: N/A | BL53: N/A | BM53: N/A | BN53: N/A | BO53: N/A | BP53: N/A | BQ53: N/A | BR53: N/A | BS53: N/A | BT53: N/A | BU53: N/A | BV53: N/A | BW53: N/A
B54: Contaminated (E. coli detected in 100 mL) | C54: N/A | D54: N/A | E54: N/A | F54: N/A | G54: N/A | H54: N/A | I54: N/A | J54: N/A | K54: N/A | L54: N/A | M54: N/A | N54: N/A | O54: N/A | P54: N/A | Q54: N/A | R54: N/A | S54: N/A | T54: N/A | U54: N/A | V54: N/A | W54: N/A | BB54: Contaminated (E. coli detected in 100 mL) | BC54: N/A | BD54: N/A | BE54: N/A | BF54: N/A | BG54: N/A | BH54: N/A | BI54: N/A | BJ54: N/A | BK54: N/A | BL54: N/A | BM54: N/A | BN54: N/A | BO54: N/A | BP54: N/A | BQ54: N/A | BR54: N/A | BS54: N/A | BT54: N/A | BU54: N/A | BV54: N/A | BW54: N/A
B55: Highly contaminated (>100 CFU/100 mL) | C55: N/A | D55: N/A | E55: N/A | F55: N/A | G55: N/A | H55: N/A | I55: N/A | J55: N/A | K55: N/A | L55: N/A | M55: N/A | N55: N/A | O55: N/A | P55: N/A | Q55: N/A | R55: N/A | S55: N/A | T55: N/A | U55: N/A | V55: N/A | W55: N/A | BB55: Highly contaminated (>100 CFU/100 mL) | BC55: N/A | BD55: N/A | BE55: N/A | BF55: N/A | BG55: N/A | BH55: N/A | BI55: N/A | BJ55: N/A | BK55: N/A | BL55: N/A | BM55: N/A | BN55: N/A | BO55: N/A | BP55: N/A | BQ55: N/A | BR55: N/A | BS55: N/A | BT55: N/A | BU55: N/A | BV55: N/A | BW55: N/A
C56: NATIONAL wealth index quintile | H56: URBAN wealth index quintile | M56: RURAL wealth index quintile | R56: SUB-REGIONS: | BA56: Raw numbers of respondents: | BB56: Use of drinking water sources | BC56: NATIONAL wealth index quintile | BH56: URBAN wealth index quintile | BM56: RURAL wealth index quintile | BR56: SUB-REGIONS:
A57: Percentage based on weighted population | C57: Poorest | D57: Poor | E57: Middle | F57: Rich | G57: Richest | H57: Poorest | I57: Poor | J57: Middle | K57: Rich | L57: Richest | M57: Poorest | N57: Poor | O57: Middle | P57: Rich | Q57: Richest | R57: Atacora | S57: Atlantique | T57: Borgou | U57: Mono | V57: Oueme | W57: Zou | BA57: Water data, raw numbers (weighted) | BC57: Poorest | BD57: Poor | BE57: Middle | BF57: Rich | BG57: Richest | BH57: Poorest | BI57: Poor | BJ57: Middle | BK57: Rich | BL57: Richest | BM57: Poorest | BN57: Poor | BO57: Middle | BP57: Rich | BQ57: Richest | BR57: Atacora | BS57: Atlantique | BT57: Borgou | BU57: Mono | BV57: Oueme | BW57: Zou
A58: Source of drinking water | B58: Piped into dwelling | C58: 0.1122403114 | D58: 0.6078060042 | E58: 1.033369418 | F58: 5.493499842 | G58: 48.35137959 | H58: 0.8596612115 | I58: 4.488902818 | J58: 17.10291964 | K58: 40.69911201 | L58: 74.68450366 | M58: 0.1828068473 | N58: 0.3058252664 | O58: 0.5919967021 | P58: 0.7705096712 | Q58: 6.615737165 | R58: 2.965361869 | S58: 29.81614637 | T58: 7.771384427 | U58: 3.630923818 | V58: 10.19917129 | W58: 4.745330412
B59: Piped into yard/plot | C59: 5.19630185 | D59: 7.893368828 | E59: 9.326491499 | F59: 32.02797809 | G59: 36.47647364 | H59: 8.933562872 | I59: 37.58472808 | J59: 55.24311823 | K59: 43.08480917 | L59: 22.12832481 | M59: 3.5071431 | N59: 7.962365856 | O59: 6.103492078 | P59: 8.537667017 | Q59: 20.68801907 | R59: 3.455430105 | S59: 37.08353253 | T59: 10.93405607 | U59: 15.09889531 | V59: 26.18839748 | W59: 8.759542724
B60: Public tap | C60: 13.80429218 | D60: 17.48463552 | E60: 20.68522142 | F60: 13.6769734 | G60: 4.36194691 | H60: 8.690092413 | I60: 8.387345344 | J60: 5.874647413 | K60: 4.354969099 | L60: 2.383366479 | M60: 15.07741515 | N60: 16.74405177 | O60: 19.16629228 | P60: 25.19784809 | Q60: 17.14494261 | R60: 4.196302287 | S60: 5.547000728 | T60: 3.435614102 | U60: 4.635837526 | V60: 18.72069582 | W60: 39.72618504
B61: Manual pumped water | C61: 19.3151947 | D61: 16.20809407 | E61: 15.14388243 | F61: 11.26357969 | G61: 0.8371993757 | H61: 15.07756074 | I61: 10.5769921 | J61: 1.082900919 | K61: 0.694974183 | L61: 0 | M61: 20.09775068 | N61: 17.98270051 | O61: 18.28397951 | P61: 12.34442966 | Q61: 14.32634401 | R61: 20.52086058 | S61: 1.818288055 | T61: 21.20626484 | U61: 21.75621549 | V61: 12.87945535 | W61: 5.850333749
B62: Protected well | C62: 6.251853198 | D62: 5.248777333 | E62: 8.458395227 | F62: 5.464924656 | G62: 2.200808013 | H62: 12.04693494 | I62: 6.348649454 | J62: 3.605309922 | K62: 2.871685229 | L62: 0.3304934832 | M62: 5.355996462 | N62: 4.650770908 | O62: 5.793120847 | P62: 7.798528326 | Q62: 5.595246902 | R62: 8.345312457 | S62: 4.037509872 | T62: 10.02576507 | U62: 2.811809015 | V62: 4.370928255 | W62: 4.052189625
B63: Open well | C63: 26.16216512 | D63: 24.76583917 | E63: 26.29368832 | F63: 22.50718837 | G63: 7.114939094 | H63: 35.03748747 | I63: 23.09925664 | J63: 15.63678198 | K63: 8.128019299 | L63: 0.4272919263 | M63: 24.33297725 | N63: 23.26054225 | O63: 26.26843565 | P63: 23.32057419 | Q63: 23.64134943 | R63: 39.1227961 | S63: 13.91901227 | T63: 33.45844194 | U63: 22.86094163 | V63: 21.03972049 | W63: 6.886528339
B64: Spring | C64: 1.77334684 | D64: 3.203547913 | E64: 0.9101373634 | F64: 0.7881687996 | G64: 0.2915945547 | H64: 0 | I64: 0.1273636707 | J64: 0 | K64: 0 | L64: 0 | M64: 2.490743294 | N64: 3.261665364 | O64: 2.427585924 | P64: 0.9738439774 | Q64: 1.588000408 | R64: 0 | S64: 0.2748769479 | T64: 0.8373080398 | U64: 9.497422237 | V64: 0.1197010428 | W64: 0.2501787458
B65: River, stream | C65: 24.16791979 | D65: 16.08697763 | E65: 8.981146366 | F65: 3.596015814 | G65: 0.1410041855 | H65: 18.84165301 | I65: 7.314867657 | J65: 0.6077524192 | K65: 0 | L65: 0 | M65: 26.08086629 | N65: 16.26848966 | O65: 13.08231197 | P65: 9.477293443 | Q65: 3.472564991 | R65: 21.3939366 | S65: 3.062445039 | T65: 11.82878068 | U65: 9.742385972 | V65: 6.282428539 | W65: 14.83683874
B66: Rainwater in a cistern | C66: 2.837940553 | D66: 7.99670437 | E66: 8.571524756 | F66: 4.923127594 | G66: 0.1474997149 | H66: 0.474074694 | I66: 1.513408707 | J66: 0.2940672798 | K66: 0.1664310088 | L66: 0 | M66: 2.280178667 | N66: 8.900955214 | O66: 8.185742639 | P66: 10.72279943 | Q66: 6.927795409 | R66: 0 | S66: 4.36184859 | T66: 0 | U66: 8.346439397 | V66: 0.199501738 | W66: 14.54022703
B67: Rainwater | C67: 0.2524751014 | D67: 0.4890876195 | E67: 0.4443088252 | F67: 0.1897546708 | G67: 0.06043036523 | H67: 0.03897265012 | I67: 0.3693145056 | J67: 0.5525021993 | K67: 0 | L67: 0 | M67: 0.3884645505 | N67: 0.639681879 | O67: 0.09704239812 | P67: 0.6022318739 | Q67: 0 | R67: 0 | S67: 0 | T67: 0.5023848239 | U67: 1.369853434 | V67: 0 | W67: 0.1986894539
B68: Tanker truck | C68: 0.1262703504 | D68: 0.01516153401 | E68: 0.1518343753 | F68: 0 | G68: 0 | H68: 0 | I68: 0 | J68: 0 | K68: 0 | L68: 0 | M68: 0.2056577032 | N68: 0.02295132791 | O68: 0 | P68: 0.2542743277 | Q68: 0 | R68: 0 | S68: 0 | T68: 0 | U68: 0.2492761742 | V68: 0 | W68: 0.1539561513
B69: Bottled water | C69: 0 | D69: 0 | E69: 0 | F69: 0.06878906759 | G69: 0.01672456347 | H69: 0 | I69: 0.1891710126 | J69: 0 | K69: 0 | L69: 0.04601963799 | M69: 0 | N69: 0 | O69: 0 | P69: 0 | Q69: 0 | R69: 0 | S69: 0.0793395978 | T69: 0 | U69: 0 | V69: 0 | W69: 0
A108: =A1026 -> Benin
A109: =A1034 -> 2001
A110: Use of sanitation facilities
A111: by wealth quintile and sub-national region
A112: Notes:
A113: WHO/UNICEF JMP customised wealth index excludes water,
A114: sanitation and hygiene assets.
A115: Survey used for analysis: | B115: =A1025 -> DHS01
A116: =B1030 -> Ratio of Improved latrines based on: | B116: DHS12
A117: =B1029 -> Ratio of Shared improved based on: | B117: DHS12
A120: Use of sanitation facilities | C120: NATIONAL wealth index quintile | H120: URBAN wealth index quintile | M120: RURAL wealth index quintile | R120: SUB-REGIONS: | BA120: Raw numbers of respondents: | BB120: Use of sanitation facilities | BC120: NATIONAL wealth index quintile | BH120: URBAN wealth index quintile | BM120: RURAL wealth index quintile | BR120: SUB-REGIONS:
A121: Weighted percentage (used in graphs) | C121: Poorest | D121: Poor | E121: Middle | F121: Rich | G121: Richest | H121: Poorest | I121: Poor | J121: Middle | K121: Rich | L121: Richest | M121: Poorest | N121: Poor | O121: Middle | P121: Rich | Q121: Richest | R121: Atacora | S121: Atlantique | T121: Borgou | U121: Mono | V121: Oueme | W121: Zou | BA121: Sanitation data, raw numbers (weighted) | BC121: Poorest | BD121: Poor | BE121: Middle | BF121: Rich | BG121: Richest | BH121: Poorest | BI121: Poor | BJ121: Middle | BK121: Rich | BL121: Richest | BM121: Poorest | BN121: Poor | BO121: Middle | BP121: Rich | BQ121: Richest | BR121: Atacora | BS121: Atlantique | BT121: Borgou | BU121: Mono | BV121: Oueme | BW121: Zou
A122: Sanitation | B122: Improved | C122: =C153+C154+C155*'DHS12'!C130/100 -> 3.409476934 | D122: =D153+D154+D155*'DHS12'!D130/100 -> 4.88525539 | E122: =E153+E154+E155*'DHS12'!E130/100 -> 10.93533464 | F122: =F153+F154+F155*'DHS12'!F130/100 -> 30.99676237 | G122: =G153+G154+G155*'DHS12'!G130/100 -> 84.44823691 | H122: =H153+H154+H155*'DHS12'!H130/100 -> 6.256448371 | I122: =I153+I154+I155*'DHS12'!I130/100 -> 24.28746868 | J122: =J153+J154+J155*'DHS12'!J130/100 -> 61.08449524 | K122: =K153+K154+K155*'DHS12'!K130/100 -> 85.6828472 | L122: =L153+L154+L155*'DHS12'!L130/100 -> 96.55364048 | M122: =M153+M154+M155*'DHS12'!M130/100 -> 3.464121639 | N122: =N153+N154+N155*'DHS12'!N130/100 -> 4.730165429 | O122: =O153+O154+O155*'DHS12'!O130/100 -> 5.581443087 | P122: =P153+P154+P155*'DHS12'!P130/100 -> 10.56095875 | Q122: =Q153+Q154+Q155*'DHS12'!Q130/100 -> 27.63175036 | R122: =R153+R154+R155*'DHS12'!R130/100 -> 8.269685528 | S122: =S153+S154+S155*'DHS12'!S130/100 -> 56.58804916 | T122: =T153+T154+T155*'DHS12'!T130/100 -> 16.90893833 | U122: =U153+U154+U155*'DHS12'!U130/100 -> 21.03782573 | V122: =V153+V154+V155*'DHS12'!V130/100 -> 32.49133437 | W122: =W153+W154+W155*'DHS12'!W130/100 -> 16.51471095 | BA122: Sanitation | BB122: Improved | BC122: N/A | BD122: N/A | BE122: N/A | BF122: N/A | BG122: N/A | BH122: N/A | BI122: N/A | BJ122: N/A | BK122: N/A | BL122: N/A | BM122: N/A | BN122: N/A | BO122: N/A | BP122: N/A | BQ122: N/A | BR122: N/A | BS122: N/A | BT122: N/A | BU122: N/A | BV122: N/A | BW122: N/A
B123: Not Improved | C123: =100-C122 -> 96.59052307 | D123: =100-D122 -> 95.11474461 | E123: 89.06466536 | F123: 69.00323763 | G123: 15.55176309 | H123: 93.74355163 | I123: 75.71253132 | J123: 38.91550476 | K123: 14.3171528 | L123: 3.446359521 | M123: 96.53587836 | N123: 95.26983457 | O123: 94.41855691 | P123: 89.43904125 | Q123: 72.36824964 | R123: 91.73031447 | S123: 43.41195084 | T123: 83.09106167 | U123: 78.96217427 | V123: 67.50866563 | W123: 83.48528905 | BB123: Not Improved | BC123: N/A | BD123: N/A | BE123: N/A | BF123: N/A | BG123: N/A | BH123: N/A | BI123: N/A | BJ123: N/A | BK123: N/A | BL123: N/A | BM123: N/A | BN123: N/A | BO123: N/A | BP123: N/A | BQ123: N/A | BR123: N/A | BS123: N/A | BT123: N/A | BU123: N/A | BV123: N/A | BW123: N/A
A124: Sanitation ladder | B124: Basic | C124: =C122*'DHS12'!C129/100 -> 0.8139926354 | D124: =D122*'DHS12'!D129/100 -> 2.427638346 | E124: =E122*'DHS12'!E129/100 -> 4.11835776 | F124: =F122*'DHS12'!F129/100 -> 10.32634462 | G124: =G122*'DHS12'!G129/100 -> 51.18151034 | H124: =H122*'DHS12'!H129/100 -> 2.44104868 | I124: =I122*'DHS12'!I129/100 -> 7.896327874 | J124: =J122*'DHS12'!J129/100 -> 18.99462933 | K124: =K122*'DHS12'!K129/100 -> 39.50779973 | L124: =L122*'DHS12'!L129/100 -> 73.08877866 | M124: =M122*'DHS12'!M129/100 -> 0.8013824991 | N124: =N122*'DHS12'!N129/100 -> 2.216815244 | O124: =O122*'DHS12'!O129/100 -> 2.560806811 | P124: =P122*'DHS12'!P129/100 -> 4.322145149 | Q124: =Q122*'DHS12'!Q129/100 -> 13.32339762 | R124: =R122*'DHS12'!R129/100 -> 2.859798721 | S124: =S122*'DHS12'!S129/100 -> 34.01966945 | T124: =T122*'DHS12'!T129/100 -> 8.6460577 | U124: =U122*'DHS12'!U129/100 -> 7.249909167 | V124: =V122*'DHS12'!V129/100 -> 17.45889407 | W124: =W122*'DHS12'!W129/100 -> 7.472691393 | BA124: Sanitation ladder | BB124: Basic | BC124: N/A | BD124: N/A | BE124: N/A | BF124: N/A | BG124: N/A | BH124: N/A | BI124: N/A | BJ124: N/A | BK124: N/A | BL124: N/A | BM124: N/A | BN124: N/A | BO124: N/A | BP124: N/A | BQ124: N/A | BR124: N/A | BS124: N/A | BT124: N/A | BU124: N/A | BV124: N/A | BW124: N/A
B125: Limited | C125: =C122*'DHS12'!C128/100 -> 2.595484299 | D125: =D122*'DHS12'!D128/100 -> 2.457617043 | E125: =E122*'DHS12'!E128/100 -> 6.816976881 | F125: =F122*'DHS12'!F128/100 -> 20.67041776 | G125: =G122*'DHS12'!G128/100 -> 33.26672657 | H125: =H122*'DHS12'!H128/100 -> 3.815399691 | I125: =I122*'DHS12'!I128/100 -> 16.3911408 | J125: =J122*'DHS12'!J128/100 -> 42.08986591 | K125: =K122*'DHS12'!K128/100 -> 46.17504747 | L125: =L122*'DHS12'!L128/100 -> 23.46486182 | M125: =M122*'DHS12'!M128/100 -> 2.66273914 | N125: =N122*'DHS12'!N128/100 -> 2.513350184 | O125: =O122*'DHS12'!O128/100 -> 3.020636276 | P125: =P122*'DHS12'!P128/100 -> 6.238813603 | Q125: =Q122*'DHS12'!Q128/100 -> 14.30835275 | R125: =R122*'DHS12'!R128/100 -> 5.409886807 | S125: =S122*'DHS12'!S128/100 -> 22.56837971 | T125: =T122*'DHS12'!T128/100 -> 8.262880626 | U125: =U122*'DHS12'!U128/100 -> 13.78791657 | V125: =V122*'DHS12'!V128/100 -> 15.03244031 | W125: =W122*'DHS12'!W128/100 -> 9.04201956 | BB125: Limited | BC125: N/A | BD125: N/A | BE125: N/A | BF125: N/A | BG125: N/A | BH125: N/A | BI125: N/A | BJ125: N/A | BK125: N/A | BL125: N/A | BM125: N/A | BN125: N/A | BO125: N/A | BP125: N/A | BQ125: N/A | BR125: N/A | BS125: N/A | BT125: N/A | BU125: N/A | BV125: N/A | BW125: N/A
B126: Unimproved | C126: =100-(C124+C125+C127) -> 3.144711633 | D126: =100-(D124+D125+D127) -> 3.589780455 | E126: 5.845991269 | F126: 10.53863273 | G126: 6.054311194 | H126: 5.914336832 | I126: 11.96843105 | J126: 12.51532761 | K126: 7.849128471 | L126: 2.866936037 | M126: 2.838114558 | N126: 3.426183491 | O126: 3.467780041 | P126: 5.375746315 | Q126: 9.771171442 | R126: 2.301604927 | S126: 2.726014601 | T126: 4.92869388 | U126: 4.976102538 | V126: 11.37658944 | W126: 6.374046079 | BB126: Unimproved | BC126: N/A | BD126: N/A | BE126: N/A | BF126: N/A | BG126: N/A | BH126: N/A | BI126: N/A | BJ126: N/A | BK126: N/A | BL126: N/A | BM126: N/A | BN126: N/A | BO126: N/A | BP126: N/A | BQ126: N/A | BR126: N/A | BS126: N/A | BT126: N/A | BU126: N/A | BV126: N/A | BW126: N/A
B127: Open defecation | C127: =C156 -> 93.44581143 | D127: =D156 -> 91.52496415 | E127: 83.21867409 | F127: 58.46460489 | G127: 9.497451897 | H127: 87.8292148 | I127: 63.74410027 | J127: 26.40017715 | K127: 6.468024334 | L127: 0.5794234835 | M127: 93.6977638 | N127: 91.84365108 | O127: 90.95077687 | P127: 84.06329493 | Q127: 62.59707819 | R127: 89.42870954 | S127: 40.68593624 | T127: 78.1623678 | U127: 73.98607173 | V127: 56.13207619 | W127: 77.11124297 | BB127: Open defecation | BC127: N/A | BD127: N/A | BE127: N/A | BF127: N/A | BG127: N/A | BH127: N/A | BI127: N/A | BJ127: N/A | BK127: N/A | BL127: N/A | BM127: N/A | BN127: N/A | BO127: N/A | BP127: N/A | BQ127: N/A | BR127: N/A | BS127: N/A | BT127: N/A | BU127: N/A | BV127: N/A | BW127: N/A
A128: Shared among Improved Sanitation | B128: Yes | C128: N/A | D128: N/A | E128: N/A | F128: N/A | G128: N/A | H128: N/A | I128: N/A | J128: N/A | K128: N/A | L128: N/A | M128: N/A | N128: N/A | O128: N/A | P128: N/A | Q128: N/A | R128: N/A | S128: N/A | T128: N/A | U128: N/A | V128: N/A | W128: N/A | BA128: Shared among improved sanitation facilities | BB128: Yes | BC128: N/A | BD128: N/A | BE128: N/A | BF128: N/A | BG128: N/A | BH128: N/A | BI128: N/A | BJ128: N/A | BK128: N/A | BL128: N/A | BM128: N/A | BN128: N/A | BO128: N/A | BP128: N/A | BQ128: N/A | BR128: N/A | BS128: N/A | BT128: N/A | BU128: N/A | BV128: N/A | BW128: N/A
B129: No | C129: N/A | D129: N/A | E129: N/A | F129: N/A | G129: N/A | H129: N/A | I129: N/A | J129: N/A | K129: N/A | L129: N/A | M129: N/A | N129: N/A | O129: N/A | P129: N/A | Q129: N/A | R129: N/A | S129: N/A | T129: N/A | U129: N/A | V129: N/A | W129: N/A | BB129: No | BC129: N/A | BD129: N/A | BE129: N/A | BF129: N/A | BG129: N/A | BH129: N/A | BI129: N/A | BJ129: N/A | BK129: N/A | BL129: N/A | BM129: N/A | BN129: N/A | BO129: N/A | BP129: N/A | BQ129: N/A | BR129: N/A | BS129: N/A | BT129: N/A | BU129: N/A | BV129: N/A | BW129: N/A
A130: Manually calculated ratios | B130: Improved latrines
B131: Other
B132: Other
C133: NATIONAL wealth index quintile | H133: URBAN wealth index quintile | M133: RURAL wealth index quintile | R133: SUB-REGIONS: | BA133: Raw numbers of respondents: | BB133: Use of sanitation facilities | BC133: NATIONAL wealth index quintile | BH133: URBAN wealth index quintile | BM133: RURAL wealth index quintile | BR133: SUB-REGIONS:
A134: Percentage based on weighted population | C134: Poorest | D134: Poor | E134: Middle | F134: Rich | G134: Richest | H134: Poorest | I134: Poor | J134: Middle | K134: Rich | L134: Richest | M134: Poorest | N134: Poor | O134: Middle | P134: Rich | Q134: Richest | R134: Atacora | S134: Atlantique | T134: Borgou | U134: Mono | V134: Oueme | W134: Zou | BA134: Sanitation data, raw numbers (weighted) | BC134: Poorest | BD134: Poor | BE134: Middle | BF134: Rich | BG134: Richest | BH134: Poorest | BI134: Poor | BJ134: Middle | BK134: Rich | BL134: Richest | BM134: Poorest | BN134: Poor | BO134: Middle | BP134: Rich | BQ134: Richest | BR134: Atacora | BS134: Atlantique | BT134: Borgou | BU134: Mono | BV134: Oueme | BW134: Zou
A135: Sanitation type | B135: Sewer connection | C135: N/A | D135: N/A | E135: N/A | F135: N/A | G135: N/A | H135: N/A | I135: N/A | J135: N/A | K135: N/A | L135: N/A | M135: N/A | N135: N/A | O135: N/A | P135: N/A | Q135: N/A | R135: N/A | S135: N/A | T135: N/A | U135: N/A | V135: N/A | W135: N/A | BA135: Sanitation type | BB135: Sewer connection | BC135: N/A | BD135: N/A | BE135: N/A | BF135: N/A | BG135: N/A | BH135: N/A | BI135: N/A | BJ135: N/A | BK135: N/A | BL135: N/A | BM135: N/A | BN135: N/A | BO135: N/A | BP135: N/A | BQ135: N/A | BR135: N/A | BS135: N/A | BT135: N/A | BU135: N/A | BV135: N/A | BW135: N/A
B136: Septic tank connection | C136: N/A | D136: N/A | E136: N/A | F136: N/A | G136: N/A | H136: N/A | I136: N/A | J136: N/A | K136: N/A | L136: N/A | M136: N/A | N136: N/A | O136: N/A | P136: N/A | Q136: N/A | R136: N/A | S136: N/A | T136: N/A | U136: N/A | V136: N/A | W136: N/A | BB136: Septic tank connection | BC136: N/A | BD136: N/A | BE136: N/A | BF136: N/A | BG136: N/A | BH136: N/A | BI136: N/A | BJ136: N/A | BK136: N/A | BL136: N/A | BM136: N/A | BN136: N/A | BO136: N/A | BP136: N/A | BQ136: N/A | BR136: N/A | BS136: N/A | BT136: N/A | BU136: N/A | BV136: N/A | BW136: N/A
B137: Improved latrines | C137: N/A | D137: N/A | E137: N/A | F137: N/A | G137: N/A | H137: N/A | I137: N/A | J137: N/A | K137: N/A | L137: N/A | M137: N/A | N137: N/A | O137: N/A | P137: N/A | Q137: N/A | R137: N/A | S137: N/A | T137: N/A | U137: N/A | V137: N/A | W137: N/A | BB137: Improved latrines | BC137: N/A | BD137: N/A | BE137: N/A | BF137: N/A | BG137: N/A | BH137: N/A | BI137: N/A | BJ137: N/A | BK137: N/A | BL137: N/A | BM137: N/A | BN137: N/A | BO137: N/A | BP137: N/A | BQ137: N/A | BR137: N/A | BS137: N/A | BT137: N/A | BU137: N/A | BV137: N/A | BW137: N/A
B138: Unimproved facilities | C138: N/A | D138: N/A | E138: N/A | F138: N/A | G138: N/A | H138: N/A | I138: N/A | J138: N/A | K138: N/A | L138: N/A | M138: N/A | N138: N/A | O138: N/A | P138: N/A | Q138: N/A | R138: N/A | S138: N/A | T138: N/A | U138: N/A | V138: N/A | W138: N/A | BB138: Unimproved facilities | BC138: N/A | BD138: N/A | BE138: N/A | BF138: N/A | BG138: N/A | BH138: N/A | BI138: N/A | BJ138: N/A | BK138: N/A | BL138: N/A | BM138: N/A | BN138: N/A | BO138: N/A | BP138: N/A | BQ138: N/A | BR138: N/A | BS138: N/A | BT138: N/A | BU138: N/A | BV138: N/A | BW138: N/A
B139: Open defecation | C139: 93.44581143 | D139: 91.52496415 | E139: 83.21867409 | F139: 58.23073458 | G139: 9.497451897 | H139: 87.8292148 | I139: 63.44641524 | J139: 26.40017715 | K139: 6.468024334 | L139: 0.5794234835 | M139: 93.6977638 | N139: 91.84365108 | O139: 90.95077687 | P139: 84.06329493 | Q139: 62.37740513 | R139: 89.42870954 | S139: 40.62220864 | T139: 77.95875808 | U139: 73.98607173 | V139: 56.13207619 | W139: 77.11124297 | BB139: Open defecation | BC139: N/A | BD139: N/A | BE139: N/A | BF139: N/A | BG139: N/A | BH139: N/A | BI139: N/A | BJ139: N/A | BK139: N/A | BL139: N/A | BM139: N/A | BN139: N/A | BO139: N/A | BP139: N/A | BQ139: N/A | BR139: N/A | BS139: N/A | BT139: N/A | BU139: N/A | BV139: N/A | BW139: N/A
A140: Septic tank emptying practices | B140: Not emptied/treated and disposed in situ | C140: N/A | D140: N/A | E140: N/A | F140: N/A | G140: N/A | H140: N/A | I140: N/A | J140: N/A | K140: N/A | L140: N/A | M140: N/A | N140: N/A | O140: N/A | P140: N/A | Q140: N/A | R140: N/A | S140: N/A | T140: N/A | U140: N/A | V140: N/A | W140: N/A | BA140: Septic tank emptying practices | BB140: Not emptied/treated and disposed in situ | BC140: N/A | BD140: N/A | BE140: N/A | BF140: N/A | BG140: N/A | BH140: N/A | BI140: N/A | BJ140: N/A | BK140: N/A | BL140: N/A | BM140: N/A | BN140: N/A | BO140: N/A | BP140: N/A | BQ140: N/A | BR140: N/A | BS140: N/A | BT140: N/A | BU140: N/A | BV140: N/A | BW140: N/A
B141: Emptied and buried on site | C141: N/A | D141: N/A | E141: N/A | F141: N/A | G141: N/A | H141: N/A | I141: N/A | J141: N/A | K141: N/A | L141: N/A | M141: N/A | N141: N/A | O141: N/A | P141: N/A | Q141: N/A | R141: N/A | S141: N/A | T141: N/A | U141: N/A | V141: N/A | W141: N/A | BB141: Emptied and buried on site | BC141: N/A | BD141: N/A | BE141: N/A | BF141: N/A | BG141: N/A | BH141: N/A | BI141: N/A | BJ141: N/A | BK141: N/A | BL141: N/A | BM141: N/A | BN141: N/A | BO141: N/A | BP141: N/A | BQ141: N/A | BR141: N/A | BS141: N/A | BT141: N/A | BU141: N/A | BV141: N/A | BW141: N/A
B142: Emptied and discharged locally | C142: N/A | D142: N/A | E142: N/A | F142: N/A | G142: N/A | H142: N/A | I142: N/A | J142: N/A | K142: N/A | L142: N/A | M142: N/A | N142: N/A | O142: N/A | P142: N/A | Q142: N/A | R142: N/A | S142: N/A | T142: N/A | U142: N/A | V142: N/A | W142: N/A | BB142: Emptied and discharged locally | BC142: N/A | BD142: N/A | BE142: N/A | BF142: N/A | BG142: N/A | BH142: N/A | BI142: N/A | BJ142: N/A | BK142: N/A | BL142: N/A | BM142: N/A | BN142: N/A | BO142: N/A | BP142: N/A | BQ142: N/A | BR142: N/A | BS142: N/A | BT142: N/A | BU142: N/A | BV142: N/A | BW142: N/A
B143: Emptied and removed offsite | C143: N/A | D143: N/A | E143: N/A | F143: N/A | G143: N/A | H143: N/A | I143: N/A | J143: N/A | K143: N/A | L143: N/A | M143: N/A | N143: N/A | O143: N/A | P143: N/A | Q143: N/A | R143: N/A | S143: N/A | T143: N/A | U143: N/A | V143: N/A | W143: N/A | BB143: Emptied and removed offsite | BC143: N/A | BD143: N/A | BE143: N/A | BF143: N/A | BG143: N/A | BH143: N/A | BI143: N/A | BJ143: N/A | BK143: N/A | BL143: N/A | BM143: N/A | BN143: N/A | BO143: N/A | BP143: N/A | BQ143: N/A | BR143: N/A | BS143: N/A | BT143: N/A | BU143: N/A | BV143: N/A | BW143: N/A
A144: Latrine emptying practices | B144: Not emptied/treated and disposed in situ | C144: N/A | D144: N/A | E144: N/A | F144: N/A | G144: N/A | H144: N/A | I144: N/A | J144: N/A | K144: N/A | L144: N/A | M144: N/A | N144: N/A | O144: N/A | P144: N/A | Q144: N/A | R144: N/A | S144: N/A | T144: N/A | U144: N/A | V144: N/A | W144: N/A | BA144: Latrine emptying practices | BB144: Not emptied/treated and disposed in situ | BC144: N/A | BD144: N/A | BE144: N/A | BF144: N/A | BG144: N/A | BH144: N/A | BI144: N/A | BJ144: N/A | BK144: N/A | BL144: N/A | BM144: N/A | BN144: N/A | BO144: N/A | BP144: N/A | BQ144: N/A | BR144: N/A | BS144: N/A | BT144: N/A | BU144: N/A | BV144: N/A | BW144: N/A
B145: Emptied and buried on site | C145: N/A | D145: N/A | E145: N/A | F145: N/A | G145: N/A | H145: N/A | I145: N/A | J145: N/A | K145: N/A | L145: N/A | M145: N/A | N145: N/A | O145: N/A | P145: N/A | Q145: N/A | R145: N/A | S145: N/A | T145: N/A | U145: N/A | V145: N/A | W145: N/A | BB145: Emptied and buried on site | BC145: N/A | BD145: N/A | BE145: N/A | BF145: N/A | BG145: N/A | BH145: N/A | BI145: N/A | BJ145: N/A | BK145: N/A | BL145: N/A | BM145: N/A | BN145: N/A | BO145: N/A | BP145: N/A | BQ145: N/A | BR145: N/A | BS145: N/A | BT145: N/A | BU145: N/A | BV145: N/A | BW145: N/A
B146: Emptied and discharged locally | C146: N/A | D146: N/A | E146: N/A | F146: N/A | G146: N/A | H146: N/A | I146: N/A | J146: N/A | K146: N/A | L146: N/A | M146: N/A | N146: N/A | O146: N/A | P146: N/A | Q146: N/A | R146: N/A | S146: N/A | T146: N/A | U146: N/A | V146: N/A | W146: N/A | BB146: Emptied and discharged locally | BC146: N/A | BD146: N/A | BE146: N/A | BF146: N/A | BG146: N/A | BH146: N/A | BI146: N/A | BJ146: N/A | BK146: N/A | BL146: N/A | BM146: N/A | BN146: N/A | BO146: N/A | BP146: N/A | BQ146: N/A | BR146: N/A | BS146: N/A | BT146: N/A | BU146: N/A | BV146: N/A | BW146: N/A
B147: Emptied and removed offsite | C147: N/A | D147: N/A | E147: N/A | F147: N/A | G147: N/A | H147: N/A | I147: N/A | J147: N/A | K147: N/A | L147: N/A | M147: N/A | N147: N/A | O147: N/A | P147: N/A | Q147: N/A | R147: N/A | S147: N/A | T147: N/A | U147: N/A | V147: N/A | W147: N/A | BB147: Emptied and removed offsite | BC147: N/A | BD147: N/A | BE147: N/A | BF147: N/A | BG147: N/A | BH147: N/A | BI147: N/A | BJ147: N/A | BK147: N/A | BL147: N/A | BM147: N/A | BN147: N/A | BO147: N/A | BP147: N/A | BQ147: N/A | BR147: N/A | BS147: N/A | BT147: N/A | BU147: N/A | BV147: N/A | BW147: N/A
A148: Shared among improved sanitation facilities | B148: Yes | C148: N/A | D148: N/A | E148: N/A | F148: N/A | G148: N/A | H148: N/A | I148: N/A | J148: N/A | K148: N/A | L148: N/A | M148: N/A | N148: N/A | O148: N/A | P148: N/A | Q148: N/A | R148: N/A | S148: N/A | T148: N/A | U148: N/A | V148: N/A | W148: N/A | BA148: Shared among improved sanitation facilities | BB148: Yes | BC148: N/A | BD148: N/A | BE148: N/A | BF148: N/A | BG148: N/A | BH148: N/A | BI148: N/A | BJ148: N/A | BK148: N/A | BL148: N/A | BM148: N/A | BN148: N/A | BO148: N/A | BP148: N/A | BQ148: N/A | BR148: N/A | BS148: N/A | BT148: N/A | BU148: N/A | BV148: N/A | BW148: N/A
B149: No | C149: N/A | D149: N/A | E149: N/A | F149: N/A | G149: N/A | H149: N/A | I149: N/A | J149: N/A | K149: N/A | L149: N/A | M149: N/A | N149: N/A | O149: N/A | P149: N/A | Q149: N/A | R149: N/A | S149: N/A | T149: N/A | U149: N/A | V149: N/A | W149: N/A | BB149: No | BC149: N/A | BD149: N/A | BE149: N/A | BF149: N/A | BG149: N/A | BH149: N/A | BI149: N/A | BJ149: N/A | BK149: N/A | BL149: N/A | BM149: N/A | BN149: N/A | BO149: N/A | BP149: N/A | BQ149: N/A | BR149: N/A | BS149: N/A | BT149: N/A | BU149: N/A | BV149: N/A | BW149: N/A
B150: DK/missing | C150: N/A | D150: N/A | E150: N/A | F150: N/A | G150: N/A | H150: N/A | I150: N/A | J150: N/A | K150: N/A | L150: N/A | M150: N/A | N150: N/A | O150: N/A | P150: N/A | Q150: N/A | R150: N/A | S150: N/A | T150: N/A | U150: N/A | V150: N/A | W150: N/A | BB150: DK/missing | BC150: N/A | BD150: N/A | BE150: N/A | BF150: N/A | BG150: N/A | BH150: N/A | BI150: N/A | BJ150: N/A | BK150: N/A | BL150: N/A | BM150: N/A | BN150: N/A | BO150: N/A | BP150: N/A | BQ150: N/A | BR150: N/A | BS150: N/A | BT150: N/A | BU150: N/A | BV150: N/A | BW150: N/A
A151: Shared among all sanitation facilities | B151: Yes | C151: 81.78714485 | D151: 88.50135285 | E151: 78.33411987 | F151: 74.75951922 | G151: 56.22992172 | H151: 78.1828235 | I151: 81.25940371 | J151: 70.89675171 | K151: 64.29855108 | L151: 45.7823087 | M151: 88.59030979 | N151: 87.37826612 | O151: 89.02352128 | P151: 71.03043484 | Q151: 65.64879112 | R151: 66.14178916 | S151: 68.55191893 | T151: 69.54788475 | U151: 77.04611936 | V151: 53.04965829 | W151: 68.18487896 | BA151: Shared among all sanitation facilities | BB151: Yes | BC151: N/A | BD151: N/A | BE151: N/A | BF151: N/A | BG151: N/A | BH151: N/A | BI151: N/A | BJ151: N/A | BK151: N/A | BL151: N/A | BM151: N/A | BN151: N/A | BO151: N/A | BP151: N/A | BQ151: N/A | BR151: N/A | BS151: N/A | BT151: N/A | BU151: N/A | BV151: N/A | BW151: N/A
B152: No | C152: 18.21285515 | D152: 8.110420179 | E152: 20.02413471 | F152: 23.72256506 | G152: 43.21367545 | H152: 21.8171765 | I152: 17.53931113 | J152: 28.28257197 | K152: 35.47930043 | L152: 53.20006727 | M152: 11.40969021 | N152: 9.13818672 | O152: 9.372993974 | P152: 27.66184079 | Q152: 32.44792997 | R152: 31.78159188 | S152: 30.9472774 | T152: 28.25723903 | U152: 22.18728769 | V152: 45.71132428 | W152: 30.78981073 | BB152: No | BC152: N/A | BD152: N/A | BE152: N/A | BF152: N/A | BG152: N/A | BH152: N/A | BI152: N/A | BJ152: N/A | BK152: N/A | BL152: N/A | BM152: N/A | BN152: N/A | BO152: N/A | BP152: N/A | BQ152: N/A | BR152: N/A | BS152: N/A | BT152: N/A | BU152: N/A | BV152: N/A | BW152: N/A
A153: Type of toilet facility | B153: Flush toilet | C153: 0 | D153: 0 | E153: 0 | F153: 0.152419679 | G153: 12.03091805 | H153: 0 | I153: 0 | J153: 0.1787980998 | K153: 3.012823605 | L153: 27.16353546 | M153: 0 | N153: 0 | O153: 0 | P153: 0 | Q153: 1.80521842 | R153: 0 | S153: 8.14366863 | T153: 0 | U153: 0.7461967889 | V153: 3.649549648 | W153: 0.1390826177 | BA153: Type of toilet facility | BB153: Flush toilet | BC153: 0 | BD153: 0 | BE153: 0 | BF153: 9.026793 | BG153: 735.591327 | BH153: 0 | BI153: 0 | BJ153: 3.985664 | BK153: 66.885582 | BL153: 603.581221 | BM153: 0 | BN153: 0 | BO153: 0 | BP153: 0 | BQ153: 70.165653 | BR153: 0 | BS153: 524.168722 | BT153: 0 | BU153: 26.684548 | BV153: 185.143608 | BW153: 8.621242
B154: Ventilated latrine | C154: 1.922597004 | D154: 2.438324468 | E154: 5.068963701 | F154: 13.53162336 | G154: 48.08586432 | H154: 0.9474147047 | I154: 8.545735172 | J154: 30.1785535 | K154: 55.89327604 | L154: 53.96678756 | M154: 2.422190727 | N154: 3.130990895 | O154: 3.320755651 | P154: 5.036251918 | Q154: 12.05062204 | R154: 2.356126773 | S154: 41.7508534 | T154: 5.41848404 | U154: 13.17225712 | V154: 8.791201879 | W154: 5.522153478 | BB154: Ventilated latrine | BC154: 122.156514 | BD154: 143.420106 | BE154: 318.59804 | BF154: 801.38709 | BG154: 2940.053669 | BH154: 21.569102 | BI154: 183.913898 | BJ154: 672.722889 | BK154: 1240.847387 | BL154: 1199.156847 | BM154: 94.49158 | BN154: 121.681701 | BO154: 133.829442 | BP154: 189.016169 | BQ154: 468.386404 | BR154: 95.002713 | BS154: 2687.301321 | BT154: 283.980508 | BU154: 471.049638 | BV154: 445.982379 | BW154: 342.29886
B155: Unventilated latrine | C155: 3.848821707 | D155: 5.423737596 | E155: 11.35506126 | F155: 26.95030345 | G155: 29.27496991 | H155: 10.66608952 | I155: 26.32000342 | J155: 42.21285419 | K155: 33.09408659 | L155: 17.38294046 | M155: 2.93036397 | N155: 4.566610458 | O155: 5.187742583 | P155: 10.78169437 | Q155: 22.80927812 | R155: 8.044421687 | S155: 8.588811511 | T155: 15.63981937 | U155: 10.07750288 | V155: 30.95726908 | W155: 16.70604565 | BB155: Unventilated latrine | BC155: 244.543522 | BD155: 319.019487 | BE155: 713.696226 | BF155: 1596.08531 | BG155: 1789.922754 | BH155: 242.827108 | BI155: 566.436278 | BJ155: 940.984571 | BK155: 734.698586 | BL155: 386.253713 | BM155: 114.315821 | BN155: 177.475102 | BO155: 209.070696 | BP155: 404.649052 | BQ155: 886.556372 | BR155: 324.363652 | BS155: 552.820425 | BT155: 819.676466 | BU155: 360.378942 | BV155: 1570.478838 | BW155: 1035.548976
B156: No facility, bush, field | C156: 93.44581143 | D156: 91.52496415 | E156: 83.21867409 | F156: 58.46460489 | G156: 9.497451897 | H156: 87.8292148 | I156: 63.74410027 | J156: 26.40017715 | K156: 6.468024334 | L156: 0.5794234835 | M156: 93.6977638 | N156: 91.84365108 | O156: 90.95077687 | P156: 84.06329493 | Q156: 62.59707819 | R156: 89.42870954 | S156: 40.68593624 | T156: 78.1623678 | U156: 73.98607173 | V156: 56.13207619 | W156: 77.11124297 | BB156: No facility, bush, field | BC156: 5937.289276 | BD156: 5383.418094 | BE156: 5230.518114 | BF156: 3462.465541 | BG156: 580.690785 | BH156: 1999.543899 | BI156: 1371.845221 | BJ156: 588.497505 | BK156: 143.592068 | BL156: 12.874949 | BM156: 3655.224028 | BN156: 3569.378534 | BO156: 3665.39818 | BP156: 3154.989508 | BQ156: 2433.037918 | BR156: 3605.905303 | BS156: 2618.757733 | BT156: 4096.457376 | BU156: 2645.79654 | BV156: 2847.610284 | BW156: 4779.854574
B157: Other | C157: 0.7827698567 | D157: 0.6129737807 | E157: 0.357300944 | F157: 0.9010486234 | G157: 1.110795834 | H157: 0.5572809782 | I157: 1.390161143 | J157: 1.029617061 | K157: 1.531789435 | L157: 0.9073130385 | M157: 0.9496814999 | N157: 0.4587475669 | O157: 0.5407248945 | P157: 0.1187587832 | Q157: 0.7378032299 | R157: 0.1707419944 | S157: 0.8307302252 | T157: 0.779328797 | U157: 2.017971487 | V157: 0.4699032006 | W157: 0.52147529 | BB157: Other | BC157: 49.735039 | BD157: 36.05458 | BE157: 22.457328 | BF157: 53.363053 | BG157: 67.915996 | BH157: 12.687211 | BI157: 29.917842 | BJ157: 22.951629 | BK157: 34.006182 | BL157: 20.160745 | BM157: 37.047828 | BN157: 17.8286 | BO157: 21.7917 | BP157: 4.45715 | BQ157: 28.677109 | BR157: 6.884584 | BS157: 53.470103 | BT157: 40.8443 | BU157: 72.16415 | BV157: 23.838441 | BW157: 32.324418
BB158: Total | BC158: 6353.724351 | BD158: 5881.912267 | BE158: 6285.269708 | BF158: 5922.327787 | BG158: 6114.174531 | BH158: 2276.62732 | BI158: 2152.113239 | BJ158: 2229.142258 | BK158: 2220.029805 | BL158: 2222.027475 | BM158: 3901.079257 | BN158: 3886.363937 | BO158: 4030.090018 | BP158: 3753.111879 | BQ158: 3886.823456 | BR158: 4032.156252 | BS158: 6436.518304 | BT158: 5240.95865 | BU158: 3576.073818 | BV158: 5073.05355 | BW158: 6198.64807
A208: =A1026 -> Benin
A209: =A1034 -> 2001
A210: Access to hygiene facilities
A211: by wealth quintile and sub-national region
A212: Notes:
A213: WHO/UNICEF JMP customised wealth index excludes water,
A214: sanitation and hygiene assets.
A215: Survey used for analysis: | B215: =A1025 -> DHS01
C216: NATIONAL wealth index quintile
C217: Poorest | D217: Poor | E217: Middle | F217: Rich | G217: Richest
A218: Access to handwashing | C218: COMPOSITE wealth index quintile | H218: URBAN wealth index quintile | M218: RURAL wealth index quintile | R218: REGIONS | BA218: Raw numbers of respondents: | BB218: Access to handwashing | BC218: NATIONAL wealth index quintile | BH218: URBAN wealth index quintile | BM218: RURAL wealth index quintile | BR218: SUB-REGIONS:
A219: Weighted percentage (used in graphs) | C219: Poorest | D219: Poor | E219: Middle | F219: Rich | G219: Richest | H219: Poorest | I219: Poor | J219: Middle | K219: Rich | L219: Richest | M219: Poorest | N219: Poor | O219: Middle | P219: Rich | Q219: Richest | R219: Atacora | S219: Atlantique | T219: Borgou | U219: Mono | V219: Oueme | W219: Zou | BA219: Hygiene data, raw numbers (weighted) | BC219: Poorest | BD219: Poor | BE219: Middle | BF219: Rich | BG219: Richest | BH219: Poorest | BI219: Poor | BJ219: Middle | BK219: Rich | BL219: Richest | BM219: Poorest | BN219: Poor | BO219: Middle | BP219: Rich | BQ219: Richest | BR219: Atacora | BS219: Atlantique | BT219: Borgou | BU219: Mono | BV219: Oueme | BW219: Zou
A220: Hygiene ladder | B220: Basic | C220: N/A | D220: N/A | E220: N/A | F220: N/A | G220: N/A | H220: N/A | I220: N/A | J220: N/A | K220: N/A | L220: N/A | M220: N/A | N220: N/A | O220: N/A | P220: N/A | Q220: N/A | R220: N/A | S220: N/A | T220: N/A | U220: N/A | V220: N/A | W220: N/A | BA220: Hygiene ladder | BB220: Basic | BC220: N/A | BD220: N/A | BE220: N/A | BF220: N/A | BG220: N/A | BH220: N/A | BI220: N/A | BJ220: N/A | BK220: N/A | BL220: N/A | BM220: N/A | BN220: N/A | BO220: N/A | BP220: N/A | BQ220: N/A | BR220: N/A | BS220: N/A | BT220: N/A | BU220: N/A | BV220: N/A | BW220: N/A
B221: Limited | C221: N/A | D221: N/A | E221: N/A | F221: N/A | G221: N/A | H221: N/A | I221: N/A | J221: N/A | K221: N/A | L221: N/A | M221: N/A | N221: N/A | O221: N/A | P221: N/A | Q221: N/A | R221: N/A | S221: N/A | T221: N/A | U221: N/A | V221: N/A | W221: N/A | BB221: Limited | BC221: N/A | BD221: N/A | BE221: N/A | BF221: N/A | BG221: N/A | BH221: N/A | BI221: N/A | BJ221: N/A | BK221: N/A | BL221: N/A | BM221: N/A | BN221: N/A | BO221: N/A | BP221: N/A | BQ221: N/A | BR221: N/A | BS221: N/A | BT221: N/A | BU221: N/A | BV221: N/A | BW221: N/A
B222: No facility | C222: N/A | D222: N/A | E222: N/A | F222: N/A | G222: N/A | H222: N/A | I222: N/A | J222: N/A | K222: N/A | L222: N/A | M222: N/A | N222: N/A | O222: N/A | P222: N/A | Q222: N/A | R222: N/A | S222: N/A | T222: N/A | U222: N/A | V222: N/A | W222: N/A | BB222: No facility | BC222: N/A | BD222: N/A | BE222: N/A | BF222: N/A | BG222: N/A | BH222: N/A | BI222: N/A | BJ222: N/A | BK222: N/A | BL222: N/A | BM222: N/A | BN222: N/A | BO222: N/A | BP222: N/A | BQ222: N/A | BR222: N/A | BS222: N/A | BT222: N/A | BU222: N/A | BV222: N/A | BW222: N/A
BA223: Observed handwashing place | BB223: Fixed | BC223: N/A | BD223: N/A | BE223: N/A | BF223: N/A | BG223: N/A | BH223: N/A | BI223: N/A | BJ223: N/A | BK223: N/A | BL223: N/A | BM223: N/A | BN223: N/A | BO223: N/A | BP223: N/A | BQ223: N/A | BR223: N/A | BS223: N/A | BT223: N/A | BU223: N/A | BV223: N/A | BW223: N/A
BB224: Mobile | BC224: N/A | BD224: N/A | BE224: N/A | BF224: N/A | BG224: N/A | BH224: N/A | BI224: N/A | BJ224: N/A | BK224: N/A | BL224: N/A | BM224: N/A | BN224: N/A | BO224: N/A | BP224: N/A | BQ224: N/A | BR224: N/A | BS224: N/A | BT224: N/A | BU224: N/A | BV224: N/A | BW224: N/A
BA225: Water / Soap | BB225: Water and soap | BC225: N/A | BD225: N/A | BE225: N/A | BF225: N/A | BG225: N/A | BH225: N/A | BI225: N/A | BJ225: N/A | BK225: N/A | BL225: N/A | BM225: N/A | BN225: N/A | BO225: N/A | BP225: N/A | BQ225: N/A | BR225: N/A | BS225: N/A | BT225: N/A | BU225: N/A | BV225: N/A | BW225: N/A
BB226: Water only | BC226: N/A | BD226: N/A | BE226: N/A | BF226: N/A | BG226: N/A | BH226: N/A | BI226: N/A | BJ226: N/A | BK226: N/A | BL226: N/A | BM226: N/A | BN226: N/A | BO226: N/A | BP226: N/A | BQ226: N/A | BR226: N/A | BS226: N/A | BT226: N/A | BU226: N/A | BV226: N/A | BW226: N/A
BB227: Soap only | BC227: N/A | BD227: N/A | BE227: N/A | BF227: N/A | BG227: N/A | BH227: N/A | BI227: N/A | BJ227: N/A | BK227: N/A | BL227: N/A | BM227: N/A | BN227: N/A | BO227: N/A | BP227: N/A | BQ227: N/A | BR227: N/A | BS227: N/A | BT227: N/A | BU227: N/A | BV227: N/A | BW227: N/A
BB228: Neither | BC228: N/A | BD228: N/A | BE228: N/A | BF228: N/A | BG228: N/A | BH228: N/A | BI228: N/A | BJ228: N/A | BK228: N/A | BL228: N/A | BM228: N/A | BN228: N/A | BO228: N/A | BP228: N/A | BQ228: N/A | BR228: N/A | BS228: N/A | BT228: N/A | BU228: N/A | BV228: N/A | BW228: N/A
BA257: Raw numbers of respondents: | BB257: Menstrual health and hygiene | BC257: NATIONAL wealth index quintile | BH257: URBAN wealth index quintile | BM257: RURAL wealth index quintile | BR257: SUB-REGIONS:
BA258: MHH data, raw numbers (weighted) | BC258: Poorest | BD258: Poor | BE258: Middle | BF258: Rich | BG258: Richest | BH258: Poorest | BI258: Poor | BJ258: Middle | BK258: Rich | BL258: Richest | BM258: Poorest | BN258: Poor | BO258: Middle | BP258: Rich | BQ258: Richest | BR258: Atacora | BS258: Atlantique | BT258: Borgou | BU258: Mono | BV258: Oueme | BW258: Zou
BA259: Private place to wash and change | BB259: Yes | BC259: N/A | BD259: N/A | BE259: N/A | BF259: N/A | BG259: N/A | BH259: N/A | BI259: N/A | BJ259: N/A | BK259: N/A | BL259: N/A | BM259: N/A | BN259: N/A | BO259: N/A | BP259: N/A | BQ259: N/A | BR259: N/A | BS259: N/A | BT259: N/A | BU259: N/A | BV259: N/A | BW259: N/A
BB260: No | BC260: N/A | BD260: N/A | BE260: N/A | BF260: N/A | BG260: N/A | BH260: N/A | BI260: N/A | BJ260: N/A | BK260: N/A | BL260: N/A | BM260: N/A | BN260: N/A | BO260: N/A | BP260: N/A | BQ260: N/A | BR260: N/A | BS260: N/A | BT260: N/A | BU260: N/A | BV260: N/A | BW260: N/A
BB261: DK/not sure/missing | BC261: N/A | BD261: N/A | BE261: N/A | BF261: N/A | BG261: N/A | BH261: N/A | BI261: N/A | BJ261: N/A | BK261: N/A | BL261: N/A | BM261: N/A | BN261: N/A | BO261: N/A | BP261: N/A | BQ261: N/A | BR261: N/A | BS261: N/A | BT261: N/A | BU261: N/A | BV261: N/A | BW261: N/A
BA262: Use of menstrual materials | BB262: Materials reusable | BC262: N/A | BD262: N/A | BE262: N/A | BF262: N/A | BG262: N/A | BH262: N/A | BI262: N/A | BJ262: N/A | BK262: N/A | BL262: N/A | BM262: N/A | BN262: N/A | BO262: N/A | BP262: N/A | BQ262: N/A | BR262: N/A | BS262: N/A | BT262: N/A | BU262: N/A | BV262: N/A | BW262: N/A
BB263: Materials not reusable | BC263: N/A | BD263: N/A | BE263: N/A | BF263: N/A | BG263: N/A | BH263: N/A | BI263: N/A | BJ263: N/A | BK263: N/A | BL263: N/A | BM263: N/A | BN263: N/A | BO263: N/A | BP263: N/A | BQ263: N/A | BR263: N/A | BS263: N/A | BT263: N/A | BU263: N/A | BV263: N/A | BW263: N/A
BB264: No materials used | BC264: N/A | BD264: N/A | BE264: N/A | BF264: N/A | BG264: N/A | BH264: N/A | BI264: N/A | BJ264: N/A | BK264: N/A | BL264: N/A | BM264: N/A | BN264: N/A | BO264: N/A | BP264: N/A | BQ264: N/A | BR264: N/A | BS264: N/A | BT264: N/A | BU264: N/A | BV264: N/A | BW264: N/A
BB265: DK/not sure/missing | BC265: N/A | BD265: N/A | BE265: N/A | BF265: N/A | BG265: N/A | BH265: N/A | BI265: N/A | BJ265: N/A | BK265: N/A | BL265: N/A | BM265: N/A | BN265: N/A | BO265: N/A | BP265: N/A | BQ265: N/A | BR265: N/A | BS265: N/A | BT265: N/A | BU265: N/A | BV265: N/A | BW265: N/A
BA266: Use of menstrual materials with private place to wash and change | BB266: Materials reusable | BC266: N/A | BD266: N/A | BE266: N/A | BF266: N/A | BG266: N/A | BH266: N/A | BI266: N/A | BJ266: N/A | BK266: N/A | BL266: N/A | BM266: N/A | BN266: N/A | BO266: N/A | BP266: N/A | BQ266: N/A | BR266: N/A | BS266: N/A | BT266: N/A | BU266: N/A | BV266: N/A | BW266: N/A
BB267: Materials not reusable | BC267: N/A | BD267: N/A | BE267: N/A | BF267: N/A | BG267: N/A | BH267: N/A | BI267: N/A | BJ267: N/A | BK267: N/A | BL267: N/A | BM267: N/A | BN267: N/A | BO267: N/A | BP267: N/A | BQ267: N/A | BR267: N/A | BS267: N/A | BT267: N/A | BU267: N/A | BV267: N/A | BW267: N/A
BB268: No materials used | BC268: N/A | BD268: N/A | BE268: N/A | BF268: N/A | BG268: N/A | BH268: N/A | BI268: N/A | BJ268: N/A | BK268: N/A | BL268: N/A | BM268: N/A | BN268: N/A | BO268: N/A | BP268: N/A | BQ268: N/A | BR268: N/A | BS268: N/A | BT268: N/A | BU268: N/A | BV268: N/A | BW268: N/A
BA269: Awareness of menstruation before menarche | BB269: Yes | BC269: N/A | BD269: N/A | BE269: N/A | BF269: N/A | BG269: N/A | BH269: N/A | BI269: N/A | BJ269: N/A | BK269: N/A | BL269: N/A | BM269: N/A | BN269: N/A | BO269: N/A | BP269: N/A | BQ269: N/A | BR269: N/A | BS269: N/A | BT269: N/A | BU269: N/A | BV269: N/A | BW269: N/A
BB270: No | BC270: N/A | BD270: N/A | BE270: N/A | BF270: N/A | BG270: N/A | BH270: N/A | BI270: N/A | BJ270: N/A | BK270: N/A | BL270: N/A | BM270: N/A | BN270: N/A | BO270: N/A | BP270: N/A | BQ270: N/A | BR270: N/A | BS270: N/A | BT270: N/A | BU270: N/A | BV270: N/A | BW270: N/A
BB271: DK/not sure/missing | BC271: N/A | BD271: N/A | BE271: N/A | BF271: N/A | BG271: N/A | BH271: N/A | BI271: N/A | BJ271: N/A | BK271: N/A | BL271: N/A | BM271: N/A | BN271: N/A | BO271: N/A | BP271: N/A | BQ271: N/A | BR271: N/A | BS271: N/A | BT271: N/A | BU271: N/A | BV271: N/A | BW271: N/A
BA272: Participation in (all) activities during menstruation | BB272: Yes | BC272: N/A | BD272: N/A | BE272: N/A | BF272: N/A | BG272: N/A | BH272: N/A | BI272: N/A | BJ272: N/A | BK272: N/A | BL272: N/A | BM272: N/A | BN272: N/A | BO272: N/A | BP272: N/A | BQ272: N/A | BR272: N/A | BS272: N/A | BT272: N/A | BU272: N/A | BV272: N/A | BW272: N/A
BB273: No | BC273: N/A | BD273: N/A | BE273: N/A | BF273: N/A | BG273: N/A | BH273: N/A | BI273: N/A | BJ273: N/A | BK273: N/A | BL273: N/A | BM273: N/A | BN273: N/A | BO273: N/A | BP273: N/A | BQ273: N/A | BR273: N/A | BS273: N/A | BT273: N/A | BU273: N/A | BV273: N/A | BW273: N/A
BB274: DK/not sure/missing/no such activity | BC274: N/A | BD274: N/A | BE274: N/A | BF274: N/A | BG274: N/A | BH274: N/A | BI274: N/A | BJ274: N/A | BK274: N/A | BL274: N/A | BM274: N/A | BN274: N/A | BO274: N/A | BP274: N/A | BQ274: N/A | BR274: N/A | BS274: N/A | BT274: N/A | BU274: N/A | BV274: N/A | BW274: N/A
BA275: Participation in specific activities during menstruation | BB275: Did not go to school (amongst those usually attending school) | BC275: N/A | BD275: N/A | BE275: N/A | BF275: N/A | BG275: N/A | BH275: N/A | BI275: N/A | BJ275: N/A | BK275: N/A | BL275: N/A | BM275: N/A | BN275: N/A | BO275: N/A | BP275: N/A | BQ275: N/A | BR275: N/A | BS275: N/A | BT275: N/A | BU275: N/A | BV275: N/A | BW275: N/A
BB276: Did not go to work (amongst those who usually work) | BC276: N/A | BD276: N/A | BE276: N/A | BF276: N/A | BG276: N/A | BH276: N/A | BI276: N/A | BJ276: N/A | BK276: N/A | BL276: N/A | BM276: N/A | BN276: N/A | BO276: N/A | BP276: N/A | BQ276: N/A | BR276: N/A | BS276: N/A | BT276: N/A | BU276: N/A | BV276: N/A | BW276: N/A
BB277: Did not participate in social activities | BC277: N/A | BD277: N/A | BE277: N/A | BF277: N/A | BG277: N/A | BH277: N/A | BI277: N/A | BJ277: N/A | BK277: N/A | BL277: N/A | BM277: N/A | BN277: N/A | BO277: N/A | BP277: N/A | BQ277: N/A | BR277: N/A | BS277: N/A | BT277: N/A | BU277: N/A | BV277: N/A | BW277: N/A
BB278: Did not cook food | BC278: N/A | BD278: N/A | BE278: N/A | BF278: N/A | BG278: N/A | BH278: N/A | BI278: N/A | BJ278: N/A | BK278: N/A | BL278: N/A | BM278: N/A | BN278: N/A | BO278: N/A | BP278: N/A | BQ278: N/A | BR278: N/A | BS278: N/A | BT278: N/A | BU278: N/A | BV278: N/A | BW278: N/A
BB279: Did not eat with others | BC279: N/A | BD279: N/A | BE279: N/A | BF279: N/A | BG279: N/A | BH279: N/A | BI279: N/A | BJ279: N/A | BK279: N/A | BL279: N/A | BM279: N/A | BN279: N/A | BO279: N/A | BP279: N/A | BQ279: N/A | BR279: N/A | BS279: N/A | BT279: N/A | BU279: N/A | BV279: N/A | BW279: N/A
BB280: Did not bathe in regular place | BC280: N/A | BD280: N/A | BE280: N/A | BF280: N/A | BG280: N/A | BH280: N/A | BI280: N/A | BJ280: N/A | BK280: N/A | BL280: N/A | BM280: N/A | BN280: N/A | BO280: N/A | BP280: N/A | BQ280: N/A | BR280: N/A | BS280: N/A | BT280: N/A | BU280: N/A | BV280: N/A | BW280: N/A
BB281: Did not participate in other activities | BC281: N/A | BD281: N/A | BE281: N/A | BF281: N/A | BG281: N/A | BH281: N/A | BI281: N/A | BJ281: N/A | BK281: N/A | BL281: N/A | BM281: N/A | BN281: N/A | BO281: N/A | BP281: N/A | BQ281: N/A | BR281: N/A | BS281: N/A | BT281: N/A | BU281: N/A | BV281: N/A | BW281: N/A
BB282: DK/not sure/missing/no such activity | BC282: N/A | BD282: N/A | BE282: N/A | BF282: N/A | BG282: N/A | BH282: N/A | BI282: N/A | BJ282: N/A | BK282: N/A | BL282: N/A | BM282: N/A | BN282: N/A | BO282: N/A | BP282: N/A | BQ282: N/A | BR282: N/A | BS282: N/A | BT282: N/A | BU282: N/A | BV282: N/A | BW282: N/A
BA337: Raw numbers of respondents: | BB337: Basic water, sanitation and hygiene | BC337: NATIONAL wealth index quintile | BH337: URBAN wealth index quintile | BM337: RURAL wealth index quintile | BR337: SUB-REGIONS:
BA338: WatSan data, raw numbers (weighted) | BC338: Poorest | BD338: Poor | BE338: Middle | BF338: Rich | BG338: Richest | BH338: Poorest | BI338: Poor | BJ338: Middle | BK338: Rich | BL338: Richest | BM338: Poorest | BN338: Poor | BO338: Middle | BP338: Rich | BQ338: Richest | BR338: Atacora | BS338: Atlantique | BT338: Borgou | BU338: Mono | BV338: Oueme | BW338: Zou
BA339: Access to Basic Water Sanitation and Hygiene | BB339: Yes | BC339: N/A | BD339: N/A | BE339: N/A | BF339: N/A | BG339: N/A | BH339: N/A | BI339: N/A | BJ339: N/A | BK339: N/A | BL339: N/A | BM339: N/A | BN339: N/A | BO339: N/A | BP339: N/A | BQ339: N/A | BR339: N/A | BS339: N/A | BT339: N/A | BU339: N/A | BV339: N/A | BW339: N/A
BB340: No | BC340: N/A | BD340: N/A | BE340: N/A | BF340: N/A | BG340: N/A | BH340: N/A | BI340: N/A | BJ340: N/A | BK340: N/A | BL340: N/A | BM340: N/A | BN340: N/A | BO340: N/A | BP340: N/A | BQ340: N/A | BR340: N/A | BS340: N/A | BT340: N/A | BU340: N/A | BV340: N/A | BW340: N/A
BA341: Access to Basic Water and Sanitation | BB341: Yes | BC341: N/A | BD341: N/A | BE341: N/A | BF341: N/A | BG341: N/A | BH341: N/A | BI341: N/A | BJ341: N/A | BK341: N/A | BL341: N/A | BM341: N/A | BN341: N/A | BO341: N/A | BP341: N/A | BQ341: N/A | BR341: N/A | BS341: N/A | BT341: N/A | BU341: N/A | BV341: N/A | BW341: N/A
BB342: No | BC342: N/A | BD342: N/A | BE342: N/A | BF342: N/A | BG342: N/A | BH342: N/A | BI342: N/A | BJ342: N/A | BK342: N/A | BL342: N/A | BM342: N/A | BN342: N/A | BO342: N/A | BP342: N/A | BQ342: N/A | BR342: N/A | BS342: N/A | BT342: N/A | BU342: N/A | BV342: N/A | BW342: N/A
BA343: Access to Basic Water and Hygiene | BB343: Yes | BC343: N/A | BD343: N/A | BE343: N/A | BF343: N/A | BG343: N/A | BH343: N/A | BI343: N/A | BJ343: N/A | BK343: N/A | BL343: N/A | BM343: N/A | BN343: N/A | BO343: N/A | BP343: N/A | BQ343: N/A | BR343: N/A | BS343: N/A | BT343: N/A | BU343: N/A | BV343: N/A | BW343: N/A
BB344: No | BC344: N/A | BD344: N/A | BE344: N/A | BF344: N/A | BG344: N/A | BH344: N/A | BI344: N/A | BJ344: N/A | BK344: N/A | BL344: N/A | BM344: N/A | BN344: N/A | BO344: N/A | BP344: N/A | BQ344: N/A | BR344: N/A | BS344: N/A | BT344: N/A | BU344: N/A | BV344: N/A | BW344: N/A
BA345: Access to Basic Sanitation and Hygiene | BB345: Yes | BC345: N/A | BD345: N/A | BE345: N/A | BF345: N/A | BG345: N/A | BH345: N/A | BI345: N/A | BJ345: N/A | BK345: N/A | BL345: N/A | BM345: N/A | BN345: N/A | BO345: N/A | BP345: N/A | BQ345: N/A | BR345: N/A | BS345: N/A | BT345: N/A | BU345: N/A | BV345: N/A | BW345: N/A
BB346: No | BC346: N/A | BD346: N/A | BE346: N/A | BF346: N/A | BG346: N/A | BH346: N/A | BI346: N/A | BJ346: N/A | BK346: N/A | BL346: N/A | BM346: N/A | BN346: N/A | BO346: N/A | BP346: N/A | BQ346: N/A | BR346: N/A | BS346: N/A | BT346: N/A | BU346: N/A | BV346: N/A | BW346: N/A
BA347: Access to Basic Water | BB347: Yes | BC347: N/A | BD347: N/A | BE347: N/A | BF347: N/A | BG347: N/A | BH347: N/A | BI347: N/A | BJ347: N/A | BK347: N/A | BL347: N/A | BM347: N/A | BN347: N/A | BO347: N/A | BP347: N/A | BQ347: N/A | BR347: N/A | BS347: N/A | BT347: N/A | BU347: N/A | BV347: N/A | BW347: N/A
BB348: No | BC348: N/A | BD348: N/A | BE348: N/A | BF348: N/A | BG348: N/A | BH348: N/A | BI348: N/A | BJ348: N/A | BK348: N/A | BL348: N/A | BM348: N/A | BN348: N/A | BO348: N/A | BP348: N/A | BQ348: N/A | BR348: N/A | BS348: N/A | BT348: N/A | BU348: N/A | BV348: N/A | BW348: N/A
BA349: Access to Basic Sanitation | BB349: Yes | BC349: N/A | BD349: N/A | BE349: N/A | BF349: N/A | BG349: N/A | BH349: N/A | BI349: N/A | BJ349: N/A | BK349: N/A | BL349: N/A | BM349: N/A | BN349: N/A | BO349: N/A | BP349: N/A | BQ349: N/A | BR349: N/A | BS349: N/A | BT349: N/A | BU349: N/A | BV349: N/A | BW349: N/A
BB350: No | BC350: N/A | BD350: N/A | BE350: N/A | BF350: N/A | BG350: N/A | BH350: N/A | BI350: N/A | BJ350: N/A | BK350: N/A | BL350: N/A | BM350: N/A | BN350: N/A | BO350: N/A | BP350: N/A | BQ350: N/A | BR350: N/A | BS350: N/A | BT350: N/A | BU350: N/A | BV350: N/A | BW350: N/A
BA351: Access to Basic Hygiene | BB351: Yes | BC351: N/A | BD351: N/A | BE351: N/A | BF351: N/A | BG351: N/A | BH351: N/A | BI351: N/A | BJ351: N/A | BK351: N/A | BL351: N/A | BM351: N/A | BN351: N/A | BO351: N/A | BP351: N/A | BQ351: N/A | BR351: N/A | BS351: N/A | BT351: N/A | BU351: N/A | BV351: N/A | BW351: N/A
BB352: No | BC352: N/A | BD352: N/A | BE352: N/A | BF352: N/A | BG352: N/A | BH352: N/A | BI352: N/A | BJ352: N/A | BK352: N/A | BL352: N/A | BM352: N/A | BN352: N/A | BO352: N/A | BP352: N/A | BQ352: N/A | BR352: N/A | BS352: N/A | BT352: N/A | BU352: N/A | BV352: N/A | BW352: N/A
C397: INITIAL (national) Wealth Index | H397: URBAN Wealth Index | M397: RURAL Wealth Index
C398: Component Matrix | H398: Component Matrix | M398: Component Matrix
E399: Component | J399: Component | O399: Component
B400: Note: The INITIAL (national) Wealth Index is based on the first component of the Principal Component Analysis (PCA) which has been obtained at national level. The final national-level (NATIONAL) Wealth Index is based on the URBAN and RURAL specific wealth indexes. Regression procedures are used to establish the relationships between the two sets of scores (urban and rural) and the initial (national) wealth factors. This allows best use of the available information for each area and a better precision of the FINAL (NATIONAL) Wealth Index. For dependency reasons, all WASH variables (contained in the generic MICS and DHS scripts) have been excluded from the sets of asset variables used in the PCAs. The PCA can extracts as many components as there are asset variables in the input. Only the first of the components is used to represent the Wealth Index. The scores represent the weights of the asset variables on the Wealth Index (correlations between the variables and the component). The communalities are the proportion of each variable's variance that can be explained by the component. Proportion of explained variance is the part of the model's total variance that is explained by the component. For more information on the procedure used: The DHS Wealth Index, DHS Comparative Reports No. 6, Shea Oscar Rutstein, Kiersten Johnson, ORC Macro International Inc., 2004. The DHS Wealth Index: Approaches for Rural and Urban Areas, Shea O. Rutstein, ORC Macro International Inc., 2008. MICS Methodological Paper No. 4, Review of options for reporting water, sanitation and hygiene coverage by wealth quintile, UNICEF, 2016. | E400: 1 | J400: 1 | O400: 1
C401: Has electricity | E401: 0.8635554475 | H401: Has electricity | J401: 0.846115129 | M401: Has electricity | O401: 0.7827150765
C402: Electricity lighting | E402: 0.8607748859 | H402: Electricity lighting | J402: 0.8454647974 | M402: Electricity lighting | O402: 0.776825055
C403: Petrole lighting | E403: -0.8147652465 | H403: Petrole lighting | J403: -0.8416193019 | M403: Petrole lighting | O403: -0.6504318829
C404: if walls from bare brick, cement blocks | E404: 0.7803373647 | H404: if walls from bare brick, cement blocks | J404: 0.7773278801 | M404: if walls from bare brick, cement blocks | O404: 0.6499967216
C405: if uses wood as cooking fuel | E405: -0.7595994654 | H405: if has earth for walls | J405: -0.7448713068 | M405: Has television | O405: 0.6417180091
C406: Has television | E406: 0.7442359391 | H406: Has television | J406: 0.7223198169 | M406: if uses wood as cooking fuel | O406: -0.622613822
C407: if has earth for walls | E407: -0.678117239 | H407: if uses wood as cooking fuel | J407: -0.6964299679 | M407: if has earth for walls | O407: -0.5271105766
C408: Private removal of trash | E408: 0.6105846551 | H408: if has dirt, sand, dung as principal floor in dwelling | J408: -0.6058746209 | M408: Has refrigerator | O408: 0.5067387639
C409: if uses charcoal for cooking | E409: 0.5841952271 | H409: Private removal of trash | J409: 0.5468086968 | M409: if uses charcoal for cooking | O409: 0.498727358
C410: if has dirt, sand, dung as principal floor in dwelling | E410: -0.5829842244 | H410: Has refrigerator | J410: 0.5389472438 | M410: if has dirt, sand, dung as principal floor in dwelling | O410: -0.4886491242
C411: Has refrigerator | E411: 0.5773408653 | H411: Throw trash in bush/fields | J411: -0.5296298893 | M411: Has telephone | O411: 0.453927562
C412: Throw trash in bush/fields | E412: -0.5083002787 | H412: if has natural material roofing | J412: -0.4939633838 | M412: Private removal of trash | O412: 0.3844229823
C413: Has telephone | E413: 0.4893858486 | H413: if uses charcoal for cooking | J413: 0.4763144466 | M413: if has natural material roofing | O413: -0.3650150266
C414: if has natural material roofing | E414: -0.4256237211 | H414: Has telephone | J414: 0.4524512023 | M414: Has car/truck | O414: 0.3536453522
C415: Has car/truck | E415: 0.4241724772 | H415: Has car/truck | J415: 0.3883069885 | M415: Has motorcycle/scooter | O415: 0.350509404
C416: Has motorcycle/scooter | E416: 0.3811248671 | H416: Has bicycle | J416: -0.3861378008 | M416: if has tole tiles for roof | O416: 0.3164669764
C417: if has vinyl or asphalt strips as flooring material | E417: 0.3675958898 | H417: Has motorcycle/scooter | J417: 0.3797309459 | M417: if uses gasoline for cooking fuel | O417: 0.3127355982
C418: Has bicycle | E418: -0.3464423786 | H418: Has radio | J418: 0.3486721366 | M418: if has vinyl or asphalt strips as flooring material | O418: 0.2978099541
... 206 more rows

Sheet DHS06
A2: =A1026 -> Benin
A3: =A1034 -> 2006
A4: Use of drinking water sources
A5: by wealth quintile and sub-national region
A6: Notes:
A7: WHO/UNICEF JMP customised wealth index excludes water,
A8: sanitation and hygiene assets.
A9: Survey used for analysis: | B9: =A1025 -> DHS06
A10: =B1028 -> 
A11: =B1027 -> 
A14: Use of drinking water sources | C14: NATIONAL wealth index quintile | H14: URBAN wealth index quintile | M14: RURAL wealth index quintile | R14: SUB-REGIONS: | BA14: Raw numbers of respondents: | BB14: Use of drinking water sources | BC14: NATIONAL wealth index quintile | BH14: URBAN wealth index quintile | BM14: RURAL wealth index quintile | BR14: SUB-REGIONS:
A15: Weighted percentage (used in graphs) | C15: Poorest | D15: Poor | E15: Middle | F15: Rich | G15: Richest | H15: Poorest | I15: Poor | J15: Middle | K15: Rich | L15: Richest | M15: Poorest | N15: Poor | O15: Middle | P15: Rich | Q15: Richest | R15: alibori | S15: atacora | T15: atlantique | U15: borgou | V15: collines | W15: couffo | X15: donga | Y15: littoral | Z15: mono | AA15: plateau | AB15: quémé | AC15: zou | BA15: Water data, raw numbers (weighted) | BC15: Poorest | BD15: Poor | BE15: Middle | BF15: Rich | BG15: Richest | BH15: Poorest | BI15: Poor | BJ15: Middle | BK15: Rich | BL15: Richest | BM15: Poorest | BN15: Poor | BO15: Middle | BP15: Rich | BQ15: Richest | BR15: alibori | BS15: atacora | BT15: atlantique | BU15: borgou | BV15: collines | BW15: couffo | BX15: donga | BY15: littoral | BZ15: mono | CA15: plateau | CB15: quémé | CC15: zou
A16: Water | B16: Improved | C16: 54.9075336 | D16: 59.60041555 | E16: 63.11086846 | F16: 75.72393868 | G16: 88.86914799 | H16: 54.38138778 | I16: 73.09066845 | J16: 83.98254272 | K16: 89.38742613 | L16: 95.39529647 | M16: 55.59939897 | N16: 59.05639904 | O16: 60.11336275 | P16: 63.7977695 | Q16: 70.96596082 | R16: 56.87388697 | S16: 46.98723813 | T16: 70.99202616 | U16: 67.73589115 | V16: 76.5983499 | W16: 66.97414287 | X16: 41.94664377 | Y16: 99.22485167 | Z16: 62.92515366 | AA16: 75.17564861 | AB16: 69.10643859 | AC16: 70.67874306 | BA16: Water | BB16: Improved | BC16: N/A | BD16: N/A | BE16: N/A | BF16: N/A | BG16: N/A | BH16: N/A | BI16: N/A | BJ16: N/A | BK16: N/A | BL16: N/A | BM16: N/A | BN16: N/A | BO16: N/A | BP16: N/A | BQ16: N/A | BR16: N/A | BS16: N/A | BT16: N/A | BU16: N/A | BV16: N/A | BW16: N/A | BX16: N/A | BY16: N/A | BZ16: N/A | CA16: N/A | CB16: N/A | CC16: N/A
B17: Not Improved | C17: 45.0924664 | D17: 40.39958445 | E17: 36.88913154 | F17: 24.27606132 | G17: 11.13085201 | H17: 45.61861222 | I17: 26.90933155 | J17: 16.01745728 | K17: 10.61257387 | L17: 4.604703526 | M17: 44.40060103 | N17: 40.94360096 | O17: 39.88663725 | P17: 36.2022305 | Q17: 29.03403918 | R17: 43.12611303 | S17: 53.01276187 | T17: 29.00797384 | U17: 32.26410885 | V17: 23.4016501 | W17: 33.02585713 | X17: 58.05335623 | Y17: 0.7751483324 | Z17: 37.07484634 | AA17: 24.82435139 | AB17: 30.89356141 | AC17: 29.32125694 | BB17: Not Improved | BC17: N/A | BD17: N/A | BE17: N/A | BF17: N/A | BG17: N/A | BH17: N/A | BI17: N/A | BJ17: N/A | BK17: N/A | BL17: N/A | BM17: N/A | BN17: N/A | BO17: N/A | BP17: N/A | BQ17: N/A | BR17: N/A | BS17: N/A | BT17: N/A | BU17: N/A | BV17: N/A | BW17: N/A | BX17: N/A | BY17: N/A | BZ17: N/A | CA17: N/A | CB17: N/A | CC17: N/A
A18: Water ladder | B18: Basic | C18: =C16*C23/100 -> 46.28901674 | D18: =D16*D23/100 -> 52.43998212 | E18: =E16*E23/100 -> 57.19894504 | F18: 72.55839936 | G18: 87.6206314 | H18: 49.06611523 | I18: 69.67855839 | J18: 82.46753526 | K18: 88.73030297 | L18: 95.09175908 | M18: 45.33632743 | N18: 50.99125453 | O18: 53.9528082 | P18: 57.74504996 | Q18: 66.3806354 | R18: 51.49846414 | S18: 41.28963128 | T18: 66.09070323 | U18: 63.66623586 | V18: 62.58227737 | W18: 57.80528097 | X18: 40.64282947 | Y18: 99.22485167 | Z18: 53.15610821 | AA18: 67.57296151 | AB18: 67.19823387 | AC18: 67.5222607 | BA18: Water ladder | BB18: Basic | BC18: N/A | BD18: N/A | BE18: N/A | BF18: N/A | BG18: N/A | BH18: N/A | BI18: N/A | BJ18: N/A | BK18: N/A | BL18: N/A | BM18: N/A | BN18: N/A | BO18: N/A | BP18: N/A | BQ18: N/A | BR18: N/A | BS18: N/A | BT18: N/A | BU18: N/A | BV18: N/A | BW18: N/A | BX18: N/A | BY18: N/A | BZ18: N/A | CA18: N/A | CB18: N/A | CC18: N/A
B19: Limited | C19: =C16*C22/100 -> 8.618516865 | D19: =D16*D22/100 -> 7.16043343 | E19: =E16*E22/100 -> 5.911923419 | F19: 3.165539317 | G19: 1.24851659 | H19: 5.315272552 | I19: 3.412110063 | J19: 1.515007464 | K19: 0.6571231544 | L19: 0.3035373975 | M19: 10.26307155 | N19: 8.065144511 | O19: 6.160554557 | P19: 6.052719539 | Q19: 4.585325417 | R19: 5.375422835 | S19: 5.697606856 | T19: 4.901322931 | U19: 4.069655297 | V19: 14.01607254 | W19: 9.168861896 | X19: 1.303814296 | Y19: 0 | Z19: 9.769045447 | AA19: 7.602687101 | AB19: 1.90820472 | AC19: 3.15648236 | BB19: Limited | BC19: N/A | BD19: N/A | BE19: N/A | BF19: N/A | BG19: N/A | BH19: N/A | BI19: N/A | BJ19: N/A | BK19: N/A | BL19: N/A | BM19: N/A | BN19: N/A | BO19: N/A | BP19: N/A | BQ19: N/A | BR19: N/A | BS19: N/A | BT19: N/A | BU19: N/A | BV19: N/A | BW19: N/A | BX19: N/A | BY19: N/A | BZ19: N/A | CA19: N/A | CB19: N/A | CC19: N/A
B20: Unimproved | C20: =100-C18-C19-C21 -> 22.87828612 | D20: =100-D18-D19-D21 -> 25.25206921 | E20: =100-E18-E19-E21 -> 28.16597188 | F20: 21.73058726 | G20: 10.62131935 | H20: 28.04188925 | I20: 23.75215194 | J20: 15.28490908 | K20: 10.40020864 | L20: 4.604703526 | M20: 21.60626071 | N20: 23.3389208 | O20: 26.28258968 | P20: 28.06597317 | Q20: 25.41680666 | R20: 35.84260661 | S20: 26.2839076 | T20: 22.5634201 | U20: 17.19462544 | V20: 17.13267053 | W20: 27.23545655 | X20: 43.74912139 | Y20: 0.7751483324 | Z20: 32.8067628 | AA20: 6.169384268 | AB20: 25.58624525 | AC20: 15.1307713 | BB20: Unimproved | BC20: N/A | BD20: N/A | BE20: N/A | BF20: N/A | BG20: N/A | BH20: N/A | BI20: N/A | BJ20: N/A | BK20: N/A | BL20: N/A | BM20: N/A | BN20: N/A | BO20: N/A | BP20: N/A | BQ20: N/A | BR20: N/A | BS20: N/A | BT20: N/A | BU20: N/A | BV20: N/A | BW20: N/A | BX20: N/A | BY20: N/A | BZ20: N/A | CA20: N/A | CB20: N/A | CC20: N/A
B21: Surface water | C21: 22.21418028 | D21: 15.14751524 | E21: 8.723159659 | F21: 2.545474063 | G21: 0.5095326602 | H21: 17.57672297 | I21: 3.157179613 | J21: 0.7325481955 | K21: 0.2123652303 | L21: 0 | M21: 22.79434031 | N21: 17.60468016 | O21: 13.60404756 | P21: 8.136257336 | Q21: 3.617232522 | R21: 7.283506413 | S21: 26.72885427 | T21: 6.444553739 | U21: 15.06948341 | V21: 6.268979563 | W21: 5.790400585 | X21: 14.30423485 | Y21: 0 | Z21: 4.268083541 | AA21: 18.65496712 | AB21: 5.307316159 | AC21: 14.19048564 | BB21: Surface water | BC21: N/A | BD21: N/A | BE21: N/A | BF21: N/A | BG21: N/A | BH21: N/A | BI21: N/A | BJ21: N/A | BK21: N/A | BL21: N/A | BM21: N/A | BN21: N/A | BO21: N/A | BP21: N/A | BQ21: N/A | BR21: N/A | BS21: N/A | BT21: N/A | BU21: N/A | BV21: N/A | BW21: N/A | BX21: N/A | BY21: N/A | BZ21: N/A | CA21: N/A | CB21: N/A | CC21: N/A
A22: Improved water point at more than 30 minutes | B22: Yes | C22: 15.6964196 | D22: 12.01406628 | E22: 9.367520307 | F22: 4.180368021 | G22: 1.404893169 | H22: 9.774065666 | I22: 4.668325157 | J22: 1.803955221 | K22: 0.7351404811 | L22: 0.3181890604 | M22: 18.45896131 | N22: 13.65668182 | O22: 10.24822814 | P22: 9.487352907 | Q22: 6.461302524 | R22: 9.451477859 | S22: 12.1258603 | T22: 6.90404711 | U22: 6.00812247 | V22: 18.298139 | W22: 13.6901519 | X22: 3.108268455 | Y22: 0 | Z22: 15.52486546 | AA22: 10.11323113 | AB22: 2.761254608 | AC22: 4.465957122 | BA22: Improved water point at more than 30 minutes | BB22: Yes | BC22: N/A | BD22: N/A | BE22: N/A | BF22: N/A | BG22: N/A | BH22: N/A | BI22: N/A | BJ22: N/A | BK22: N/A | BL22: N/A | BM22: N/A | BN22: N/A | BO22: N/A | BP22: N/A | BQ22: N/A | BR22: N/A | BS22: N/A | BT22: N/A | BU22: N/A | BV22: N/A | BW22: N/A | BX22: N/A | BY22: N/A | BZ22: N/A | CA22: N/A | CB22: N/A | CC22: N/A
B23: No | C23: 84.3035804 | D23: 87.98593372 | E23: 90.63247969 | F23: 95.81963198 | G23: 98.59510683 | H23: 90.22593433 | I23: 95.33167484 | J23: 98.19604478 | K23: 99.26485952 | L23: 99.68181094 | M23: 81.54103869 | N23: 86.34331818 | O23: 89.75177186 | P23: 90.51264709 | Q23: 93.53869748 | R23: 90.54852214 | S23: 87.8741397 | T23: 93.09595289 | U23: 93.99187753 | V23: 81.701861 | W23: 86.3098481 | X23: 96.89173155 | Y23: 100 | Z23: 84.47513454 | AA23: 89.88676887 | AB23: 97.23874539 | AC23: 95.53404288 | BB23: No | BC23: N/A | BD23: N/A | BE23: N/A | BF23: N/A | BG23: N/A | BH23: N/A | BI23: N/A | BJ23: N/A | BK23: N/A | BL23: N/A | BM23: N/A | BN23: N/A | BO23: N/A | BP23: N/A | BQ23: N/A | BR23: N/A | BS23: N/A | BT23: N/A | BU23: N/A | BV23: N/A | BW23: N/A | BX23: N/A | BY23: N/A | BZ23: N/A | CA23: N/A | CB23: N/A | CC23: N/A
A24: Manually calculated ratios | B24: Improved wells
B25: Improved springs
B26: Other
C27: NATIONAL wealth index quintile | H27: URBAN wealth index quintile | M27: RURAL wealth index quintile | R27: SUB-REGIONS: | BA27: Raw numbers of respondents: | BB27: Use of drinking water sources | BC27: NATIONAL wealth index quintile | BH27: URBAN wealth index quintile | BM27: RURAL wealth index quintile | BR27: SUB-REGIONS:
A28: Percentage based on weighted population | C28: Poorest | D28: Poor | E28: Middle | F28: Rich | G28: Richest | H28: Poorest | I28: Poor | J28: Middle | K28: Rich | L28: Richest | M28: Poorest | N28: Poor | O28: Middle | P28: Rich | Q28: Richest | R28: alibori | S28: atacora | T28: atlantique | U28: borgou | V28: collines | W28: couffo | X28: donga | Y28: littoral | Z28: mono | AA28: plateau | AB28: quémé | AC28: zou | BA28: Water data, raw numbers (weighted) | BC28: Poorest | BD28: Poor | BE28: Middle | BF28: Rich | BG28: Richest | BH28: Poorest | BI28: Poor | BJ28: Middle | BK28: Rich | BL28: Richest | BM28: Poorest | BN28: Poor | BO28: Middle | BP28: Rich | BQ28: Richest | BR28: alibori | BS28: atacora | BT28: atlantique | BU28: borgou | BV28: collines | BW28: couffo | BX28: donga | BY28: littoral | BZ28: mono | CA28: plateau | CB28: quémé | CC28: zou
A29: Piped water | B29: Yes | C29: 22.6 | D29: 24.4 | E29: 27.7 | F29: 48.1 | G29: 77.9 | H29: 22 | I29: 45.7 | J29: 68.7 | K29: 81.4 | L29: 90.8 | M29: 22.1 | N29: 25.5 | O29: 24.1 | P29: 27.3 | Q29: 36.5 | R29: 13.9 | S29: 9.2 | T29: 52.5 | U29: 35.8 | V29: 20.3 | W29: 33.8 | X29: 16.3 | Y29: 99.2 | Z29: 42.9 | AA29: 47.9 | AB29: 55.3 | AC29: 30.4 | BA29: Piped water | BB29: Yes | BC29: N/A | BD29: N/A | BE29: N/A | BF29: N/A | BG29: N/A | BH29: N/A | BI29: N/A | BJ29: N/A | BK29: N/A | BL29: N/A | BM29: N/A | BN29: N/A | BO29: N/A | BP29: N/A | BQ29: N/A | BR29: N/A | BS29: N/A | BT29: N/A | BU29: N/A | BV29: N/A | BW29: N/A | BX29: N/A | BY29: N/A | BZ29: N/A | CA29: N/A | CB29: N/A | CC29: N/A
B30: No | C30: 77.4 | D30: 75.6 | E30: 72.3 | F30: 51.9 | G30: 22.1 | H30: 78 | I30: 54.3 | J30: 31.3 | K30: 18.6 | L30: 9.2 | M30: 77.9 | N30: 74.5 | O30: 75.9 | P30: 72.7 | Q30: 63.5 | R30: 86.1 | S30: 90.8 | T30: 47.5 | U30: 64.2 | V30: 79.7 | W30: 66.2 | X30: 83.7 | Y30: 0.8 | Z30: 57.1 | AA30: 52.1 | AB30: 44.7 | AC30: 69.6 | BB30: No | BC30: N/A | BD30: N/A | BE30: N/A | BF30: N/A | BG30: N/A | BH30: N/A | BI30: N/A | BJ30: N/A | BK30: N/A | BL30: N/A | BM30: N/A | BN30: N/A | BO30: N/A | BP30: N/A | BQ30: N/A | BR30: N/A | BS30: N/A | BT30: N/A | BU30: N/A | BV30: N/A | BW30: N/A | BX30: N/A | BY30: N/A | BZ30: N/A | CA30: N/A | CB30: N/A | CC30: N/A
A31: Piped water on premises | B31: Yes | C31: 8.4 | D31: 9.8 | E31: 15 | F31: 38.3 | G31: 73 | H31: 13.4 | I31: 38.4 | J31: 64.7 | K31: 77.7 | L31: 87.6 | M31: 7 | N31: 8.7 | O31: 9.4 | P31: 13 | Q31: 23.5 | R31: 9 | S31: 5 | T31: 36.6 | U31: 21.4 | V31: 7.8 | W31: 18.4 | X31: 10.3 | Y31: 97.5 | Z31: 24.4 | AA31: 22.1 | AB31: 42.1 | AC31: 25.3 | BA31: Piped water on premises | BB31: Yes | BC31: N/A | BD31: N/A | BE31: N/A | BF31: N/A | BG31: N/A | BH31: N/A | BI31: N/A | BJ31: N/A | BK31: N/A | BL31: N/A | BM31: N/A | BN31: N/A | BO31: N/A | BP31: N/A | BQ31: N/A | BR31: N/A | BS31: N/A | BT31: N/A | BU31: N/A | BV31: N/A | BW31: N/A | BX31: N/A | BY31: N/A | BZ31: N/A | CA31: N/A | CB31: N/A | CC31: N/A
B32: No | C32: 91.6 | D32: 90.2 | E32: 85 | F32: 61.7 | G32: 27 | H32: 86.6 | I32: 61.6 | J32: 35.3 | K32: 22.3 | L32: 12.4 | M32: 93 | N32: 91.3 | O32: 90.6 | P32: 87 | Q32: 76.5 | R32: 91 | S32: 95 | T32: 63.4 | U32: 78.6 | V32: 92.2 | W32: 81.6 | X32: 89.7 | Y32: 2.5 | Z32: 75.6 | AA32: 77.9 | AB32: 57.9 | AC32: 74.7 | BB32: No | BC32: N/A | BD32: N/A | BE32: N/A | BF32: N/A | BG32: N/A | BH32: N/A | BI32: N/A | BJ32: N/A | BK32: N/A | BL32: N/A | BM32: N/A | BN32: N/A | BO32: N/A | BP32: N/A | BQ32: N/A | BR32: N/A | BS32: N/A | BT32: N/A | BU32: N/A | BV32: N/A | BW32: N/A | BX32: N/A | BY32: N/A | BZ32: N/A | CA32: N/A | CB32: N/A | CC32: N/A
A33: Piped water into dwelling | B33: Yes | C33: N/A | D33: N/A | E33: N/A | F33: N/A | G33: N/A | H33: N/A | I33: N/A | J33: N/A | K33: N/A | L33: N/A | M33: N/A | N33: N/A | O33: N/A | P33: N/A | Q33: N/A | R33: N/A | S33: N/A | T33: N/A | U33: N/A | V33: N/A | W33: N/A | X33: N/A | Y33: N/A | Z33: N/A | AA33: N/A | AB33: N/A | AC33: N/A | BA33: Piped water into dwelling | BB33: Yes | BC33: N/A | BD33: N/A | BE33: N/A | BF33: N/A | BG33: N/A | BH33: N/A | BI33: N/A | BJ33: N/A | BK33: N/A | BL33: N/A | BM33: N/A | BN33: N/A | BO33: N/A | BP33: N/A | BQ33: N/A | BR33: N/A | BS33: N/A | BT33: N/A | BU33: N/A | BV33: N/A | BW33: N/A | BX33: N/A | BY33: N/A | BZ33: N/A | CA33: N/A | CB33: N/A | CC33: N/A
B34: No | C34: N/A | D34: N/A | E34: N/A | F34: N/A | G34: N/A | H34: N/A | I34: N/A | J34: N/A | K34: N/A | L34: N/A | M34: N/A | N34: N/A | O34: N/A | P34: N/A | Q34: N/A | R34: N/A | S34: N/A | T34: N/A | U34: N/A | V34: N/A | W34: N/A | X34: N/A | Y34: N/A | Z34: N/A | AA34: N/A | AB34: N/A | AC34: N/A | BB34: No | BC34: N/A | BD34: N/A | BE34: N/A | BF34: N/A | BG34: N/A | BH34: N/A | BI34: N/A | BJ34: N/A | BK34: N/A | BL34: N/A | BM34: N/A | BN34: N/A | BO34: N/A | BP34: N/A | BQ34: N/A | BR34: N/A | BS34: N/A | BT34: N/A | BU34: N/A | BV34: N/A | BW34: N/A | BX34: N/A | BY34: N/A | BZ34: N/A | CA34: N/A | CB34: N/A | CC34: N/A
A35: Water source on premises | B35: Yes | C35: 18.8 | D35: 22.6 | E35: 32 | F35: 56.9 | G35: 85.3 | H35: 24.5 | I35: 54.2 | J35: 79.9 | K35: 88.2 | L35: 94.9 | M35: 17.2 | N35: 21.7 | O35: 23.5 | P35: 30.1 | Q35: 47 | R35: 21 | S35: 13.6 | T35: 52.3 | U35: 29.3 | V35: 17.8 | W35: 44.5 | X35: 26 | Y35: 98.9 | Z35: 33.6 | AA35: 28.5 | AB35: 64.1 | AC35: 49.1 | BA35: Water source on premises | BB35: Yes | BC35: N/A | BD35: N/A | BE35: N/A | BF35: N/A | BG35: N/A | BH35: N/A | BI35: N/A | BJ35: N/A | BK35: N/A | BL35: N/A | BM35: N/A | BN35: N/A | BO35: N/A | BP35: N/A | BQ35: N/A | BR35: N/A | BS35: N/A | BT35: N/A | BU35: N/A | BV35: N/A | BW35: N/A | BX35: N/A | BY35: N/A | BZ35: N/A | CA35: N/A | CB35: N/A | CC35: N/A
B36: No | C36: 81.2 | D36: 77.4 | E36: 68 | F36: 43.1 | G36: 14.7 | H36: 75.5 | I36: 45.8 | J36: 20.1 | K36: 11.8 | L36: 5.1 | M36: 82.8 | N36: 78.3 | O36: 76.5 | P36: 69.9 | Q36: 53 | R36: 79 | S36: 86.4 | T36: 47.7 | U36: 70.7 | V36: 82.2 | W36: 55.5 | X36: 74 | Y36: 1.1 | Z36: 66.4 | AA36: 71.5 | AB36: 35.9 | AC36: 50.9 | BB36: No | BC36: N/A | BD36: N/A | BE36: N/A | BF36: N/A | BG36: N/A | BH36: N/A | BI36: N/A | BJ36: N/A | BK36: N/A | BL36: N/A | BM36: N/A | BN36: N/A | BO36: N/A | BP36: N/A | BQ36: N/A | BR36: N/A | BS36: N/A | BT36: N/A | BU36: N/A | BV36: N/A | BW36: N/A | BX36: N/A | BY36: N/A | BZ36: N/A | CA36: N/A | CB36: N/A | CC36: N/A
A37: Improved Water source on premises | B37: Yes | C37: 24.7 | D37: 28.2 | E37: 36.4 | F37: 61.7 | G37: 88.5 | H37: 33.8 | I37: 60.8 | J37: 83.8 | K37: 91.4 | L37: 95.6 | M37: 21.7 | N37: 27.4 | O37: 27.2 | P37: 34.4 | Q37: 49.3 | R37: 23.3 | S37: 13.9 | T37: 59.7 | U37: 35 | V37: 19.1 | W37: 54 | X37: 28.7 | Y37: 99.2 | Z37: 44.4 | AA37: 34.6 | AB37: 68.4 | AC37: 64.7 | BA37: Improved water source on premises | BB37: Yes | BC37: N/A | BD37: N/A | BE37: N/A | BF37: N/A | BG37: N/A | BH37: N/A | BI37: N/A | BJ37: N/A | BK37: N/A | BL37: N/A | BM37: N/A | BN37: N/A | BO37: N/A | BP37: N/A | BQ37: N/A | BR37: N/A | BS37: N/A | BT37: N/A | BU37: N/A | BV37: N/A | BW37: N/A | BX37: N/A | BY37: N/A | BZ37: N/A | CA37: N/A | CB37: N/A | CC37: N/A
B38: No | C38: 75.3 | D38: 71.8 | E38: 63.6 | F38: 38.3 | G38: 11.5 | H38: 66.2 | I38: 39.2 | J38: 16.2 | K38: 8.6 | L38: 4.4 | M38: 78.3 | N38: 72.6 | O38: 72.8 | P38: 65.6 | Q38: 50.7 | R38: 76.7 | S38: 86.1 | T38: 40.3 | U38: 65 | V38: 80.9 | W38: 46 | X38: 71.3 | Y38: 0.8 | Z38: 55.6 | AA38: 65.4 | AB38: 31.6 | AC38: 35.3 | BB38: No | BC38: N/A | BD38: N/A | BE38: N/A | BF38: N/A | BG38: N/A | BH38: N/A | BI38: N/A | BJ38: N/A | BK38: N/A | BL38: N/A | BM38: N/A | BN38: N/A | BO38: N/A | BP38: N/A | BQ38: N/A | BR38: N/A | BS38: N/A | BT38: N/A | BU38: N/A | BV38: N/A | BW38: N/A | BX38: N/A | BY38: N/A | BZ38: N/A | CA38: N/A | CB38: N/A | CC38: N/A
A39: Piped water on premises available when needed | B39: Yes | C39: N/A | D39: N/A | E39: N/A | F39: N/A | G39: N/A | H39: N/A | I39: N/A | J39: N/A | K39: N/A | L39: N/A | M39: N/A | N39: N/A | O39: N/A | P39: N/A | Q39: N/A | R39: N/A | S39: N/A | T39: N/A | U39: N/A | V39: N/A | W39: N/A | X39: N/A | Y39: N/A | Z39: N/A | AA39: N/A | AB39: N/A | AC39: N/A | BA39: Piped water on premises available when needed | BB39: Yes | BC39: N/A | BD39: N/A | BE39: N/A | BF39: N/A | BG39: N/A | BH39: N/A | BI39: N/A | BJ39: N/A | BK39: N/A | BL39: N/A | BM39: N/A | BN39: N/A | BO39: N/A | BP39: N/A | BQ39: N/A | BR39: N/A | BS39: N/A | BT39: N/A | BU39: N/A | BV39: N/A | BW39: N/A | BX39: N/A | BY39: N/A | BZ39: N/A | CA39: N/A | CB39: N/A | CC39: N/A
B40: No | C40: N/A | D40: N/A | E40: N/A | F40: N/A | G40: N/A | H40: N/A | I40: N/A | J40: N/A | K40: N/A | L40: N/A | M40: N/A | N40: N/A | O40: N/A | P40: N/A | Q40: N/A | R40: N/A | S40: N/A | T40: N/A | U40: N/A | V40: N/A | W40: N/A | X40: N/A | Y40: N/A | Z40: N/A | AA40: N/A | AB40: N/A | AC40: N/A | BB40: No | BC40: N/A | BD40: N/A | BE40: N/A | BF40: N/A | BG40: N/A | BH40: N/A | BI40: N/A | BJ40: N/A | BK40: N/A | BL40: N/A | BM40: N/A | BN40: N/A | BO40: N/A | BP40: N/A | BQ40: N/A | BR40: N/A | BS40: N/A | BT40: N/A | BU40: N/A | BV40: N/A | BW40: N/A | BX40: N/A | BY40: N/A | BZ40: N/A | CA40: N/A | CB40: N/A | CC40: N/A
A41: Water point at more than 30 minutes | B41: Yes | C41: 19.8 | D41: 16.1 | E41: 12.3 | F41: 5.7 | G41: 1.7 | H41: 16 | I41: 5.9 | J41: 1.9 | K41: 1.1 | L41: 0.3 | M41: 21.5 | N41: 18.3 | O41: 13.9 | P41: 12.5 | Q41: 7.9 | R41: 11.2 | S41: 14 | T41: 8.9 | U41: 11 | V41: 21.5 | W41: 20 | X41: 4.6 | Y41: 0 | Z41: 15.4 | AA41: 19.5 | AB41: 3.9 | AC41: 11 | BA41: Water point at more than 30 minutes | BB41: Yes | BC41: N/A | BD41: N/A | BE41: N/A | BF41: N/A | BG41: N/A | BH41: N/A | BI41: N/A | BJ41: N/A | BK41: N/A | BL41: N/A | BM41: N/A | BN41: N/A | BO41: N/A | BP41: N/A | BQ41: N/A | BR41: N/A | BS41: N/A | BT41: N/A | BU41: N/A | BV41: N/A | BW41: N/A | BX41: N/A | BY41: N/A | BZ41: N/A | CA41: N/A | CB41: N/A | CC41: N/A
B42: No | C42: 80.2 | D42: 83.9 | E42: 87.7 | F42: 94.3 | G42: 98.3 | H42: 84 | I42: 94.1 | J42: 98.1 | K42: 98.9 | L42: 99.7 | M42: 78.5 | N42: 81.7 | O42: 86.1 | P42: 87.5 | Q42: 92.1 | R42: 88.8 | S42: 86 | T42: 91.1 | U42: 89 | V42: 78.5 | W42: 80 | X42: 95.4 | Y42: 100 | Z42: 84.6 | AA42: 80.5 | AB42: 96.1 | AC42: 89 | BB42: No | BC42: N/A | BD42: N/A | BE42: N/A | BF42: N/A | BG42: N/A | BH42: N/A | BI42: N/A | BJ42: N/A | BK42: N/A | BL42: N/A | BM42: N/A | BN42: N/A | BO42: N/A | BP42: N/A | BQ42: N/A | BR42: N/A | BS42: N/A | BT42: N/A | BU42: N/A | BV42: N/A | BW42: N/A | BX42: N/A | BY42: N/A | BZ42: N/A | CA42: N/A | CB42: N/A | CC42: N/A
A43: Water source available when needed | B43: Yes | C43: N/A | D43: N/A | E43: N/A | F43: N/A | G43: N/A | H43: N/A | I43: N/A | J43: N/A | K43: N/A | L43: N/A | M43: N/A | N43: N/A | O43: N/A | P43: N/A | Q43: N/A | R43: N/A | S43: N/A | T43: N/A | U43: N/A | V43: N/A | W43: N/A | X43: N/A | Y43: N/A | Z43: N/A | AA43: N/A | AB43: N/A | AC43: N/A | BA43: Water source available when needed | BB43: Yes | BC43: N/A | BD43: N/A | BE43: N/A | BF43: N/A | BG43: N/A | BH43: N/A | BI43: N/A | BJ43: N/A | BK43: N/A | BL43: N/A | BM43: N/A | BN43: N/A | BO43: N/A | BP43: N/A | BQ43: N/A | BR43: N/A | BS43: N/A | BT43: N/A | BU43: N/A | BV43: N/A | BW43: N/A | BX43: N/A | BY43: N/A | BZ43: N/A | CA43: N/A | CB43: N/A | CC43: N/A
B44: No | C44: N/A | D44: N/A | E44: N/A | F44: N/A | G44: N/A | H44: N/A | I44: N/A | J44: N/A | K44: N/A | L44: N/A | M44: N/A | N44: N/A | O44: N/A | P44: N/A | Q44: N/A | R44: N/A | S44: N/A | T44: N/A | U44: N/A | V44: N/A | W44: N/A | X44: N/A | Y44: N/A | Z44: N/A | AA44: N/A | AB44: N/A | AC44: N/A | BB44: No | BC44: N/A | BD44: N/A | BE44: N/A | BF44: N/A | BG44: N/A | BH44: N/A | BI44: N/A | BJ44: N/A | BK44: N/A | BL44: N/A | BM44: N/A | BN44: N/A | BO44: N/A | BP44: N/A | BQ44: N/A | BR44: N/A | BS44: N/A | BT44: N/A | BU44: N/A | BV44: N/A | BW44: N/A | BX44: N/A | BY44: N/A | BZ44: N/A | CA44: N/A | CB44: N/A | CC44: N/A
A45: Improved water source available when needed | B45: Yes | C45: N/A | D45: N/A | E45: N/A | F45: N/A | G45: N/A | H45: N/A | I45: N/A | J45: N/A | K45: N/A | L45: N/A | M45: N/A | N45: N/A | O45: N/A | P45: N/A | Q45: N/A | R45: N/A | S45: N/A | T45: N/A | U45: N/A | V45: N/A | W45: N/A | X45: N/A | Y45: N/A | Z45: N/A | AA45: N/A | AB45: N/A | AC45: N/A | BA45: Improved water source available when needed | BB45: Yes | BC45: N/A | BD45: N/A | BE45: N/A | BF45: N/A | BG45: N/A | BH45: N/A | BI45: N/A | BJ45: N/A | BK45: N/A | BL45: N/A | BM45: N/A | BN45: N/A | BO45: N/A | BP45: N/A | BQ45: N/A | BR45: N/A | BS45: N/A | BT45: N/A | BU45: N/A | BV45: N/A | BW45: N/A | BX45: N/A | BY45: N/A | BZ45: N/A | CA45: N/A | CB45: N/A | CC45: N/A
B46: No | C46: N/A | D46: N/A | E46: N/A | F46: N/A | G46: N/A | H46: N/A | I46: N/A | J46: N/A | K46: N/A | L46: N/A | M46: N/A | N46: N/A | O46: N/A | P46: N/A | Q46: N/A | R46: N/A | S46: N/A | T46: N/A | U46: N/A | V46: N/A | W46: N/A | X46: N/A | Y46: N/A | Z46: N/A | AA46: N/A | AB46: N/A | AC46: N/A | BB46: No | BC46: N/A | BD46: N/A | BE46: N/A | BF46: N/A | BG46: N/A | BH46: N/A | BI46: N/A | BJ46: N/A | BK46: N/A | BL46: N/A | BM46: N/A | BN46: N/A | BO46: N/A | BP46: N/A | BQ46: N/A | BR46: N/A | BS46: N/A | BT46: N/A | BU46: N/A | BV46: N/A | BW46: N/A | BX46: N/A | BY46: N/A | BZ46: N/A | CA46: N/A | CB46: N/A | CC46: N/A
A47: Microbiological quality at point of collection | B47: Not contaminated (No E. coli in 100 mL) | C47: N/A | D47: N/A | E47: N/A | F47: N/A | G47: N/A | H47: N/A | I47: N/A | J47: N/A | K47: N/A | L47: N/A | M47: N/A | N47: N/A | O47: N/A | P47: N/A | Q47: N/A | R47: N/A | S47: N/A | T47: N/A | U47: N/A | V47: N/A | W47: N/A | X47: N/A | Y47: N/A | Z47: N/A | AA47: N/A | AB47: N/A | AC47: N/A | BA47: Microbiological quality at point of collection | BB47: Not contaminated (No E. coli in 100 mL) | BC47: N/A | BD47: N/A | BE47: N/A | BF47: N/A | BG47: N/A | BH47: N/A | BI47: N/A | BJ47: N/A | BK47: N/A | BL47: N/A | BM47: N/A | BN47: N/A | BO47: N/A | BP47: N/A | BQ47: N/A | BR47: N/A | BS47: N/A | BT47: N/A | BU47: N/A | BV47: N/A | BW47: N/A | BX47: N/A | BY47: N/A | BZ47: N/A | CA47: N/A | CB47: N/A | CC47: N/A
B48: Contaminated (E. coli detected in 100 mL) | C48: N/A | D48: N/A | E48: N/A | F48: N/A | G48: N/A | H48: N/A | I48: N/A | J48: N/A | K48: N/A | L48: N/A | M48: N/A | N48: N/A | O48: N/A | P48: N/A | Q48: N/A | R48: N/A | S48: N/A | T48: N/A | U48: N/A | V48: N/A | W48: N/A | X48: N/A | Y48: N/A | Z48: N/A | AA48: N/A | AB48: N/A | AC48: N/A | BB48: Contaminated (E. coli detected in 100 mL) | BC48: N/A | BD48: N/A | BE48: N/A | BF48: N/A | BG48: N/A | BH48: N/A | BI48: N/A | BJ48: N/A | BK48: N/A | BL48: N/A | BM48: N/A | BN48: N/A | BO48: N/A | BP48: N/A | BQ48: N/A | BR48: N/A | BS48: N/A | BT48: N/A | BU48: N/A | BV48: N/A | BW48: N/A | BX48: N/A | BY48: N/A | BZ48: N/A | CA48: N/A | CB48: N/A | CC48: N/A
B49: Highly contaminated (>100 CFU/100 mL) | C49: N/A | D49: N/A | E49: N/A | F49: N/A | G49: N/A | H49: N/A | I49: N/A | J49: N/A | K49: N/A | L49: N/A | M49: N/A | N49: N/A | O49: N/A | P49: N/A | Q49: N/A | R49: N/A | S49: N/A | T49: N/A | U49: N/A | V49: N/A | W49: N/A | X49: N/A | Y49: N/A | Z49: N/A | AA49: N/A | AB49: N/A | AC49: N/A | BB49: Highly contaminated (>100 CFU/100 mL) | BC49: N/A | BD49: N/A | BE49: N/A | BF49: N/A | BG49: N/A | BH49: N/A | BI49: N/A | BJ49: N/A | BK49: N/A | BL49: N/A | BM49: N/A | BN49: N/A | BO49: N/A | BP49: N/A | BQ49: N/A | BR49: N/A | BS49: N/A | BT49: N/A | BU49: N/A | BV49: N/A | BW49: N/A | BX49: N/A | BY49: N/A | BZ49: N/A | CA49: N/A | CB49: N/A | CC49: N/A
A50: Microbiological quality of improved water sources at point of collection | B50: Not contaminated (No E. coli in 100 mL) | C50: N/A | D50: N/A | E50: N/A | F50: N/A | G50: N/A | H50: N/A | I50: N/A | J50: N/A | K50: N/A | L50: N/A | M50: N/A | N50: N/A | O50: N/A | P50: N/A | Q50: N/A | R50: N/A | S50: N/A | T50: N/A | U50: N/A | V50: N/A | W50: N/A | X50: N/A | Y50: N/A | Z50: N/A | AA50: N/A | AB50: N/A | AC50: N/A | BA50: Microbiological quality of improved water sources at point of collection | BB50: Not contaminated (No E. coli in 100 mL) | BC50: N/A | BD50: N/A | BE50: N/A | BF50: N/A | BG50: N/A | BH50: N/A | BI50: N/A | BJ50: N/A | BK50: N/A | BL50: N/A | BM50: N/A | BN50: N/A | BO50: N/A | BP50: N/A | BQ50: N/A | BR50: N/A | BS50: N/A | BT50: N/A | BU50: N/A | BV50: N/A | BW50: N/A | BX50: N/A | BY50: N/A | BZ50: N/A | CA50: N/A | CB50: N/A | CC50: N/A
B51: Contaminated (E. coli detected in 100 mL) | C51: N/A | D51: N/A | E51: N/A | F51: N/A | G51: N/A | H51: N/A | I51: N/A | J51: N/A | K51: N/A | L51: N/A | M51: N/A | N51: N/A | O51: N/A | P51: N/A | Q51: N/A | R51: N/A | S51: N/A | T51: N/A | U51: N/A | V51: N/A | W51: N/A | X51: N/A | Y51: N/A | Z51: N/A | AA51: N/A | AB51: N/A | AC51: N/A | BB51: Contaminated (E. coli detected in 100 mL) | BC51: N/A | BD51: N/A | BE51: N/A | BF51: N/A | BG51: N/A | BH51: N/A | BI51: N/A | BJ51: N/A | BK51: N/A | BL51: N/A | BM51: N/A | BN51: N/A | BO51: N/A | BP51: N/A | BQ51: N/A | BR51: N/A | BS51: N/A | BT51: N/A | BU51: N/A | BV51: N/A | BW51: N/A | BX51: N/A | BY51: N/A | BZ51: N/A | CA51: N/A | CB51: N/A | CC51: N/A
B52: Highly contaminated (>100 CFU/100 mL) | C52: N/A | D52: N/A | E52: N/A | F52: N/A | G52: N/A | H52: N/A | I52: N/A | J52: N/A | K52: N/A | L52: N/A | M52: N/A | N52: N/A | O52: N/A | P52: N/A | Q52: N/A | R52: N/A | S52: N/A | T52: N/A | U52: N/A | V52: N/A | W52: N/A | X52: N/A | Y52: N/A | Z52: N/A | AA52: N/A | AB52: N/A | AC52: N/A | BB52: Highly contaminated (>100 CFU/100 mL) | BC52: N/A | BD52: N/A | BE52: N/A | BF52: N/A | BG52: N/A | BH52: N/A | BI52: N/A | BJ52: N/A | BK52: N/A | BL52: N/A | BM52: N/A | BN52: N/A | BO52: N/A | BP52: N/A | BQ52: N/A | BR52: N/A | BS52: N/A | BT52: N/A | BU52: N/A | BV52: N/A | BW52: N/A | BX52: N/A | BY52: N/A | BZ52: N/A | CA52: N/A | CB52: N/A | CC52: N/A
A53: Microbiological quality of piped on premises at point of collection | B53: Not contaminated (No E. coli in 100 mL) | C53: N/A | D53: N/A | E53: N/A | F53: N/A | G53: N/A | H53: N/A | I53: N/A | J53: N/A | K53: N/A | L53: N/A | M53: N/A | N53: N/A | O53: N/A | P53: N/A | Q53: N/A | R53: N/A | S53: N/A | T53: N/A | U53: N/A | V53: N/A | W53: N/A | X53: N/A | Y53: N/A | Z53: N/A | AA53: N/A | AB53: N/A | AC53: N/A | BA53: Microbiological quality of piped on premises at point of collection | BB53: Not contaminated (No E. coli in 100 mL) | BC53: N/A | BD53: N/A | BE53: N/A | BF53: N/A | BG53: N/A | BH53: N/A | BI53: N/A | BJ53: N/A | BK53: N/A | BL53: N/A | BM53: N/A | BN53: N/A | BO53: N/A | BP53: N/A | BQ53: N/A | BR53: N/A | BS53: N/A | BT53: N/A | BU53: N/A | BV53: N/A | BW53: N/A | BX53: N/A | BY53: N/A | BZ53: N/A | CA53: N/A | CB53: N/A | CC53: N/A
B54: Contaminated (E. coli detected in 100 mL) | C54: N/A | D54: N/A | E54: N/A | F54: N/A | G54: N/A | H54: N/A | I54: N/A | J54: N/A | K54: N/A | L54: N/A | M54: N/A | N54: N/A | O54: N/A | P54: N/A | Q54: N/A | R54: N/A | S54: N/A | T54: N/A | U54: N/A | V54: N/A | W54: N/A | X54: N/A | Y54: N/A | Z54: N/A | AA54: N/A | AB54: N/A | AC54: N/A | BB54: Contaminated (E. coli detected in 100 mL) | BC54: N/A | BD54: N/A | BE54: N/A | BF54: N/A | BG54: N/A | BH54: N/A | BI54: N/A | BJ54: N/A | BK54: N/A | BL54: N/A | BM54: N/A | BN54: N/A | BO54: N/A | BP54: N/A | BQ54: N/A | BR54: N/A | BS54: N/A | BT54: N/A | BU54: N/A | BV54: N/A | BW54: N/A | BX54: N/A | BY54: N/A | BZ54: N/A | CA54: N/A | CB54: N/A | CC54: N/A
B55: Highly contaminated (>100 CFU/100 mL) | C55: N/A | D55: N/A | E55: N/A | F55: N/A | G55: N/A | H55: N/A | I55: N/A | J55: N/A | K55: N/A | L55: N/A | M55: N/A | N55: N/A | O55: N/A | P55: N/A | Q55: N/A | R55: N/A | S55: N/A | T55: N/A | U55: N/A | V55: N/A | W55: N/A | X55: N/A | Y55: N/A | Z55: N/A | AA55: N/A | AB55: N/A | AC55: N/A | BB55: Highly contaminated (>100 CFU/100 mL) | BC55: N/A | BD55: N/A | BE55: N/A | BF55: N/A | BG55: N/A | BH55: N/A | BI55: N/A | BJ55: N/A | BK55: N/A | BL55: N/A | BM55: N/A | BN55: N/A | BO55: N/A | BP55: N/A | BQ55: N/A | BR55: N/A | BS55: N/A | BT55: N/A | BU55: N/A | BV55: N/A | BW55: N/A | BX55: N/A | BY55: N/A | BZ55: N/A | CA55: N/A | CB55: N/A | CC55: N/A
C56: NATIONAL wealth index quintile | H56: URBAN wealth index quintile | M56: RURAL wealth index quintile | R56: SUB-REGIONS: | BA56: Raw numbers of respondents: | BB56: Use of drinking water sources | BC56: NATIONAL wealth index quintile | BH56: URBAN wealth index quintile | BM56: RURAL wealth index quintile | BR56: SUB-REGIONS:
A57: Percentage based on weighted population | C57: Poorest | D57: Poor | E57: Middle | F57: Rich | G57: Richest | H57: Poorest | I57: Poor | J57: Middle | K57: Rich | L57: Richest | M57: Poorest | N57: Poor | O57: Middle | P57: Rich | Q57: Richest | R57: alibori | S57: atacora | T57: atlantique | U57: borgou | V57: collines | W57: couffo | X57: donga | Y57: littoral | Z57: mono | AA57: plateau | AB57: quémé | AC57: zou | BA57: Water data, raw numbers (weighted) | BC57: Poorest | BD57: Poor | BE57: Middle | BF57: Rich | BG57: Richest | BH57: Poorest | BI57: Poor | BJ57: Middle | BK57: Rich | BL57: Richest | BM57: Poorest | BN57: Poor | BO57: Middle | BP57: Rich | BQ57: Richest | BR57: alibori | BS57: atacora | BT57: atlantique | BU57: borgou | BV57: collines | BW57: couffo | BX57: donga | BY57: littoral | BZ57: mono | CA57: plateau | CB57: quémé | CC57: zou
A58: source of drinking water | B58: piped into dwelling | C58: 0.7805132022 | D58: 0.466787474 | E58: 1.499571362 | F58: 7.170734212 | G58: 37.26197959 | H58: 0.9603387896 | I58: 4.82419339 | J58: 16.05275897 | K58: 29.50361323 | L58: 59.86540108 | M58: 0.5438267606 | N58: 0.6012168119 | O58: 0.4589230996 | P58: 1.552214341 | Q58: 5.301476512 | R58: 1.455377493 | S58: 3.695046632 | T58: 7.175040072 | U58: 8.205345535 | V58: 1.934859022 | W58: 4.426571472 | X58: 2.294265721 | Y58: 48.53875765 | Z58: 4.013537842 | AA58: 2.922928245 | AB58: 12.10191577 | AC58: 6.935417992
B59: piped to yard/plot | C59: 7.614306042 | D59: 9.353840359 | E59: 13.54703141 | F59: 31.24274077 | G59: 35.82104018 | H59: 12.44277836 | I59: 33.62481762 | J59: 48.69645353 | K59: 48.20714315 | L59: 27.81169869 | M59: 6.458366133 | N59: 8.153021638 | O59: 8.986272955 | P59: 11.42071259 | Q59: 18.25475136 | R59: 7.547377054 | S59: 1.355806122 | T59: 29.38464379 | U59: 13.21997164 | V59: 5.905515395 | W59: 14.09011692 | X59: 7.991774063 | Y59: 49.10131825 | Z59: 20.45845791 | AA59: 19.13090802 | AB59: 30.06421817 | AC59: 18.38170472
B60: public tap/standpipe | C60: 14.24180322 | D60: 14.62930062 | E60: 12.70713471 | F60: 9.751101364 | G60: 4.896930769 | H60: 8.624175789 | I60: 7.224162228 | J60: 4.017460842 | K60: 3.733648013 | L60: 3.178907726 | M60: 15.08015764 | N60: 16.82444613 | O60: 14.69674664 | P60: 14.40250248 | Q60: 13.04150089 | R60: 4.935614756 | S60: 4.166152162 | T60: 15.94554282 | U60: 14.41820121 | V60: 12.42355384 | W60: 15.4239169 | X60: 6.079012238 | Y60: 1.685434927 | Z60: 18.60725392 | AA60: 25.83309585 | AB60: 13.27868959 | AC60: 5.092868684
B61: tube well or borehole | C61: 19.92174942 | D61: 20.28500216 | E61: 19.5918015 | F61: 14.03029449 | G61: 4.02542786 | H61: 17.12930777 | I61: 12.34164537 | J61: 5.745228501 | K61: 3.215493432 | L61: 1.192276691 | M61: 21.35461075 | N61: 19.78799632 | O61: 21.43306723 | P61: 20.52480877 | Q61: 17.88273207 | R61: 30.75270883 | S61: 27.47683589 | T61: 6.048938807 | U61: 21.15528859 | V61: 44.56621379 | W61: 13.70111696 | X61: 4.773921302 | Y61: 0 | Z61: 12.65901628 | AA61: 16.14775423 | AB61: 7.698601738 | AC61: 10.50230805
B62: protected well | C62: 8.599233625 | D62: 9.273281155 | E62: 9.678451511 | F62: 9.126126738 | G62: 4.752028555 | H62: 10.63321861 | I62: 11.18099662 | J62: 7.384785933 | K62: 3.260817488 | L62: 3.256768896 | M62: 8.564455043 | N62: 8.063085271 | O62: 9.049488887 | P62: 9.271147798 | Q62: 9.935544065 | R62: 12.07155251 | S62: 9.341414196 | T62: 8.603739025 | U62: 10.10735473 | V62: 10.66933915 | W62: 8.643324846 | X62: 20.54164214 | Y62: 0 | Z62: 5.714701506 | AA62: 8.264675685 | AB62: 5.799721279 | AC62: 6.488456331
B63: unprotected well | C63: 22.37115109 | D63: 24.90473959 | E63: 27.74735019 | F63: 21.33643732 | G63: 10.51537942 | H63: 27.56394668 | I63: 23.72276173 | J63: 15.09310463 | K63: 10.33129365 | L63: 4.386475708 | M63: 21.20152372 | N63: 22.93753384 | O63: 25.71275378 | P63: 27.702673 | Q63: 24.91938482 | R63: 35.84955016 | S63: 26.25268647 | T63: 22.39001487 | U63: 17.19965447 | V63: 17.13267053 | W63: 25.27722933 | X63: 43.62037835 | Y63: 0.6235896189 | Z63: 32.33256878 | AA63: 5.747176381 | AB63: 25.40969018 | AC63: 14.48722281
B64: protected spring | C64: 1.243955979 | D64: 0.5621413108 | E64: 0.4946493815 | F64: 0.3788361317 | G64: 0.05350596958 | H64: 1.378466589 | I64: 0.7852754571 | J64: 0.1605432719 | K64: 0.09906088259 | L64: 0 | M64: 1.25987783 | N64: 0.5438310626 | O64: 0.6959503048 | P64: 0.18554436 | Q64: 0.2338549716 | R64: 0.1112563252 | S64: 0.9889937447 | T64: 0.4901632475 | U64: 0.4508160089 | V64: 0.1138395747 | W64: 0.7577331195 | X64: 0.3071794529 | Y64: 0 | Z64: 1.684396618 | AA64: 1.331404062 | AB64: 0.2402269846 | AC64: 0.7404340579
B65: river/dam/lake/ponds/stream/canal/irirgation channel | C65: 22.24498812 | D65: 15.13657044 | E65: 8.733000274 | F65: 2.547402771 | G65: 0.5088895955 | H65: 17.56495147 | I65: 3.155164549 | J65: 0.7324625869 | K65: 0.2125285694 | L65: 0 | M65: 22.8117069 | N65: 17.63396454 | O65: 13.60286799 | P65: 8.143919721 | Q65: 3.613004369 | R65: 7.276562869 | S65: 26.72306478 | T65: 6.441101607 | U65: 15.06445438 | V65: 6.268979563 | W65: 5.822034337 | X65: 14.30383947 | Y65: 0 | Z65: 4.277781709 | AA65: 18.58388106 | AB65: 5.315220679 | AC65: 14.15677697
B66: rainwater collected in tank | C66: 2.587643706 | D66: 4.83404198 | E66: 5.590011127 | F66: 4.113181345 | G66: 2.013770478 | H66: 3.304948809 | I66: 3.09191122 | J66: 1.791402243 | K66: 1.354575347 | L66: 0.08761758765 | M66: 2.349360108 | N66: 4.944813083 | O66: 4.71216887 | P66: 6.392312313 | Q66: 6.498792062 | R66: 0 | S66: 0 | T66: 3.335255902 | U66: 0.1789134333 | V66: 0.985029126 | W66: 10.08226438 | X66: 0 | Y66: 0 | Z66: 0 | AA66: 1.544882519 | AB66: 0 | AC66: 22.01103323
B67: other rainwater | C67: 0.3752598846 | D67: 0.3210191016 | E67: 0.3048943987 | F67: 0.220508977 | G67: 0.06164514129 | H67: 0.3978671212 | I67: 0 | J67: 0.1317104392 | K67: 0 | L67: 0.1635778965 | M67: 0.3450102704 | N67: 0.2738656429 | O67: 0.4881576169 | P67: 0.2590526404 | Q67: 0.2741532508 | R67: 0 | S67: 0 | T67: 0.1768573625 | U67: 0 | V67: 0 | W67: 1.560704536 | X67: 0.08798727037 | Y67: 0 | Z67: 0.2522854408 | AA67: 0.4932939479 | AB67: 0 | AC67: 0.5618885289
B68: tanker truck | C68: 0.01939571578 | D68: 0.2332758109 | E68: 0.1061041366 | F68: 0.07358831454 | G68: 0.06781780246 | H68: 0 | I68: 0.04907182116 | J68: 0.1701182799 | K68: 0.08182623338 | L68: 0 | M68: 0.03110485463 | N68: 0.236225666 | O68: 0.1636026274 | P68: 0.1451119849 | Q68: 0.04480563851 | R68: 0 | S68: 0 | T68: 0.008702496196 | U68: 0 | V68: 0 | W68: 0.2149871928 | X68: 0 | Y68: 0 | Z68: 0 | AA68: 0 | AB68: 0.07770494259 | AC68: 0.6418886147
B69: bottled water | C69: 0 | D69: 0 | E69: 0 | F69: 0.009047556075 | G69: 0.02158464075 | H69: 0 | I69: 0 | J69: 0.02397076433 | K69: 0 | L69: 0.05727572453 | M69: 0 | N69: 0 | O69: 0 | P69: 0 | Q69: 0 | R69: 0 | S69: 0 | T69: 0 | U69: 0 | V69: 0 | W69: 0 | X69: 0 | Y69: 0.05089955243 | Z69: 0 | AA69: 0 | AB69: 0.01401067364 | AC69: 0
A108: =A1026 -> Benin
A109: =A1034 -> 2006
A110: Use of sanitation facilities
A111: by wealth quintile and sub-national region
A112: Notes:
A113: WHO/UNICEF JMP customised wealth index excludes water,
A114: sanitation and hygiene assets.
A115: Survey used for analysis: | B115: =A1025 -> DHS06
A116: =B1030 -> Ratio of Improved latrines based on: | B116: DHS12
A117: =B1029 -> Ratio of Shared improved based on: | B117: DHS12
A120: Use of sanitation facilities | C120: NATIONAL wealth index quintile | H120: URBAN wealth index quintile | M120: RURAL wealth index quintile | R120: SUB-REGIONS: | BA120: Raw numbers of respondents: | BB120: Use of sanitation facilities | BC120: NATIONAL wealth index quintile | BH120: URBAN wealth index quintile | BM120: RURAL wealth index quintile | BR120: SUB-REGIONS:
A121: Weighted percentage (used in graphs) | C121: Poorest | D121: Poor | E121: Middle | F121: Rich | G121: Richest | H121: Poorest | I121: Poor | J121: Middle | K121: Rich | L121: Richest | M121: Poorest | N121: Poor | O121: Middle | P121: Rich | Q121: Richest | R121: alibori | S121: atacora | T121: atlantique | U121: borgou | V121: collines | W121: couffo | X121: donga | Y121: littoral | Z121: mono | AA121: plateau | AB121: quémé | AC121: zou | BA121: Sanitation data, raw numbers (weighted) | BC121: Poorest | BD121: Poor | BE121: Middle | BF121: Rich | BG121: Richest | BH121: Poorest | BI121: Poor | BJ121: Middle | BK121: Rich | BL121: Richest | BM121: Poorest | BN121: Poor | BO121: Middle | BP121: Rich | BQ121: Richest | BR121: alibori | BS121: atacora | BT121: atlantique | BU121: borgou | BV121: collines | BW121: couffo | BX121: donga | BY121: littoral | BZ121: mono | CA121: plateau | CB121: quémé | CC121: zou
A122: Sanitation | B122: Improved | C122: =C153+C154+C156+C155*'DHS12'!C130/100 -> 4.336239517 | D122: =D153+D154+D156+D155*'DHS12'!D130/100 -> 8.192029922 | E122: =E153+E154+E156+E155*'DHS12'!E130/100 -> 16.95500381 | F122: =F153+F154+F156+F155*'DHS12'!F130/100 -> 40.68741432 | G122: =G153+G154+G156+G155*'DHS12'!G130/100 -> 80.73690551 | H122: =H153+H154+H156+H155*'DHS12'!H130/100 -> 9.251149071 | I122: =I153+I154+I156+I155*'DHS12'!I130/100 -> 35.97213148 | J122: =J153+J154+J156+J155*'DHS12'!J130/100 -> 63.71273654 | K122: =K153+K154+K156+K155*'DHS12'!K130/100 -> 81.07371319 | L122: =L153+L154+L156+L155*'DHS12'!L130/100 -> 93.14811465 | M122: =M153+M154+M156+M155*'DHS12'!M130/100 -> 3.841895706 | N122: =N153+N154+N156+N155*'DHS12'!N130/100 -> 6.20924519 | O122: =O153+O154+O156+O155*'DHS12'!O130/100 -> 9.312602109 | P122: =P153+P154+P156+P155*'DHS12'!P130/100 -> 15.25723322 | Q122: =Q153+Q154+Q156+Q155*'DHS12'!Q130/100 -> 36.13987789 | R122: =R153+R154+R156+R155*'DHS12'!R130/100 -> 9.474373625 | S122: =S153+S154+S156+S155*'DHS12'!S130/100 -> 8.869718584 | T122: =T153+T154+T156+T155*'DHS12'!T130/100 -> 35.92330111 | U122: =U153+U154+U156+U155*'DHS12'!U130/100 -> 22.99870563 | V122: =V153+V154+V156+V155*'DHS12'!V130/100 -> 14.04828094 | W122: =W153+W154+W156+W155*'DHS12'!W130/100 -> 22.99782519 | X122: =X153+X154+X156+X155*'DHS12'!X130/100 -> 19.44802308 | Y122: =Y153+Y154+Y156+Y155*'DHS12'!Y130/100 -> 82.21656053 | Z122: =Z153+Z154+Z156+Z155*'DHS12'!Z130/100 -> 16.94646515 | AA122: =AA153+AA154+AA156+AA155*'DHS12'!AA130/100 -> 27.1551243 | AB122: =AB153+AB154+AB156+AB155*'DHS12'!AB130/100 -> 37.63007523 | AC122: =AC153+AC154+AC156+AC155*'DHS12'!AC130/100 -> 32.61964497 | BA122: Sanitation | BB122: Improved | BC122: N/A | BD122: N/A | BE122: N/A | BF122: N/A | BG122: N/A | BH122: N/A | BI122: N/A | BJ122: N/A | BK122: N/A | BL122: N/A | BM122: N/A | BN122: N/A | BO122: N/A | BP122: N/A | BQ122: N/A | BR122: N/A | BS122: N/A | BT122: N/A | BU122: N/A | BV122: N/A | BW122: N/A | BX122: N/A | BY122: N/A | BZ122: N/A | CA122: N/A | CB122: N/A | CC122: N/A
B123: Not Improved | C123: =100-C122 -> 95.66376048 | D123: =100-D122 -> 91.80797008 | E123: 83.04499619 | F123: 59.31258568 | G123: 19.26309449 | H123: 90.74885093 | I123: 64.02786852 | J123: 36.28726346 | K123: 18.92628681 | L123: 6.85188535 | M123: 96.15810429 | N123: 93.79075481 | O123: 90.68739789 | P123: 84.74276678 | Q123: 63.86012211 | R123: 90.52562638 | S123: 91.13028142 | T123: 64.07669889 | U123: 77.00129437 | V123: 85.95171906 | W123: 77.00217481 | X123: 80.55197692 | Y123: 17.78343947 | Z123: 83.05353485 | AA123: 72.8448757 | AB123: 62.36992477 | AC123: 67.38035503 | BB123: Not Improved | BC123: N/A | BD123: N/A | BE123: N/A | BF123: N/A | BG123: N/A | BH123: N/A | BI123: N/A | BJ123: N/A | BK123: N/A | BL123: N/A | BM123: N/A | BN123: N/A | BO123: N/A | BP123: N/A | BQ123: N/A | BR123: N/A | BS123: N/A | BT123: N/A | BU123: N/A | BV123: N/A | BW123: N/A | BX123: N/A | BY123: N/A | BZ123: N/A | CA123: N/A | CB123: N/A | CC123: N/A
A124: Sanitation ladder | B124: Basic | C124: =C122*'DHS12'!C129/100 -> 1.03525177 | D124: =D122*'DHS12'!D129/100 -> 4.070879491 | E124: =E122*'DHS12'!E129/100 -> 6.385426124 | F124: =F122*'DHS12'!F129/100 -> 13.55471442 | G124: =G122*'DHS12'!G129/100 -> 48.93218515 | H124: =H122*'DHS12'!H129/100 -> 3.609476798 | I124: =I122*'DHS12'!I129/100 -> 11.69523874 | J124: =J122*'DHS12'!J129/100 -> 19.81189841 | K124: =K122*'DHS12'!K129/100 -> 37.38255822 | L124: =L122*'DHS12'!L129/100 -> 70.51087769 | M124: =M122*'DHS12'!M129/100 -> 0.8887759448 | N124: =N122*'DHS12'!N129/100 -> 2.909993234 | O124: =O122*'DHS12'!O129/100 -> 4.272689793 | P124: =P122*'DHS12'!P129/100 -> 6.24412784 | Q124: =Q122*'DHS12'!Q129/100 -> 17.42582199 | R124: =R122*'DHS12'!R129/100 -> 3.276400473 | S124: =S122*'DHS12'!S129/100 -> 5.332307772 | T124: =T122*'DHS12'!T129/100 -> 18.36868337 | U124: =U122*'DHS12'!U129/100 -> 7.925653956 | V124: =V122*'DHS12'!V129/100 -> 7.548703479 | W124: =W122*'DHS12'!W129/100 -> 10.40621606 | X124: =X122*'DHS12'!X129/100 -> 7.696241563 | Y124: =Y122*'DHS12'!Y129/100 -> 38.90847497 | Z124: =Z122*'DHS12'!Z129/100 -> 7.235406326 | AA124: =AA122*'DHS12'!AA129/100 -> 14.03760021 | AB124: =AB122*'DHS12'!AB129/100 -> 21.20279038 | AC124: =AC122*'DHS12'!AC129/100 -> 19.30357999 | BA124: Sanitation ladder | BB124: Basic | BC124: N/A | BD124: N/A | BE124: N/A | BF124: N/A | BG124: N/A | BH124: N/A | BI124: N/A | BJ124: N/A | BK124: N/A | BL124: N/A | BM124: N/A | BN124: N/A | BO124: N/A | BP124: N/A | BQ124: N/A | BR124: N/A | BS124: N/A | BT124: N/A | BU124: N/A | BV124: N/A | BW124: N/A | BX124: N/A | BY124: N/A | BZ124: N/A | CA124: N/A | CB124: N/A | CC124: N/A
B125: Limited | C125: =C122*'DHS12'!C128/100 -> 3.300987747 | D125: =D122*'DHS12'!D128/100 -> 4.121150431 | E125: =E122*'DHS12'!E128/100 -> 10.56957768 | F125: =F122*'DHS12'!F128/100 -> 27.1326999 | G125: =G122*'DHS12'!G128/100 -> 31.80472036 | H125: =H122*'DHS12'!H128/100 -> 5.641672273 | I125: =I122*'DHS12'!I128/100 -> 24.27689274 | J125: =J122*'DHS12'!J128/100 -> 43.90083813 | K125: =K122*'DHS12'!K128/100 -> 43.69115497 | L125: =L122*'DHS12'!L128/100 -> 22.63723696 | M125: =M122*'DHS12'!M128/100 -> 2.953119762 | N125: =N122*'DHS12'!N128/100 -> 3.299251956 | O125: =O122*'DHS12'!O128/100 -> 5.039912316 | P125: =P122*'DHS12'!P128/100 -> 9.013105382 | Q125: =Q122*'DHS12'!Q128/100 -> 18.71405591 | R125: =R122*'DHS12'!R128/100 -> 6.197973152 | S125: =S122*'DHS12'!S128/100 -> 3.537410812 | T125: =T122*'DHS12'!T128/100 -> 17.55461774 | U125: =U122*'DHS12'!U128/100 -> 15.07305167 | V125: =V122*'DHS12'!V128/100 -> 6.499577465 | W125: =W122*'DHS12'!W128/100 -> 12.59160913 | X125: =X122*'DHS12'!X128/100 -> 11.75178152 | Y125: =Y122*'DHS12'!Y128/100 -> 43.30808556 | Z125: =Z122*'DHS12'!Z128/100 -> 9.711058826 | AA125: =AA122*'DHS12'!AA128/100 -> 13.11752409 | AB125: =AB122*'DHS12'!AB128/100 -> 16.42728486 | AC125: =AC122*'DHS12'!AC128/100 -> 13.31606498 | BB125: Limited | BC125: N/A | BD125: N/A | BE125: N/A | BF125: N/A | BG125: N/A | BH125: N/A | BI125: N/A | BJ125: N/A | BK125: N/A | BL125: N/A | BM125: N/A | BN125: N/A | BO125: N/A | BP125: N/A | BQ125: N/A | BR125: N/A | BS125: N/A | BT125: N/A | BU125: N/A | BV125: N/A | BW125: N/A | BX125: N/A | BY125: N/A | BZ125: N/A | CA125: N/A | CB125: N/A | CC125: N/A
B126: Unimproved | C126: =100-C124-C125-C127 -> 2.602003562 | D126: =100-D124-D125-D127 -> 2.79974056 | E126: 3.796473422 | F126: 8.313746878 | G126: 7.263690579 | H126: 1.842275693 | I126: 7.260761879 | J126: 10.89226031 | K126: 9.459611266 | L126: 4.857019996 | M126: 2.707594583 | N126: 3.198648081 | O126: 2.983975095 | P126: 3.700218406 | Q126: 6.54313094 | R126: 1.601870963 | S126: 1.400275186 | T126: 6.820133646 | U126: 2.822487602 | V126: 3.312914925 | W126: 3.823379702 | X126: 4.969130201 | Y126: 10.37133155 | Z126: 10.38655515 | AA126: 2.751633269 | AB126: 11.06717612 | AC126: 5.486367496 | BB126: Unimproved | BC126: N/A | BD126: N/A | BE126: N/A | BF126: N/A | BG126: N/A | BH126: N/A | BI126: N/A | BJ126: N/A | BK126: N/A | BL126: N/A | BM126: N/A | BN126: N/A | BO126: N/A | BP126: N/A | BQ126: N/A | BR126: N/A | BS126: N/A | BT126: N/A | BU126: N/A | BV126: N/A | BW126: N/A | BX126: N/A | BY126: N/A | BZ126: N/A | CA126: N/A | CB126: N/A | CC126: N/A
B127: Open defecation | C127: =C157 -> 93.06175692 | D127: =D157 -> 89.00822952 | E127: 79.24852277 | F127: 50.9988388 | G127: 11.99940391 | H127: 88.90657524 | I127: 56.76710664 | J127: 25.39500315 | K127: 9.466675547 | L127: 1.994865353 | M127: 93.45050971 | N127: 90.59210673 | O127: 87.7034228 | P127: 81.04254837 | Q127: 57.31699117 | R127: 88.92375541 | S127: 89.73000623 | T127: 57.25656524 | U127: 74.17880677 | V127: 82.63880413 | W127: 73.17879511 | X127: 75.58284672 | Y127: 7.412107928 | Z127: 72.66697969 | AA127: 70.09324243 | AB127: 51.30274865 | AC127: 61.89398754 | BB127: Open defecation | BC127: N/A | BD127: N/A | BE127: N/A | BF127: N/A | BG127: N/A | BH127: N/A | BI127: N/A | BJ127: N/A | BK127: N/A | BL127: N/A | BM127: N/A | BN127: N/A | BO127: N/A | BP127: N/A | BQ127: N/A | BR127: N/A | BS127: N/A | BT127: N/A | BU127: N/A | BV127: N/A | BW127: N/A | BX127: N/A | BY127: N/A | BZ127: N/A | CA127: N/A | CB127: N/A | CC127: N/A
A128: Shared among Improved Sanitation | B128: Yes | C128: N/A | D128: N/A | E128: N/A | F128: N/A | G128: N/A | H128: N/A | I128: N/A | J128: N/A | K128: N/A | L128: N/A | M128: N/A | N128: N/A | O128: N/A | P128: N/A | Q128: N/A | R128: N/A | S128: N/A | T128: N/A | U128: N/A | V128: N/A | W128: N/A | X128: N/A | Y128: N/A | Z128: N/A | AA128: N/A | AB128: N/A | AC128: N/A | BA128: Shared among improved sanitation facilities | BB128: Yes | BC128: N/A | BD128: N/A | BE128: N/A | BF128: N/A | BG128: N/A | BH128: N/A | BI128: N/A | BJ128: N/A | BK128: N/A | BL128: N/A | BM128: N/A | BN128: N/A | BO128: N/A | BP128: N/A | BQ128: N/A | BR128: N/A | BS128: N/A | BT128: N/A | BU128: N/A | BV128: N/A | BW128: N/A | BX128: N/A | BY128: N/A | BZ128: N/A | CA128: N/A | CB128: N/A | CC128: N/A
B129: No | C129: N/A | D129: N/A | E129: N/A | F129: N/A | G129: N/A | H129: N/A | I129: N/A | J129: N/A | K129: N/A | L129: N/A | M129: N/A | N129: N/A | O129: N/A | P129: N/A | Q129: N/A | R129: N/A | S129: N/A | T129: N/A | U129: N/A | V129: N/A | W129: N/A | X129: N/A | Y129: N/A | Z129: N/A | AA129: N/A | AB129: N/A | AC129: N/A | BB129: No | BC129: N/A | BD129: N/A | BE129: N/A | BF129: N/A | BG129: N/A | BH129: N/A | BI129: N/A | BJ129: N/A | BK129: N/A | BL129: N/A | BM129: N/A | BN129: N/A | BO129: N/A | BP129: N/A | BQ129: N/A | BR129: N/A | BS129: N/A | BT129: N/A | BU129: N/A | BV129: N/A | BW129: N/A | BX129: N/A | BY129: N/A | BZ129: N/A | CA129: N/A | CB129: N/A | CC129: N/A
A130: Manually calculated ratios | B130: Improved latrines
B131: Other
B132: Other
C133: NATIONAL wealth index quintile | H133: URBAN wealth index quintile | M133: RURAL wealth index quintile | R133: SUB-REGIONS: | BA133: Raw numbers of respondents: | BB133: Use of sanitation facilities | BC133: NATIONAL wealth index quintile | BH133: URBAN wealth index quintile | BM133: RURAL wealth index quintile | BR133: SUB-REGIONS:
A134: Percentage based on weighted population | C134: Poorest | D134: Poor | E134: Middle | F134: Rich | G134: Richest | H134: Poorest | I134: Poor | J134: Middle | K134: Rich | L134: Richest | M134: Poorest | N134: Poor | O134: Middle | P134: Rich | Q134: Richest | R134: alibori | S134: atacora | T134: atlantique | U134: borgou | V134: collines | W134: couffo | X134: donga | Y134: littoral | Z134: mono | AA134: plateau | AB134: quémé | AC134: zou | BA134: Sanitation data, raw numbers (weighted) | BC134: Poorest | BD134: Poor | BE134: Middle | BF134: Rich | BG134: Richest | BH134: Poorest | BI134: Poor | BJ134: Middle | BK134: Rich | BL134: Richest | BM134: Poorest | BN134: Poor | BO134: Middle | BP134: Rich | BQ134: Richest | BR134: alibori | BS134: atacora | BT134: atlantique | BU134: borgou | BV134: collines | BW134: couffo | BX134: donga | BY134: littoral | BZ134: mono | CA134: plateau | CB134: quémé | CC134: zou
A135: Sanitation type | B135: Sewer connection | C135: 0.08422112336 | D135: 0.2487531818 | E135: 0 | F135: 0.02897663536 | G135: 0.1259176283 | H135: 0 | I135: 0 | J135: 0.07689022948 | K135: 0.02491485973 | L135: 0.3091926013 | M135: 0.08748932512 | N135: 0.355986675 | O135: 0.09078201629 | P135: 0 | Q135: 0 | R135: 0 | S135: 0.1137052353 | T135: 0.4515040754 | U135: 0 | V135: 0 | W135: 0 | X135: 0.03929762769 | Y135: 0.1397818283 | Z135: 0.05925747622 | AA135: 0.4043031022 | AB135: 0 | AC135: 0 | BA135: Sanitation type | BB135: Sewer connection | BC135: N/A | BD135: N/A | BE135: N/A | BF135: N/A | BG135: N/A | BH135: N/A | BI135: N/A | BJ135: N/A | BK135: N/A | BL135: N/A | BM135: N/A | BN135: N/A | BO135: N/A | BP135: N/A | BQ135: N/A | BR135: N/A | BS135: N/A | BT135: N/A | BU135: N/A | BV135: N/A | BW135: N/A | BX135: N/A | BY135: N/A | BZ135: N/A | CA135: N/A | CB135: N/A | CC135: N/A
B136: Septic tank connection | C136: N/A | D136: N/A | E136: N/A | F136: N/A | G136: N/A | H136: N/A | I136: N/A | J136: N/A | K136: N/A | L136: N/A | M136: N/A | N136: N/A | O136: N/A | P136: N/A | Q136: N/A | R136: N/A | S136: N/A | T136: N/A | U136: N/A | V136: N/A | W136: N/A | X136: N/A | Y136: N/A | Z136: N/A | AA136: N/A | AB136: N/A | AC136: N/A | BB136: Septic tank connection | BC136: N/A | BD136: N/A | BE136: N/A | BF136: N/A | BG136: N/A | BH136: N/A | BI136: N/A | BJ136: N/A | BK136: N/A | BL136: N/A | BM136: N/A | BN136: N/A | BO136: N/A | BP136: N/A | BQ136: N/A | BR136: N/A | BS136: N/A | BT136: N/A | BU136: N/A | BV136: N/A | BW136: N/A | BX136: N/A | BY136: N/A | BZ136: N/A | CA136: N/A | CB136: N/A | CC136: N/A
B137: Improved latrines | C137: N/A | D137: N/A | E137: N/A | F137: N/A | G137: N/A | H137: N/A | I137: N/A | J137: N/A | K137: N/A | L137: N/A | M137: N/A | N137: N/A | O137: N/A | P137: N/A | Q137: N/A | R137: N/A | S137: N/A | T137: N/A | U137: N/A | V137: N/A | W137: N/A | X137: N/A | Y137: N/A | Z137: N/A | AA137: N/A | AB137: N/A | AC137: N/A | BB137: Improved latrines | BC137: N/A | BD137: N/A | BE137: N/A | BF137: N/A | BG137: N/A | BH137: N/A | BI137: N/A | BJ137: N/A | BK137: N/A | BL137: N/A | BM137: N/A | BN137: N/A | BO137: N/A | BP137: N/A | BQ137: N/A | BR137: N/A | BS137: N/A | BT137: N/A | BU137: N/A | BV137: N/A | BW137: N/A | BX137: N/A | BY137: N/A | BZ137: N/A | CA137: N/A | CB137: N/A | CC137: N/A
B138: Unimproved facilities | C138: 6.924580558 | D138: 10.7985029 | E138: 20.93342425 | F138: 48.9949721 | G138: 87.90435178 | H138: 11.1658427 | I138: 43.33612302 | J138: 74.52810662 | K138: 90.53424016 | L138: 97.69976334 | M138: 6.470698794 | N138: 9.184888812 | O138: 12.26322585 | P138: 19.14129245 | Q138: 42.7806112 | R138: 11.07624459 | S138: 10.25761768 | T138: 42.38101796 | U138: 25.85405256 | V138: 17.36119587 | W138: 26.96606105 | X138: 24.37785565 | Y138: 92.45658727 | Z138: 27.5672308 | AA138: 29.56915114 | AB138: 48.8342347 | AC138: 38.17891207 | BB138: Unimproved facilities | BC138: N/A | BD138: N/A | BE138: N/A | BF138: N/A | BG138: N/A | BH138: N/A | BI138: N/A | BJ138: N/A | BK138: N/A | BL138: N/A | BM138: N/A | BN138: N/A | BO138: N/A | BP138: N/A | BQ138: N/A | BR138: N/A | BS138: N/A | BT138: N/A | BU138: N/A | BV138: N/A | BW138: N/A | BX138: N/A | BY138: N/A | BZ138: N/A | CA138: N/A | CB138: N/A | CC138: N/A
B139: Open defecation | C139: 92.99119832 | D139: 88.95274392 | E139: 79.06657575 | F139: 50.97605127 | G139: 11.96973059 | H139: 88.8341573 | I139: 56.66387698 | J139: 25.39500315 | K139: 9.440844975 | L139: 1.99104406 | M139: 93.44181188 | N139: 90.45912451 | O139: 87.64599214 | P139: 80.85870755 | Q139: 57.2193888 | R139: 88.92375541 | S139: 89.62867708 | T139: 57.16747796 | U139: 74.14594744 | V139: 82.63880413 | W139: 73.03393895 | X139: 75.58284672 | Y139: 7.403630903 | Z139: 72.37351172 | AA139: 70.02654576 | AB139: 51.1657653 | AC139: 61.82108793 | BB139: Open defecation | BC139: N/A | BD139: N/A | BE139: N/A | BF139: N/A | BG139: N/A | BH139: N/A | BI139: N/A | BJ139: N/A | BK139: N/A | BL139: N/A | BM139: N/A | BN139: N/A | BO139: N/A | BP139: N/A | BQ139: N/A | BR139: N/A | BS139: N/A | BT139: N/A | BU139: N/A | BV139: N/A | BW139: N/A | BX139: N/A | BY139: N/A | BZ139: N/A | CA139: N/A | CB139: N/A | CC139: N/A
A140: Septic tank emptying practices | B140: Not emptied/treated and disposed in situ | C140: N/A | D140: N/A | E140: N/A | F140: N/A | G140: N/A | H140: N/A | I140: N/A | J140: N/A | K140: N/A | L140: N/A | M140: N/A | N140: N/A | O140: N/A | P140: N/A | Q140: N/A | R140: N/A | S140: N/A | T140: N/A | U140: N/A | V140: N/A | W140: N/A | X140: N/A | Y140: N/A | Z140: N/A | AA140: N/A | AB140: N/A | AC140: N/A | BA140: Septic tank emptying practices | BB140: Not emptied/treated and disposed in situ | BC140: N/A | BD140: N/A | BE140: N/A | BF140: N/A | BG140: N/A | BH140: N/A | BI140: N/A | BJ140: N/A | BK140: N/A | BL140: N/A | BM140: N/A | BN140: N/A | BO140: N/A | BP140: N/A | BQ140: N/A | BR140: N/A | BS140: N/A | BT140: N/A | BU140: N/A | BV140: N/A | BW140: N/A | BX140: N/A | BY140: N/A | BZ140: N/A | CA140: N/A | CB140: N/A | CC140: N/A
B141: Emptied and buried on site | C141: N/A | D141: N/A | E141: N/A | F141: N/A | G141: N/A | H141: N/A | I141: N/A | J141: N/A | K141: N/A | L141: N/A | M141: N/A | N141: N/A | O141: N/A | P141: N/A | Q141: N/A | R141: N/A | S141: N/A | T141: N/A | U141: N/A | V141: N/A | W141: N/A | X141: N/A | Y141: N/A | Z141: N/A | AA141: N/A | AB141: N/A | AC141: N/A | BB141: Emptied and buried on site | BC141: N/A | BD141: N/A | BE141: N/A | BF141: N/A | BG141: N/A | BH141: N/A | BI141: N/A | BJ141: N/A | BK141: N/A | BL141: N/A | BM141: N/A | BN141: N/A | BO141: N/A | BP141: N/A | BQ141: N/A | BR141: N/A | BS141: N/A | BT141: N/A | BU141: N/A | BV141: N/A | BW141: N/A | BX141: N/A | BY141: N/A | BZ141: N/A | CA141: N/A | CB141: N/A | CC141: N/A
B142: Emptied and discharged locally | C142: N/A | D142: N/A | E142: N/A | F142: N/A | G142: N/A | H142: N/A | I142: N/A | J142: N/A | K142: N/A | L142: N/A | M142: N/A | N142: N/A | O142: N/A | P142: N/A | Q142: N/A | R142: N/A | S142: N/A | T142: N/A | U142: N/A | V142: N/A | W142: N/A | X142: N/A | Y142: N/A | Z142: N/A | AA142: N/A | AB142: N/A | AC142: N/A | BB142: Emptied and discharged locally | BC142: N/A | BD142: N/A | BE142: N/A | BF142: N/A | BG142: N/A | BH142: N/A | BI142: N/A | BJ142: N/A | BK142: N/A | BL142: N/A | BM142: N/A | BN142: N/A | BO142: N/A | BP142: N/A | BQ142: N/A | BR142: N/A | BS142: N/A | BT142: N/A | BU142: N/A | BV142: N/A | BW142: N/A | BX142: N/A | BY142: N/A | BZ142: N/A | CA142: N/A | CB142: N/A | CC142: N/A
B143: Emptied and removed offsite | C143: N/A | D143: N/A | E143: N/A | F143: N/A | G143: N/A | H143: N/A | I143: N/A | J143: N/A | K143: N/A | L143: N/A | M143: N/A | N143: N/A | O143: N/A | P143: N/A | Q143: N/A | R143: N/A | S143: N/A | T143: N/A | U143: N/A | V143: N/A | W143: N/A | X143: N/A | Y143: N/A | Z143: N/A | AA143: N/A | AB143: N/A | AC143: N/A | BB143: Emptied and removed offsite | BC143: N/A | BD143: N/A | BE143: N/A | BF143: N/A | BG143: N/A | BH143: N/A | BI143: N/A | BJ143: N/A | BK143: N/A | BL143: N/A | BM143: N/A | BN143: N/A | BO143: N/A | BP143: N/A | BQ143: N/A | BR143: N/A | BS143: N/A | BT143: N/A | BU143: N/A | BV143: N/A | BW143: N/A | BX143: N/A | BY143: N/A | BZ143: N/A | CA143: N/A | CB143: N/A | CC143: N/A
A144: Latrine emptying practices | B144: Not emptied/treated and disposed in situ | C144: N/A | D144: N/A | E144: N/A | F144: N/A | G144: N/A | H144: N/A | I144: N/A | J144: N/A | K144: N/A | L144: N/A | M144: N/A | N144: N/A | O144: N/A | P144: N/A | Q144: N/A | R144: N/A | S144: N/A | T144: N/A | U144: N/A | V144: N/A | W144: N/A | X144: N/A | Y144: N/A | Z144: N/A | AA144: N/A | AB144: N/A | AC144: N/A | BA144: Latrine emptying practices | BB144: Not emptied/treated and disposed in situ | BC144: N/A | BD144: N/A | BE144: N/A | BF144: N/A | BG144: N/A | BH144: N/A | BI144: N/A | BJ144: N/A | BK144: N/A | BL144: N/A | BM144: N/A | BN144: N/A | BO144: N/A | BP144: N/A | BQ144: N/A | BR144: N/A | BS144: N/A | BT144: N/A | BU144: N/A | BV144: N/A | BW144: N/A | BX144: N/A | BY144: N/A | BZ144: N/A | CA144: N/A | CB144: N/A | CC144: N/A
B145: Emptied and buried on site | C145: N/A | D145: N/A | E145: N/A | F145: N/A | G145: N/A | H145: N/A | I145: N/A | J145: N/A | K145: N/A | L145: N/A | M145: N/A | N145: N/A | O145: N/A | P145: N/A | Q145: N/A | R145: N/A | S145: N/A | T145: N/A | U145: N/A | V145: N/A | W145: N/A | X145: N/A | Y145: N/A | Z145: N/A | AA145: N/A | AB145: N/A | AC145: N/A | BB145: Emptied and buried on site | BC145: N/A | BD145: N/A | BE145: N/A | BF145: N/A | BG145: N/A | BH145: N/A | BI145: N/A | BJ145: N/A | BK145: N/A | BL145: N/A | BM145: N/A | BN145: N/A | BO145: N/A | BP145: N/A | BQ145: N/A | BR145: N/A | BS145: N/A | BT145: N/A | BU145: N/A | BV145: N/A | BW145: N/A | BX145: N/A | BY145: N/A | BZ145: N/A | CA145: N/A | CB145: N/A | CC145: N/A
B146: Emptied and discharged locally | C146: N/A | D146: N/A | E146: N/A | F146: N/A | G146: N/A | H146: N/A | I146: N/A | J146: N/A | K146: N/A | L146: N/A | M146: N/A | N146: N/A | O146: N/A | P146: N/A | Q146: N/A | R146: N/A | S146: N/A | T146: N/A | U146: N/A | V146: N/A | W146: N/A | X146: N/A | Y146: N/A | Z146: N/A | AA146: N/A | AB146: N/A | AC146: N/A | BB146: Emptied and discharged locally | BC146: N/A | BD146: N/A | BE146: N/A | BF146: N/A | BG146: N/A | BH146: N/A | BI146: N/A | BJ146: N/A | BK146: N/A | BL146: N/A | BM146: N/A | BN146: N/A | BO146: N/A | BP146: N/A | BQ146: N/A | BR146: N/A | BS146: N/A | BT146: N/A | BU146: N/A | BV146: N/A | BW146: N/A | BX146: N/A | BY146: N/A | BZ146: N/A | CA146: N/A | CB146: N/A | CC146: N/A
B147: Emptied and removed offsite | C147: N/A | D147: N/A | E147: N/A | F147: N/A | G147: N/A | H147: N/A | I147: N/A | J147: N/A | K147: N/A | L147: N/A | M147: N/A | N147: N/A | O147: N/A | P147: N/A | Q147: N/A | R147: N/A | S147: N/A | T147: N/A | U147: N/A | V147: N/A | W147: N/A | X147: N/A | Y147: N/A | Z147: N/A | AA147: N/A | AB147: N/A | AC147: N/A | BB147: Emptied and removed offsite | BC147: N/A | BD147: N/A | BE147: N/A | BF147: N/A | BG147: N/A | BH147: N/A | BI147: N/A | BJ147: N/A | BK147: N/A | BL147: N/A | BM147: N/A | BN147: N/A | BO147: N/A | BP147: N/A | BQ147: N/A | BR147: N/A | BS147: N/A | BT147: N/A | BU147: N/A | BV147: N/A | BW147: N/A | BX147: N/A | BY147: N/A | BZ147: N/A | CA147: N/A | CB147: N/A | CC147: N/A
A148: Shared among improved sanitation facilities | B148: Yes | C148: N/A | D148: N/A | E148: N/A | F148: N/A | G148: N/A | H148: N/A | I148: N/A | J148: N/A | K148: N/A | L148: N/A | M148: N/A | N148: N/A | O148: N/A | P148: N/A | Q148: N/A | R148: N/A | S148: N/A | T148: N/A | U148: N/A | V148: N/A | W148: N/A | X148: N/A | Y148: N/A | Z148: N/A | AA148: N/A | AB148: N/A | AC148: N/A | BA148: Shared among improved sanitation facilities | BB148: Yes | BC148: N/A | BD148: N/A | BE148: N/A | BF148: N/A | BG148: N/A | BH148: N/A | BI148: N/A | BJ148: N/A | BK148: N/A | BL148: N/A | BM148: N/A | BN148: N/A | BO148: N/A | BP148: N/A | BQ148: N/A | BR148: N/A | BS148: N/A | BT148: N/A | BU148: N/A | BV148: N/A | BW148: N/A | BX148: N/A | BY148: N/A | BZ148: N/A | CA148: N/A | CB148: N/A | CC148: N/A
B149: No | C149: N/A | D149: N/A | E149: N/A | F149: N/A | G149: N/A | H149: N/A | I149: N/A | J149: N/A | K149: N/A | L149: N/A | M149: N/A | N149: N/A | O149: N/A | P149: N/A | Q149: N/A | R149: N/A | S149: N/A | T149: N/A | U149: N/A | V149: N/A | W149: N/A | X149: N/A | Y149: N/A | Z149: N/A | AA149: N/A | AB149: N/A | AC149: N/A | BB149: No | BC149: N/A | BD149: N/A | BE149: N/A | BF149: N/A | BG149: N/A | BH149: N/A | BI149: N/A | BJ149: N/A | BK149: N/A | BL149: N/A | BM149: N/A | BN149: N/A | BO149: N/A | BP149: N/A | BQ149: N/A | BR149: N/A | BS149: N/A | BT149: N/A | BU149: N/A | BV149: N/A | BW149: N/A | BX149: N/A | BY149: N/A | BZ149: N/A | CA149: N/A | CB149: N/A | CC149: N/A
B150: DK/missing | C150: N/A | D150: N/A | E150: N/A | F150: N/A | G150: N/A | H150: N/A | I150: N/A | J150: N/A | K150: N/A | L150: N/A | M150: N/A | N150: N/A | O150: N/A | P150: N/A | Q150: N/A | R150: N/A | S150: N/A | T150: N/A | U150: N/A | V150: N/A | W150: N/A | X150: N/A | Y150: N/A | Z150: N/A | AA150: N/A | AB150: N/A | AC150: N/A | BB150: DK/missing | BC150: N/A | BD150: N/A | BE150: N/A | BF150: N/A | BG150: N/A | BH150: N/A | BI150: N/A | BJ150: N/A | BK150: N/A | BL150: N/A | BM150: N/A | BN150: N/A | BO150: N/A | BP150: N/A | BQ150: N/A | BR150: N/A | BS150: N/A | BT150: N/A | BU150: N/A | BV150: N/A | BW150: N/A | BX150: N/A | BY150: N/A | BZ150: N/A | CA150: N/A | CB150: N/A | CC150: N/A
A151: Shared among all sanitation facilities | B151: Yes | C151: 78.79083113 | D151: 79.85001216 | E151: 73.3522714 | F151: 70.94970424 | G151: 51.61256032 | H151: 76.48798845 | I151: 75.76863473 | J151: 71.3743434 | K151: 65.55708976 | L151: 38.10290318 | M151: 77.77363554 | N151: 81.54505849 | O151: 80.48452815 | P151: 69.80058892 | Q151: 57.37369602 | R151: 69.34302904 | S151: 59.49566508 | T151: 56.59361795 | U151: 68.97198753 | V151: 65.09768911 | W151: 71.22047673 | X151: 76.90182317 | Y151: 63.64483031 | Z151: 69.26635823 | AA151: 50.4700758 | AB151: 60.91436965 | AC151: 54.04376213 | BA151: Shared among all sanitation facilities | BB151: Yes | BC151: N/A | BD151: N/A | BE151: N/A | BF151: N/A | BG151: N/A | BH151: N/A | BI151: N/A | BJ151: N/A | BK151: N/A | BL151: N/A | BM151: N/A | BN151: N/A | BO151: N/A | BP151: N/A | BQ151: N/A | BR151: N/A | BS151: N/A | BT151: N/A | BU151: N/A | BV151: N/A | BW151: N/A | BX151: N/A | BY151: N/A | BZ151: N/A | CA151: N/A | CB151: N/A | CC151: N/A
B152: No | C152: 21.20916887 | D152: 20.14998784 | E152: 26.6477286 | F152: 29.05029576 | G152: 48.38743968 | H152: 23.51201155 | I152: 24.23136527 | J152: 28.6256566 | K152: 34.44291024 | L152: 61.89709682 | M152: 22.22636446 | N152: 18.45494151 | O152: 19.51547185 | P152: 30.19941108 | Q152: 42.62630398 | R152: 30.65697096 | S152: 40.50433492 | T152: 43.40638205 | U152: 31.02801247 | V152: 34.90231089 | W152: 28.77952327 | X152: 23.09817683 | Y152: 36.35516969 | Z152: 30.73364177 | AA152: 49.5299242 | AB152: 39.08563035 | AC152: 45.95623787 | BB152: No | BC152: N/A | BD152: N/A | BE152: N/A | BF152: N/A | BG152: N/A | BH152: N/A | BI152: N/A | BJ152: N/A | BK152: N/A | BL152: N/A | BM152: N/A | BN152: N/A | BO152: N/A | BP152: N/A | BQ152: N/A | BR152: N/A | BS152: N/A | BT152: N/A | BU152: N/A | BV152: N/A | BW152: N/A | BX152: N/A | BY152: N/A | BZ152: N/A | CA152: N/A | CB152: N/A | CC152: N/A
A153: type of toilet facility | B153: flush toilet connected to sewer system | C153: 0.08428502752 | D153: 0.2489083453 | E153: 0 | F153: 0.02898958862 | G153: 0.1262297819 | H153: 0 | I153: 0 | J153: 0.07689022948 | K153: 0.02498302789 | L153: 0.3097860164 | M153: 0.08749746888 | N153: 0.3565100042 | O153: 0.09084150186 | P153: 0 | Q153: 0 | R153: 0 | S153: 0.1138337841 | T153: 0.4522076795 | U153: 0 | V153: 0 | W153: 0 | X153: 0.03929762769 | Y153: 0.139941876 | Z153: 0.05949775987 | AA153: 0.4046881801 | AB153: 0 | AC153: 0 | BA153: type of toilet facility | BB153: flush toilet connected to sewer system | BC153: 15.111504 | BD153: 44.616344 | BE153: 0 | BF153: 5.197329 | BG153: 22.592077 | BH153: 0 | BI153: 0 | BJ153: 5.197329 | BK153: 1.684576 | BL153: 20.907501 | BM153: 9.778032 | BN153: 39.796127 | BO153: 10.153689 | BP153: 0 | BQ153: 0 | BR153: 0 | BS153: 7.507253 | BT153: 45.285684 | BU153: 0 | BV153: 0 | BW153: 0 | BX153: 1.684576 | BY153: 10.646197 | BZ153: 3.042393 | CA153: 19.351151 | CB153: 0 | CC153: 0
B154: flush toilet not connected to sewer system | C154: 0.004810851894 | D154: 0.03849592054 | E154: 0.05732525282 | F154: 0.6922843083 | G154: 13.87248347 | H154: 0 | I154: 0.04584572504 | J154: 2.146421039 | K154: 5.659566556 | L154: 28.63986059 | M154: 0.007718328883 | N154: 0.06181589259 | O154: 0 | P154: 0.08333475325 | Q154: 1.300628528 | R154: 0.0794625281 | S154: 0.3343574654 | T154: 2.198888466 | U154: 0.8045765308 | V154: 0.6498724082 | W154: 0.2856491906 | X154: 0.07859525538 | Y154: 18.72954749 | Z154: 0.7474983176 | AA154: 0.2566444402 | AB154: 6.04508734 | AC154: 0.6494431894 | BB154: flush toilet not connected to sewer system | BC154: 0.86254 | BD154: 6.90032 | BE154: 10.260905 | BF154: 124.114535 | BG154: 2482.838915 | BH154: 0 | BI154: 3.09409 | BJ154: 145.085486 | BK154: 381.617874 | BL154: 1932.908144 | BM154: 0.86254 | BN154: 6.90032 | BO154: 0 | BP154: 9.285559 | BQ154: 145.223202 | BR154: 5.318105 | BS154: 22.050625 | BT154: 220.204505 | BU154: 69.829973 | BV154: 44.54022 | BW154: 21.30655 | BX154: 3.369152 | BY154: 1424.866223 | BZ154: 38.223013 | CA154: 12.272079 | CB154: 698.426689 | CC154: 64.570081
B155: non-ventilated pit latrine | C155: 2.318741584 | D155: 2.524282597 | E155: 5.304361753 | F155: 20.64019952 | G155: 39.1227106 | H155: 2.099112181 | I155: 14.88412782 | J155: 36.74119065 | K155: 45.723678 | L155: 41.62030671 | M155: 2.577152305 | N155: 2.053272862 | O155: 3.032222878 | P155: 5.104567905 | Q155: 14.09086591 | R155: 0.8793911782 | S155: 2.201181544 | T155: 16.25528432 | U155: 7.917362264 | V155: 8.457920662 | W155: 10.22237352 | X155: 10.49072183 | Y155: 59.76660631 | Z155: 14.96492762 | AA155: 5.024009022 | AB155: 13.91911925 | AC155: 10.54849852 | BB155: non-ventilated pit latrine | BC155: 415.728318 | BD155: 452.472819 | BE155: 949.451583 | BF155: 3700.428761 | BG155: 7002.018675 | BH155: 141.806433 | BI155: 1004.517455 | BJ155: 2483.489215 | BK155: 3083.093487 | BL155: 2808.960244 | BM155: 288.002362 | BN155: 229.200602 | BO155: 338.922711 | BP155: 568.775506 | BQ155: 1573.332141 | BR155: 58.854088 | BS155: 145.166278 | BT155: 1627.861937 | BU155: 687.155506 | BV155: 579.679399 | BW155: 762.486013 | BX155: 449.706999 | BY155: 4546.795305 | BZ155: 765.225298 | CA155: 240.235228 | CB155: 1608.162765 | CC155: 1048.77134
B156: ventilated pit latrine | C156: 3.351365504 | D156: 6.765790115 | E156: 14.15728351 | F156: 26.70699542 | G156: 34.22193493 | H156: 8.206318421 | I156: 27.02423625 | J156: 34.7451583 | K156: 38.39369072 | L156: 27.27012414 | M156: 2.830338226 | N156: 5.071886719 | O156: 7.900394319 | P156: 12.55823898 | Q156: 26.32891869 | R156: 8.748459232 | S156: 6.706078303 | T156: 21.32957334 | U156: 16.60081431 | V156: 7.920333629 | W156: 16.07097099 | X156: 11.87892706 | Y156: 12.23434239 | Z156: 11.03920447 | AA156: 23.03115657 | AB156: 28.03957706 | AC156: 25.8412405 | BB156: ventilated pit latrine | BC156: 600.867968 | BD156: 1212.754915 | BE156: 2534.075891 | BF156: 4788.099741 | BG156: 6124.898398 | BH156: 554.381397 | BI156: 1823.843315 | BJ156: 2348.569123 | BK156: 2588.841121 | BL156: 1840.464442 | BM156: 316.296438 | BN156: 566.159282 | BO156: 883.05615 | BP156: 1399.299385 | BQ156: 2939.78626 | BR156: 585.498925 | BS156: 442.260853 | BT156: 2136.019272 | BU156: 1440.800683 | BV156: 542.834867 | BW156: 1198.732425 | BX156: 509.215355 | BY156: 930.737982 | BZ156: 564.485091 | CA156: 1101.290847 | CB156: 3239.587431 | CC156: 2569.233182
B157: no toilet, in nature | C157: 93.06175692 | D157: 89.00822952 | E157: 79.24852277 | F157: 50.9988388 | G157: 11.99940391 | H157: 88.90657524 | I157: 56.76710664 | J157: 25.39500315 | K157: 9.466675547 | L157: 1.994865353 | M157: 93.45050971 | N157: 90.59210673 | O157: 87.7034228 | P157: 81.04254837 | Q157: 57.31699117 | R157: 88.92375541 | S157: 89.73000623 | T157: 57.25656524 | U157: 74.17880677 | V157: 82.63880413 | W157: 73.17879511 | X157: 75.58284672 | Y157: 7.412107928 | Z157: 72.66697969 | AA157: 70.09324243 | AB157: 51.30274865 | AC157: 61.89398754 | BB157: no toilet, in nature | BC157: 16685.08813 | BD157: 15954.5546 | BE157: 14185.04976 | BF157: 9143.204732 | BG157: 2147.602991 | BH157: 6006.122216 | BI157: 3831.164996 | BJ157: 1716.553419 | BK157: 638.326727 | BL157: 134.633738 | BM157: 10443.29723 | BN157: 10112.52123 | BO157: 9802.934354 | BP157: 9030.150508 | BQ157: 6399.795795 | BR157: 5951.306604 | BS157: 5917.626861 | BT157: 5733.875912 | BU157: 6438.050174 | BV157: 5663.804879 | BW157: 5458.400402 | BX157: 3240.018726 | BY157: 563.882402 | BZ157: 3715.795533 | CA157: 3351.679108 | CB157: 5927.326912 | CC157: 6153.732696
B158: hanging toilet/latrine | C158: 1.179040112 | D158: 1.414293505 | E158: 1.232506715 | F158: 0.9326923653 | G158: 0.6356055119 | H158: 0.7879941609 | I158: 1.278683574 | J158: 0.895336641 | K158: 0.6739890369 | L158: 0.1650571821 | M158: 1.046783961 | N158: 1.864407793 | O158: 1.273118505 | P158: 1.211309992 | Q158: 0.962595704 | R158: 1.36893165 | S158: 0.9145426745 | T158: 2.50748095 | U158: 0.4984401236 | V158: 0.3330691698 | W158: 0.2422111893 | X158: 1.929611506 | Y158: 1.666563108 | Z158: 0.5218921455 | AA158: 1.190259353 | AB158: 0.6934677022 | AC158: 1.066830259 | BB158: hanging toilet/latrine | BC158: 211.390681 | BD158: 253.509401 | BE158: 220.611924 | BF158: 167.215518 | BG158: 113.758009 | BH158: 53.233287 | BI158: 86.297295 | BJ158: 60.519511 | BK158: 45.446283 | BL158: 11.139732 | BM158: 116.980379 | BN158: 208.118169 | BO158: 142.301141 | BP158: 134.969985 | BQ158: 107.479751 | BR158: 91.617048 | BS158: 60.313406 | BT158: 251.108053 | BU158: 43.260099 | BV158: 22.827518 | BW158: 18.066513 | BX158: 82.716882 | BY158: 126.785203 | BZ158: 26.686736 | CA158: 56.91515 | CB158: 80.120654 | CC158: 106.068271
B159: other | C159: 0 | D159: 0 | E159: 0 | F159: 0 | G159: 0.02163179527 | H159: 0 | I159: 0 | J159: 0 | K159: 0.05741711347 | L159: 0 | M159: 0 | N159: 0 | O159: 0 | P159: 0 | Q159: 0 | R159: 0 | S159: 0 | T159: 0 | U159: 0 | V159: 0 | W159: 0 | X159: 0 | Y159: 0.05089089456 | Z159: 0 | AA159: 0 | AB159: 0 | AC159: 0 | BB159: other | BC159: 0 | BD159: 0 | BE159: 0 | BF159: 0 | BG159: 3.871568 | BH159: 0 | BI159: 0 | BJ159: 0 | BK159: 3.871568 | BL159: 0 | BM159: 0 | BN159: 0 | BO159: 0 | BP159: 0 | BQ159: 0 | BR159: 0 | BS159: 0 | BT159: 0 | BU159: 0 | BV159: 0 | BW159: 0 | BX159: 0 | BY159: 3.871568 | BZ159: 0 | CA159: 0 | CB159: 0 | CC159: 0
BB160: Total | BC160: 17929.04914 | BD160: 17924.8084 | BE160: 17899.45006 | BF160: 17928.26062 | BG160: 17897.58063 | BH160: 6755.543333 | BI160: 6748.917151 | BJ160: 6759.414083 | BK160: 6742.881636 | BL160: 6749.013801 | BM160: 11175.21698 | BN160: 11162.69573 | BO160: 11177.36805 | BP160: 11142.48094 | BQ160: 11165.61715 | BR160: 6692.59477 | BS160: 6594.925276 | BT160: 10014.35536 | BU160: 8679.096435 | BV160: 6853.686883 | BW160: 7458.991903 | BX160: 4286.71169 | BY160: 7607.58488 | BZ160: 5113.458064 | CA160: 4781.743563 | CB160: 11553.62445 | CC160: 9942.37557
A208: =A1026 -> Benin
A209: =A1034 -> 2006
A210: Access to hygiene facilities
A211: by wealth quintile and sub-national region
A212: Notes:
A213: WHO/UNICEF JMP customised wealth index excludes water,
A214: sanitation and hygiene assets.
A215: Survey used for analysis: | B215: =A1025 -> DHS06
A220: Access to handwashing | C220: NATIONAL wealth index quintile | H220: URBAN wealth index quintile | M220: RURAL wealth index quintile | R220: SUB-REGIONS: | BA220: Raw numbers of respondents: | BB220: Access to handwashing | BC220: NATIONAL wealth index quintile | BH220: URBAN wealth index quintile | BM220: RURAL wealth index quintile | BR220: SUB-REGIONS:
A221: Weighted percentage (used in graphs) | C221: Poorest | D221: Poor | E221: Middle | F221: Rich | G221: Richest | H221: Poorest | I221: Poor | J221: Middle | K221: Rich | L221: Richest | M221: Poorest | N221: Poor | O221: Middle | P221: Rich | Q221: Richest | R221: alibori | S221: atacora | T221: atlantique | U221: borgou | V221: collines | W221: couffo | X221: donga | Y221: littoral | Z221: mono | AA221: plateau | AB221: quémé | AC221: zou | BA221: Hygiene data, raw numbers (weighted) | BC221: Poorest | BD221: Poor | BE221: Middle | BF221: Rich | BG221: Richest | BH221: Poorest | BI221: Poor | BJ221: Middle | BK221: Rich | BL221: Richest | BM221: Poorest | BN221: Poor | BO221: Middle | BP221: Rich | BQ221: Richest | BR221: alibori | BS221: atacora | BT221: atlantique | BU221: borgou | BV221: collines | BW221: couffo | BX221: donga | BY221: littoral | BZ221: mono | CA221: plateau | CB221: quémé | CC221: zou
A222: Hygiene ladder | B222: Basic | C222: 0.1422787435 | D222: 0.2688700641 | E222: 0.2781710408 | F222: 0.7028656664 | G222: 7.70499797 | H222: 0.04161532389 | I222: 0.2275610238 | J222: 1.178860157 | K222: 2.562858679 | L222: 16.09387645 | M222: 0.1595083942 | N222: 0.2923712296 | O222: 0.1913820594 | P222: 0.4883868348 | Q222: 1.298209918 | R222: 0.03709035469 | S222: 0.2272500448 | T222: 0.9582775329 | U222: 1.012933874 | V222: 0.4188924117 | W222: 0.4190447919 | X222: 0.07899246178 | Y222: 11.56763819 | Z222: 0.1645045304 | AA222: 1.693287662 | AB222: 2.853890425 | AC222: 0.6369218789 | BA222: Hygiene ladder | BB222: Basic | BC222: 25.415251 | BD222: 47.897954 | BE222: 49.349549 | BF222: 124.761576 | BG222: 1370.597625 | BH222: 2.797605 | BI222: 15.246479 | BJ222: 79.351706 | BK222: 172.00855 | BL222: 1080.158839 | BM222: 17.734951 | BN222: 32.525254 | BO222: 21.231934 | BP222: 53.793473 | BQ222: 143.173164 | BR222: 2.46924 | BS222: 14.939851 | BT222: 95.707813 | BU222: 87.339172 | BV222: 28.411152 | BW222: 31.150581 | BX222: 3.36188 | BY222: 876.547332 | BZ222: 8.285529 | CA222: 79.936307 | CB222: 327.1714 | CC222: 62.701698
B223: Limited | C223: 9.378047841 | D223: 8.336339305 | E223: 7.588627924 | F223: 8.80181796 | G223: 11.08688502 | H223: 7.251925117 | I223: 9.643418259 | J223: 10.13459839 | K223: 11.55384017 | L223: 10.717966 | M223: 9.593601135 | N223: 8.429625868 | O223: 9.754278774 | P223: 6.339645304 | Q223: 8.574614503 | R223: 11.00251132 | S223: 3.184499035 | T223: 14.3572528 | U223: 14.17684979 | V223: 3.482015999 | W223: 4.962832061 | X223: 1.474929897 | Y223: 9.595030524 | Z223: 10.27158011 | AA223: 16.65477194 | AB223: 7.142749073 | AC223: 9.402171084 | BB223: Limited | BC223: 1675.200623 | BD223: 1485.080155 | BE223: 1346.277328 | BF223: 1562.359257 | BG223: 1972.181996 | BH223: 487.513254 | BI223: 646.104379 | BJ223: 682.182418 | BK223: 775.446306 | BL223: 719.348489 | BM223: 1066.665155 | BN223: 937.76574 | BO223: 1082.140112 | BP223: 698.281596 | BQ223: 945.65191 | BR223: 732.477251 | BS223: 209.355035 | BT223: 1433.928292 | BU223: 1222.384159 | BV223: 236.165858 | BW223: 368.922619 | BX223: 62.772285 | BY223: 727.071358 | BZ223: 517.344262 | CA223: 786.234373 | CB223: 818.848262 | CC223: 925.595605
B224: No facility | C224: 90.47967341 | D224: 91.39479063 | E224: 92.13320104 | F224: 90.49531637 | G224: 81.20811701 | H224: 92.70645956 | I224: 90.12902072 | J224: 88.68654145 | K224: 85.88330115 | L224: 73.18815756 | M224: 90.24689047 | N224: 91.2780029 | O224: 90.05433917 | P224: 93.17196786 | Q224: 90.12717558 | R224: 88.96039833 | S224: 96.58825092 | T224: 84.68446967 | U224: 84.81021634 | V224: 96.09909159 | W224: 94.61812315 | X224: 98.44607764 | Y224: 78.83733129 | Z224: 89.56391536 | AA224: 81.65194039 | AB224: 90.0033605 | AC224: 89.96090704 | BB224: No facility | BC224: 16162.38345 | BD224: 16281.55775 | BE224: 16345.09439 | BF224: 16063.29464 | BG224: 14445.6433 | BH224: 6232.224828 | BI224: 6038.600981 | BJ224: 5969.688876 | BK224: 5764.134489 | BL224: 4912.106511 | BM224: 10034.10628 | BN224: 10154.35148 | BO224: 9990.632309 | BP224: 10262.44645 | BQ224: 9939.681335 | BR224: 5922.417723 | BS224: 6349.895676 | BT224: 8457.847658 | BU224: 7312.672879 | BV224: 6517.869081 | BW224: 7033.638327 | BX224: 4189.816244 | BY224: 5973.963853 | BZ224: 4511.027241 | CA224: 3854.604697 | CB224: 10318.02945 | CC224: 8856.190707
A225: place to wash hands | B225: in houss | C225: 9.520326585 | D225: 8.605209369 | E225: 7.866798964 | F225: 9.504683626 | G225: 18.79188299 | H225: 7.293540441 | I225: 9.870979283 | J225: 11.31345855 | K225: 14.11669885 | L225: 26.81184244 | M225: 9.753109529 | N225: 8.721997098 | O225: 9.945660833 | P225: 6.828032139 | Q225: 9.872824421 | R225: 11.03960167 | S225: 3.41174908 | T225: 15.31553033 | U225: 15.18978366 | V225: 3.90090841 | W225: 5.381876853 | X225: 1.553922359 | Y225: 21.16266871 | Z225: 10.43608464 | AA225: 18.34805961 | AB225: 9.996639498 | AC225: 10.03909296 | BA225: Observed handwashing place | BB225: Fixed | BC225: N/A | BD225: N/A | BE225: N/A | BF225: N/A | BG225: N/A | BH225: N/A | BI225: N/A | BJ225: N/A | BK225: N/A | BL225: N/A | BM225: N/A | BN225: N/A | BO225: N/A | BP225: N/A | BQ225: N/A | BR225: N/A | BS225: N/A | BT225: N/A | BU225: N/A | BV225: N/A | BW225: N/A | BX225: N/A | BY225: N/A | BZ225: N/A | CA225: N/A | CB225: N/A | CC225: N/A
B226: somewhere else | C226: 8.197703588 | D226: 8.137135322 | E226: 9.02314044 | F226: 10.25396219 | G226: 14.41862322 | H226: 8.617074345 | I226: 9.633170589 | J226: 13.35170466 | K226: 15.2791589 | L226: 15.7655135 | M226: 8.203894014 | N226: 8.107280372 | O226: 8.214769752 | P226: 8.48288319 | Q226: 9.365742918 | R226: 15.63646494 | S226: 5.773141916 | T226: 12.10433299 | U226: 6.596094336 | V226: 8.879120511 | W226: 3.801102006 | X226: 16.24538483 | Y226: 21.92104105 | Z226: 7.986645953 | AA226: 4.504579185 | AB226: 12.2137652 | AC226: 4.562389091 | BB226: Mobile | BC226: N/A | BD226: N/A | BE226: N/A | BF226: N/A | BG226: N/A | BH226: N/A | BI226: N/A | BJ226: N/A | BK226: N/A | BL226: N/A | BM226: N/A | BN226: N/A | BO226: N/A | BP226: N/A | BQ226: N/A | BR226: N/A | BS226: N/A | BT226: N/A | BU226: N/A | BV226: N/A | BW226: N/A | BX226: N/A | BY226: N/A | BZ226: N/A | CA226: N/A | CB226: N/A | CC226: N/A
B227: nowhere | C227: 82.28196983 | D227: 83.25765531 | E227: 83.1100606 | F227: 80.24135418 | G227: 66.78949379 | H227: 84.08938521 | I227: 80.49585013 | J227: 75.33483679 | K227: 70.60414224 | L227: 57.42264405 | M227: 82.04299646 | N227: 83.17072253 | O227: 81.83956941 | P227: 84.68908467 | Q227: 80.76143266 | R227: 73.32393339 | S227: 90.815109 | T227: 72.58013668 | U227: 78.214122 | V227: 87.21997108 | W227: 90.81702114 | X227: 82.20069281 | Y227: 56.91629024 | Z227: 81.5772694 | AA227: 77.14736121 | AB227: 77.78959531 | AC227: 85.39851795 | BA227: Water / Soap | BB227: Water and soap | BC227: N/A | BD227: N/A | BE227: N/A | BF227: N/A | BG227: N/A | BH227: N/A | BI227: N/A | BJ227: N/A | BK227: N/A | BL227: N/A | BM227: N/A | BN227: N/A | BO227: N/A | BP227: N/A | BQ227: N/A | BR227: N/A | BS227: N/A | BT227: N/A | BU227: N/A | BV227: N/A | BW227: N/A | BX227: N/A | BY227: N/A | BZ227: N/A | CA227: N/A | CB227: N/A | CC227: N/A
BB228: Water only | BC228: N/A | BD228: N/A | BE228: N/A | BF228: N/A | BG228: N/A | BH228: N/A | BI228: N/A | BJ228: N/A | BK228: N/A | BL228: N/A | BM228: N/A | BN228: N/A | BO228: N/A | BP228: N/A | BQ228: N/A | BR228: N/A | BS228: N/A | BT228: N/A | BU228: N/A | BV228: N/A | BW228: N/A | BX228: N/A | BY228: N/A | BZ228: N/A | CA228: N/A | CB228: N/A | CC228: N/A
BB229: Soap only | BC229: N/A | BD229: N/A | BE229: N/A | BF229: N/A | BG229: N/A | BH229: N/A | BI229: N/A | BJ229: N/A | BK229: N/A | BL229: N/A | BM229: N/A | BN229: N/A | BO229: N/A | BP229: N/A | BQ229: N/A | BR229: N/A | BS229: N/A | BT229: N/A | BU229: N/A | BV229: N/A | BW229: N/A | BX229: N/A | BY229: N/A | BZ229: N/A | CA229: N/A | CB229: N/A | CC229: N/A
BB230: Neither | BC230: N/A | BD230: N/A | BE230: N/A | BF230: N/A | BG230: N/A | BH230: N/A | BI230: N/A | BJ230: N/A | BK230: N/A | BL230: N/A | BM230: N/A | BN230: N/A | BO230: N/A | BP230: N/A | BQ230: N/A | BR230: N/A | BS230: N/A | BT230: N/A | BU230: N/A | BV230: N/A | BW230: N/A | BX230: N/A | BY230: N/A | BZ230: N/A | CA230: N/A | CB230: N/A | CC230: N/A
BA231: place to wash hands | BB231: in houss | BC231: 1700.615874 | BD231: 1532.978109 | BE231: 1395.626877 | BF231: 1687.120833 | BG231: 3342.779621 | BH231: 490.310859 | BI231: 661.350858 | BJ231: 761.534124 | BK231: 947.454856 | BL231: 1799.507328 | BM231: 1084.400106 | BN231: 970.290994 | BO231: 1103.372046 | BP231: 752.075069 | BQ231: 1088.825074 | BR231: 734.946491 | BS231: 224.294886 | BT231: 1529.636105 | BU231: 1309.723331 | BV231: 264.57701 | BW231: 400.0732 | BX231: 66.134165 | BY231: 1603.61869 | BZ231: 525.629791 | CA231: 866.17068 | CB231: 1146.019662 | CC231: 988.297303
BB232: somewhere else | BC232: 1464.355737 | BD232: 1449.59289 | BE232: 1600.770195 | BF232: 1820.120892 | BG232: 2564.845678 | BH232: 579.285898 | BI232: 645.41779 | BJ232: 898.733015 | BK232: 1025.474401 | BL232: 1058.120386 | BM232: 912.15048 | BN232: 901.905956 | BO232: 911.346914 | BP232: 934.348994 | BQ232: 1032.901558 | BR232: 1040.976421 | BS232: 379.537351 | BT232: 1208.918292 | BU232: 568.741388 | BV232: 602.221562 | BW232: 282.562958 | BX232: 691.395522 | BY232: 1661.08498 | BZ232: 402.259965 | CA232: 212.651065 | CB232: 1400.192041 | CC232: 449.143847
BB233: nowhere | BC233: 14698.02772 | BD233: 14831.96486 | BE233: 14744.3242 | BF233: 14243.17375 | BG233: 11880.79762 | BH233: 5652.93893 | BI233: 5393.183191 | BJ233: 5070.955861 | BK233: 4738.660088 | BL233: 3853.986125 | BM233: 9121.955802 | BN233: 9252.445527 | BO233: 9079.285395 | BP233: 9328.097452 | BQ233: 8906.779777 | BR233: 4881.441302 | BS233: 5970.358325 | BT233: 7248.929366 | BU233: 6743.931491 | BV233: 5915.647519 | BW233: 6751.075369 | BX233: 3498.420722 | BY233: 4312.878873 | BZ233: 4108.767276 | CA233: 3641.953632 | CB233: 8917.837413 | CC233: 8407.04686
BB234: Total | BC234: 17862.99933 | BD234: 17814.53586 | BE234: 17740.72127 | BF234: 17750.41547 | BG234: 17788.42292 | BH234: 6722.535687 | BI234: 6699.951839 | BJ234: 6731.223 | BK234: 6711.589345 | BL234: 6711.613839 | BM234: 11118.50639 | BN234: 11124.64248 | BO234: 11094.00436 | BP234: 11014.52152 | BQ234: 11028.50641 | BR234: 6657.364214 | BS234: 6574.190562 | BT234: 9987.483763 | BU234: 8622.39621 | BV234: 6782.446091 | BW234: 7433.711527 | BX234: 4255.950409 | BY234: 7577.582543 | BZ234: 5036.657032 | CA234: 4720.775377 | CB234: 11464.04912 | CC234: 9844.48801
BA259: Raw numbers of respondents: | BB259: Menstrual health and hygiene | BC259: NATIONAL wealth index quintile | BH259: URBAN wealth index quintile | BM259: RURAL wealth index quintile | BR259: SUB-REGIONS:
BA260: MHH data, raw numbers (weighted) | BC260: Poorest | BD260: Poor | BE260: Middle | BF260: Rich | BG260: Richest | BH260: Poorest | BI260: Poor | BJ260: Middle | BK260: Rich | BL260: Richest | BM260: Poorest | BN260: Poor | BO260: Middle | BP260: Rich | BQ260: Richest | BR260: alibori | BS260: atacora | BT260: atlantique | BU260: borgou | BV260: collines | BW260: couffo | BX260: donga | BY260: littoral | BZ260: mono | CA260: plateau | CB260: quémé | CC260: zou
BA261: Private place to wash and change | BB261: Yes | BC261: N/A | BD261: N/A | BE261: N/A | BF261: N/A | BG261: N/A | BH261: N/A | BI261: N/A | BJ261: N/A | BK261: N/A | BL261: N/A | BM261: N/A | BN261: N/A | BO261: N/A | BP261: N/A | BQ261: N/A | BR261: N/A | BS261: N/A | BT261: N/A | BU261: N/A | BV261: N/A | BW261: N/A | BX261: N/A | BY261: N/A | BZ261: N/A | CA261: N/A | CB261: N/A | CC261: N/A
BB262: No | BC262: N/A | BD262: N/A | BE262: N/A | BF262: N/A | BG262: N/A | BH262: N/A | BI262: N/A | BJ262: N/A | BK262: N/A | BL262: N/A | BM262: N/A | BN262: N/A | BO262: N/A | BP262: N/A | BQ262: N/A | BR262: N/A | BS262: N/A | BT262: N/A | BU262: N/A | BV262: N/A | BW262: N/A | BX262: N/A | BY262: N/A | BZ262: N/A | CA262: N/A | CB262: N/A | CC262: N/A
BB263: DK/not sure/missing | BC263: N/A | BD263: N/A | BE263: N/A | BF263: N/A | BG263: N/A | BH263: N/A | BI263: N/A | BJ263: N/A | BK263: N/A | BL263: N/A | BM263: N/A | BN263: N/A | BO263: N/A | BP263: N/A | BQ263: N/A | BR263: N/A | BS263: N/A | BT263: N/A | BU263: N/A | BV263: N/A | BW263: N/A | BX263: N/A | BY263: N/A | BZ263: N/A | CA263: N/A | CB263: N/A | CC263: N/A
BA264: Use of menstrual materials | BB264: Materials reusable | BC264: N/A | BD264: N/A | BE264: N/A | BF264: N/A | BG264: N/A | BH264: N/A | BI264: N/A | BJ264: N/A | BK264: N/A | BL264: N/A | BM264: N/A | BN264: N/A | BO264: N/A | BP264: N/A | BQ264: N/A | BR264: N/A | BS264: N/A | BT264: N/A | BU264: N/A | BV264: N/A | BW264: N/A | BX264: N/A | BY264: N/A | BZ264: N/A | CA264: N/A | CB264: N/A | CC264: N/A
BB265: Materials not reusable | BC265: N/A | BD265: N/A | BE265: N/A | BF265: N/A | BG265: N/A | BH265: N/A | BI265: N/A | BJ265: N/A | BK265: N/A | BL265: N/A | BM265: N/A | BN265: N/A | BO265: N/A | BP265: N/A | BQ265: N/A | BR265: N/A | BS265: N/A | BT265: N/A | BU265: N/A | BV265: N/A | BW265: N/A | BX265: N/A | BY265: N/A | BZ265: N/A | CA265: N/A | CB265: N/A | CC265: N/A
BB266: No materials used | BC266: N/A | BD266: N/A | BE266: N/A | BF266: N/A | BG266: N/A | BH266: N/A | BI266: N/A | BJ266: N/A | BK266: N/A | BL266: N/A | BM266: N/A | BN266: N/A | BO266: N/A | BP266: N/A | BQ266: N/A | BR266: N/A | BS266: N/A | BT266: N/A | BU266: N/A | BV266: N/A | BW266: N/A | BX266: N/A | BY266: N/A | BZ266: N/A | CA266: N/A | CB266: N/A | CC266: N/A
BB267: DK/not sure/missing | BC267: N/A | BD267: N/A | BE267: N/A | BF267: N/A | BG267: N/A | BH267: N/A | BI267: N/A | BJ267: N/A | BK267: N/A | BL267: N/A | BM267: N/A | BN267: N/A | BO267: N/A | BP267: N/A | BQ267: N/A | BR267: N/A | BS267: N/A | BT267: N/A | BU267: N/A | BV267: N/A | BW267: N/A | BX267: N/A | BY267: N/A | BZ267: N/A | CA267: N/A | CB267: N/A | CC267: N/A
BA268: Use of menstrual materials with private place to wash and change | BB268: Materials reusable | BC268: N/A | BD268: N/A | BE268: N/A | BF268: N/A | BG268: N/A | BH268: N/A | BI268: N/A | BJ268: N/A | BK268: N/A | BL268: N/A | BM268: N/A | BN268: N/A | BO268: N/A | BP268: N/A | BQ268: N/A | BR268: N/A | BS268: N/A | BT268: N/A | BU268: N/A | BV268: N/A | BW268: N/A | BX268: N/A | BY268: N/A | BZ268: N/A | CA268: N/A | CB268: N/A | CC268: N/A
BB269: Materials not reusable | BC269: N/A | BD269: N/A | BE269: N/A | BF269: N/A | BG269: N/A | BH269: N/A | BI269: N/A | BJ269: N/A | BK269: N/A | BL269: N/A | BM269: N/A | BN269: N/A | BO269: N/A | BP269: N/A | BQ269: N/A | BR269: N/A | BS269: N/A | BT269: N/A | BU269: N/A | BV269: N/A | BW269: N/A | BX269: N/A | BY269: N/A | BZ269: N/A | CA269: N/A | CB269: N/A | CC269: N/A
BB270: No materials used | BC270: N/A | BD270: N/A | BE270: N/A | BF270: N/A | BG270: N/A | BH270: N/A | BI270: N/A | BJ270: N/A | BK270: N/A | BL270: N/A | BM270: N/A | BN270: N/A | BO270: N/A | BP270: N/A | BQ270: N/A | BR270: N/A | BS270: N/A | BT270: N/A | BU270: N/A | BV270: N/A | BW270: N/A | BX270: N/A | BY270: N/A | BZ270: N/A | CA270: N/A | CB270: N/A | CC270: N/A
BA271: Awareness of menstruation before menarche | BB271: Yes | BC271: N/A | BD271: N/A | BE271: N/A | BF271: N/A | BG271: N/A | BH271: N/A | BI271: N/A | BJ271: N/A | BK271: N/A | BL271: N/A | BM271: N/A | BN271: N/A | BO271: N/A | BP271: N/A | BQ271: N/A | BR271: N/A | BS271: N/A | BT271: N/A | BU271: N/A | BV271: N/A | BW271: N/A | BX271: N/A | BY271: N/A | BZ271: N/A | CA271: N/A | CB271: N/A | CC271: N/A
BB272: No | BC272: N/A | BD272: N/A | BE272: N/A | BF272: N/A | BG272: N/A | BH272: N/A | BI272: N/A | BJ272: N/A | BK272: N/A | BL272: N/A | BM272: N/A | BN272: N/A | BO272: N/A | BP272: N/A | BQ272: N/A | BR272: N/A | BS272: N/A | BT272: N/A | BU272: N/A | BV272: N/A | BW272: N/A | BX272: N/A | BY272: N/A | BZ272: N/A | CA272: N/A | CB272: N/A | CC272: N/A
BB273: DK/not sure/missing | BC273: N/A | BD273: N/A | BE273: N/A | BF273: N/A | BG273: N/A | BH273: N/A | BI273: N/A | BJ273: N/A | BK273: N/A | BL273: N/A | BM273: N/A | BN273: N/A | BO273: N/A | BP273: N/A | BQ273: N/A | BR273: N/A | BS273: N/A | BT273: N/A | BU273: N/A | BV273: N/A | BW273: N/A | BX273: N/A | BY273: N/A | BZ273: N/A | CA273: N/A | CB273: N/A | CC273: N/A
BA274: Participation in (all) activities during menstruation | BB274: Yes | BC274: N/A | BD274: N/A | BE274: N/A | BF274: N/A | BG274: N/A | BH274: N/A | BI274: N/A | BJ274: N/A | BK274: N/A | BL274: N/A | BM274: N/A | BN274: N/A | BO274: N/A | BP274: N/A | BQ274: N/A | BR274: N/A | BS274: N/A | BT274: N/A | BU274: N/A | BV274: N/A | BW274: N/A | BX274: N/A | BY274: N/A | BZ274: N/A | CA274: N/A | CB274: N/A | CC274: N/A
BB275: No | BC275: N/A | BD275: N/A | BE275: N/A | BF275: N/A | BG275: N/A | BH275: N/A | BI275: N/A | BJ275: N/A | BK275: N/A | BL275: N/A | BM275: N/A | BN275: N/A | BO275: N/A | BP275: N/A | BQ275: N/A | BR275: N/A | BS275: N/A | BT275: N/A | BU275: N/A | BV275: N/A | BW275: N/A | BX275: N/A | BY275: N/A | BZ275: N/A | CA275: N/A | CB275: N/A | CC275: N/A
BB276: DK/not sure/missing/no such activity | BC276: N/A | BD276: N/A | BE276: N/A | BF276: N/A | BG276: N/A | BH276: N/A | BI276: N/A | BJ276: N/A | BK276: N/A | BL276: N/A | BM276: N/A | BN276: N/A | BO276: N/A | BP276: N/A | BQ276: N/A | BR276: N/A | BS276: N/A | BT276: N/A | BU276: N/A | BV276: N/A | BW276: N/A | BX276: N/A | BY276: N/A | BZ276: N/A | CA276: N/A | CB276: N/A | CC276: N/A
BA277: Participation in specific activities during menstruation | BB277: Did not go to school (amongst those usually attending school) | BC277: N/A | BD277: N/A | BE277: N/A | BF277: N/A | BG277: N/A | BH277: N/A | BI277: N/A | BJ277: N/A | BK277: N/A | BL277: N/A | BM277: N/A | BN277: N/A | BO277: N/A | BP277: N/A | BQ277: N/A | BR277: N/A | BS277: N/A | BT277: N/A | BU277: N/A | BV277: N/A | BW277: N/A | BX277: N/A | BY277: N/A | BZ277: N/A | CA277: N/A | CB277: N/A | CC277: N/A
BB278: Did not go to work (amongst those who usually work) | BC278: N/A | BD278: N/A | BE278: N/A | BF278: N/A | BG278: N/A | BH278: N/A | BI278: N/A | BJ278: N/A | BK278: N/A | BL278: N/A | BM278: N/A | BN278: N/A | BO278: N/A | BP278: N/A | BQ278: N/A | BR278: N/A | BS278: N/A | BT278: N/A | BU278: N/A | BV278: N/A | BW278: N/A | BX278: N/A | BY278: N/A | BZ278: N/A | CA278: N/A | CB278: N/A | CC278: N/A
BB279: Did not participate in social activities | BC279: N/A | BD279: N/A | BE279: N/A | BF279: N/A | BG279: N/A | BH279: N/A | BI279: N/A | BJ279: N/A | BK279: N/A | BL279: N/A | BM279: N/A | BN279: N/A | BO279: N/A | BP279: N/A | BQ279: N/A | BR279: N/A | BS279: N/A | BT279: N/A | BU279: N/A | BV279: N/A | BW279: N/A | BX279: N/A | BY279: N/A | BZ279: N/A | CA279: N/A | CB279: N/A | CC279: N/A
BB280: Did not cook food | BC280: N/A | BD280: N/A | BE280: N/A | BF280: N/A | BG280: N/A | BH280: N/A | BI280: N/A | BJ280: N/A | BK280: N/A | BL280: N/A | BM280: N/A | BN280: N/A | BO280: N/A | BP280: N/A | BQ280: N/A | BR280: N/A | BS280: N/A | BT280: N/A | BU280: N/A | BV280: N/A | BW280: N/A | BX280: N/A | BY280: N/A | BZ280: N/A | CA280: N/A | CB280: N/A | CC280: N/A
BB281: Did not eat with others | BC281: N/A | BD281: N/A | BE281: N/A | BF281: N/A | BG281: N/A | BH281: N/A | BI281: N/A | BJ281: N/A | BK281: N/A | BL281: N/A | BM281: N/A | BN281: N/A | BO281: N/A | BP281: N/A | BQ281: N/A | BR281: N/A | BS281: N/A | BT281: N/A | BU281: N/A | BV281: N/A | BW281: N/A | BX281: N/A | BY281: N/A | BZ281: N/A | CA281: N/A | CB281: N/A | CC281: N/A
BB282: Did not bathe in regular place | BC282: N/A | BD282: N/A | BE282: N/A | BF282: N/A | BG282: N/A | BH282: N/A | BI282: N/A | BJ282: N/A | BK282: N/A | BL282: N/A | BM282: N/A | BN282: N/A | BO282: N/A | BP282: N/A | BQ282: N/A | BR282: N/A | BS282: N/A | BT282: N/A | BU282: N/A | BV282: N/A | BW282: N/A | BX282: N/A | BY282: N/A | BZ282: N/A | CA282: N/A | CB282: N/A | CC282: N/A
BB283: Did not participate in other activities | BC283: N/A | BD283: N/A | BE283: N/A | BF283: N/A | BG283: N/A | BH283: N/A | BI283: N/A | BJ283: N/A | BK283: N/A | BL283: N/A | BM283: N/A | BN283: N/A | BO283: N/A | BP283: N/A | BQ283: N/A | BR283: N/A | BS283: N/A | BT283: N/A | BU283: N/A | BV283: N/A | BW283: N/A | BX283: N/A | BY283: N/A | BZ283: N/A | CA283: N/A | CB283: N/A | CC283: N/A
BB284: DK/not sure/missing/no such activity | BC284: N/A | BD284: N/A | BE284: N/A | BF284: N/A | BG284: N/A | BH284: N/A | BI284: N/A | BJ284: N/A | BK284: N/A | BL284: N/A | BM284: N/A | BN284: N/A | BO284: N/A | BP284: N/A | BQ284: N/A | BR284: N/A | BS284: N/A | BT284: N/A | BU284: N/A | BV284: N/A | BW284: N/A | BX284: N/A | BY284: N/A | BZ284: N/A | CA284: N/A | CB284: N/A | CC284: N/A
BA339: Raw numbers of respondents: | BB339: Basic water, sanitation and hygiene | BC339: NATIONAL wealth index quintile | BH339: URBAN wealth index quintile | BM339: RURAL wealth index quintile | BR339: SUB-REGIONS:
BA340: WatSan data, raw numbers (weighted) | BC340: Poorest | BD340: Poor | BE340: Middle | BF340: Rich | BG340: Richest | BH340: Poorest | BI340: Poor | BJ340: Middle | BK340: Rich | BL340: Richest | BM340: Poorest | BN340: Poor | BO340: Middle | BP340: Rich | BQ340: Richest | BR340: alibori | BS340: atacora | BT340: atlantique | BU340: borgou | BV340: collines | BW340: couffo | BX340: donga | BY340: littoral | BZ340: mono | CA340: plateau | CB340: quémé | CC340: zou
BA341: Access to Basic Water Sanitation and Hygiene | BB341: Yes | BC341: N/A | BD341: N/A | BE341: N/A | BF341: N/A | BG341: N/A | BH341: N/A | BI341: N/A | BJ341: N/A | BK341: N/A | BL341: N/A | BM341: N/A | BN341: N/A | BO341: N/A | BP341: N/A | BQ341: N/A | BR341: N/A | BS341: N/A | BT341: N/A | BU341: N/A | BV341: N/A | BW341: N/A | BX341: N/A | BY341: N/A | BZ341: N/A | CA341: N/A | CB341: N/A | CC341: N/A
BB342: No | BC342: N/A | BD342: N/A | BE342: N/A | BF342: N/A | BG342: N/A | BH342: N/A | BI342: N/A | BJ342: N/A | BK342: N/A | BL342: N/A | BM342: N/A | BN342: N/A | BO342: N/A | BP342: N/A | BQ342: N/A | BR342: N/A | BS342: N/A | BT342: N/A | BU342: N/A | BV342: N/A | BW342: N/A | BX342: N/A | BY342: N/A | BZ342: N/A | CA342: N/A | CB342: N/A | CC342: N/A
BA343: Access to Basic Water and Sanitation | BB343: Yes | BC343: N/A | BD343: N/A | BE343: N/A | BF343: N/A | BG343: N/A | BH343: N/A | BI343: N/A | BJ343: N/A | BK343: N/A | BL343: N/A | BM343: N/A | BN343: N/A | BO343: N/A | BP343: N/A | BQ343: N/A | BR343: N/A | BS343: N/A | BT343: N/A | BU343: N/A | BV343: N/A | BW343: N/A | BX343: N/A | BY343: N/A | BZ343: N/A | CA343: N/A | CB343: N/A | CC343: N/A
BB344: No | BC344: N/A | BD344: N/A | BE344: N/A | BF344: N/A | BG344: N/A | BH344: N/A | BI344: N/A | BJ344: N/A | BK344: N/A | BL344: N/A | BM344: N/A | BN344: N/A | BO344: N/A | BP344: N/A | BQ344: N/A | BR344: N/A | BS344: N/A | BT344: N/A | BU344: N/A | BV344: N/A | BW344: N/A | BX344: N/A | BY344: N/A | BZ344: N/A | CA344: N/A | CB344: N/A | CC344: N/A
BA345: Access to Basic Water and Hygiene | BB345: Yes | BC345: N/A | BD345: N/A | BE345: N/A | BF345: N/A | BG345: N/A | BH345: N/A | BI345: N/A | BJ345: N/A | BK345: N/A | BL345: N/A | BM345: N/A | BN345: N/A | BO345: N/A | BP345: N/A | BQ345: N/A | BR345: N/A | BS345: N/A | BT345: N/A | BU345: N/A | BV345: N/A | BW345: N/A | BX345: N/A | BY345: N/A | BZ345: N/A | CA345: N/A | CB345: N/A | CC345: N/A
BB346: No | BC346: N/A | BD346: N/A | BE346: N/A | BF346: N/A | BG346: N/A | BH346: N/A | BI346: N/A | BJ346: N/A | BK346: N/A | BL346: N/A | BM346: N/A | BN346: N/A | BO346: N/A | BP346: N/A | BQ346: N/A | BR346: N/A | BS346: N/A | BT346: N/A | BU346: N/A | BV346: N/A | BW346: N/A | BX346: N/A | BY346: N/A | BZ346: N/A | CA346: N/A | CB346: N/A | CC346: N/A
BA347: Access to Basic Sanitation and Hygiene | BB347: Yes | BC347: N/A | BD347: N/A | BE347: N/A | BF347: N/A | BG347: N/A | BH347: N/A | BI347: N/A | BJ347: N/A | BK347: N/A | BL347: N/A | BM347: N/A | BN347: N/A | BO347: N/A | BP347: N/A | BQ347: N/A | BR347: N/A | BS347: N/A | BT347: N/A | BU347: N/A | BV347: N/A | BW347: N/A | BX347: N/A | BY347: N/A | BZ347: N/A | CA347: N/A | CB347: N/A | CC347: N/A
BB348: No | BC348: N/A | BD348: N/A | BE348: N/A | BF348: N/A | BG348: N/A | BH348: N/A | BI348: N/A | BJ348: N/A | BK348: N/A | BL348: N/A | BM348: N/A | BN348: N/A | BO348: N/A | BP348: N/A | BQ348: N/A | BR348: N/A | BS348: N/A | BT348: N/A | BU348: N/A | BV348: N/A | BW348: N/A | BX348: N/A | BY348: N/A | BZ348: N/A | CA348: N/A | CB348: N/A | CC348: N/A
BA349: Access to Basic Water | BB349: Yes | BC349: N/A | BD349: N/A | BE349: N/A | BF349: N/A | BG349: N/A | BH349: N/A | BI349: N/A | BJ349: N/A | BK349: N/A | BL349: N/A | BM349: N/A | BN349: N/A | BO349: N/A | BP349: N/A | BQ349: N/A | BR349: N/A | BS349: N/A | BT349: N/A | BU349: N/A | BV349: N/A | BW349: N/A | BX349: N/A | BY349: N/A | BZ349: N/A | CA349: N/A | CB349: N/A | CC349: N/A
BB350: No | BC350: N/A | BD350: N/A | BE350: N/A | BF350: N/A | BG350: N/A | BH350: N/A | BI350: N/A | BJ350: N/A | BK350: N/A | BL350: N/A | BM350: N/A | BN350: N/A | BO350: N/A | BP350: N/A | BQ350: N/A | BR350: N/A | BS350: N/A | BT350: N/A | BU350: N/A | BV350: N/A | BW350: N/A | BX350: N/A | BY350: N/A | BZ350: N/A | CA350: N/A | CB350: N/A | CC350: N/A
BA351: Access to Basic Sanitation | BB351: Yes | BC351: N/A | BD351: N/A | BE351: N/A | BF351: N/A | BG351: N/A | BH351: N/A | BI351: N/A | BJ351: N/A | BK351: N/A | BL351: N/A | BM351: N/A | BN351: N/A | BO351: N/A | BP351: N/A | BQ351: N/A | BR351: N/A | BS351: N/A | BT351: N/A | BU351: N/A | BV351: N/A | BW351: N/A | BX351: N/A | BY351: N/A | BZ351: N/A | CA351: N/A | CB351: N/A | CC351: N/A
BB352: No | BC352: N/A | BD352: N/A | BE352: N/A | BF352: N/A | BG352: N/A | BH352: N/A | BI352: N/A | BJ352: N/A | BK352: N/A | BL352: N/A | BM352: N/A | BN352: N/A | BO352: N/A | BP352: N/A | BQ352: N/A | BR352: N/A | BS352: N/A | BT352: N/A | BU352: N/A | BV352: N/A | BW352: N/A | BX352: N/A | BY352: N/A | BZ352: N/A | CA352: N/A | CB352: N/A | CC352: N/A
BA353: Access to Basic Hygiene | BB353: Yes | BC353: N/A | BD353: N/A | BE353: N/A | BF353: N/A | BG353: N/A | BH353: N/A | BI353: N/A | BJ353: N/A | BK353: N/A | BL353: N/A | BM353: N/A | BN353: N/A | BO353: N/A | BP353: N/A | BQ353: N/A | BR353: N/A | BS353: N/A | BT353: N/A | BU353: N/A | BV353: N/A | BW353: N/A | BX353: N/A | BY353: N/A | BZ353: N/A | CA353: N/A | CB353: N/A | CC353: N/A
BB354: No | BC354: N/A | BD354: N/A | BE354: N/A | BF354: N/A | BG354: N/A | BH354: N/A | BI354: N/A | BJ354: N/A | BK354: N/A | BL354: N/A | BM354: N/A | BN354: N/A | BO354: N/A | BP354: N/A | BQ354: N/A | BR354: N/A | BS354: N/A | BT354: N/A | BU354: N/A | BV354: N/A | BW354: N/A | BX354: N/A | BY354: N/A | BZ354: N/A | CA354: N/A | CB354: N/A | CC354: N/A
C399: INITIAL (national) Wealth Index | H399: URBAN Wealth Index | M399: RURAL Wealth Index
C400: Component Matrix | H400: Component Matrix | M400: Component Matrix
E401: Component | J401: Component | O401: Component
B402: Note: The INITIAL (national) Wealth Index is based on the first component of the Principal Component Analysis (PCA) which has been obtained at national level. The final national-level (NATIONAL) Wealth Index is based on the URBAN and RURAL specific wealth indexes. Regression procedures are used to establish the relationships between the two sets of scores (urban and rural) and the initial (national) wealth factors. This allows best use of the available information for each area and a better precision of the FINAL (NATIONAL) Wealth Index. For dependency reasons, all WASH variables (contained in the generic MICS and DHS scripts) have been excluded from the sets of asset variables used in the PCAs. The PCA can extracts as many components as there are asset variables in the input. Only the first of the components is used to represent the Wealth Index. The scores represent the weights of the asset variables on the Wealth Index (correlations between the variables and the component). The communalities are the proportion of each variable's variance that can be explained by the component. Proportion of explained variance is the part of the model's total variance that is explained by the component. For more information on the procedure used: The DHS Wealth Index, DHS Comparative Reports No. 6, Shea Oscar Rutstein, Kiersten Johnson, ORC Macro International Inc., 2004. The DHS Wealth Index: Approaches for Rural and Urban Areas, Shea O. Rutstein, ORC Macro International Inc., 2008. MICS Methodological Paper No. 4, Review of options for reporting water, sanitation and hygiene coverage by wealth quintile, UNICEF, 2016. | E402: 1 | J402: 1 | O402: 1
C403: household owns: number of televisions | E403: 0.7876168241 | H403: household owns: number of televisions | J403: 0.7920936124 | M403: household owns: number of televisions | O403: 0.7169741211
C404: has television | E404: 0.7794494294 | H404: household owns: number of mobile phones | J404: 0.7739569861 | M404: has television | O404: 0.7141244481
C405: household owns: number of mobile phones | E405: 0.7776248442 | H405: has television | J405: 0.7664290381 | M405: household owns: number of dvd players | O405: 0.6721632987
C406: household owns: number of "metalas en mousse" (?) | E406: 0.7472115483 | H406: household owns: number of "metalas en mousse" (?) | J406: 0.7373378063 | M406: household owns: number of "metalas en mousse" (?) | O406: 0.6363557529
C407: household owns: number of dvd players | E407: 0.7415696557 | H407: household owns: number of "fans" | J407: 0.732862259 | M407: household owns: number of "fans" | O407: 0.6029060275
C408: household owns: number of "fans" | E408: 0.734870952 | H408: household owns: number of dvd players | J408: 0.7280573999 | M408: household owns: number of mobile phones | O408: 0.6027976395
C409: has electricity | E409: 0.7277494188 | H409: has electricity | J409: 0.6877195742 | M409: has electricity | O409: 0.5220642006
C410: if uses straw/shrubs/grass for cooking fuel | E410: -0.6597113997 | H410: has refrigerator | J410: 0.6338696477 | M410: household owns: number of motocycles | O410: 0.5042119776
C411: if walls are made of brick | E411: 0.6338569121 | H411: if uses straw/shrubs/grass for cooking fuel | J411: -0.6095530184 | M411: if floors are made of cement | O411: 0.5033095203
C412: has refrigerator | E412: 0.6330862134 | H412: household owns: number of refrigerators | J412: 0.6015424327 | M412: if walls are made of brick | O412: 0.4993086027
C413: household owns: number of refrigerators | E413: 0.5933200723 | H413: household owns: number of beds | J413: 0.6012902383 | M413: household owns: number of beds | O413: 0.4908059703
C414: if has private garbage collection | E414: 0.5823450298 | H414: if walls are made of brick | J414: 0.5810946265 | M414: has refrigerator | O414: 0.4836135737
C415: if walls are made of earth | E415: -0.5690794944 | H415: if walls are made of earth | J415: -0.5795120944 | M415: has motorcycle/scooter | O415: 0.4701264328
C416: household owns: number of beds | E416: 0.5660247706 | H416: household owns: number of irons | J416: 0.5352611026 | M416: if floors are made of earth | O416: -0.4675429255
... 246 more rows

Sheet DHS12
A2: =A1026 -> Benin
A3: =A1034 -> 2012
A4: Use of drinking water sources
A5: by wealth quintile and sub-national region
A6: Notes:
A7: WHO/UNICEF JMP customised wealth index excludes water,
A8: sanitation and hygiene assets.
A9: Survey used for analysis: | B9: =A1025 -> DHS12
A10: =B1028 -> 
A11: =B1027 -> 
A14: Use of drinking water sources | C14: NATIONAL wealth index quintile | H14: URBAN wealth index quintile | M14: RURAL wealth index quintile | R14: SUB-REGIONS: | BA14: Raw numbers of respondents: | BB14: Use of drinking water sources | BC14: NATIONAL wealth index quintile | BH14: URBAN wealth index quintile | BM14: RURAL wealth index quintile | BR14: SUB-REGIONS:
A15: Weighted percentage (used in graphs) | C15: Poorest | D15: Poor | E15: Middle | F15: Rich | G15: Richest | H15: Poorest | I15: Poor | J15: Middle | K15: Rich | L15: Richest | M15: Poorest | N15: Poor | O15: Middle | P15: Rich | Q15: Richest | R15: Alibori | S15: Atacora | T15: Atlantique | U15: Borgou | V15: Collines | W15: Couffo | X15: Donga | Y15: Littoral | Z15: Mono | AA15: Ouémé | AB15: Plateau | AC15: Zou | BA15: Water data, raw numbers (weighted) | BC15: Poorest | BD15: Poor | BE15: Middle | BF15: Rich | BG15: Richest | BH15: Poorest | BI15: Poor | BJ15: Middle | BK15: Rich | BL15: Richest | BM15: Poorest | BN15: Poor | BO15: Middle | BP15: Rich | BQ15: Richest | BR15: Alibori | BS15: Atacora | BT15: Atlantique | BU15: Borgou | BV15: Collines | BW15: Couffo | BX15: Donga | BY15: Littoral | BZ15: Mono | CA15: Ouémé | CB15: Plateau | CC15: Zou
A16: Water | B16: Improved | C16: 64.73010415 | D16: 70.36679511 | E16: 75.11902422 | F16: 81.332305 | G16: 93.6486256 | H16: 65.25117583 | I16: 80.82443516 | J16: 84.90079406 | K16: 91.88817872 | L16: 97.88548089 | M16: 63.16241649 | N16: 69.36153262 | O16: 74.77531623 | P16: 72.59685314 | Q16: 79.85292162 | R16: 57.80686694 | S16: 70.06411698 | T16: 74.75023989 | U16: 69.78832213 | V16: 86.3116775 | W16: 77.3998945 | X16: 59.41112023 | Y16: 98.70097058 | Z16: 78.78400596 | AA16: 78.72338427 | AB16: 80.83092458 | AC16: 73.97357635 | BA16: Water | BB16: Improved | BC16: N/A | BD16: N/A | BE16: N/A | BF16: N/A | BG16: N/A | BH16: N/A | BI16: N/A | BJ16: N/A | BK16: N/A | BL16: N/A | BM16: N/A | BN16: N/A | BO16: N/A | BP16: N/A | BQ16: N/A | BR16: N/A | BS16: N/A | BT16: N/A | BU16: N/A | BV16: N/A | BW16: N/A | BX16: N/A | BY16: N/A | BZ16: N/A | CA16: N/A | CB16: N/A | CC16: N/A
B17: Not Improved | C17: 35.26989585 | D17: 29.63320489 | E17: 24.88097578 | F17: 18.667695 | G17: 6.3513744 | H17: 34.74882417 | I17: 19.17556484 | J17: 15.09920594 | K17: 8.111821277 | L17: 2.114519106 | M17: 36.83758351 | N17: 30.63846738 | O17: 25.22468377 | P17: 27.40314686 | Q17: 20.14707838 | R17: 42.19313306 | S17: 29.93588302 | T17: 25.24976011 | U17: 30.21167787 | V17: 13.6883225 | W17: 22.6001055 | X17: 40.58887977 | Y17: 1.299029419 | Z17: 21.21599404 | AA17: 21.27661573 | AB17: 19.16907542 | AC17: 26.02642365 | BB17: Not Improved | BC17: N/A | BD17: N/A | BE17: N/A | BF17: N/A | BG17: N/A | BH17: N/A | BI17: N/A | BJ17: N/A | BK17: N/A | BL17: N/A | BM17: N/A | BN17: N/A | BO17: N/A | BP17: N/A | BQ17: N/A | BR17: N/A | BS17: N/A | BT17: N/A | BU17: N/A | BV17: N/A | BW17: N/A | BX17: N/A | BY17: N/A | BZ17: N/A | CA17: N/A | CB17: N/A | CC17: N/A
A18: Water ladder | B18: Basic | C18: =C16*C23/100 -> 55.88154717 | D18: =D16*D23/100 -> 63.25779316 | E18: =E16*E23/100 -> 69.55460726 | F18: 77.7657158 | G18: 92.77757223 | H18: 60.01244358 | I18: 77.48327356 | J18: 83.69034881 | K18: 90.92477016 | L18: 97.52243302 | M18: 53.69587583 | N18: 60.77897095 | O18: 67.8156523 | P18: 66.85075599 | Q18: 74.04090434 | R18: 52.46015456 | S18: 66.13771252 | T18: 66.62627656 | U18: 65.49531315 | V18: 76.76398475 | W18: 71.73394178 | X18: 56.90721588 | Y18: 98.51011593 | Z18: 69.75836905 | AA18: 75.8134243 | AB18: 72.17661907 | AC18: 68.03111787 | BA18: Water ladder | BB18: Basic | BC18: N/A | BD18: N/A | BE18: N/A | BF18: N/A | BG18: N/A | BH18: N/A | BI18: N/A | BJ18: N/A | BK18: N/A | BL18: N/A | BM18: N/A | BN18: N/A | BO18: N/A | BP18: N/A | BQ18: N/A | BR18: N/A | BS18: N/A | BT18: N/A | BU18: N/A | BV18: N/A | BW18: N/A | BX18: N/A | BY18: N/A | BZ18: N/A | CA18: N/A | CB18: N/A | CC18: N/A
B19: Limited | C19: =C16*C22/100 -> 8.84855698 | D19: =D16*D22/100 -> 7.109001949 | E19: =E16*E22/100 -> 5.564416956 | F19: 3.566589199 | G19: 0.8710533723 | H19: 5.238732248 | I19: 3.341161603 | J19: 1.210445256 | K19: 0.9634085624 | L19: 0.3630478786 | M19: 9.466540661 | N19: 8.582561666 | O19: 6.959663928 | P19: 5.74609716 | Q19: 5.812017278 | R19: 5.346712377 | S19: 3.926404469 | T19: 8.123963327 | U19: 4.293008981 | V19: 9.547692745 | W19: 5.665952714 | X19: 2.503904351 | Y19: 0.1908546507 | Z19: 9.025636909 | AA19: 2.909959975 | AB19: 8.654305511 | AC19: 5.942458483 | BB19: Limited | BC19: N/A | BD19: N/A | BE19: N/A | BF19: N/A | BG19: N/A | BH19: N/A | BI19: N/A | BJ19: N/A | BK19: N/A | BL19: N/A | BM19: N/A | BN19: N/A | BO19: N/A | BP19: N/A | BQ19: N/A | BR19: N/A | BS19: N/A | BT19: N/A | BU19: N/A | BV19: N/A | BW19: N/A | BX19: N/A | BY19: N/A | BZ19: N/A | CA19: N/A | CB19: N/A | CC19: N/A
B20: Unimproved | C20: =100-C18-C19-C21 -> 25.2746658 | D20: =100-D18-D19-D21 -> 24.70107971 | E20: =100-E18-E19-E21 -> 21.64538216 | F20: 17.75672078 | G20: 6.321708652 | H20: 31.33031469 | I20: 18.81832461 | J20: 14.94343706 | K20: 8.111821277 | L20: 2.114519106 | M20: 24.15652237 | N20: 23.70554023 | O20: 20.50646541 | P20: 23.47448093 | Q20: 18.46241388 | R20: 41.42211843 | S20: 24.0582583 | T20: 21.97327384 | U20: 26.63668519 | V20: 11.07880332 | W20: 20.25664921 | X20: 40.28260826 | Y20: 1.299029419 | Z20: 19.53862044 | AA20: 16.29574301 | AB20: 6.739906457 | AC20: 18.48647565 | BB20: Unimproved | BC20: N/A | BD20: N/A | BE20: N/A | BF20: N/A | BG20: N/A | BH20: N/A | BI20: N/A | BJ20: N/A | BK20: N/A | BL20: N/A | BM20: N/A | BN20: N/A | BO20: N/A | BP20: N/A | BQ20: N/A | BR20: N/A | BS20: N/A | BT20: N/A | BU20: N/A | BV20: N/A | BW20: N/A | BX20: N/A | BY20: N/A | BZ20: N/A | CA20: N/A | CB20: N/A | CC20: N/A
B21: Surface water | C21: 9.995230056 | D21: 4.932125182 | E21: 3.235593622 | F21: 0.910974224 | G21: 0.02966574802 | H21: 3.418509481 | I21: 0.3572402289 | J21: 0.1557688771 | K21: 0 | L21: 0 | M21: 12.68106114 | N21: 6.932927157 | O21: 4.718218358 | P21: 3.928665929 | Q21: 1.684664498 | R21: 0.7710146319 | S21: 5.877624711 | T21: 3.276486268 | U21: 3.574992672 | V21: 2.609519183 | W21: 2.343456288 | X21: 0.3062715137 | Y21: 0 | Z21: 1.677373598 | AA21: 4.980872721 | AB21: 12.42916896 | AC21: 7.539947997 | BB21: Surface water | BC21: N/A | BD21: N/A | BE21: N/A | BF21: N/A | BG21: N/A | BH21: N/A | BI21: N/A | BJ21: N/A | BK21: N/A | BL21: N/A | BM21: N/A | BN21: N/A | BO21: N/A | BP21: N/A | BQ21: N/A | BR21: N/A | BS21: N/A | BT21: N/A | BU21: N/A | BV21: N/A | BW21: N/A | BX21: N/A | BY21: N/A | BZ21: N/A | CA21: N/A | CB21: N/A | CC21: N/A
A22: Improved water point at more than 30 minutes | B22: Yes | C22: 13.66992545 | D22: 10.10277921 | E22: 7.407467035 | F22: 4.385206099 | G22: 0.930129371 | H22: 8.028563749 | I22: 4.133850853 | J22: 1.425717238 | K22: 1.048457566 | L22: 0.3708904275 | M22: 14.98761635 | N22: 12.37366209 | O22: 9.307434964 | P22: 7.91507746 | Q22: 7.278402794 | R22: 9.249268574 | S22: 5.604016204 | T22: 10.86814349 | U22: 6.151471837 | V22: 11.06187832 | W22: 7.320362322 | X22: 4.21453819 | Y22: 0.1933665389 | Z22: 11.45617921 | AA22: 3.696436582 | AB22: 10.70667638 | AC22: 8.033217773 | BA22: Improved water point at more than 30 minutes | BB22: Yes | BC22: N/A | BD22: N/A | BE22: N/A | BF22: N/A | BG22: N/A | BH22: N/A | BI22: N/A | BJ22: N/A | BK22: N/A | BL22: N/A | BM22: N/A | BN22: N/A | BO22: N/A | BP22: N/A | BQ22: N/A | BR22: N/A | BS22: N/A | BT22: N/A | BU22: N/A | BV22: N/A | BW22: N/A | BX22: N/A | BY22: N/A | BZ22: N/A | CA22: N/A | CB22: N/A | CC22: N/A
B23: No | C23: 86.33007455 | D23: 89.89722079 | E23: 92.59253296 | F23: 95.6147939 | G23: 99.06987063 | H23: 91.97143625 | I23: 95.86614915 | J23: 98.57428276 | K23: 98.95154243 | L23: 99.62910957 | M23: 85.01238365 | N23: 87.62633791 | O23: 90.69256504 | P23: 92.08492254 | Q23: 92.72159721 | R23: 90.75073143 | S23: 94.3959838 | T23: 89.13185651 | U23: 93.84852816 | V23: 88.93812168 | W23: 92.67963768 | X23: 95.78546181 | Y23: 99.80663346 | Z23: 88.54382079 | AA23: 96.30356342 | AB23: 89.29332362 | AC23: 91.96678223 | BB23: No | BC23: N/A | BD23: N/A | BE23: N/A | BF23: N/A | BG23: N/A | BH23: N/A | BI23: N/A | BJ23: N/A | BK23: N/A | BL23: N/A | BM23: N/A | BN23: N/A | BO23: N/A | BP23: N/A | BQ23: N/A | BR23: N/A | BS23: N/A | BT23: N/A | BU23: N/A | BV23: N/A | BW23: N/A | BX23: N/A | BY23: N/A | BZ23: N/A | CA23: N/A | CB23: N/A | CC23: N/A
A24: Manually calculated ratios | B24: Improved wells
B25: Improved springs | C25: =C64/(C64+C65)*100 -> 19.07555182 | D25: 27.55398243 | E25: 45.76490212 | F25: 61.89531545 | G25: 67.89739029 | H25: 22.65020565 | I25: 56.59441334 | J25: 86.80130634 | K25: 51.70362565 | L25: 100 | M25: 16.42320743 | N25: 24.53963794 | O25: 39.2094984 | P25: 47.63776475 | Q25: 51.23001511 | R25: 30.81736525 | S25: 39.45826195 | T25: 14.06565457 | U25: 27.77355401 | V25: 15.27372915 | W25: 23.60950824 | X25: 68.17479239 | Y25: 66.34312775 | Z25: 47.06008373 | AA25: 71.99586607 | AB25: 0 | AC25: 25.50849128
B26: Other
C27: NATIONAL wealth index quintile | H27: URBAN wealth index quintile | M27: RURAL wealth index quintile | R27: SUB-REGIONS: | BA27: Raw numbers of respondents: | BB27: Use of drinking water sources | BC27: NATIONAL wealth index quintile | BH27: URBAN wealth index quintile | BM27: RURAL wealth index quintile | BR27: SUB-REGIONS:
A28: Percentage based on weighted population | C28: Poorest | D28: Poor | E28: Middle | F28: Rich | G28: Richest | H28: Poorest | I28: Poor | J28: Middle | K28: Rich | L28: Richest | M28: Poorest | N28: Poor | O28: Middle | P28: Rich | Q28: Richest | R28: Alibori | S28: Atacora | T28: Atlantique | U28: Borgou | V28: Collines | W28: Couffo | X28: Donga | Y28: Littoral | Z28: Mono | AA28: Ouémé | AB28: Plateau | AC28: Zou | BA28: Water data, raw numbers (weighted) | BC28: Poorest | BD28: Poor | BE28: Middle | BF28: Rich | BG28: Richest | BH28: Poorest | BI28: Poor | BJ28: Middle | BK28: Rich | BL28: Richest | BM28: Poorest | BN28: Poor | BO28: Middle | BP28: Rich | BQ28: Richest | BR28: Alibori | BS28: Atacora | BT28: Atlantique | BU28: Borgou | BV28: Collines | BW28: Couffo | BX28: Donga | BY28: Littoral | BZ28: Mono | CA28: Ouémé | CB28: Plateau | CC28: Zou
